Workbook

Sheet ProjectData
B3: TM: TOUGH SUPPORT SAVINGS CALCULATOR
E7: Project Name: | F7: Miller SNB5-6
B9: Project Charateristics:
B12: Tray Installation Rates (USD/HR): | F12: Tray Support Finish:
B13: 100 | F13: Zinc
B16: Tray Trapeze Support Span (ft): | F16: Tray Cover Requirement:
B17: 5 | F17: Not Required
B19: Straight Sections:
B22: All Height X 10ft Long
B23: Width (in) | C23: Linear FT
B24: 2in
B25: 4in
B26: 6in
B27: 8in
B28: 10in
B29: 12in | C29: 15360
B30: 16in
B31: 18in | C31: 4880
B32: 20in
B33: 24in
B34: 30in
B35: 36in
B37: Fitting Sections:
B41: Width (in) | C41: 45 HB | E41: 90 HB | G41: Verticals * | I41: Horizontal Tee * | K41: Horizontal Cross *
B42: 2in
B43: 4in
B44: 6in
B45: 8in
B46: 10in
B47: 12in | E47: 5 | G47: 12 | I47: 60 | K47: 10
B48: 16in
B49: 18in
B50: 20in
B51: 24in
B52: 30in
B53: 36in

Sheet DropDowns (hidden)
A1: Support Span | B1: Finish | C1: Labor Rates | D1: Covers | E1: Finish Cost
A2: 5 | B2: Zinc | C2: 50 | D2: Required | E2: =1 -> 1
A3: 6 | B3: Hot Dip | C3: 75 | D3: Not Required | E3: =2.5 -> 2.5
B4: Stainless | C4: 100 | E4: =4 -> 4
B5: Painted | C5: 125 | E5: =3 -> 3
C6: 150

Sheet CTI INPUTS (hidden)
B3: SUPPORT SPAN (FT) | C3: =ProjectData!B17 -> 5
B4: Material Finish Factor
B5: can | C5: HOUR ($)
B6: TRAY INSTALLER | C6: =ProjectData!B13 -> 100
B8: Zinc | C8: Hot Dip | D8: Stainless | E8: Painted
B9: 1 | C9: 2.5 | D9: 4 | E9: 3
B11: SUPPORT ITEMS | C11: Base Cost ($) | D11: =ProjectData!F13 -> Zinc | L11: C2G 45 FITTING | Q11: C2G 90 FITTING | V11: VERTICAL BENDS | AA11: HORIZONTAL TEE | AF11: HORIZONTAL CROSS
B12: SQUARE WASHER (PC) | C12: 1 | D12: =_xlfn.IFS($D$11=$C$8,$C$9*C12,$D$11=$D$8,$D$9*C12,$D$11=$E$8,$E$9*C12,$D$11=$B$8,$B$9*C12) -> 1 | L12: TRAY WIDTH | M12: CUTS QTY | N12: WSKIT (kits) | O12: WSKIT (pcs) | Q12: TRAY WIDTH | R12: CUTS QTY | S12: WSKIT (kits) | T12: WSKIT (pcs) | V12: TRAY WIDTH | W12: CUTS QTY | X12: WSKIT (kits) | Y12: WSKIT (pcs) | AA12: TRAY WIDTH | AB12: CUTS QTY | AC12: WSKIT (kits) | AD12: WSKIT (pcs) | AF12: TRAY WIDTH | AG12: CUTS QTY | AH12: WSKIT (kits) | AI12: WSKIT (pcs)
B13: FLAT WASHER (PC) | C13: 0.15 | D13: =_xlfn.IFS($D$11=$C$8,$C$9*C13,$D$11=$D$8,$D$9*C13,$D$11=$E$8,$E$9*C13,$D$11=$B$8,$B$9*C13) -> 0.15 | L13: 2 | M13: 6 | N13: 1 | O13: 4 | Q13: 2 | R13: 6 | S13: 1 | T13: 4 | V13: 2 | W13: 18 | X13: 0 | Y13: 0 | AA13: 2 | AB13: 10 | AC13: 3 | AD13: 12 | AF13: 2 | AG13: 20 | AH13: 6 | AI13: 24
B14: HEX NUT (PC) | C14: 0.25 | D14: =_xlfn.IFS($D$11=$C$8,$C$9*C14,$D$11=$D$8,$D$9*C14,$D$11=$E$8,$E$9*C14,$D$11=$B$8,$B$9*C14) -> 0.25 | L14: 4 | M14: 8 | N14: 1 | O14: 4 | Q14: 4 | R14: 16 | S14: 2 | T14: 8 | V14: 4 | W14: 36 | X14: 0 | Y14: 0 | AA14: 4 | AB14: 12 | AC14: 3 | AD14: 12 | AF14: 4 | AG14: 24 | AH14: 6 | AI14: 24
B15: WIRE (FT) | C15: 1 | D15: =_xlfn.IFS($D$11=$C$8,$C$9*C15,$D$11=$D$8,$D$9*C15,$D$11=$E$8,$E$9*C15,$D$11=$B$8,$B$9*C15) -> 1 | L15: 6 | M15: 20 | N15: 2 | O15: 8 | Q15: 6 | R15: 30 | S15: 3 | T15: 12 | V15: 6 | W15: 36 | X15: 0 | Y15: 0 | AA15: 6 | AB15: 13 | AC15: 3 | AD15: 12 | AF15: 6 | AG15: 26 | AH15: 6 | AI15: 24
B16: WIRE CLAMP (PR) | C16: 4 | D16: =_xlfn.IFS($D$11=$C$8,$C$9*C16,$D$11=$D$8,$D$9*C16,$D$11=$E$8,$E$9*C16,$D$11=$B$8,$B$9*C16) -> 4 | L16: 8 | M16: 24 | N16: 2 | O16: 8 | Q16: 8 | R16: 48 | S16: 4 | T16: 16 | V16: 8 | W16: 36 | X16: 0 | Y16: 0 | AA16: 8 | AB16: 14 | AC16: 3 | AD16: 12 | AF16: 8 | AG16: 28 | AH16: 6 | AI16: 24
B17: STRUT 12G (FT) | C17: 4.5 | D17: =_xlfn.IFS($D$11=$C$8,$C$9*C17,$D$11=$D$8,$D$9*C17,$D$11=$E$8,$E$9*C17,$D$11=$B$8,$B$9*C17) -> 4.5 | L17: 10 | M17: 42 | N17: 3 | O17: 12 | Q17: 10 | R17: 70 | S17: 5 | T17: 20 | V17: 10 | W17: 36 | X17: 0 | Y17: 0 | AA17: 10 | AB17: 15 | AC17: 3 | AD17: 12 | AF17: 10 | AG17: 30 | AH17: 6 | AI17: 24
B18: 3/8" ATR (FT) | C18: 1.7 | D18: =_xlfn.IFS($D$11=$C$8,$C$9*C18,$D$11=$D$8,$D$9*C18,$D$11=$E$8,$E$9*C18,$D$11=$B$8,$B$9*C18) -> 1.7 | L18: 12 | M18: 48 | N18: 3 | O18: 12 | Q18: 12 | R18: 96 | S18: 6 | T18: 24 | V18: 12 | W18: 36 | X18: 0 | Y18: 0 | AA18: 12 | AB18: 16 | AC18: 4 | AD18: 16 | AF18: 12 | AG18: 32 | AH18: 8 | AI18: 32
B19: URH-06 (PC) | C19: 4.99 | D19: =_xlfn.IFS($D$11=$C$8,$C$9*C19,$D$11=$D$8,$D$9*C19,$D$11=$E$8,$E$9*C19,$D$11=$B$8,$B$9*C19) -> 4.99 | L19: 16 | M19: 60 | N19: 3 | O19: 12 | Q19: 16 | R19: 140 | S19: 7 | T19: 28 | V19: 16 | W19: 36 | X19: 0 | Y19: 0 | AA19: 16 | AB19: 18 | AC19: 4 | AD19: 16 | AF19: 16 | AG19: 36 | AH19: 8 | AI19: 32
B20: URH-08 (PC) | C20: 5.82 | D20: =_xlfn.IFS($D$11=$C$8,$C$9*C20,$D$11=$D$8,$D$9*C20,$D$11=$E$8,$E$9*C20,$D$11=$B$8,$B$9*C20) -> 5.82 | L20: 18 | M20: 88 | N20: 4 | O20: 16 | Q20: 18 | R20: 176 | S20: 8 | T20: 32 | V20: 18 | W20: 36 | X20: 0 | Y20: 0 | AA20: 18 | AB20: 19 | AC20: 4 | AD20: 16 | AF20: 18 | AG20: 38 | AH20: 8 | AI20: 32
B21: URH-10 (PC) | C21: 6.65 | D21: =_xlfn.IFS($D$11=$C$8,$C$9*C21,$D$11=$D$8,$D$9*C21,$D$11=$E$8,$E$9*C21,$D$11=$B$8,$B$9*C21) -> 6.65 | L21: 20 | M21: 96 | N21: 4 | O21: 16 | Q21: 20 | R21: 216 | S21: 9 | T21: 36 | V21: 20 | W21: 36 | X21: 0 | Y21: 0 | AA21: 20 | AB21: 20 | AC21: 4 | AD21: 16 | AF21: 20 | AG21: 40 | AH21: 8 | AI21: 32
B22: URH-12 (PC) | C22: 7.47 | D22: =_xlfn.IFS($D$11=$C$8,$C$9*C22,$D$11=$D$8,$D$9*C22,$D$11=$E$8,$E$9*C22,$D$11=$B$8,$B$9*C22) -> 7.47 | L22: 24 | M22: 140 | N22: 5 | O22: 20 | Q22: 24 | R22: 308 | S22: 11 | T22: 44 | V22: 24 | W22: 36 | X22: 0 | Y22: 0 | AA22: 24 | AB22: 22 | AC22: 4 | AD22: 16 | AF22: 24 | AG22: 44 | AH22: 8 | AI22: 32
B23: URH-16 (PC) | C23: 9.14 | D23: =_xlfn.IFS($D$11=$C$8,$C$9*C23,$D$11=$D$8,$D$9*C23,$D$11=$E$8,$E$9*C23,$D$11=$B$8,$B$9*C23) -> 9.14 | L23: 30 | M23: 216 | N23: 6 | O23: 24 | Q23: 30 | R23: 468 | S23: 13 | T23: 52 | V23: 30 | W23: 36 | X23: 0 | Y23: 0 | AA23: 30 | AB23: 25 | AC23: 4 | AD23: 16 | AF23: 30 | AG23: 50 | AH23: 8 | AI23: 32
B24: URH-18 (PC) | C24: 9.97 | D24: =_xlfn.IFS($D$11=$C$8,$C$9*C24,$D$11=$D$8,$D$9*C24,$D$11=$E$8,$E$9*C24,$D$11=$B$8,$B$9*C24) -> 9.97 | L24: 36 | M24: 294 | N24: 7 | O24: 28 | Q24: 36 | R24: 588 | S24: 14 | T24: 56 | V24: 36 | W24: 36 | X24: 0 | Y24: 0 | AA24: 36 | AB24: 28 | AC24: 5 | AD24: 20 | AF24: 36 | AG24: 56 | AH24: 10 | AI24: 40
B25: URH-20 (PC) | C25: 10.81 | D25: =_xlfn.IFS($D$11=$C$8,$C$9*C25,$D$11=$D$8,$D$9*C25,$D$11=$E$8,$E$9*C25,$D$11=$B$8,$B$9*C25) -> 10.81
B26: URH-22 (PC) | C26: 12.45 | D26: =_xlfn.IFS($D$11=$C$8,$C$9*C26,$D$11=$D$8,$D$9*C26,$D$11=$E$8,$E$9*C26,$D$11=$B$8,$B$9*C26) -> 12.45 | L26: C2G 45 FITTING FABRICATION TIME (MIN) | Q26: C2G 90 FITTING FABRICATION TIME (MIN) | V26: VERTICAL BENDS FABRICATION TIME (MIN) | AA26: HORIZONTAL TEE FABRICATION TIME (MIN) | AF26: HORIZONTAL CROSS FABRICATION TIME (MIN)
B27: URH-24 (PC) | C27: 12.45 | D27: =_xlfn.IFS($D$11=$C$8,$C$9*C27,$D$11=$D$8,$D$9*C27,$D$11=$E$8,$E$9*C27,$D$11=$B$8,$B$9*C27) -> 12.45 | L27: TRAY WIDTH | M27: CUTS TIME | N27: WSKIT TIME | Q27: TRAY WIDTH | R27: CUTS TIME | S27: WSKIT TIME | V27: TRAY WIDTH | W27: CUTS TIME | X27: WSKIT TIME | AA27: TRAY WIDTH | AB27: CUTS TIME | AC27: WSKIT TIME | AF27: TRAY WIDTH | AG27: CUTS TIME | AH27: WSKIT TIME
B28: URH-28 (PC) | C28: 14.09 | D28: =_xlfn.IFS($D$11=$C$8,$C$9*C28,$D$11=$D$8,$D$9*C28,$D$11=$E$8,$E$9*C28,$D$11=$B$8,$B$9*C28) -> 14.09 | L28: 2 | M28: 0.3 | N28: 0.5 | Q28: 2 | R28: 0.3 | S28: 0.5 | V28: 2 | W28: 0.9 | X28: 0 | AA28: 2 | AB28: 0.5 | AC28: 1.5 | AF28: 2 | AG28: 1 | AH28: 3
B29: URH-34 (PC) | C29: 16.57 | D29: =_xlfn.IFS($D$11=$C$8,$C$9*C29,$D$11=$D$8,$D$9*C29,$D$11=$E$8,$E$9*C29,$D$11=$B$8,$B$9*C29) -> 16.57 | L29: 4 | M29: 0.4 | N29: 0.5 | Q29: 4 | R29: 0.8 | S29: 1 | V29: 4 | W29: 1.8 | X29: 0 | AA29: 4 | AB29: 0.6 | AC29: 1.5 | AF29: 4 | AG29: 1.2 | AH29: 3
B30: URH-40 (PC) | C30: 19.05 | D30: =_xlfn.IFS($D$11=$C$8,$C$9*C30,$D$11=$D$8,$D$9*C30,$D$11=$E$8,$E$9*C30,$D$11=$B$8,$B$9*C30) -> 19.05 | L30: 6 | M30: 1 | N30: 1 | Q30: 6 | R30: 1.5 | S30: 1.5 | V30: 6 | W30: 1.8 | X30: 0 | AA30: 6 | AB30: 0.65 | AC30: 1.5 | AF30: 6 | AG30: 1.3 | AH30: 3
L31: 8 | M31: 1.2 | N31: 1 | Q31: 8 | R31: 1.9 | S31: 2 | V31: 8 | W31: 1.8 | X31: 0 | AA31: 8 | AB31: 0.7 | AC31: 1.5 | AF31: 8 | AG31: 1.4 | AH31: 3
B32: INSTALLATION | C32: TIME (MIN) | L32: 10 | M32: 2.1 | N32: 1.5 | Q32: 10 | R32: 3.5 | S32: 2.5 | V32: 10 | W32: 1.8 | X32: 0 | AA32: 10 | AB32: 0.75 | AC32: 1.5 | AF32: 10 | AG32: 1.5 | AH32: 3
B33: WSKIT / KIT | C33: 0.5 | L33: 12 | M33: 2.4 | N33: 1.5 | Q33: 12 | R33: 4.8 | S33: 3 | V33: 12 | W33: 1.8 | X33: 0 | AA33: 12 | AB33: 0.8 | AC33: 2 | AF33: 12 | AG33: 1.6 | AH33: 4
B34: POSI-LOK / PIECE | C34: 0.2 | L34: 16 | M34: 3 | N34: 1.5 | Q34: 16 | R34: 7 | S34: 3.5 | V34: 16 | W34: 1.8 | X34: 0 | AA34: 16 | AB34: 0.9 | AC34: 2 | AF34: 16 | AG34: 1.8 | AH34: 4
B35: HOLD DOWN CLAMP / KIT | C35: 0.5 | L35: 18 | M35: 4.4 | N35: 2 | Q35: 18 | R35: 8.8 | S35: 4 | V35: 18 | W35: 1.8 | X35: 0 | AA35: 18 | AB35: 0.95 | AC35: 2 | AF35: 18 | AG35: 1.9 | AH35: 4
B36: SRC CLIP / PIECE | C36: 0.05 | L36: 20 | M36: 4.8 | N36: 2 | Q36: 20 | R36: 10.8 | S36: 4.5 | V36: 20 | W36: 1.8 | X36: 0 | AA36: 20 | AB36: 1 | AC36: 2 | AF36: 20 | AG36: 2 | AH36: 4
B37: STRUT TRAPEZE | C37: 4 | L37: 24 | M37: 7 | N37: 2.5 | Q37: 24 | R37: 15.4 | S37: 5.5 | V37: 24 | W37: 1.8 | X37: 0 | AA37: 24 | AB37: 1.1 | AC37: 2 | AF37: 24 | AG37: 2.2 | AH37: 4
B38: URH TRAPEZE | C38: 3 | L38: 30 | M38: 10.8 | N38: 3 | Q38: 30 | R38: 23.4 | S38: 6.5 | V38: 30 | W38: 1.8 | X38: 0 | AA38: 30 | AB38: 1.25 | AC38: 2 | AF38: 30 | AG38: 2.5 | AH38: 4
B39: WIRE TRAPEZE | C39: 2 | L39: 36 | M39: 14.7 | N39: 3.5 | Q39: 36 | R39: 29.4 | S39: 7 | V39: 36 | W39: 1.8 | X39: 0 | AA39: 36 | AB39: 1.4 | AC39: 2.5 | AF39: 36 | AG39: 2.8 | AH39: 5
B41: HOLD DOWN CLAMPS | C41: WEIGHT (LBS) | D41: COST ($)
B42: FLXW HOLD DOWN | D42: 2.01
B43: 25HX CAP SCREW (PC) | D43: 0.7
B44: 25NC CHANNEL NUT (PC) | D44: 0.9
B45: SRC STRUT CLIP (PC) | D45: 2.75
B47: ALL THRTEADED ROD | C47: FT / SUPPORT
B48: 3/8" ATR | C48: 4
B50: WIRE HANGER | C50: FT / SUPPORT
B51: 3/8" ATR | C51: 6
B54: COVER INSTALLATION | C54: TIME (MIN)
B55: HDKIT / 10FT COVER | C55: 5
B56: SNAP-ON / 10FT COVER | C56: 0.5
B58: URH TRAY INSTALLATION | C58: TIME (MIN)
B59: URH TAB BENDING | C59: 0.1
B61: ACCESSORIES | C61: COST ($)
B62: WSKIT SPLICE (KIT) | C62: 1
B63: POSI-LOK SPLICE (PC) | C63: 6.29
B64: FLXW + HARDWARE (PC) | C64: 4.5
B65: SRC CLIP (PC) | C65: 3.12
B68: URH LINEAR FEET | C68: COST ($)
B69: URH COST PER 1FT | C69: 7.07

Sheet DATA CALCULATIONS (hidden)
B2: TOUGHMESH TSS DATA CALCULATION SHEET
B4: STRAIGHT SECTIONS | F4: SPLICE | H4: POSI-LOK | K4: COVER FIXINGS | N4: SUPPORT QTY | O4: TSS: SUPPORT QTY | Q4: SUPPORT L/FT | R4: TSS: SUPPORT L/FT | T4: ATR HANGER | V4: TSS: ATR HANGER | Y4: WIRE HANGER | AA4: TSS: WIRE HANGER | AE4: ATR HARDWARE QUANTITY | AH4: TSS: ATR HARDWARE QUANTITY | AL4: HOLD DOWN & HDWR QUANTITY | AO4: TSS: HOLD DOWN & HDWR QUANTITY | AS4: SRC CLIP | AU4: TSS: SRC CLIP | AY4: SPLICE INSTALLATION TIME (MIN) | BB4: COVER INSTAL TIME (MIN) | BE4: SUPPORT INSTALLATION TIME (MIN) | BH4: TSS: SUPPORT INSTALLATION TIME (MIN) | BL4: SPLICE INSTALLATION COST ($) | BO4: SUPPORT INSTALLATION COST ($) | BR4: TSS: SUPPORT INSTALLATION COST ($) | BV4: SUPPORT COST ($) | BY4: TSS: SUPPORT COST ($) | CC4: ATR HARDWARE COST $ | CF4: TSS: ATR HARDWARE COST $ | CJ4: HOLD DOWN CLAMPS & HARDWARE COST ($) | CN4: TSS: HOLD DOWN CLAMPS & HARDWARE COST ($) | CS4: SUPPORT WEIGHT (LBS)
B6: HEIGHT | C6: WIDTH | D6: LINEAR FT | F6: WSKIT (pcs) | H6: PLOKM (pcs) | I6: WSKIT (pcs) | K6: HDKIT (pcs) | L6: SNAP-ON | N6: ALL TYPES | O6: ALL TYPES | Q6: STRUT (FT) | R6: STRUT (FT) | T6: LINEAR FT | U6: LBS | V6: LINEAR FT | W6: LBS | Y6: LINEAR FT | Z6: LBS | AA6: LINEAR FT | AB6: LBS | AE6: SQ WSHR | AF6: FLT WSHR | AG6: HEX NUT | AH6: SQ WSHR | AI6: FLT WSHR | AJ6: HEX NUT | AL6: FLXW | AM6: 25HX | AN6: 25NC | AO6: FLXW | AP6: 25HX | AQ6: 25NC | AS6: QUANTITY (pc) | AT6: INSTAL (MIN) | AU6: QUANTITY (pc) | AV6: INSTAL (MIN) | AY6: WSKIT | AZ6: POSI-LOK + WSKIT | BB6: HDKIT | BC6: SNAP-ON | BE6: STRUT | BF6: URH | BG6: WIRE | BH6: STRUT | BI6: URH | BJ6: WIRE | BL6: WSKIT | BM6: POSI-LOK + WSKIT | BO6: STRUT | BP6: URH | BQ6: WIRE | BR6: STRUT | BS6: URH | BT6: WIRE | BV6: STRUT | BW6: URH | BX6: WIRE | BY6: STRUT | BZ6: URH | CA6: WIRE | CC6: SQUARE WSHR | CD6: FLAT WSHR | CE6: HEX NUT | CF6: SQUARE WSHR | CG6: FLAT WSHR | CH6: HEX NUT | CJ6: FLXW | CK6: 25HX | CL6: 25NC | CM6: SRC CLIP | CN6: FLXW | CO6: 25HX | CP6: 25NC | CQ6: SRC CLIP | CS6: STRUT | CT6: URH | CU6: WIRE
B7: 2/4/6in | C7: 2in | D7: =ProjectData!C24 -> 0 | F7: =(D7/10)*8 -> 0 | H7: =(D7/10)*2 -> 0 | I7: =(D7/10)*0 -> 0 | K7: =(D7/10)*36 -> 0 | L7: 0 | N7: =D7/('CTI INPUTS'!C3) -> 0 | O7: =D7/10 -> 0 | Q7: =(6*N7)/12 -> 0 | R7: =(6*O7)/12 -> 0 | T7: =N7*'CTI INPUTS'!$C$48 -> 0 | U7: =T7*('CTI INPUTS'!C14) -> 0 | V7: =O7*'CTI INPUTS'!$C$48 -> 0 | W7: =V7*('CTI INPUTS'!$C$14) -> 0 | Y7: =N7*'CTI INPUTS'!C51 -> 0 | Z7: =Y7*('CTI INPUTS'!C15) -> 0 | AA7: =O7*'CTI INPUTS'!$C$51 -> 0 | AB7: =AA7*('CTI INPUTS'!E15) -> 0 | AE7: =N7*4 -> 0 | AF7: =N7*4 -> 0 | AG7: =N7*4 -> 0 | AH7: =O7*4 -> 0 | AI7: =O7*4 -> 0 | AJ7: =O7*4 -> 0 | AL7: =N7*2 -> 0 | AM7: =N7*2 -> 0 | AN7: =N7*2 -> 0 | AO7: =O7*2 -> 0 | AP7: =O7*2 -> 0 | AQ7: =O7*2 -> 0 | AS7: =N7*1 -> 0 | AT7: =AS7*'CTI INPUTS'!$C$36 -> 0 | AU7: =O7*1 -> 0 | AV7: =AU7*'CTI INPUTS'!$C$36 -> 0 | AY7: =(F7/4)*'CTI INPUTS'!$C$33 -> 0 | AZ7: =(H7*'CTI INPUTS'!$C$34)+(I7*'CTI INPUTS'!$C$33) -> 0 | BB7: =(D7/10)*'CTI INPUTS'!C55 -> 0 | BC7: =(D7/10)*'CTI INPUTS'!C56 -> 0 | BE7: =N7*'CTI INPUTS'!$C$37 -> 0 | BF7: =N7*'CTI INPUTS'!$C$38 -> 0 | BG7: =N7*'CTI INPUTS'!$C$39 -> 0 | BH7: =O7*'CTI INPUTS'!$C$37 -> 0 | BI7: =O7*'CTI INPUTS'!$C$38 -> 0 | BJ7: =O7*'CTI INPUTS'!$C$39 -> 0 | BL7: =(AY7*'CTI INPUTS'!C6)/60 -> 0 | BM7: =(AZ7*'CTI INPUTS'!C6)/60 -> 0 | BO7: =(N7*'CTI INPUTS'!$C$37)*(('CTI INPUTS'!$C$6)/60) -> 0 | BP7: =(BF7/60)*'CTI INPUTS'!$C$6 -> 0 | BQ7: =(BG7/60)*'CTI INPUTS'!$C$6 -> 0 | BR7: =(O7*'CTI INPUTS'!$C$37)*(('CTI INPUTS'!$C$6)/60) -> 0 | BS7: =(BI7/60)*'CTI INPUTS'!$C$6 -> 0 | BT7: =(BJ7/60)*'CTI INPUTS'!$C$6 -> 0 | BV7: =(Q7*('CTI INPUTS'!$D$17))+(T7*('CTI INPUTS'!$D$18))+(AE7*('CTI INPUTS'!$D$12))+(AF7*('CTI INPUTS'!$D$13))+(AG7*('CTI INPUTS'!$D$14)) -> 0 | BW7: =(N7*('CTI INPUTS'!$D$19))+(T7*('CTI INPUTS'!$D$18))+(AG7*('CTI INPUTS'!$D$14)) -> 0 | BX7: =(Y7*'CTI INPUTS'!$D$15)+(N7*'CTI INPUTS'!$D$16) -> 0 | BY7: =(R7*('CTI INPUTS'!$D$17))+(V7*('CTI INPUTS'!$D$18))+(AH7*('CTI INPUTS'!$D$12))+(AI7*('CTI INPUTS'!$D$13))+(AJ7*('CTI INPUTS'!$D$14)) -> 0 | BZ7: =(O7*('CTI INPUTS'!$D$19))+(V7*('CTI INPUTS'!$D$18))+(AJ7*('CTI INPUTS'!$D$14)) -> 0 | CA7: =(AA7*'CTI INPUTS'!$D$15)+(O7*'CTI INPUTS'!$D$16) -> 0 | CC7: =(AE7*('CTI INPUTS'!$D$12)) -> 0 | CD7: =(AF7*('CTI INPUTS'!$D$13)) -> 0 | CE7: =(AG7*('CTI INPUTS'!$D$14)) -> 0 | CF7: =(AH7*('CTI INPUTS'!$D$12)) -> 0 | CG7: =(AI7*('CTI INPUTS'!$D$13)) -> 0 | CH7: =(AJ7*('CTI INPUTS'!$D$14)) -> 0 | CJ7: =AL7*'CTI INPUTS'!$D$42 -> 0 | CK7: =AM7*'CTI INPUTS'!$D$43 -> 0 | CL7: =AN7*'CTI INPUTS'!$D$44 -> 0 | CM7: =AS7*'CTI INPUTS'!$D$45 -> 0 | CN7: =AO7*'CTI INPUTS'!$D$42 -> 0 | CO7: =AP7*'CTI INPUTS'!$D$43 -> 0 | CP7: =AQ7*'CTI INPUTS'!$D$44 -> 0 | CQ7: =AU7*'CTI INPUTS'!$D$45 -> 0
C8: 4in | D8: =ProjectData!C25 -> 0 | F8: =(D8/10)*16 -> 0 | H8: 0 | I8: =(D8/10)*0 -> 0 | K8: =(D8/10)*36 -> 0 | L8: 0 | N8: =D8/('CTI INPUTS'!C3) -> 0 | O8: =D8/10 -> 0 | Q8: =(8*N8)/12 -> 0 | R8: =(8*O8)/12 -> 0 | T8: =N8*'CTI INPUTS'!C48 -> 0 | U8: =T8*('CTI INPUTS'!C14) -> 0 | V8: =O8*'CTI INPUTS'!$C$48 -> 0 | W8: =V8*('CTI INPUTS'!$C$14) -> 0 | Y8: =N8*'CTI INPUTS'!C51 -> 0 | Z8: =Y8*('CTI INPUTS'!C15) -> 0 | AA8: =O8*'CTI INPUTS'!$C$51 -> 0 | AB8: =AA8*('CTI INPUTS'!E15) -> 0 | AE8: =N8*4 -> 0 | AF8: =N8*4 -> 0 | AG8: =N8*4 -> 0 | AH8: =O8*4 -> 0 | AI8: =O8*4 -> 0 | AJ8: =O8*4 -> 0 | AL8: 0 | AM8: 0 | AN8: =N8*2 -> 0 | AO8: =O8*2 -> 0 | AP8: =O8*2 -> 0 | AQ8: =O8*2 -> 0 | AS8: =N8*2 -> 0 | AT8: =AS8*'CTI INPUTS'!C36 -> 0 | AU8: =O8*2 -> 0 | AV8: =AU8*'CTI INPUTS'!$C$36 -> 0 | AY8: =(F8/4)*'CTI INPUTS'!$C$33 -> 0 | AZ8: =(H8*'CTI INPUTS'!$C$34)+(I8*'CTI INPUTS'!$C$33) -> 0 | BB8: =(D8/10)*'CTI INPUTS'!C55 -> 0 | BC8: =(D8/10)*'CTI INPUTS'!C56 -> 0 | BE8: =N8*'CTI INPUTS'!$C$37 -> 0 | BF8: =N8*'CTI INPUTS'!$C$38 -> 0 | BG8: =N8*'CTI INPUTS'!$C$39 -> 0 | BH8: =O8*'CTI INPUTS'!$C$37 -> 0 | BI8: =O8*'CTI INPUTS'!$C$38 -> 0 | BJ8: =O8*'CTI INPUTS'!$C$39 -> 0 | BL8: =(AY8*'CTI INPUTS'!C6)/60 -> 0 | BM8: =(AZ8*'CTI INPUTS'!C6)/60 -> 0 | BO8: =(N8*'CTI INPUTS'!C37)*(('CTI INPUTS'!C6)/60) -> 0 | BP8: =(BF8/60)*'CTI INPUTS'!C6 -> 0 | BQ8: =(BG8/60)*'CTI INPUTS'!C6 -> 0 | BR8: =(O8*'CTI INPUTS'!$C$37)*(('CTI INPUTS'!$C$6)/60) -> 0 | BS8: =(BI8/60)*'CTI INPUTS'!$C$6 -> 0 | BT8: =(BJ8/60)*'CTI INPUTS'!$C$6 -> 0 | BV8: =(Q8*('CTI INPUTS'!$D$17))+(T8*('CTI INPUTS'!$D$18))+(AE8*('CTI INPUTS'!$D$12))+(AF8*('CTI INPUTS'!$D$13))+(AG8*('CTI INPUTS'!$D$14)) -> 0 | BW8: =(N8*('CTI INPUTS'!$D$19))+(T8*('CTI INPUTS'!$D$18))+(AG8*('CTI INPUTS'!$D$14)) -> 0 | BX8: =(Y8*'CTI INPUTS'!$D$15)+(N8*'CTI INPUTS'!$D$16) -> 0 | BY8: =(R8*('CTI INPUTS'!$D$17))+(V8*('CTI INPUTS'!$D$18))+(AH8*('CTI INPUTS'!$D$12))+(AI8*('CTI INPUTS'!$D$13))+(AJ8*('CTI INPUTS'!$D$14)) -> 0 | BZ8: =(O8*('CTI INPUTS'!$D$19))+(V8*('CTI INPUTS'!$D$18))+(AJ8*('CTI INPUTS'!$D$14)) -> 0 | CA8: =(AA8*'CTI INPUTS'!$D$15)+(O8*'CTI INPUTS'!$D$16) -> 0 | CC8: =(AE8*('CTI INPUTS'!$D$12)) -> 0 | CD8: =(AF8*('CTI INPUTS'!$D$13)) -> 0 | CE8: =(AG8*('CTI INPUTS'!$D$14)) -> 0 | CF8: =(AH8*('CTI INPUTS'!$D$12)) -> 0 | CG8: =(AI8*('CTI INPUTS'!$D$13)) -> 0 | CH8: =(AJ8*('CTI INPUTS'!$D$14)) -> 0 | CJ8: =AL8*'CTI INPUTS'!$D$42 -> 0 | CK8: =AM8*'CTI INPUTS'!$D$43 -> 0 | CL8: =AN8*'CTI INPUTS'!$D$44 -> 0 | CM8: =AS8*'CTI INPUTS'!$D$45 -> 0 | CN8: =AO8*'CTI INPUTS'!$D$42 -> 0 | CO8: =AP8*'CTI INPUTS'!$D$43 -> 0 | CP8: =AQ8*'CTI INPUTS'!$D$44 -> 0 | CQ8: =AU8*'CTI INPUTS'!$D$45 -> 0
C9: 6in | D9: =ProjectData!C26 -> 0 | F9: =(D9/10)*16 -> 0 | H9: 0 | I9: =(D9/10)*0 -> 0 | K9: =(D9/10)*36 -> 0 | L9: 0 | N9: =D9/('CTI INPUTS'!C3) -> 0 | O9: 0 | Q9: =(10*N9)/12 -> 0 | R9: =(10*O9)/12 -> 0 | T9: =N9*'CTI INPUTS'!C48 -> 0 | U9: =T9*('CTI INPUTS'!C14) -> 0 | V9: =O9*'CTI INPUTS'!$C$48 -> 0 | W9: =V9*('CTI INPUTS'!$C$14) -> 0 | Y9: =N9*'CTI INPUTS'!C51 -> 0 | Z9: =Y9*('CTI INPUTS'!C15) -> 0 | AA9: =O9*'CTI INPUTS'!$C$51 -> 0 | AB9: =AA9*('CTI INPUTS'!E15) -> 0 | AE9: 0 | AF9: 0 | AG9: 0 | AH9: 0 | AI9: 0 | AJ9: 0 | AL9: 0 | AM9: 0 | AN9: 0 | AO9: 0 | AP9: 0 | AQ9: 0 | AS9: =N9*2 -> 0 | AT9: =AS9*'CTI INPUTS'!C36 -> 0 | AU9: =O9*2 -> 0 | AV9: =AU9*'CTI INPUTS'!$C$36 -> 0 | AY9: =(F9/4)*'CTI INPUTS'!$C$33 -> 0 | AZ9: =(H9*'CTI INPUTS'!$C$34)+(I9*'CTI INPUTS'!$C$33) -> 0 | BB9: =(D9/10)*'CTI INPUTS'!C55 -> 0 | BC9: =(D9/10)*'CTI INPUTS'!C56 -> 0 | BE9: =N9*'CTI INPUTS'!$C$37 -> 0 | BF9: =N9*'CTI INPUTS'!$C$38 -> 0 | BG9: =N9*'CTI INPUTS'!$C$39 -> 0 | BH9: =O9*'CTI INPUTS'!$C$37 -> 0 | BI9: =O9*'CTI INPUTS'!$C$38 -> 0 | BJ9: =O9*'CTI INPUTS'!$C$39 -> 0 | BL9: =(AY9*'CTI INPUTS'!C6)/60 -> 0 | BM9: =(AZ9*'CTI INPUTS'!C6)/60 -> 0 | BO9: =(N9*'CTI INPUTS'!C37)*(('CTI INPUTS'!C6)/60) -> 0 | BP9: =(BF9/60)*'CTI INPUTS'!C6 -> 0 | BQ9: =(BG9/60)*'CTI INPUTS'!C6 -> 0 | BR9: =(O9*'CTI INPUTS'!$C$37)*(('CTI INPUTS'!$C$6)/60) -> 0 | BS9: =(BI9/60)*'CTI INPUTS'!$C$6 -> 0 | BT9: =(BJ9/60)*'CTI INPUTS'!$C$6 -> 0 | BV9: =(Q9*('CTI INPUTS'!$D$17))+(T9*('CTI INPUTS'!$D$18))+(AE9*('CTI INPUTS'!$D$12))+(AF9*('CTI INPUTS'!$D$13))+(AG9*('CTI INPUTS'!$D$14)) -> 0 | BW9: =(N9*('CTI INPUTS'!$D$19))+(T9*('CTI INPUTS'!$D$18))+(AG9*('CTI INPUTS'!$D$14)) -> 0 | BX9: =(Y9*'CTI INPUTS'!$D$15)+(N9*'CTI INPUTS'!$D$16) -> 0 | BY9: =(R9*('CTI INPUTS'!$D$17))+(V9*('CTI INPUTS'!$D$18))+(AH9*('CTI INPUTS'!$D$12))+(AI9*('CTI INPUTS'!$D$13))+(AJ9*('CTI INPUTS'!$D$14)) -> 0 | BZ9: =(O9*('CTI INPUTS'!$D$19))+(V9*('CTI INPUTS'!$D$18))+(AJ9*('CTI INPUTS'!$D$14)) -> 0 | CA9: =(AA9*'CTI INPUTS'!$D$15)+(O9*'CTI INPUTS'!$D$16) -> 0 | CC9: =(AE9*('CTI INPUTS'!$D$12)) -> 0 | CD9: =(AF9*('CTI INPUTS'!$D$13)) -> 0 | CE9: =(AG9*('CTI INPUTS'!$D$14)) -> 0 | CF9: =(AH9*('CTI INPUTS'!$D$12)) -> 0 | CG9: =(AI9*('CTI INPUTS'!$D$13)) -> 0 | CH9: =(AJ9*('CTI INPUTS'!$D$14)) -> 0 | CJ9: =AL9*'CTI INPUTS'!$D$42 -> 0 | CK9: =AM9*'CTI INPUTS'!$D$43 -> 0 | CL9: =AN9*'CTI INPUTS'!$D$44 -> 0 | CM9: =AS9*'CTI INPUTS'!$D$45 -> 0 | CN9: =AO9*'CTI INPUTS'!$D$42 -> 0 | CO9: =AP9*'CTI INPUTS'!$D$43 -> 0 | CP9: =AQ9*'CTI INPUTS'!$D$44 -> 0 | CQ9: =AU9*'CTI INPUTS'!$D$45 -> 0
C10: 8in | D10: =ProjectData!C27 -> 0 | F10: =(D10/10)*20 -> 0 | H10: 0 | I10: =(D10/10)*4 -> 0 | K10: 0 | L10: 0 | N10: =D10/('CTI INPUTS'!C3) -> 0 | O10: 0 | Q10: =(12*N10)/12 -> 0 | R10: =(12*O10)/12 -> 0 | T10: =N10*'CTI INPUTS'!C48 -> 0 | U10: =T10*('CTI INPUTS'!C14) -> 0 | V10: =O10*'CTI INPUTS'!$C$48 -> 0 | W10: =V10*('CTI INPUTS'!$C$14) -> 0 | Y10: =N10*'CTI INPUTS'!C51 -> 0 | Z10: =Y10*('CTI INPUTS'!C15) -> 0 | AA10: =O10*'CTI INPUTS'!$C$51 -> 0 | AB10: =AA10*('CTI INPUTS'!E15) -> 0 | AE10: 0 | AF10: 0 | AG10: 0 | AH10: 0 | AI10: 0 | AJ10: 0 | AL10: 0 | AM10: 0 | AN10: 0 | AO10: 0 | AP10: 0 | AQ10: 0 | AS10: =N10*2 -> 0 | AT10: =AS10*'CTI INPUTS'!C36 -> 0 | AU10: 0 | AV10: =AU10*'CTI INPUTS'!$C$36 -> 0 | AY10: =(F10/4)*'CTI INPUTS'!$C$33 -> 0 | AZ10: =(H10*'CTI INPUTS'!$C$34)+(I10*'CTI INPUTS'!$C$33) -> 0 | BB10: =(D10/10)*'CTI INPUTS'!C55 -> 0 | BC10: =(D10/10)*'CTI INPUTS'!C56 -> 0 | BE10: =N10*'CTI INPUTS'!$C$37 -> 0 | BF10: =N10*'CTI INPUTS'!$C$38 -> 0 | BG10: =N10*'CTI INPUTS'!$C$39 -> 0 | BH10: =O10*'CTI INPUTS'!$C$37 -> 0 | BI10: =O10*'CTI INPUTS'!$C$38 -> 0 | BJ10: =O10*'CTI INPUTS'!$C$39 -> 0 | BL10: =(AY10*'CTI INPUTS'!C6)/60 -> 0 | BM10: =(AZ10*'CTI INPUTS'!C6)/60 -> 0 | BO10: =(N10*'CTI INPUTS'!C37)*(('CTI INPUTS'!C6)/60) -> 0 | BP10: =(BF10/60)*'CTI INPUTS'!C6 -> 0 | BQ10: =(BG10/60)*'CTI INPUTS'!C6 -> 0 | BR10: =(O10*'CTI INPUTS'!$C$37)*(('CTI INPUTS'!$C$6)/60) -> 0 | BS10: =(BI10/60)*'CTI INPUTS'!$C$6 -> 0 | BT10: =(BJ10/60)*'CTI INPUTS'!$C$6 -> 0 | BV10: =(Q10*('CTI INPUTS'!$D$17))+(T10*('CTI INPUTS'!$D$18))+(AE10*('CTI INPUTS'!$D$12))+(AF10*('CTI INPUTS'!$D$13))+(AG10*('CTI INPUTS'!$D$14)) -> 0 | BW10: =(N10*('CTI INPUTS'!$D$19))+(T10*('CTI INPUTS'!$D$18))+(AG10*('CTI INPUTS'!$D$14)) -> 0 | BX10: =(Y10*'CTI INPUTS'!$D$15)+(N10*'CTI INPUTS'!$D$16) -> 0 | BY10: =(R10*('CTI INPUTS'!$D$17))+(V10*('CTI INPUTS'!$D$18))+(AH10*('CTI INPUTS'!$D$12))+(AI10*('CTI INPUTS'!$D$13))+(AJ10*('CTI INPUTS'!$D$14)) -> 0 | BZ10: =(O10*('CTI INPUTS'!$D$19))+(V10*('CTI INPUTS'!$D$18))+(AJ10*('CTI INPUTS'!$D$14)) -> 0 | CA10: =(AA10*'CTI INPUTS'!$D$15)+(O10*'CTI INPUTS'!$D$16) -> 0 | CC10: =(AE10*('CTI INPUTS'!$D$12)) -> 0 | CD10: =(AF10*('CTI INPUTS'!$D$13)) -> 0 | CE10: =(AG10*('CTI INPUTS'!$D$14)) -> 0 | CF10: =(AH10*('CTI INPUTS'!$D$12)) -> 0 | CG10: =(AI10*('CTI INPUTS'!$D$13)) -> 0 | CH10: =(AJ10*('CTI INPUTS'!$D$14)) -> 0 | CJ10: =AL10*'CTI INPUTS'!$D$42 -> 0 | CK10: =AM10*'CTI INPUTS'!$D$43 -> 0 | CL10: =AN10*'CTI INPUTS'!$D$44 -> 0 | CM10: =AS10*'CTI INPUTS'!$D$45 -> 0 | CN10: =AO10*'CTI INPUTS'!$D$42 -> 0 | CO10: =AP10*'CTI INPUTS'!$D$43 -> 0 | CP10: =AQ10*'CTI INPUTS'!$D$44 -> 0 | CQ10: =AU10*'CTI INPUTS'!$D$45 -> 0
C11: 10in | D11: =ProjectData!C28 -> 0 | F11: =(D11/10)*20 -> 0 | H11: 0 | I11: =(D11/10)*4 -> 0 | K11: 0 | L11: 0 | N11: =D11/('CTI INPUTS'!C3) -> 0 | O11: 0 | Q11: =(14*N11)/12 -> 0 | R11: =(14*O11)/12 -> 0 | T11: =N11*'CTI INPUTS'!C48 -> 0 | U11: =T11*('CTI INPUTS'!C14) -> 0 | V11: =O11*'CTI INPUTS'!$C$48 -> 0 | W11: =V11*('CTI INPUTS'!$C$14) -> 0 | Y11: =N11*'CTI INPUTS'!C51 -> 0 | Z11: =Y11*('CTI INPUTS'!C15) -> 0 | AA11: =O11*'CTI INPUTS'!$C$51 -> 0 | AB11: =AA11*('CTI INPUTS'!E15) -> 0 | AE11: 0 | AF11: 0 | AG11: 0 | AH11: 0 | AI11: 0 | AJ11: 0 | AL11: 0 | AM11: 0 | AN11: 0 | AO11: 0 | AP11: 0 | AQ11: 0 | AS11: =N11*2 -> 0 | AT11: =AS11*'CTI INPUTS'!C36 -> 0 | AU11: 0 | AV11: =AU11*'CTI INPUTS'!$C$36 -> 0 | AY11: =(F11/4)*'CTI INPUTS'!$C$33 -> 0 | AZ11: =(H11*'CTI INPUTS'!$C$34)+(I11*'CTI INPUTS'!$C$33) -> 0 | BB11: =(D11/10)*'CTI INPUTS'!C55 -> 0 | BC11: =(D11/10)*'CTI INPUTS'!C56 -> 0 | BE11: =N11*'CTI INPUTS'!$C$37 -> 0 | BF11: =N11*'CTI INPUTS'!$C$38 -> 0 | BG11: =N11*'CTI INPUTS'!$C$39 -> 0 | BH11: =O11*'CTI INPUTS'!$C$37 -> 0 | BI11: =O11*'CTI INPUTS'!$C$38 -> 0 | BJ11: =O11*'CTI INPUTS'!$C$39 -> 0 | BL11: =(AY11*'CTI INPUTS'!C6)/60 -> 0 | BM11: =(AZ11*'CTI INPUTS'!C6)/60 -> 0 | BO11: =(N11*'CTI INPUTS'!C37)*(('CTI INPUTS'!C6)/60) -> 0 | BP11: =(BF11/60)*'CTI INPUTS'!C6 -> 0 | BQ11: =(BG11/60)*'CTI INPUTS'!C6 -> 0 | BR11: =(O11*'CTI INPUTS'!$C$37)*(('CTI INPUTS'!$C$6)/60) -> 0 | BS11: =(BI11/60)*'CTI INPUTS'!$C$6 -> 0 | BT11: =(BJ11/60)*'CTI INPUTS'!$C$6 -> 0 | BV11: =(Q11*('CTI INPUTS'!$D$17))+(T11*('CTI INPUTS'!$D$18))+(AE11*('CTI INPUTS'!$D$12))+(AF11*('CTI INPUTS'!$D$13))+(AG11*('CTI INPUTS'!$D$14)) -> 0 | BW11: =(N11*('CTI INPUTS'!$D$19))+(T11*('CTI INPUTS'!$D$18))+(AG11*('CTI INPUTS'!$D$14)) -> 0 | BX11: =(Y11*'CTI INPUTS'!$D$15)+(N11*'CTI INPUTS'!$D$16) -> 0 | BY11: =(R11*('CTI INPUTS'!$D$17))+(V11*('CTI INPUTS'!$D$18))+(AH11*('CTI INPUTS'!$D$12))+(AI11*('CTI INPUTS'!$D$13))+(AJ11*('CTI INPUTS'!$D$14)) -> 0 | BZ11: =(O11*('CTI INPUTS'!$D$19))+(V11*('CTI INPUTS'!$D$18))+(AJ11*('CTI INPUTS'!$D$14)) -> 0 | CA11: =(AA11*'CTI INPUTS'!$D$15)+(O11*'CTI INPUTS'!$D$16) -> 0 | CC11: =(AE11*('CTI INPUTS'!$D$12)) -> 0 | CD11: =(AF11*('CTI INPUTS'!$D$13)) -> 0 | CE11: =(AG11*('CTI INPUTS'!$D$14)) -> 0 | CF11: =(AH11*('CTI INPUTS'!$D$12)) -> 0 | CG11: =(AI11*('CTI INPUTS'!$D$13)) -> 0 | CH11: =(AJ11*('CTI INPUTS'!$D$14)) -> 0 | CJ11: =AL11*'CTI INPUTS'!$D$42 -> 0 | CK11: =AM11*'CTI INPUTS'!$D$43 -> 0 | CL11: =AN11*'CTI INPUTS'!$D$44 -> 0 | CM11: =AS11*'CTI INPUTS'!$D$45 -> 0 | CN11: =AO11*'CTI INPUTS'!$D$42 -> 0 | CO11: =AP11*'CTI INPUTS'!$D$43 -> 0 | CP11: =AQ11*'CTI INPUTS'!$D$44 -> 0 | CQ11: =AU11*'CTI INPUTS'!$D$45 -> 0
C12: 12in | D12: =ProjectData!C29 -> 15360 | F12: =(D12/10)*24 -> 36864 | H12: 3072 | I12: =(D12/10)*4 -> 6144 | K12: 55296 | L12: 0 | N12: =D12/('CTI INPUTS'!C3) -> 3072 | O12: 1536 | Q12: =(16*N12)/12 -> 4096 | R12: =(16*O12)/12 -> 2048 | T12: =N12*'CTI INPUTS'!C48 -> 12288 | U12: =T12*('CTI INPUTS'!C14) -> 3072 | V12: =O12*'CTI INPUTS'!$C$48 -> 6144 | W12: =V12*('CTI INPUTS'!$C$14) -> 1536 | Y12: =N12*'CTI INPUTS'!C51 -> 18432 | Z12: =Y12*('CTI INPUTS'!C15) -> 18432 | AA12: =O12*'CTI INPUTS'!$C$51 -> 9216 | AB12: =AA12*('CTI INPUTS'!E15) -> 0 | AE12: 12288 | AF12: 12288 | AG12: 12288 | AH12: 6144 | AI12: 6144 | AJ12: 6144 | AL12: 6144 | AM12: 6144 | AN12: 6144 | AO12: 3072 | AP12: 3072 | AQ12: 3072 | AS12: 6144 | AT12: =AS12*'CTI INPUTS'!C36 -> 307.2 | AU12: 3072 | AV12: =AU12*'CTI INPUTS'!$C$36 -> 153.6 | AY12: =(F12/4)*'CTI INPUTS'!$C$33 -> 4608 | AZ12: =(H12*'CTI INPUTS'!$C$34)+(I12*'CTI INPUTS'!$C$33) -> 3686.4 | BB12: =(D12/10)*'CTI INPUTS'!C55 -> 7680 | BC12: =(D12/10)*'CTI INPUTS'!C56 -> 768 | BE12: =N12*'CTI INPUTS'!$C$37 -> 12288 | BF12: =N12*'CTI INPUTS'!$C$38 -> 9216 | BG12: =N12*'CTI INPUTS'!$C$39 -> 6144 | BH12: =O12*'CTI INPUTS'!$C$37 -> 6144 | BI12: =O12*'CTI INPUTS'!$C$38 -> 4608 | BJ12: =O12*'CTI INPUTS'!$C$39 -> 3072 | BL12: =(AY12*'CTI INPUTS'!C6)/60 -> 7680 | BM12: =(AZ12*'CTI INPUTS'!C6)/60 -> 6144 | BO12: =(N12*'CTI INPUTS'!C37)*(('CTI INPUTS'!C6)/60) -> 20480 | BP12: =(BF12/60)*'CTI INPUTS'!C6 -> 15360 | BQ12: =(BG12/60)*'CTI INPUTS'!C6 -> 10240 | BR12: =(O12*'CTI INPUTS'!$C$37)*(('CTI INPUTS'!$C$6)/60) -> 10240 | BS12: =(BI12/60)*'CTI INPUTS'!$C$6 -> 7680 | BT12: =(BJ12/60)*'CTI INPUTS'!$C$6 -> 5120 | BV12: =(Q12*('CTI INPUTS'!$D$17))+(T12*('CTI INPUTS'!$D$18))+(AE12*('CTI INPUTS'!$D$12))+(AF12*('CTI INPUTS'!$D$13))+(AG12*('CTI INPUTS'!$D$14)) -> 56524.8 | BW12: =(N12*('CTI INPUTS'!$D$19))+(T12*('CTI INPUTS'!$D$18))+(AG12*('CTI INPUTS'!$D$14)) -> 39290.88 | BX12: =(Y12*'CTI INPUTS'!$D$15)+(N12*'CTI INPUTS'!$D$16) -> 30720 | BY12: =(R12*('CTI INPUTS'!$D$17))+(V12*('CTI INPUTS'!$D$18))+(AH12*('CTI INPUTS'!$D$12))+(AI12*('CTI INPUTS'!$D$13))+(AJ12*('CTI INPUTS'!$D$14)) -> 28262.4 | BZ12: =(O12*('CTI INPUTS'!$D$19))+(V12*('CTI INPUTS'!$D$18))+(AJ12*('CTI INPUTS'!$D$14)) -> 19645.44 | CA12: =(AA12*'CTI INPUTS'!$D$15)+(O12*'CTI INPUTS'!$D$16) -> 15360 | CC12: =(AE12*('CTI INPUTS'!$D$12)) -> 12288 | CD12: =(AF12*('CTI INPUTS'!$D$13)) -> 1843.2 | CE12: =(AG12*('CTI INPUTS'!$D$14)) -> 3072 | CF12: =(AH12*('CTI INPUTS'!$D$12)) -> 6144 | CG12: =(AI12*('CTI INPUTS'!$D$13)) -> 921.6 | CH12: =(AJ12*('CTI INPUTS'!$D$14)) -> 1536 | CJ12: =AL12*'CTI INPUTS'!$D$42 -> 12349.44 | CK12: =AM12*'CTI INPUTS'!$D$43 -> 4300.8 | CL12: =AN12*'CTI INPUTS'!$D$44 -> 5529.6 | CM12: =AS12*'CTI INPUTS'!$D$45 -> 16896 | CN12: =AO12*'CTI INPUTS'!$D$42 -> 6174.72 | CO12: =AP12*'CTI INPUTS'!$D$43 -> 2150.4 | CP12: =AQ12*'CTI INPUTS'!$D$44 -> 2764.8 | CQ12: =AU12*'CTI INPUTS'!$D$45 -> 8448
C13: 16in | D13: =ProjectData!C30 -> 0 | F13: =(D13/10)*24 -> 0 | H13: 0 | I13: =(D13/10)*8 -> 0 | K13: 0 | L13: 0 | N13: =D13/('CTI INPUTS'!C3) -> 0 | O13: 0 | Q13: =(20*N13)/12 -> 0 | R13: =(20*O13)/12 -> 0 | T13: =N13*'CTI INPUTS'!C48 -> 0 | U13: =T13*('CTI INPUTS'!C14) -> 0 | V13: =O13*'CTI INPUTS'!$C$48 -> 0 | W13: =V13*('CTI INPUTS'!$C$14) -> 0 | Y13: =N13*'CTI INPUTS'!C51 -> 0 | Z13: =Y13*('CTI INPUTS'!C15) -> 0 | AA13: =O13*'CTI INPUTS'!$C$51 -> 0 | AB13: =AA13*('CTI INPUTS'!E15) -> 0 | AE13: 0 | AF13: 0 | AG13: 0 | AH13: 0 | AI13: 0 | AJ13: 0 | AL13: 0 | AM13: 0 | AN13: 0 | AO13: 0 | AP13: 0 | AQ13: 0 | AS13: 0 | AT13: =AS13*'CTI INPUTS'!C36 -> 0 | AU13: 0 | AV13: =AU13*'CTI INPUTS'!$C$36 -> 0 | AY13: =(F13/4)*'CTI INPUTS'!$C$33 -> 0 | AZ13: =(H13*'CTI INPUTS'!$C$34)+(I13*'CTI INPUTS'!$C$33) -> 0 | BB13: =(D13/10)*'CTI INPUTS'!C55 -> 0 | BC13: =(D13/10)*'CTI INPUTS'!C56 -> 0 | BE13: =N13*'CTI INPUTS'!$C$37 -> 0 | BF13: =N13*'CTI INPUTS'!$C$38 -> 0 | BG13: =N13*'CTI INPUTS'!$C$39 -> 0 | BH13: =O13*'CTI INPUTS'!$C$37 -> 0 | BI13: =O13*'CTI INPUTS'!$C$38 -> 0 | BJ13: =O13*'CTI INPUTS'!$C$39 -> 0 | BL13: =(AY13*'CTI INPUTS'!C6)/60 -> 0 | BM13: =(AZ13*'CTI INPUTS'!C6)/60 -> 0 | BO13: =(N13*'CTI INPUTS'!C37)*(('CTI INPUTS'!C6)/60) -> 0 | BP13: =(BF13/60)*'CTI INPUTS'!C6 -> 0 | BQ13: =(BG13/60)*'CTI INPUTS'!C6 -> 0 | BR13: =(O13*'CTI INPUTS'!$C$37)*(('CTI INPUTS'!$C$6)/60) -> 0 | BS13: =(BI13/60)*'CTI INPUTS'!$C$6 -> 0 | BT13: =(BJ13/60)*'CTI INPUTS'!$C$6 -> 0 | BV13: =(Q13*('CTI INPUTS'!$D$17))+(T13*('CTI INPUTS'!$D$18))+(AE13*('CTI INPUTS'!$D$12))+(AF13*('CTI INPUTS'!$D$13))+(AG13*('CTI INPUTS'!$D$14)) -> 0 | BW13: =(N13*('CTI INPUTS'!$D$19))+(T13*('CTI INPUTS'!$D$18))+(AG13*('CTI INPUTS'!$D$14)) -> 0 | BX13: =(Y13*'CTI INPUTS'!$D$15)+(N13*'CTI INPUTS'!$D$16) -> 0 | BY13: =(R13*('CTI INPUTS'!$D$17))+(V13*('CTI INPUTS'!$D$18))+(AH13*('CTI INPUTS'!$D$12))+(AI13*('CTI INPUTS'!$D$13))+(AJ13*('CTI INPUTS'!$D$14)) -> 0 | BZ13: =(O13*('CTI INPUTS'!$D$19))+(V13*('CTI INPUTS'!$D$18))+(AJ13*('CTI INPUTS'!$D$14)) -> 0 | CA13: =(AA13*'CTI INPUTS'!$D$15)+(O13*'CTI INPUTS'!$D$16) -> 0 | CC13: =(AE13*('CTI INPUTS'!$D$12)) -> 0 | CD13: =(AF13*('CTI INPUTS'!$D$13)) -> 0 | CE13: =(AG13*('CTI INPUTS'!$D$14)) -> 0 | CF13: =(AH13*('CTI INPUTS'!$D$12)) -> 0 | CG13: =(AI13*('CTI INPUTS'!$D$13)) -> 0 | CH13: =(AJ13*('CTI INPUTS'!$D$14)) -> 0 | CJ13: =AL13*'CTI INPUTS'!$D$42 -> 0 | CK13: =AM13*'CTI INPUTS'!$D$43 -> 0 | CL13: =AN13*'CTI INPUTS'!$D$44 -> 0 | CM13: =AS13*'CTI INPUTS'!$D$45 -> 0 | CN13: =AO13*'CTI INPUTS'!$D$42 -> 0 | CO13: =AP13*'CTI INPUTS'!$D$43 -> 0 | CP13: =AQ13*'CTI INPUTS'!$D$44 -> 0 | CQ13: =AU13*'CTI INPUTS'!$D$45 -> 0
C14: 18in | D14: =ProjectData!C31 -> 4880 | F14: =(D14/10)*24 -> 11712 | H14: 976 | I14: =(D14/10)*8 -> 3904 | K14: 17568 | L14: 0 | N14: =D14/('CTI INPUTS'!C3) -> 976 | O14: 488 | Q14: =(22*N14)/12 -> 1789.333333 | R14: =(22*O14)/12 -> 894.6666667 | T14: =N14*'CTI INPUTS'!C48 -> 3904 | U14: =T14*('CTI INPUTS'!C14) -> 976 | V14: =O14*'CTI INPUTS'!$C$48 -> 1952 | W14: =V14*('CTI INPUTS'!$C$14) -> 488 | Y14: =N14*'CTI INPUTS'!C51 -> 5856 | Z14: =Y14*('CTI INPUTS'!C15) -> 5856 | AA14: =O14*'CTI INPUTS'!$C$51 -> 2928 | AB14: =AA14*('CTI INPUTS'!E15) -> 0 | AE14: 3904 | AF14: 3904 | AG14: 3904 | AH14: 1952 | AI14: 1952 | AJ14: 1952 | AL14: 1952 | AM14: 1952 | AN14: 1952 | AO14: 976 | AP14: 976 | AQ14: 976 | AS14: 1952 | AT14: =AS14*'CTI INPUTS'!C36 -> 97.6 | AU14: 976 | AV14: =AU14*'CTI INPUTS'!$C$36 -> 48.8 | AY14: =(F14/4)*'CTI INPUTS'!$C$33 -> 1464 | AZ14: =(H14*'CTI INPUTS'!$C$34)+(I14*'CTI INPUTS'!$C$33) -> 2147.2 | BB14: =(D14/10)*'CTI INPUTS'!C55 -> 2440 | BC14: =(D14/10)*'CTI INPUTS'!C56 -> 244 | BE14: =N14*'CTI INPUTS'!$C$37 -> 3904 | BF14: =N14*'CTI INPUTS'!$C$38 -> 2928 | BG14: =N14*'CTI INPUTS'!$C$39 -> 1952 | BH14: =O14*'CTI INPUTS'!$C$37 -> 1952 | BI14: =O14*'CTI INPUTS'!$C$38 -> 1464 | BJ14: =O14*'CTI INPUTS'!$C$39 -> 976 | BL14: =(AY14*'CTI INPUTS'!C6)/60 -> 2440 | BM14: =(AZ14*'CTI INPUTS'!C6)/60 -> 3578.666667 | BO14: =(N14*'CTI INPUTS'!C37)*(('CTI INPUTS'!C6)/60) -> 6506.666667 | BP14: =(BF14/60)*'CTI INPUTS'!C6 -> 4880 | BQ14: =(BG14/60)*'CTI INPUTS'!C6 -> 3253.333333 | BR14: =(O14*'CTI INPUTS'!$C$37)*(('CTI INPUTS'!$C$6)/60) -> 3253.333333 | BS14: =(BI14/60)*'CTI INPUTS'!$C$6 -> 2440 | BT14: =(BJ14/60)*'CTI INPUTS'!$C$6 -> 1626.666667 | BV14: =(Q14*('CTI INPUTS'!$D$17))+(T14*('CTI INPUTS'!$D$18))+(AE14*('CTI INPUTS'!$D$12))+(AF14*('CTI INPUTS'!$D$13))+(AG14*('CTI INPUTS'!$D$14)) -> 20154.4 | BW14: =(N14*('CTI INPUTS'!$D$19))+(T14*('CTI INPUTS'!$D$18))+(AG14*('CTI INPUTS'!$D$14)) -> 12483.04 | BX14: =(Y14*'CTI INPUTS'!$D$15)+(N14*'CTI INPUTS'!$D$16) -> 9760 | BY14: =(R14*('CTI INPUTS'!$D$17))+(V14*('CTI INPUTS'!$D$18))+(AH14*('CTI INPUTS'!$D$12))+(AI14*('CTI INPUTS'!$D$13))+(AJ14*('CTI INPUTS'!$D$14)) -> 10077.2 | BZ14: =(O14*('CTI INPUTS'!$D$19))+(V14*('CTI INPUTS'!$D$18))+(AJ14*('CTI INPUTS'!$D$14)) -> 6241.52 | CA14: =(AA14*'CTI INPUTS'!$D$15)+(O14*'CTI INPUTS'!$D$16) -> 4880 | CC14: =(AE14*('CTI INPUTS'!$D$12)) -> 3904 | CD14: =(AF14*('CTI INPUTS'!$D$13)) -> 585.6 | CE14: =(AG14*('CTI INPUTS'!$D$14)) -> 976 | CF14: =(AH14*('CTI INPUTS'!$D$12)) -> 1952 | CG14: =(AI14*('CTI INPUTS'!$D$13)) -> 292.8 | CH14: =(AJ14*('CTI INPUTS'!$D$14)) -> 488 | CJ14: =AL14*'CTI INPUTS'!$D$42 -> 3923.52 | CK14: =AM14*'CTI INPUTS'!$D$43 -> 1366.4 | CL14: =AN14*'CTI INPUTS'!$D$44 -> 1756.8 | CM14: =AS14*'CTI INPUTS'!$D$45 -> 5368 | CN14: =AO14*'CTI INPUTS'!$D$42 -> 1961.76 | CO14: =AP14*'CTI INPUTS'!$D$43 -> 683.2 | CP14: =AQ14*'CTI INPUTS'!$D$44 -> 878.4 | CQ14: =AU14*'CTI INPUTS'!$D$45 -> 2684
C15: 20in | D15: =ProjectData!C32 -> 0 | F15: =(D15/10)*28 -> 0 | H15: 0 | I15: =(D15/10)*8 -> 0 | K15: 0 | L15: 0 | N15: =D15/('CTI INPUTS'!C3) -> 0 | O15: 0 | Q15: =(24*N15)/12 -> 0 | R15: =(24*O15)/12 -> 0 | T15: =N15*'CTI INPUTS'!C48 -> 0 | U15: =T15*('CTI INPUTS'!C14) -> 0 | V15: =O15*'CTI INPUTS'!$C$48 -> 0 | W15: =V15*('CTI INPUTS'!$C$14) -> 0 | Y15: =N15*'CTI INPUTS'!C51 -> 0 | Z15: =Y15*('CTI INPUTS'!C15) -> 0 | AA15: =O15*'CTI INPUTS'!$C$51 -> 0 | AB15: =AA15*('CTI INPUTS'!E15) -> 0 | AE15: 0 | AF15: 0 | AG15: 0 | AH15: 0 | AI15: 0 | AJ15: 0 | AL15: 0 | AM15: 0 | AN15: 0 | AO15: 0 | AP15: 0 | AQ15: 0 | AS15: 0 | AT15: =AS15*'CTI INPUTS'!C36 -> 0 | AU15: 0 | AV15: =AU15*'CTI INPUTS'!$C$36 -> 0 | AY15: =(F15/4)*'CTI INPUTS'!$C$33 -> 0 | AZ15: =(H15*'CTI INPUTS'!$C$34)+(I15*'CTI INPUTS'!$C$33) -> 0 | BB15: =(D15/10)*'CTI INPUTS'!C55 -> 0 | BC15: =(D15/10)*'CTI INPUTS'!C56 -> 0 | BE15: =N15*'CTI INPUTS'!$C$37 -> 0 | BF15: =N15*'CTI INPUTS'!$C$38 -> 0 | BG15: =N15*'CTI INPUTS'!$C$39 -> 0 | BH15: =O15*'CTI INPUTS'!$C$37 -> 0 | BI15: =O15*'CTI INPUTS'!$C$38 -> 0 | BJ15: =O15*'CTI INPUTS'!$C$39 -> 0 | BL15: =(AY15*'CTI INPUTS'!C6)/60 -> 0 | BM15: =(AZ15*'CTI INPUTS'!C6)/60 -> 0 | BO15: =(N15*'CTI INPUTS'!C37)*(('CTI INPUTS'!C6)/60) -> 0 | BP15: =(BF15/60)*'CTI INPUTS'!C6 -> 0 | BQ15: =(BG15/60)*'CTI INPUTS'!C6 -> 0 | BR15: =(O15*'CTI INPUTS'!$C$37)*(('CTI INPUTS'!$C$6)/60) -> 0 | BS15: =(BI15/60)*'CTI INPUTS'!$C$6 -> 0 | BT15: =(BJ15/60)*'CTI INPUTS'!$C$6 -> 0 | BV15: =(Q15*('CTI INPUTS'!$D$17))+(T15*('CTI INPUTS'!$D$18))+(AE15*('CTI INPUTS'!$D$12))+(AF15*('CTI INPUTS'!$D$13))+(AG15*('CTI INPUTS'!$D$14)) -> 0 | BW15: =(N15*('CTI INPUTS'!$D$19))+(T15*('CTI INPUTS'!$D$18))+(AG15*('CTI INPUTS'!$D$14)) -> 0 | BX15: =(Y15*'CTI INPUTS'!$D$15)+(N15*'CTI INPUTS'!$D$16) -> 0 | BY15: =(R15*('CTI INPUTS'!$D$17))+(V15*('CTI INPUTS'!$D$18))+(AH15*('CTI INPUTS'!$D$12))+(AI15*('CTI INPUTS'!$D$13))+(AJ15*('CTI INPUTS'!$D$14)) -> 0 | BZ15: =(O15*('CTI INPUTS'!$D$19))+(V15*('CTI INPUTS'!$D$18))+(AJ15*('CTI INPUTS'!$D$14)) -> 0 | CA15: =(AA15*'CTI INPUTS'!$D$15)+(O15*'CTI INPUTS'!$D$16) -> 0 | CC15: =(AE15*('CTI INPUTS'!$D$12)) -> 0 | CD15: =(AF15*('CTI INPUTS'!$D$13)) -> 0 | CE15: =(AG15*('CTI INPUTS'!$D$14)) -> 0 | CF15: =(AH15*('CTI INPUTS'!$D$12)) -> 0 | CG15: =(AI15*('CTI INPUTS'!$D$13)) -> 0 | CH15: =(AJ15*('CTI INPUTS'!$D$14)) -> 0 | CJ15: =AL15*'CTI INPUTS'!$D$42 -> 0 | CK15: =AM15*'CTI INPUTS'!$D$43 -> 0 | CL15: =AN15*'CTI INPUTS'!$D$44 -> 0 | CM15: =AS15*'CTI INPUTS'!$D$45 -> 0 | CN15: =AO15*'CTI INPUTS'!$D$42 -> 0 | CO15: =AP15*'CTI INPUTS'!$D$43 -> 0 | CP15: =AQ15*'CTI INPUTS'!$D$44 -> 0 | CQ15: =AU15*'CTI INPUTS'!$D$45 -> 0
C16: 24in | D16: =ProjectData!C33 -> 0 | F16: =(D16/10)*28 -> 0 | H16: 0 | I16: =(D16/10)*8 -> 0 | K16: 0 | L16: 0 | N16: =D16/('CTI INPUTS'!C3) -> 0 | O16: 0 | Q16: =(28*N16)/12 -> 0 | R16: =(28*O16)/12 -> 0 | T16: =N16*'CTI INPUTS'!C48 -> 0 | U16: =T16*('CTI INPUTS'!C14) -> 0 | V16: =O16*'CTI INPUTS'!$C$48 -> 0 | W16: =V16*('CTI INPUTS'!$C$14) -> 0 | Y16: =N16*'CTI INPUTS'!C51 -> 0 | Z16: =Y16*('CTI INPUTS'!C15) -> 0 | AA16: =O16*'CTI INPUTS'!$C$51 -> 0 | AB16: =AA16*('CTI INPUTS'!E15) -> 0 | AE16: 0 | AF16: 0 | AG16: 0 | AH16: 0 | AI16: 0 | AJ16: 0 | AL16: 0 | AM16: 0 | AN16: 0 | AO16: 0 | AP16: 0 | AQ16: 0 | AS16: 0 | AT16: =AS16*'CTI INPUTS'!C36 -> 0 | AU16: 0 | AV16: =AU16*'CTI INPUTS'!$C$36 -> 0 | AY16: =(F16/4)*'CTI INPUTS'!$C$33 -> 0 | AZ16: =(H16*'CTI INPUTS'!$C$34)+(I16*'CTI INPUTS'!$C$33) -> 0 | BB16: =(D16/10)*'CTI INPUTS'!C55 -> 0 | BC16: =(D16/10)*'CTI INPUTS'!C56 -> 0 | BE16: =N16*'CTI INPUTS'!$C$37 -> 0 | BF16: =N16*'CTI INPUTS'!$C$38 -> 0 | BG16: =N16*'CTI INPUTS'!$C$39 -> 0 | BH16: =O16*'CTI INPUTS'!$C$37 -> 0 | BI16: =O16*'CTI INPUTS'!$C$38 -> 0 | BJ16: =O16*'CTI INPUTS'!$C$39 -> 0 | BL16: =(AY16*'CTI INPUTS'!C6)/60 -> 0 | BM16: =(AZ16*'CTI INPUTS'!C6)/60 -> 0 | BO16: =(N16*'CTI INPUTS'!C37)*(('CTI INPUTS'!C6)/60) -> 0 | BP16: =(BF16/60)*'CTI INPUTS'!C6 -> 0 | BQ16: =(BG16/60)*'CTI INPUTS'!C6 -> 0 | BR16: =(O16*'CTI INPUTS'!$C$37)*(('CTI INPUTS'!$C$6)/60) -> 0 | BS16: =(BI16/60)*'CTI INPUTS'!$C$6 -> 0 | BT16: =(BJ16/60)*'CTI INPUTS'!$C$6 -> 0 | BV16: =(Q16*('CTI INPUTS'!$D$17))+(T16*('CTI INPUTS'!$D$18))+(AE16*('CTI INPUTS'!$D$12))+(AF16*('CTI INPUTS'!$D$13))+(AG16*('CTI INPUTS'!$D$14)) -> 0 | BW16: =(N16*('CTI INPUTS'!$D$19))+(T16*('CTI INPUTS'!$D$18))+(AG16*('CTI INPUTS'!$D$14)) -> 0 | BX16: =(Y16*'CTI INPUTS'!$D$15)+(N16*'CTI INPUTS'!$D$16) -> 0 | BY16: =(R16*('CTI INPUTS'!$D$17))+(V16*('CTI INPUTS'!$D$18))+(AH16*('CTI INPUTS'!$D$12))+(AI16*('CTI INPUTS'!$D$13))+(AJ16*('CTI INPUTS'!$D$14)) -> 0 | BZ16: =(O16*('CTI INPUTS'!$D$19))+(V16*('CTI INPUTS'!$D$18))+(AJ16*('CTI INPUTS'!$D$14)) -> 0 | CA16: =(AA16*'CTI INPUTS'!$D$15)+(O16*'CTI INPUTS'!$D$16) -> 0 | CC16: =(AE16*('CTI INPUTS'!$D$12)) -> 0 | CD16: =(AF16*('CTI INPUTS'!$D$13)) -> 0 | CE16: =(AG16*('CTI INPUTS'!$D$14)) -> 0 | CF16: =(AH16*('CTI INPUTS'!$D$12)) -> 0 | CG16: =(AI16*('CTI INPUTS'!$D$13)) -> 0 | CH16: =(AJ16*('CTI INPUTS'!$D$14)) -> 0 | CJ16: =AL16*'CTI INPUTS'!$D$42 -> 0 | CK16: =AM16*'CTI INPUTS'!$D$43 -> 0 | CL16: =AN16*'CTI INPUTS'!$D$44 -> 0 | CM16: =AS16*'CTI INPUTS'!$D$45 -> 0 | CN16: =AO16*'CTI INPUTS'!$D$42 -> 0 | CO16: =AP16*'CTI INPUTS'!$D$43 -> 0 | CP16: =AQ16*'CTI INPUTS'!$D$44 -> 0 | CQ16: =AU16*'CTI INPUTS'!$D$45 -> 0
C17: 30in | D17: =ProjectData!C34 -> 0 | F17: =(D17/10)*32 -> 0 | H17: 0 | I17: =(D17/10)*12 -> 0 | K17: 0 | L17: 0 | N17: =D17/('CTI INPUTS'!C3) -> 0 | O17: 0 | Q17: =(34*N17)/12 -> 0 | R17: =(34*O17)/12 -> 0 | T17: =N17*'CTI INPUTS'!C48 -> 0 | U17: =T17*('CTI INPUTS'!C14) -> 0 | V17: =O17*'CTI INPUTS'!$C$48 -> 0 | W17: =V17*('CTI INPUTS'!$C$14) -> 0 | Y17: =N17*'CTI INPUTS'!C51 -> 0 | Z17: =Y17*('CTI INPUTS'!C15) -> 0 | AA17: =O17*'CTI INPUTS'!$C$51 -> 0 | AB17: =AA17*('CTI INPUTS'!E15) -> 0 | AE17: 0 | AF17: 0 | AG17: 0 | AH17: 0 | AI17: 0 | AJ17: 0 | AL17: 0 | AM17: 0 | AN17: 0 | AO17: 0 | AP17: 0 | AQ17: 0 | AS17: 0 | AT17: =AS17*'CTI INPUTS'!C36 -> 0 | AU17: 0 | AV17: =AU17*'CTI INPUTS'!$C$36 -> 0 | AY17: =(F17/4)*'CTI INPUTS'!$C$33 -> 0 | AZ17: =(H17*'CTI INPUTS'!$C$34)+(I17*'CTI INPUTS'!$C$33) -> 0 | BB17: =(D17/10)*'CTI INPUTS'!C55 -> 0 | BC17: =(D17/10)*'CTI INPUTS'!C56 -> 0 | BE17: =N17*'CTI INPUTS'!$C$37 -> 0 | BF17: =N17*'CTI INPUTS'!$C$38 -> 0 | BG17: =N17*'CTI INPUTS'!$C$39 -> 0 | BH17: =O17*'CTI INPUTS'!$C$37 -> 0 | BI17: =O17*'CTI INPUTS'!$C$38 -> 0 | BJ17: =O17*'CTI INPUTS'!$C$39 -> 0 | BL17: =(AY17*'CTI INPUTS'!C6)/60 -> 0 | BM17: =(AZ17*'CTI INPUTS'!C6)/60 -> 0 | BO17: =(N17*'CTI INPUTS'!C37)*(('CTI INPUTS'!C6)/60) -> 0 | BP17: =(BF17/60)*'CTI INPUTS'!C6 -> 0 | BQ17: =(BG17/60)*'CTI INPUTS'!C6 -> 0 | BR17: =(O17*'CTI INPUTS'!$C$37)*(('CTI INPUTS'!$C$6)/60) -> 0 | BS17: =(BI17/60)*'CTI INPUTS'!$C$6 -> 0 | BT17: =(BJ17/60)*'CTI INPUTS'!$C$6 -> 0 | BV17: =(Q17*('CTI INPUTS'!$D$17))+(T17*('CTI INPUTS'!$D$18))+(AE17*('CTI INPUTS'!$D$12))+(AF17*('CTI INPUTS'!$D$13))+(AG17*('CTI INPUTS'!$D$14)) -> 0 | BW17: =(N17*('CTI INPUTS'!$D$19))+(T17*('CTI INPUTS'!$D$18))+(AG17*('CTI INPUTS'!$D$14)) -> 0 | BX17: =(Y17*'CTI INPUTS'!$D$15)+(N17*'CTI INPUTS'!$D$16) -> 0 | BY17: =(R17*('CTI INPUTS'!$D$17))+(V17*('CTI INPUTS'!$D$18))+(AH17*('CTI INPUTS'!$D$12))+(AI17*('CTI INPUTS'!$D$13))+(AJ17*('CTI INPUTS'!$D$14)) -> 0 | BZ17: =(O17*('CTI INPUTS'!$D$19))+(V17*('CTI INPUTS'!$D$18))+(AJ17*('CTI INPUTS'!$D$14)) -> 0 | CA17: =(AA17*'CTI INPUTS'!$D$15)+(O17*'CTI INPUTS'!$D$16) -> 0 | CC17: =(AE17*('CTI INPUTS'!$D$12)) -> 0 | CD17: =(AF17*('CTI INPUTS'!$D$13)) -> 0 | CE17: =(AG17*('CTI INPUTS'!$D$14)) -> 0 | CF17: =(AH17*('CTI INPUTS'!$D$12)) -> 0 | CG17: =(AI17*('CTI INPUTS'!$D$13)) -> 0 | CH17: =(AJ17*('CTI INPUTS'!$D$14)) -> 0 | CJ17: =AL17*'CTI INPUTS'!$D$42 -> 0 | CK17: =AM17*'CTI INPUTS'!$D$43 -> 0 | CL17: =AN17*'CTI INPUTS'!$D$44 -> 0 | CM17: =AS17*'CTI INPUTS'!$D$45 -> 0 | CN17: =AO17*'CTI INPUTS'!$D$42 -> 0 | CO17: =AP17*'CTI INPUTS'!$D$43 -> 0 | CP17: =AQ17*'CTI INPUTS'!$D$44 -> 0 | CQ17: =AU17*'CTI INPUTS'!$D$45 -> 0
C18: 36in | D18: =ProjectData!C35 -> 0 | F18: =(D18/10)*32 -> 0 | H18: 0 | I18: =(D18/10)*12 -> 0 | K18: 0 | L18: 0 | N18: =D18/('CTI INPUTS'!C3) -> 0 | O18: 0 | Q18: =(40*N18)/12 -> 0 | R18: =(40*O18)/12 -> 0 | T18: =N18*'CTI INPUTS'!C48 -> 0 | U18: =T18*('CTI INPUTS'!C14) -> 0 | V18: =O18*'CTI INPUTS'!$C$48 -> 0 | W18: =V18*('CTI INPUTS'!$C$14) -> 0 | Y18: =N18*'CTI INPUTS'!C51 -> 0 | Z18: =Y18*('CTI INPUTS'!C15) -> 0 | AA18: =O18*'CTI INPUTS'!$C$51 -> 0 | AB18: =AA18*('CTI INPUTS'!E15) -> 0 | AE18: 0 | AF18: 0 | AG18: 0 | AH18: 0 | AI18: 0 | AJ18: 0 | AL18: 0 | AM18: 0 | AN18: 0 | AO18: 0 | AP18: 0 | AQ18: 0 | AS18: 0 | AT18: =AS18*'CTI INPUTS'!C36 -> 0 | AU18: 0 | AV18: =AU18*'CTI INPUTS'!$C$36 -> 0 | AY18: =(F18/4)*'CTI INPUTS'!$C$33 -> 0 | AZ18: =(H18*'CTI INPUTS'!$C$34)+(I18*'CTI INPUTS'!$C$33) -> 0 | BB18: =(D18/10)*'CTI INPUTS'!C55 -> 0 | BC18: =(D18/10)*'CTI INPUTS'!C56 -> 0 | BE18: =N18*'CTI INPUTS'!$C$37 -> 0 | BF18: =N18*'CTI INPUTS'!$C$38 -> 0 | BG18: =N18*'CTI INPUTS'!$C$39 -> 0 | BH18: =O18*'CTI INPUTS'!$C$37 -> 0 | BI18: =O18*'CTI INPUTS'!$C$38 -> 0 | BJ18: =O18*'CTI INPUTS'!$C$39 -> 0 | BL18: =(AY18*'CTI INPUTS'!C6)/60 -> 0 | BM18: =(AZ18*'CTI INPUTS'!C6)/60 -> 0 | BO18: =(N18*'CTI INPUTS'!C37)*(('CTI INPUTS'!C6)/60) -> 0 | BP18: =(BF18/60)*'CTI INPUTS'!C6 -> 0 | BQ18: =(BG18/60)*'CTI INPUTS'!C6 -> 0 | BR18: =(O18*'CTI INPUTS'!$C$37)*(('CTI INPUTS'!$C$6)/60) -> 0 | BS18: =(BI18/60)*'CTI INPUTS'!$C$6 -> 0 | BT18: =(BJ18/60)*'CTI INPUTS'!$C$6 -> 0 | BV18: =(Q18*('CTI INPUTS'!$D$17))+(T18*('CTI INPUTS'!$D$18))+(AE18*('CTI INPUTS'!$D$12))+(AF18*('CTI INPUTS'!$D$13))+(AG18*('CTI INPUTS'!$D$14)) -> 0 | BW18: =(N18*('CTI INPUTS'!$D$19))+(T18*('CTI INPUTS'!$D$18))+(AG18*('CTI INPUTS'!$D$14)) -> 0 | BX18: =(Y18*'CTI INPUTS'!$D$15)+(N18*'CTI INPUTS'!$D$16) -> 0 | BY18: =(R18*('CTI INPUTS'!$D$17))+(V18*('CTI INPUTS'!$D$18))+(AH18*('CTI INPUTS'!$D$12))+(AI18*('CTI INPUTS'!$D$13))+(AJ18*('CTI INPUTS'!$D$14)) -> 0 | BZ18: =(O18*('CTI INPUTS'!$D$19))+(V18*('CTI INPUTS'!$D$18))+(AJ18*('CTI INPUTS'!$D$14)) -> 0 | CA18: =(AA18*'CTI INPUTS'!$D$15)+(O18*'CTI INPUTS'!$D$16) -> 0 | CC18: =(AE18*('CTI INPUTS'!$D$12)) -> 0 | CD18: =(AF18*('CTI INPUTS'!$D$13)) -> 0 | CE18: =(AG18*('CTI INPUTS'!$D$14)) -> 0 | CF18: =(AH18*('CTI INPUTS'!$D$12)) -> 0 | CG18: =(AI18*('CTI INPUTS'!$D$13)) -> 0 | CH18: =(AJ18*('CTI INPUTS'!$D$14)) -> 0 | CJ18: =AL18*'CTI INPUTS'!$D$42 -> 0 | CK18: =AM18*'CTI INPUTS'!$D$43 -> 0 | CL18: =AN18*'CTI INPUTS'!$D$44 -> 0 | CM18: =AS18*'CTI INPUTS'!$D$45 -> 0 | CN18: =AO18*'CTI INPUTS'!$D$42 -> 0 | CO18: =AP18*'CTI INPUTS'!$D$43 -> 0 | CP18: =AQ18*'CTI INPUTS'!$D$44 -> 0 | CQ18: =AU18*'CTI INPUTS'!$D$45 -> 0
C19: Totals | D19: =SUM(D7:D18)/10 -> 2024 | F19: =SUM(F7:F18) -> 48576 | H19: =SUM((H7:H18)+(I7:I18)) -> 14096 | K19: =SUM(K7:K18) -> 72864 | L19: =SUM(L7:L18) -> 0 | N19: =SUM(N7:N18) -> 4048 | O19: =SUM(O7:O18) -> 2024 | Q19: =SUM(Q7:Q18) -> 5885.333333 | R19: =SUM(R7:R18) -> 2942.666667 | T19: =SUM(T7:T18) -> 16192 | U19: =SUM(U7:U18) -> 4048 | V19: =SUM(V7:V18) -> 8096 | W19: =SUM(W7:W18) -> 2024 | Y19: =SUM(Y7:Y18) -> 24288 | Z19: =SUM(Z7:Z18) -> 24288 | AA19: =SUM(AA7:AA18) -> 12144 | AB19: =SUM(AB7:AB18) -> 0 | AE19: =SUM((AE7:AE18)+(AF7:AF18)+(AG7:AG18)) -> 48576 | AH19: =SUM((AH7:AH18)+(AI7:AI18)+(AJ7:AJ18)) -> 24288 | AL19: =SUM((AL7:AL18)+(AM7:AM18)+(AN7:AN18)) -> 24288 | AO19: =SUM((AO7:AO18)+(AP7:AP18)+(AQ7:AQ18)) -> 12144 | AS19: =SUM(AS7:AS18) -> 8096 | AT19: =SUM(AT7:AT18) -> 404.8 | AU19: =SUM(AU7:AU18) -> 4048 | AV19: =SUM(AV7:AV18) -> 202.4 | AY19: =SUM(AY7:AY18) -> 6072 | AZ19: =SUM(AZ7:AZ18) -> 5833.6 | BB19: =SUM(BB7:BB18) -> 10120 | BC19: =SUM(BC7:BC18) -> 1012 | BE19: =SUM(BE7:BE18) -> 16192 | BF19: 12144 | BG19: 8096 | BH19: 8096 | BI19: 6072 | BJ19: 4048 | BL19: =SUM(BL7:BL18) -> 10120 | BM19: =SUM(BM7:BM18) -> 9722.666667 | BO19: =SUM(BO7:BO18) -> 26986.66667 | BP19: 20240 | BQ19: 13493.33333 | BR19: 13493.33333 | BS19: 10120 | BT19: 6746.666667 | BV19: =SUM(BV7:BV18) -> 76679.2 | BW19: 51773.92 | BX19: 40480 | BY19: 38339.6 | BZ19: 25886.96 | CA19: 20240 | CC19: =SUM((CC7:CC18)+(CD7:CD18)+(CE7:CE18)) -> 22668.8 | CF19: =SUM((CF7:CF18)+(CG7:CG18)+(CH7:CH18)) -> 11334.4 | CJ19: =SUM((CJ7:CJ18)+(CK7:CK18)+(CL7:CL18)) -> 29226.56 | CM19: =SUM(CM7:CM18) -> 22264 | CN19: =SUM((CN7:CN18)+(CO7:CO18)+(CP7:CP18)) -> 14613.28 | CQ19: =SUM(CQ7:CQ18) -> 11132 | CS19: =SUM(CS7:CS18) -> 0 | CT19: =SUM(CT7:CT18) -> 0 | CU19: =SUM(CU7:CU18) -> 0
B23: HORIZONTAL 45 BEND | F23: SPLICE | H23: POSI-LOK | K23: FITTING FABRICATION | N23: SUPPORT QUANTITY | Q23: STRUT (L/FT) | T23: ATR HANGER (L/FT) | Y23: WIRE HANGER (L/FT) | AE23: VE2 : ATR HARDWARE QUANTITY | AH23: TSS : ATR HARDWARE QUANTITY | AL23: HOLD DOWN & HDWR QUANTITY | AO23: TSS: HOLD DOWN & HDWR QUANTITY | AS23: H-DOWN CLIP QUANTITY | AY23: SPLICE INSTALLATION TIME (MIN) | BB23: FITTING FAB. TIME (MIN) | BE23: VE2 : SUPPORT INSTAL TIME (MIN) | BH23: TSS : SUPPORT INSTAL TIME (MIN) | BL23: SPLICE INSTALLATION COST ($) | BO23: SUPPORT INSTALLATION COST ($) | BR23: TSS: SUPPORT INSTALLATION COST ($) | BV23: SUPPORT COST ($) | BY23: TSS: SUPPORT COST ($) | CC23: ATR HARDWARE COST $ | CF23: TSS: ATR HARDWARE COST $ | CJ23: HOLD DOWN CLAMPS & HARDWARE COST ($) | CN23: TSS: HOLD DOWN CLAMPS & HARDWARE COST ($) | CS23: SUPPORT WEIGHT (LBS)
B25: HEIGHT | C25: WIDTH | D25: QUANTITY | F25: WSKIT (pcs) | H25: PLOK (pcs) | I25: WSKIT (pcs) | K25: CUTS QTY | L25: WSKIT (pcs) | N25: FAB (VE2) | O25: C2G (TSS) | Q25: FAB (VE2) | R25: C2G (TSS) | T25: FAB (VE2) | U25: C2G (TSS) | Y25: FAB (VE2) | Z25: C2G (TSS) | AE25: SQ WSHR | AF25: FLT WSHR | AG25: HEX NUT | AH25: SQ WSHR | AI25: FLT WSHR | AJ25: HEX NUT | AL25: FLXW | AM25: 25HX | AN25: 25NC | AO25: FLXW | AP25: 25HX | AQ25: 25NC | AS25: VE2 : SRC (pc) | AT25: TSS : SRC (pc) | AY25: WSKIT | AZ25: POSI-LOK + WSKIT | BB25: CUTS | BC25: WSKIT | BE25: STRUT | BF25: URH | BG25: WIRE | BH25: STRUT | BI25: URH | BJ25: WIRE | BL25: WSKIT | BM25: POSI-LOK + WSKIT | BO25: VE2 : STRUT | BP25: VE2 : URH | BQ25: VE2 : WIRE | BR25: TSS : STRUT | BS25: TSS : URH | BT25: TSS : WIRE | BV25: STRUT | BW25: URH | BX25: WIRE | BY25: STRUT | BZ25: URH | CA25: WIRE | CC25: SQUARE WSHR | CD25: FLAT WSHR | CE25: HEX NUT | CF25: SQUARE WSHR | CG25: FLAT WSHR | CH25: HEX NUT | CJ25: FLXW | CK25: 25HX | CL25: 25NC | CM25: SRC CLIP | CN25: FLXW | CO25: 25HX | CP25: 25NC | CQ25: SRC CLIP | CS25: STRUT | CT25: URH | CU25: WIRE
B26: 2/4/6in | C26: 2in | D26: =ProjectData!C42 -> 0 | F26: =D26*8 -> 0 | H26: =D26*2 -> 0 | I26: =D26*0 -> 0 | K26: =D26*'CTI INPUTS'!M13 -> 0 | L26: =D26*'CTI INPUTS'!O13 -> 0 | N26: =D26*3 -> 0 | O26: =D26*1 -> 0 | Q26: =(6*N26)/12 -> 0 | R26: =(6*O26)/12 -> 0 | T26: =N26*'CTI INPUTS'!C48 -> 0 | U26: =O26*'CTI INPUTS'!C48 -> 0 | Y26: =N26*'CTI INPUTS'!C51 -> 0 | Z26: =O26*'CTI INPUTS'!C51 -> 0 | AE26: =N26*4 -> 0 | AF26: =N26*4 -> 0 | AG26: =N26*4 -> 0 | AH26: =O26*4 -> 0 | AI26: =O26*4 -> 0 | AJ26: =O26*4 -> 0 | AL26: =N26*2 -> 0 | AM26: =N26*2 -> 0 | AN26: =N26*2 -> 0 | AO26: =O26*2 -> 0 | AP26: =O26*2 -> 0 | AQ26: =O26*2 -> 0 | AS26: =N26*1 -> 0 | AT26: =O26*1 -> 0 | AY26: =(F26/4)*'CTI INPUTS'!C33 -> 0 | AZ26: =(H26*'CTI INPUTS'!C34)+(I26*'CTI INPUTS'!C33) -> 0 | BB26: =D26*'CTI INPUTS'!M28 -> 0 | BC26: =D26*'CTI INPUTS'!N28 -> 0 | BE26: =N26*'CTI INPUTS'!C37 -> 0 | BF26: =N26*'CTI INPUTS'!C38 -> 0 | BG26: =N26*'CTI INPUTS'!C39 -> 0 | BH26: =O26*'CTI INPUTS'!C37 -> 0 | BI26: =O26*'CTI INPUTS'!C38 -> 0 | BJ26: =O26*'CTI INPUTS'!C39 -> 0 | BL26: =(AY26*'CTI INPUTS'!C6)/60 -> 0 | BM26: =(AZ26*'CTI INPUTS'!C6)/60 -> 0 | BO26: =(BE26/60)*'CTI INPUTS'!C6 -> 0 | BP26: =(BF26/60)*'CTI INPUTS'!C6 -> 0 | BQ26: =(BG26/60)*'CTI INPUTS'!C6 -> 0 | BR26: =(BH26/60)*'CTI INPUTS'!C6 -> 0 | BS26: =(BI26/60)*'CTI INPUTS'!C6 -> 0 | BT26: =(BJ26/60)*'CTI INPUTS'!C6 -> 0 | BV26: =(Q26*('CTI INPUTS'!D17))+(T26*('CTI INPUTS'!D18))+(AE26*('CTI INPUTS'!D12))+(AF26*('CTI INPUTS'!D13))+(AG26*('CTI INPUTS'!D14)) -> 0 | BW26: =(N26*('CTI INPUTS'!D19))+(T26*('CTI INPUTS'!D18))+(AG26*('CTI INPUTS'!D14)) -> 0 | BX26: =(Y26*'CTI INPUTS'!D15)+(N26*'CTI INPUTS'!D16) -> 0 | BY26: =(R26*('CTI INPUTS'!D17))+(U26*('CTI INPUTS'!D18))+(AH26*('CTI INPUTS'!D12))+(AI26*('CTI INPUTS'!D13))+(AJ26*('CTI INPUTS'!D14)) -> 0 | BZ26: =(O26*('CTI INPUTS'!D19))+(U26*('CTI INPUTS'!D18))+(AJ26*('CTI INPUTS'!D14)) -> 0 | CA26: =(Z26*'CTI INPUTS'!D15)+(O26*'CTI INPUTS'!D16) -> 0 | CC26: =(AE26*('CTI INPUTS'!D12)) -> 0 | CD26: =(AF26*('CTI INPUTS'!D13)) -> 0 | CE26: =(AG26*('CTI INPUTS'!D14)) -> 0 | CF26: =(AH26*('CTI INPUTS'!D12)) -> 0 | CG26: =(AI26*('CTI INPUTS'!D13)) -> 0 | CH26: =(AJ26*('CTI INPUTS'!D14)) -> 0 | CJ26: =AL26*'CTI INPUTS'!D42 -> 0 | CK26: =AM26*'CTI INPUTS'!D43 -> 0 | CL26: =AN26*'CTI INPUTS'!D44 -> 0 | CM26: =AS26*'CTI INPUTS'!D45 -> 0 | CN26: =AO26*'CTI INPUTS'!D42 -> 0 | CO26: =AP26*'CTI INPUTS'!D43 -> 0 | CP26: =AQ26*'CTI INPUTS'!D44 -> 0 | CQ26: =AT26*'CTI INPUTS'!D45 -> 0
C27: 4in | D27: =ProjectData!C43 -> 0 | F27: =D27*16 -> 0 | H27: =D27*2 -> 0 | I27: =D27*0 -> 0 | K27: =D27*'CTI INPUTS'!M14 -> 0 | L27: =D27*'CTI INPUTS'!O14 -> 0 | N27: =D27*3 -> 0 | O27: 0 | Q27: =(8*N27)/12 -> 0 | R27: =(8*O27)/12 -> 0 | T27: =N27*'CTI INPUTS'!C48 -> 0 | U27: =O27*'CTI INPUTS'!C48 -> 0 | Y27: =N27*'CTI INPUTS'!C51 -> 0 | Z27: =O27*'CTI INPUTS'!C51 -> 0 | AE27: =N27*4 -> 0 | AF27: =N27*4 -> 0 | AG27: =N27*4 -> 0 | AH27: =O27*4 -> 0 | AI27: 0 | AJ27: 0 | AL27: =N27*2 -> 0 | AM27: =N27*2 -> 0 | AN27: =N27*2 -> 0 | AO27: =O27*2 -> 0 | AP27: =O27*2 -> 0 | AQ27: =O27*2 -> 0 | AS27: =N27*2 -> 0 | AT27: =O27*2 -> 0 | AY27: =(F27/4)*'CTI INPUTS'!C33 -> 0 | AZ27: =(H27*'CTI INPUTS'!C34)+(I27*'CTI INPUTS'!C33) -> 0 | BB27: =D27*'CTI INPUTS'!M29 -> 0 | BC27: =D27*'CTI INPUTS'!N29 -> 0 | BE27: =N27*'CTI INPUTS'!C37 -> 0 | BF27: =N27*'CTI INPUTS'!C38 -> 0 | BG27: =N27*'CTI INPUTS'!C39 -> 0 | BH27: =O27*'CTI INPUTS'!C37 -> 0 | BI27: =O27*'CTI INPUTS'!C38 -> 0 | BJ27: =O27*'CTI INPUTS'!C39 -> 0 | BL27: =(AY27*'CTI INPUTS'!C6)/60 -> 0 | BM27: =(AZ27*'CTI INPUTS'!C6)/60 -> 0 | BO27: =(BE27/60)*'CTI INPUTS'!C6 -> 0 | BP27: =(BF27/60)*'CTI INPUTS'!C6 -> 0 | BQ27: =(BG27/60)*'CTI INPUTS'!C6 -> 0 | BR27: =(BH27/60)*'CTI INPUTS'!C6 -> 0 | BS27: =(BI27/60)*'CTI INPUTS'!C6 -> 0 | BT27: =(BJ27/60)*'CTI INPUTS'!C6 -> 0 | BV27: =(Q27*('CTI INPUTS'!D17))+(T27*('CTI INPUTS'!D18))+(AE27*('CTI INPUTS'!D12))+(AF27*('CTI INPUTS'!D13))+(AG27*('CTI INPUTS'!D14)) -> 0 | BW27: =(N27*('CTI INPUTS'!D19))+(T27*('CTI INPUTS'!D18))+(AG27*('CTI INPUTS'!D14)) -> 0 | BX27: =(Y27*'CTI INPUTS'!D15)+(N27*'CTI INPUTS'!D16) -> 0 | BY27: =(R27*('CTI INPUTS'!D17))+(U27*('CTI INPUTS'!D18))+(AH27*('CTI INPUTS'!D12))+(AI27*('CTI INPUTS'!D13))+(AJ27*('CTI INPUTS'!D14)) -> 0 | BZ27: =(O27*('CTI INPUTS'!D19))+(U27*('CTI INPUTS'!D18))+(AJ27*('CTI INPUTS'!D14)) -> 0 | CA27: =(Z27*'CTI INPUTS'!D15)+(O27*'CTI INPUTS'!D16) -> 0 | CC27: =(AE27*('CTI INPUTS'!D12)) -> 0 | CD27: =(AF27*('CTI INPUTS'!D13)) -> 0 | CE27: =(AG27*('CTI INPUTS'!D14)) -> 0 | CF27: =(AH27*('CTI INPUTS'!D12)) -> 0 | CG27: =(AI27*('CTI INPUTS'!D13)) -> 0 | CH27: =(AJ27*('CTI INPUTS'!D14)) -> 0 | CJ27: =AL27*'CTI INPUTS'!D42 -> 0 | CK27: =AM27*'CTI INPUTS'!D43 -> 0 | CL27: =AN27*'CTI INPUTS'!D44 -> 0 | CM27: =AS27*'CTI INPUTS'!D45 -> 0 | CN27: =AO27*'CTI INPUTS'!D42 -> 0 | CO27: =AP27*'CTI INPUTS'!D43 -> 0 | CP27: =AQ27*'CTI INPUTS'!D44 -> 0 | CQ27: =AT27*'CTI INPUTS'!D45 -> 0
C28: 6in | D28: =ProjectData!C44 -> 0 | F28: =D28*16 -> 0 | H28: 0 | I28: =D28*0 -> 0 | K28: =D28*'CTI INPUTS'!M15 -> 0 | L28: =D28*'CTI INPUTS'!O15 -> 0 | N28: =D28*3 -> 0 | O28: 0 | Q28: =(10*N28)/12 -> 0 | R28: =(10*O28)/12 -> 0 | T28: =N28*'CTI INPUTS'!C48 -> 0 | U28: =O28*'CTI INPUTS'!C48 -> 0 | Y28: =N28*'CTI INPUTS'!C51 -> 0 | Z28: =O28*'CTI INPUTS'!C51 -> 0 | AE28: 0 | AF28: 0 | AG28: 0 | AH28: 0 | AI28: 0 | AJ28: 0 | AL28: 0 | AM28: 0 | AN28: 0 | AO28: 0 | AP28: 0 | AQ28: 0 | AS28: =N28*2 -> 0 | AT28: =O28*2 -> 0 | AY28: =(F28/4)*'CTI INPUTS'!C33 -> 0 | AZ28: =(H28*'CTI INPUTS'!C34)+(I28*'CTI INPUTS'!C33) -> 0 | BB28: =D28*'CTI INPUTS'!M30 -> 0 | BC28: =D28*'CTI INPUTS'!N30 -> 0 | BE28: =N28*'CTI INPUTS'!C37 -> 0 | BF28: =N28*'CTI INPUTS'!C38 -> 0 | BG28: =N28*'CTI INPUTS'!C39 -> 0 | BH28: =O28*'CTI INPUTS'!C37 -> 0 | BI28: =O28*'CTI INPUTS'!C38 -> 0 | BJ28: =O28*'CTI INPUTS'!C39 -> 0 | BL28: =(AY28*'CTI INPUTS'!C6)/60 -> 0 | BM28: =(AZ28*'CTI INPUTS'!C6)/60 -> 0 | BO28: =(BE28/60)*'CTI INPUTS'!C6 -> 0 | BP28: =(BF28/60)*'CTI INPUTS'!C6 -> 0 | BQ28: =(BG28/60)*'CTI INPUTS'!C6 -> 0 | BR28: =(BH28/60)*'CTI INPUTS'!C6 -> 0 | BS28: =(BI28/60)*'CTI INPUTS'!C6 -> 0 | BT28: =(BJ28/60)*'CTI INPUTS'!C6 -> 0 | BV28: =(Q28*('CTI INPUTS'!D17))+(T28*('CTI INPUTS'!D18))+(AE28*('CTI INPUTS'!D12))+(AF28*('CTI INPUTS'!D13))+(AG28*('CTI INPUTS'!D14)) -> 0 | BW28: =(N28*('CTI INPUTS'!D19))+(T28*('CTI INPUTS'!D18))+(AG28*('CTI INPUTS'!D14)) -> 0 | BX28: =(Y28*'CTI INPUTS'!D15)+(N28*'CTI INPUTS'!D16) -> 0 | BY28: =(R28*('CTI INPUTS'!D17))+(U28*('CTI INPUTS'!D18))+(AH28*('CTI INPUTS'!D12))+(AI28*('CTI INPUTS'!D13))+(AJ28*('CTI INPUTS'!D14)) -> 0 | BZ28: =(O28*('CTI INPUTS'!D19))+(U28*('CTI INPUTS'!D18))+(AJ28*('CTI INPUTS'!D14)) -> 0 | CA28: =(Z28*'CTI INPUTS'!D15)+(O28*'CTI INPUTS'!D16) -> 0 | CC28: =(AE28*('CTI INPUTS'!D12)) -> 0 | CD28: =(AF28*('CTI INPUTS'!D13)) -> 0 | CE28: =(AG28*('CTI INPUTS'!D14)) -> 0 | CF28: =(AH28*('CTI INPUTS'!D12)) -> 0 | CG28: =(AI28*('CTI INPUTS'!D13)) -> 0 | CH28: =(AJ28*('CTI INPUTS'!D14)) -> 0 | CJ28: =AL28*'CTI INPUTS'!D42 -> 0 | CK28: =AM28*'CTI INPUTS'!D43 -> 0 | CL28: =AN28*'CTI INPUTS'!D44 -> 0 | CM28: =AS28*'CTI INPUTS'!D45 -> 0 | CN28: =AO28*'CTI INPUTS'!D42 -> 0 | CO28: =AP28*'CTI INPUTS'!D43 -> 0 | CP28: =AQ28*'CTI INPUTS'!D44 -> 0 | CQ28: =AT28*'CTI INPUTS'!D45 -> 0
C29: 8in | D29: =ProjectData!C45 -> 0 | F29: =D29*20 -> 0 | H29: 0 | I29: =D29*4 -> 0 | K29: =D29*'CTI INPUTS'!M16 -> 0 | L29: =D29*'CTI INPUTS'!O16 -> 0 | N29: =D29*3 -> 0 | O29: 0 | Q29: =(12*N29)/12 -> 0 | R29: =(12*O29)/12 -> 0 | T29: =N29*'CTI INPUTS'!C48 -> 0 | U29: =O29*'CTI INPUTS'!C48 -> 0 | Y29: =N29*'CTI INPUTS'!C51 -> 0 | Z29: =O29*'CTI INPUTS'!C51 -> 0 | AE29: 0 | AF29: 0 | AG29: 0 | AH29: 0 | AI29: 0 | AJ29: 0 | AL29: 0 | AM29: 0 | AN29: 0 | AO29: 0 | AP29: 0 | AQ29: 0 | AS29: 0 | AT29: 0 | AY29: =(F29/4)*'CTI INPUTS'!C33 -> 0 | AZ29: =(H29*'CTI INPUTS'!C34)+(I29*'CTI INPUTS'!C33) -> 0 | BB29: =D29*'CTI INPUTS'!M31 -> 0 | BC29: =D29*'CTI INPUTS'!N31 -> 0 | BE29: =N29*'CTI INPUTS'!C37 -> 0 | BF29: =N29*'CTI INPUTS'!C38 -> 0 | BG29: =N29*'CTI INPUTS'!C39 -> 0 | BH29: =O29*'CTI INPUTS'!C37 -> 0 | BI29: =O29*'CTI INPUTS'!C38 -> 0 | BJ29: =O29*'CTI INPUTS'!C39 -> 0 | BL29: =(AY29*'CTI INPUTS'!C6)/60 -> 0 | BM29: =(AZ29*'CTI INPUTS'!C6)/60 -> 0 | BO29: =(BE29/60)*'CTI INPUTS'!C6 -> 0 | BP29: =(BF29/60)*'CTI INPUTS'!C6 -> 0 | BQ29: =(BG29/60)*'CTI INPUTS'!C6 -> 0 | BR29: =(BH29/60)*'CTI INPUTS'!C6 -> 0 | BS29: =(BI29/60)*'CTI INPUTS'!C6 -> 0 | BT29: =(BJ29/60)*'CTI INPUTS'!C6 -> 0 | BV29: =(Q29*('CTI INPUTS'!D17))+(T29*('CTI INPUTS'!D18))+(AE29*('CTI INPUTS'!D12))+(AF29*('CTI INPUTS'!D13))+(AG29*('CTI INPUTS'!D14)) -> 0 | BW29: =(N29*('CTI INPUTS'!D19))+(T29*('CTI INPUTS'!D18))+(AG29*('CTI INPUTS'!D14)) -> 0 | BX29: =(Y29*'CTI INPUTS'!D15)+(N29*'CTI INPUTS'!D16) -> 0 | BY29: =(R29*('CTI INPUTS'!D17))+(U29*('CTI INPUTS'!D18))+(AH29*('CTI INPUTS'!D12))+(AI29*('CTI INPUTS'!D13))+(AJ29*('CTI INPUTS'!D14)) -> 0 | BZ29: =(O29*('CTI INPUTS'!D19))+(U29*('CTI INPUTS'!D18))+(AJ29*('CTI INPUTS'!D14)) -> 0 | CA29: =(Z29*'CTI INPUTS'!D15)+(O29*'CTI INPUTS'!D16) -> 0 | CC29: =(AE29*('CTI INPUTS'!D12)) -> 0 | CD29: =(AF29*('CTI INPUTS'!D13)) -> 0 | CE29: =(AG29*('CTI INPUTS'!D14)) -> 0 | CF29: =(AH29*('CTI INPUTS'!D12)) -> 0 | CG29: =(AI29*('CTI INPUTS'!D13)) -> 0 | CH29: =(AJ29*('CTI INPUTS'!D14)) -> 0 | CJ29: =AL29*'CTI INPUTS'!D42 -> 0 | CK29: =AM29*'CTI INPUTS'!D43 -> 0 | CL29: =AN29*'CTI INPUTS'!D44 -> 0 | CM29: =AS29*'CTI INPUTS'!D45 -> 0 | CN29: =AO29*'CTI INPUTS'!D42 -> 0 | CO29: =AP29*'CTI INPUTS'!D43 -> 0 | CP29: =AQ29*'CTI INPUTS'!D44 -> 0 | CQ29: =AT29*'CTI INPUTS'!D45 -> 0
C30: 10in | D30: =ProjectData!C46 -> 0 | F30: =D30*20 -> 0 | H30: 0 | I30: =D30*4 -> 0 | K30: =D30*'CTI INPUTS'!M17 -> 0 | L30: =D30*'CTI INPUTS'!O17 -> 0 | N30: 0 | O30: 0 | Q30: =(14*N30)/12 -> 0 | R30: =(14*O30)/12 -> 0 | T30: =N30*'CTI INPUTS'!C48 -> 0 | U30: =O30*'CTI INPUTS'!C48 -> 0 | Y30: =N30*'CTI INPUTS'!C51 -> 0 | Z30: =O30*'CTI INPUTS'!C51 -> 0 | AE30: 0 | AF30: 0 | AG30: 0 | AH30: 0 | AI30: 0 | AJ30: 0 | AL30: 0 | AM30: 0 | AN30: 0 | AO30: 0 | AP30: 0 | AQ30: 0 | AS30: 0 | AT30: 0 | AY30: =(F30/4)*'CTI INPUTS'!C33 -> 0 | AZ30: =(H30*'CTI INPUTS'!C34)+(I30*'CTI INPUTS'!C33) -> 0 | BB30: =D30*'CTI INPUTS'!M32 -> 0 | BC30: =D30*'CTI INPUTS'!N32 -> 0 | BE30: =N30*'CTI INPUTS'!C37 -> 0 | BF30: =N30*'CTI INPUTS'!C38 -> 0 | BG30: =N30*'CTI INPUTS'!C39 -> 0 | BH30: =O30*'CTI INPUTS'!C37 -> 0 | BI30: =O30*'CTI INPUTS'!C38 -> 0 | BJ30: =O30*'CTI INPUTS'!C39 -> 0 | BL30: =(AY30*'CTI INPUTS'!C6)/60 -> 0 | BM30: =(AZ30*'CTI INPUTS'!C6)/60 -> 0 | BO30: =(BE30/60)*'CTI INPUTS'!C6 -> 0 | BP30: =(BF30/60)*'CTI INPUTS'!C6 -> 0 | BQ30: =(BG30/60)*'CTI INPUTS'!C6 -> 0 | BR30: =(BH30/60)*'CTI INPUTS'!C6 -> 0 | BS30: =(BI30/60)*'CTI INPUTS'!C6 -> 0 | BT30: =(BJ30/60)*'CTI INPUTS'!C6 -> 0 | BV30: =(Q30*('CTI INPUTS'!D17))+(T30*('CTI INPUTS'!D18))+(AE30*('CTI INPUTS'!D12))+(AF30*('CTI INPUTS'!D13))+(AG30*('CTI INPUTS'!D14)) -> 0 | BW30: =(N30*('CTI INPUTS'!D19))+(T30*('CTI INPUTS'!D18))+(AG30*('CTI INPUTS'!D14)) -> 0 | BX30: =(Y30*'CTI INPUTS'!D15)+(N30*'CTI INPUTS'!D16) -> 0 | BY30: =(R30*('CTI INPUTS'!D17))+(U30*('CTI INPUTS'!D18))+(AH30*('CTI INPUTS'!D12))+(AI30*('CTI INPUTS'!D13))+(AJ30*('CTI INPUTS'!D14)) -> 0 | BZ30: =(O30*('CTI INPUTS'!D19))+(U30*('CTI INPUTS'!D18))+(AJ30*('CTI INPUTS'!D14)) -> 0 | CA30: =(Z30*'CTI INPUTS'!D15)+(O30*'CTI INPUTS'!D16) -> 0 | CC30: =(AE30*('CTI INPUTS'!D12)) -> 0 | CD30: =(AF30*('CTI INPUTS'!D13)) -> 0 | CE30: =(AG30*('CTI INPUTS'!D14)) -> 0 | CF30: =(AH30*('CTI INPUTS'!D12)) -> 0 | CG30: =(AI30*('CTI INPUTS'!D13)) -> 0 | CH30: =(AJ30*('CTI INPUTS'!D14)) -> 0 | CJ30: =AL30*'CTI INPUTS'!D42 -> 0 | CK30: =AM30*'CTI INPUTS'!D43 -> 0 | CL30: =AN30*'CTI INPUTS'!D44 -> 0 | CM30: =AS30*'CTI INPUTS'!D45 -> 0 | CN30: =AO30*'CTI INPUTS'!D42 -> 0 | CO30: =AP30*'CTI INPUTS'!D43 -> 0 | CP30: =AQ30*'CTI INPUTS'!D44 -> 0 | CQ30: =AT30*'CTI INPUTS'!D45 -> 0
C31: 12in | D31: =ProjectData!C47 -> 0 | F31: =D31*24 -> 0 | H31: 0 | I31: =D31*4 -> 0 | K31: =D31*'CTI INPUTS'!M18 -> 0 | L31: =D31*'CTI INPUTS'!O18 -> 0 | N31: 0 | O31: 0 | Q31: =(16*N31)/12 -> 0 | R31: =(16*O31)/12 -> 0 | T31: =N31*'CTI INPUTS'!C48 -> 0 | U31: =O31*'CTI INPUTS'!C48 -> 0 | Y31: =N31*'CTI INPUTS'!C51 -> 0 | Z31: =O31*'CTI INPUTS'!C51 -> 0 | AE31: 0 | AF31: 0 | AG31: 0 | AH31: 0 | AI31: 0 | AJ31: 0 | AL31: 0 | AM31: 0 | AN31: 0 | AO31: 0 | AP31: 0 | AQ31: 0 | AS31: 0 | AT31: 0 | AY31: =(F31/4)*'CTI INPUTS'!C33 -> 0 | AZ31: =(H31*'CTI INPUTS'!C34)+(I31*'CTI INPUTS'!C33) -> 0 | BB31: =D31*'CTI INPUTS'!M33 -> 0 | BC31: =D31*'CTI INPUTS'!N33 -> 0 | BE31: =N31*'CTI INPUTS'!C37 -> 0 | BF31: =N31*'CTI INPUTS'!C38 -> 0 | BG31: =N31*'CTI INPUTS'!C39 -> 0 | BH31: =O31*'CTI INPUTS'!C37 -> 0 | BI31: =O31*'CTI INPUTS'!C38 -> 0 | BJ31: =O31*'CTI INPUTS'!C39 -> 0 | BL31: =(AY31*'CTI INPUTS'!C6)/60 -> 0 | BM31: =(AZ31*'CTI INPUTS'!C6)/60 -> 0 | BO31: =(BE31/60)*'CTI INPUTS'!C6 -> 0 | BP31: =(BF31/60)*'CTI INPUTS'!C6 -> 0 | BQ31: =(BG31/60)*'CTI INPUTS'!C6 -> 0 | BR31: =(BH31/60)*'CTI INPUTS'!C6 -> 0 | BS31: =(BI31/60)*'CTI INPUTS'!C6 -> 0 | BT31: =(BJ31/60)*'CTI INPUTS'!C6 -> 0 | BV31: =(Q31*('CTI INPUTS'!D17))+(T31*('CTI INPUTS'!D18))+(AE31*('CTI INPUTS'!D12))+(AF31*('CTI INPUTS'!D13))+(AG31*('CTI INPUTS'!D14)) -> 0 | BW31: =(N31*('CTI INPUTS'!D19))+(T31*('CTI INPUTS'!D18))+(AG31*('CTI INPUTS'!D14)) -> 0 | BX31: =(Y31*'CTI INPUTS'!D15)+(N31*'CTI INPUTS'!D16) -> 0 | BY31: =(R31*('CTI INPUTS'!D17))+(U31*('CTI INPUTS'!D18))+(AH31*('CTI INPUTS'!D12))+(AI31*('CTI INPUTS'!D13))+(AJ31*('CTI INPUTS'!D14)) -> 0 | BZ31: =(O31*('CTI INPUTS'!D19))+(U31*('CTI INPUTS'!D18))+(AJ31*('CTI INPUTS'!D14)) -> 0 | CA31: =(Z31*'CTI INPUTS'!D15)+(O31*'CTI INPUTS'!D16) -> 0 | CC31: =(AE31*('CTI INPUTS'!D12)) -> 0 | CD31: =(AF31*('CTI INPUTS'!D13)) -> 0 | CE31: =(AG31*('CTI INPUTS'!D14)) -> 0 | CF31: =(AH31*('CTI INPUTS'!D12)) -> 0 | CG31: =(AI31*('CTI INPUTS'!D13)) -> 0 | CH31: =(AJ31*('CTI INPUTS'!D14)) -> 0 | CJ31: =AL31*'CTI INPUTS'!D42 -> 0 | CK31: =AM31*'CTI INPUTS'!D43 -> 0 | CL31: =AN31*'CTI INPUTS'!D44 -> 0 | CM31: =AS31*'CTI INPUTS'!D45 -> 0 | CN31: =AO31*'CTI INPUTS'!D42 -> 0 | CO31: =AP31*'CTI INPUTS'!D43 -> 0 | CP31: =AQ31*'CTI INPUTS'!D44 -> 0 | CQ31: =AT31*'CTI INPUTS'!D45 -> 0
C32: 16in | D32: =ProjectData!C48 -> 0 | F32: =D32*24 -> 0 | H32: 0 | I32: =D32*8 -> 0 | K32: =D32*'CTI INPUTS'!M19 -> 0 | L32: =D32*'CTI INPUTS'!O19 -> 0 | N32: 0 | O32: 0 | Q32: =(20*N32)/12 -> 0 | R32: =(20*O32)/12 -> 0 | T32: =N32*'CTI INPUTS'!C48 -> 0 | U32: =O32*'CTI INPUTS'!C48 -> 0 | Y32: =N32*'CTI INPUTS'!C51 -> 0 | Z32: =O32*'CTI INPUTS'!C51 -> 0 | AE32: 0 | AF32: 0 | AG32: 0 | AH32: 0 | AI32: 0 | AJ32: 0 | AL32: 0 | AM32: 0 | AN32: 0 | AO32: 0 | AP32: 0 | AQ32: 0 | AS32: 0 | AT32: 0 | AY32: =(F32/4)*'CTI INPUTS'!C33 -> 0 | AZ32: =(H32*'CTI INPUTS'!C34)+(I32*'CTI INPUTS'!C33) -> 0 | BB32: =D32*'CTI INPUTS'!M34 -> 0 | BC32: =D32*'CTI INPUTS'!N34 -> 0 | BE32: =N32*'CTI INPUTS'!C37 -> 0 | BF32: =N32*'CTI INPUTS'!C38 -> 0 | BG32: =N32*'CTI INPUTS'!C39 -> 0 | BH32: =O32*'CTI INPUTS'!C37 -> 0 | BI32: =O32*'CTI INPUTS'!C38 -> 0 | BJ32: =O32*'CTI INPUTS'!C39 -> 0 | BL32: =(AY32*'CTI INPUTS'!C6)/60 -> 0 | BM32: =(AZ32*'CTI INPUTS'!C6)/60 -> 0 | BO32: =(BE32/60)*'CTI INPUTS'!C6 -> 0 | BP32: =(BF32/60)*'CTI INPUTS'!C6 -> 0 | BQ32: =(BG32/60)*'CTI INPUTS'!C6 -> 0 | BR32: =(BH32/60)*'CTI INPUTS'!C6 -> 0 | BS32: =(BI32/60)*'CTI INPUTS'!C6 -> 0 | BT32: =(BJ32/60)*'CTI INPUTS'!C6 -> 0 | BV32: =(Q32*('CTI INPUTS'!D17))+(T32*('CTI INPUTS'!D18))+(AE32*('CTI INPUTS'!D12))+(AF32*('CTI INPUTS'!D13))+(AG32*('CTI INPUTS'!D14)) -> 0 | BW32: =(N32*('CTI INPUTS'!D19))+(T32*('CTI INPUTS'!D18))+(AG32*('CTI INPUTS'!D14)) -> 0 | BX32: =(Y32*'CTI INPUTS'!D15)+(N32*'CTI INPUTS'!D16) -> 0 | BY32: =(R32*('CTI INPUTS'!D17))+(U32*('CTI INPUTS'!D18))+(AH32*('CTI INPUTS'!D12))+(AI32*('CTI INPUTS'!D13))+(AJ32*('CTI INPUTS'!D14)) -> 0 | BZ32: =(O32*('CTI INPUTS'!D19))+(U32*('CTI INPUTS'!D18))+(AJ32*('CTI INPUTS'!D14)) -> 0 | CA32: =(Z32*'CTI INPUTS'!D15)+(O32*'CTI INPUTS'!D16) -> 0 | CC32: =(AE32*('CTI INPUTS'!D12)) -> 0 | CD32: =(AF32*('CTI INPUTS'!D13)) -> 0 | CE32: =(AG32*('CTI INPUTS'!D14)) -> 0 | CF32: =(AH32*('CTI INPUTS'!D12)) -> 0 | CG32: =(AI32*('CTI INPUTS'!D13)) -> 0 | CH32: =(AJ32*('CTI INPUTS'!D14)) -> 0 | CJ32: =AL32*'CTI INPUTS'!D42 -> 0 | CK32: =AM32*'CTI INPUTS'!D43 -> 0 | CL32: =AN32*'CTI INPUTS'!D44 -> 0 | CM32: =AS32*'CTI INPUTS'!D45 -> 0 | CN32: =AO32*'CTI INPUTS'!D42 -> 0 | CO32: =AP32*'CTI INPUTS'!D43 -> 0 | CP32: =AQ32*'CTI INPUTS'!D44 -> 0 | CQ32: =AT32*'CTI INPUTS'!D45 -> 0
C33: 18in | D33: =ProjectData!C49 -> 0 | F33: =D33*24 -> 0 | H33: 0 | I33: =D33*8 -> 0 | K33: =D33*'CTI INPUTS'!M20 -> 0 | L33: =D33*'CTI INPUTS'!O20 -> 0 | N33: 0 | O33: 0 | Q33: =(22*N33)/12 -> 0 | R33: =(22*O33)/12 -> 0 | T33: =N33*'CTI INPUTS'!C48 -> 0 | U33: =O33*'CTI INPUTS'!C48 -> 0 | Y33: =N33*'CTI INPUTS'!C51 -> 0 | Z33: =O33*'CTI INPUTS'!C51 -> 0 | AE33: 0 | AF33: 0 | AG33: 0 | AH33: 0 | AI33: 0 | AJ33: 0 | AL33: 0 | AM33: 0 | AN33: 0 | AO33: 0 | AP33: 0 | AQ33: 0 | AS33: 0 | AT33: 0 | AY33: =(F33/4)*'CTI INPUTS'!C33 -> 0 | AZ33: =(H33*'CTI INPUTS'!C34)+(I33*'CTI INPUTS'!C33) -> 0 | BB33: =D33*'CTI INPUTS'!M35 -> 0 | BC33: =D33*'CTI INPUTS'!N35 -> 0 | BE33: =N33*'CTI INPUTS'!C37 -> 0 | BF33: =N33*'CTI INPUTS'!C38 -> 0 | BG33: =N33*'CTI INPUTS'!C39 -> 0 | BH33: =O33*'CTI INPUTS'!C37 -> 0 | BI33: =O33*'CTI INPUTS'!C38 -> 0 | BJ33: =O33*'CTI INPUTS'!C39 -> 0 | BL33: =(AY33*'CTI INPUTS'!C6)/60 -> 0 | BM33: =(AZ33*'CTI INPUTS'!C6)/60 -> 0 | BO33: =(BE33/60)*'CTI INPUTS'!C6 -> 0 | BP33: =(BF33/60)*'CTI INPUTS'!C6 -> 0 | BQ33: =(BG33/60)*'CTI INPUTS'!C6 -> 0 | BR33: =(BH33/60)*'CTI INPUTS'!C6 -> 0 | BS33: =(BI33/60)*'CTI INPUTS'!C6 -> 0 | BT33: =(BJ33/60)*'CTI INPUTS'!C6 -> 0 | BV33: =(Q33*('CTI INPUTS'!D17))+(T33*('CTI INPUTS'!D18))+(AE33*('CTI INPUTS'!D12))+(AF33*('CTI INPUTS'!D13))+(AG33*('CTI INPUTS'!D14)) -> 0 | BW33: =(N33*('CTI INPUTS'!D19))+(T33*('CTI INPUTS'!D18))+(AG33*('CTI INPUTS'!D14)) -> 0 | BX33: =(Y33*'CTI INPUTS'!D15)+(N33*'CTI INPUTS'!D16) -> 0 | BY33: =(R33*('CTI INPUTS'!D17))+(U33*('CTI INPUTS'!D18))+(AH33*('CTI INPUTS'!D12))+(AI33*('CTI INPUTS'!D13))+(AJ33*('CTI INPUTS'!D14)) -> 0 | BZ33: =(O33*('CTI INPUTS'!D19))+(U33*('CTI INPUTS'!D18))+(AJ33*('CTI INPUTS'!D14)) -> 0 | CA33: =(Z33*'CTI INPUTS'!D15)+(O33*'CTI INPUTS'!D16) -> 0 | CC33: =(AE33*('CTI INPUTS'!D12)) -> 0 | CD33: =(AF33*('CTI INPUTS'!D13)) -> 0 | CE33: =(AG33*('CTI INPUTS'!D14)) -> 0 | CF33: =(AH33*('CTI INPUTS'!D12)) -> 0 | CG33: =(AI33*('CTI INPUTS'!D13)) -> 0 | CH33: =(AJ33*('CTI INPUTS'!D14)) -> 0 | CJ33: =AL33*'CTI INPUTS'!D42 -> 0 | CK33: =AM33*'CTI INPUTS'!D43 -> 0 | CL33: =AN33*'CTI INPUTS'!D44 -> 0 | CM33: =AS33*'CTI INPUTS'!D45 -> 0 | CN33: =AO33*'CTI INPUTS'!D42 -> 0 | CO33: =AP33*'CTI INPUTS'!D43 -> 0 | CP33: =AQ33*'CTI INPUTS'!D44 -> 0 | CQ33: =AT33*'CTI INPUTS'!D45 -> 0
C34: 20in | D34: =ProjectData!C50 -> 0 | F34: =D34*28 -> 0 | H34: 0 | I34: =D34*8 -> 0 | K34: =D34*'CTI INPUTS'!M21 -> 0 | L34: =D34*'CTI INPUTS'!O21 -> 0 | N34: 0 | O34: 0 | Q34: =(24*N34)/12 -> 0 | R34: =(24*O34)/12 -> 0 | T34: =N34*'CTI INPUTS'!C48 -> 0 | U34: =O34*'CTI INPUTS'!C48 -> 0 | Y34: =N34*'CTI INPUTS'!C51 -> 0 | Z34: =O34*'CTI INPUTS'!C51 -> 0 | AE34: 0 | AF34: 0 | AG34: 0 | AH34: 0 | AI34: 0 | AJ34: 0 | AL34: 0 | AM34: 0 | AN34: 0 | AO34: 0 | AP34: 0 | AQ34: 0 | AS34: 0 | AT34: 0 | AY34: =(F34/4)*'CTI INPUTS'!C33 -> 0 | AZ34: =(H34*'CTI INPUTS'!C34)+(I34*'CTI INPUTS'!C33) -> 0 | BB34: =D34*'CTI INPUTS'!M36 -> 0 | BC34: =D34*'CTI INPUTS'!N36 -> 0 | BE34: =N34*'CTI INPUTS'!C37 -> 0 | BF34: =N34*'CTI INPUTS'!C38 -> 0 | BG34: =N34*'CTI INPUTS'!C39 -> 0 | BH34: =O34*'CTI INPUTS'!C37 -> 0 | BI34: =O34*'CTI INPUTS'!C38 -> 0 | BJ34: =O34*'CTI INPUTS'!C39 -> 0 | BL34: =(AY34*'CTI INPUTS'!C6)/60 -> 0 | BM34: =(AZ34*'CTI INPUTS'!C6)/60 -> 0 | BO34: =(BE34/60)*'CTI INPUTS'!C6 -> 0 | BP34: =(BF34/60)*'CTI INPUTS'!C6 -> 0 | BQ34: =(BG34/60)*'CTI INPUTS'!C6 -> 0 | BR34: =(BH34/60)*'CTI INPUTS'!C6 -> 0 | BS34: =(BI34/60)*'CTI INPUTS'!C6 -> 0 | BT34: =(BJ34/60)*'CTI INPUTS'!C6 -> 0 | BV34: =(Q34*('CTI INPUTS'!D17))+(T34*('CTI INPUTS'!D18))+(AE34*('CTI INPUTS'!D12))+(AF34*('CTI INPUTS'!D13))+(AG34*('CTI INPUTS'!D14)) -> 0 | BW34: =(N34*('CTI INPUTS'!D19))+(T34*('CTI INPUTS'!D18))+(AG34*('CTI INPUTS'!D14)) -> 0 | BX34: =(Y34*'CTI INPUTS'!D15)+(N34*'CTI INPUTS'!D16) -> 0 | BY34: =(R34*('CTI INPUTS'!D17))+(U34*('CTI INPUTS'!D18))+(AH34*('CTI INPUTS'!D12))+(AI34*('CTI INPUTS'!D13))+(AJ34*('CTI INPUTS'!D14)) -> 0 | BZ34: =(O34*('CTI INPUTS'!D19))+(U34*('CTI INPUTS'!D18))+(AJ34*('CTI INPUTS'!D14)) -> 0 | CA34: =(Z34*'CTI INPUTS'!D15)+(O34*'CTI INPUTS'!D16) -> 0 | CC34: =(AE34*('CTI INPUTS'!D12)) -> 0 | CD34: =(AF34*('CTI INPUTS'!D13)) -> 0 | CE34: =(AG34*('CTI INPUTS'!D14)) -> 0 | CF34: =(AH34*('CTI INPUTS'!D12)) -> 0 | CG34: =(AI34*('CTI INPUTS'!D13)) -> 0 | CH34: =(AJ34*('CTI INPUTS'!D14)) -> 0 | CJ34: =AL34*'CTI INPUTS'!D42 -> 0 | CK34: =AM34*'CTI INPUTS'!D43 -> 0 | CL34: =AN34*'CTI INPUTS'!D44 -> 0 | CM34: =AS34*'CTI INPUTS'!D45 -> 0 | CN34: =AO34*'CTI INPUTS'!D42 -> 0 | CO34: =AP34*'CTI INPUTS'!D43 -> 0 | CP34: =AQ34*'CTI INPUTS'!D44 -> 0 | CQ34: =AT34*'CTI INPUTS'!D45 -> 0
C35: 24in | D35: =ProjectData!C51 -> 0 | F35: =D35*28 -> 0 | H35: 0 | I35: =D35*8 -> 0 | K35: =D35*'CTI INPUTS'!M22 -> 0 | L35: =D35*'CTI INPUTS'!O22 -> 0 | N35: 0 | O35: 0 | Q35: =(28*N35)/12 -> 0 | R35: =(28*O35)/12 -> 0 | T35: =N35*'CTI INPUTS'!C48 -> 0 | U35: =O35*'CTI INPUTS'!C48 -> 0 | Y35: =N35*'CTI INPUTS'!C51 -> 0 | Z35: =O35*'CTI INPUTS'!C51 -> 0 | AE35: 0 | AF35: 0 | AG35: 0 | AH35: 0 | AI35: 0 | AJ35: 0 | AL35: 0 | AM35: 0 | AN35: 0 | AO35: 0 | AP35: 0 | AQ35: 0 | AS35: 0 | AT35: 0 | AY35: =(F35/4)*'CTI INPUTS'!C33 -> 0 | AZ35: =(H35*'CTI INPUTS'!C34)+(I35*'CTI INPUTS'!C33) -> 0 | BB35: =D35*'CTI INPUTS'!M37 -> 0 | BC35: =D35*'CTI INPUTS'!N37 -> 0 | BE35: =N35*'CTI INPUTS'!C37 -> 0 | BF35: =N35*'CTI INPUTS'!C38 -> 0 | BG35: =N35*'CTI INPUTS'!C39 -> 0 | BH35: =O35*'CTI INPUTS'!C37 -> 0 | BI35: =O35*'CTI INPUTS'!C38 -> 0 | BJ35: =O35*'CTI INPUTS'!C39 -> 0 | BL35: =(AY35*'CTI INPUTS'!C6)/60 -> 0 | BM35: =(AZ35*'CTI INPUTS'!C6)/60 -> 0 | BO35: =(BE35/60)*'CTI INPUTS'!C6 -> 0 | BP35: =(BF35/60)*'CTI INPUTS'!C6 -> 0 | BQ35: =(BG35/60)*'CTI INPUTS'!C6 -> 0 | BR35: =(BH35/60)*'CTI INPUTS'!C6 -> 0 | BS35: =(BI35/60)*'CTI INPUTS'!C6 -> 0 | BT35: =(BJ35/60)*'CTI INPUTS'!C6 -> 0 | BV35: =(Q35*('CTI INPUTS'!D17))+(T35*('CTI INPUTS'!D18))+(AE35*('CTI INPUTS'!D12))+(AF35*('CTI INPUTS'!D13))+(AG35*('CTI INPUTS'!D14)) -> 0 | BW35: =(N35*('CTI INPUTS'!D19))+(T35*('CTI INPUTS'!D18))+(AG35*('CTI INPUTS'!D14)) -> 0 | BX35: =(Y35*'CTI INPUTS'!D15)+(N35*'CTI INPUTS'!D16) -> 0 | BY35: =(R35*('CTI INPUTS'!D17))+(U35*('CTI INPUTS'!D18))+(AH35*('CTI INPUTS'!D12))+(AI35*('CTI INPUTS'!D13))+(AJ35*('CTI INPUTS'!D14)) -> 0 | BZ35: =(O35*('CTI INPUTS'!D19))+(U35*('CTI INPUTS'!D18))+(AJ35*('CTI INPUTS'!D14)) -> 0 | CA35: =(Z35*'CTI INPUTS'!D15)+(O35*'CTI INPUTS'!D16) -> 0 | CC35: =(AE35*('CTI INPUTS'!D12)) -> 0 | CD35: =(AF35*('CTI INPUTS'!D13)) -> 0 | CE35: =(AG35*('CTI INPUTS'!D14)) -> 0 | CF35: =(AH35*('CTI INPUTS'!D12)) -> 0 | CG35: =(AI35*('CTI INPUTS'!D13)) -> 0 | CH35: =(AJ35*('CTI INPUTS'!D14)) -> 0 | CJ35: =AL35*'CTI INPUTS'!D42 -> 0 | CK35: =AM35*'CTI INPUTS'!D43 -> 0 | CL35: =AN35*'CTI INPUTS'!D44 -> 0 | CM35: =AS35*'CTI INPUTS'!D45 -> 0 | CN35: =AO35*'CTI INPUTS'!D42 -> 0 | CO35: =AP35*'CTI INPUTS'!D43 -> 0 | CP35: =AQ35*'CTI INPUTS'!D44 -> 0 | CQ35: =AT35*'CTI INPUTS'!D45 -> 0
C36: 30in | D36: =ProjectData!C52 -> 0 | F36: =D36*32 -> 0 | H36: 0 | I36: =D36*12 -> 0 | K36: =D36*'CTI INPUTS'!M23 -> 0 | L36: =D36*'CTI INPUTS'!O23 -> 0 | N36: 0 | O36: 0 | Q36: =(34*N36)/12 -> 0 | R36: =(34*O36)/12 -> 0 | T36: =N36*'CTI INPUTS'!C48 -> 0 | U36: =O36*'CTI INPUTS'!C48 -> 0 | Y36: =N36*'CTI INPUTS'!C51 -> 0 | Z36: =O36*'CTI INPUTS'!C51 -> 0 | AE36: 0 | AF36: 0 | AG36: 0 | AH36: 0 | AI36: 0 | AJ36: 0 | AL36: 0 | AM36: 0 | AN36: 0 | AO36: 0 | AP36: 0 | AQ36: 0 | AS36: 0 | AT36: 0 | AY36: =(F36/4)*'CTI INPUTS'!C33 -> 0 | AZ36: =(H36*'CTI INPUTS'!C34)+(I36*'CTI INPUTS'!C33) -> 0 | BB36: =D36*'CTI INPUTS'!M38 -> 0 | BC36: =D36*'CTI INPUTS'!N38 -> 0 | BE36: =N36*'CTI INPUTS'!C37 -> 0 | BF36: =N36*'CTI INPUTS'!C38 -> 0 | BG36: =N36*'CTI INPUTS'!C39 -> 0 | BH36: =O36*'CTI INPUTS'!C37 -> 0 | BI36: =O36*'CTI INPUTS'!C38 -> 0 | BJ36: =O36*'CTI INPUTS'!C39 -> 0 | BL36: =(AY36*'CTI INPUTS'!C6)/60 -> 0 | BM36: =(AZ36*'CTI INPUTS'!C6)/60 -> 0 | BO36: =(BE36/60)*'CTI INPUTS'!C6 -> 0 | BP36: =(BF36/60)*'CTI INPUTS'!C6 -> 0 | BQ36: =(BG36/60)*'CTI INPUTS'!C6 -> 0 | BR36: =(BH36/60)*'CTI INPUTS'!C6 -> 0 | BS36: =(BI36/60)*'CTI INPUTS'!C6 -> 0 | BT36: =(BJ36/60)*'CTI INPUTS'!C6 -> 0 | BV36: =(Q36*('CTI INPUTS'!D17))+(T36*('CTI INPUTS'!D18))+(AE36*('CTI INPUTS'!D12))+(AF36*('CTI INPUTS'!D13))+(AG36*('CTI INPUTS'!D14)) -> 0 | BW36: =(N36*('CTI INPUTS'!D19))+(T36*('CTI INPUTS'!D18))+(AG36*('CTI INPUTS'!D14)) -> 0 | BX36: =(Y36*'CTI INPUTS'!D15)+(N36*'CTI INPUTS'!D16) -> 0 | BY36: =(R36*('CTI INPUTS'!D17))+(U36*('CTI INPUTS'!D18))+(AH36*('CTI INPUTS'!D12))+(AI36*('CTI INPUTS'!D13))+(AJ36*('CTI INPUTS'!D14)) -> 0 | BZ36: =(O36*('CTI INPUTS'!D19))+(U36*('CTI INPUTS'!D18))+(AJ36*('CTI INPUTS'!D14)) -> 0 | CA36: =(Z36*'CTI INPUTS'!D15)+(O36*'CTI INPUTS'!D16) -> 0 | CC36: =(AE36*('CTI INPUTS'!D12)) -> 0 | CD36: =(AF36*('CTI INPUTS'!D13)) -> 0 | CE36: =(AG36*('CTI INPUTS'!D14)) -> 0 | CF36: =(AH36*('CTI INPUTS'!D12)) -> 0 | CG36: =(AI36*('CTI INPUTS'!D13)) -> 0 | CH36: =(AJ36*('CTI INPUTS'!D14)) -> 0 | CJ36: =AL36*'CTI INPUTS'!D42 -> 0 | CK36: =AM36*'CTI INPUTS'!D43 -> 0 | CL36: =AN36*'CTI INPUTS'!D44 -> 0 | CM36: =AS36*'CTI INPUTS'!D45 -> 0 | CN36: =AO36*'CTI INPUTS'!D42 -> 0 | CO36: =AP36*'CTI INPUTS'!D43 -> 0 | CP36: =AQ36*'CTI INPUTS'!D44 -> 0 | CQ36: =AT36*'CTI INPUTS'!D45 -> 0
C37: 36in | D37: =ProjectData!C53 -> 0 | F37: =D37*32 -> 0 | H37: 0 | I37: =D37*12 -> 0 | K37: =D37*'CTI INPUTS'!M24 -> 0 | L37: =D37*'CTI INPUTS'!O24 -> 0 | N37: 0 | O37: 0 | Q37: =(40*N37)/12 -> 0 | R37: =(40*O37)/12 -> 0 | T37: =N37*'CTI INPUTS'!C48 -> 0 | U37: =O37*'CTI INPUTS'!C48 -> 0 | Y37: =N37*'CTI INPUTS'!C51 -> 0 | Z37: =O37*'CTI INPUTS'!C51 -> 0 | AE37: 0 | AF37: 0 | AG37: 0 | AH37: 0 | AI37: 0 | AJ37: 0 | AL37: 0 | AM37: 0 | AN37: 0 | AO37: 0 | AP37: 0 | AQ37: 0 | AS37: 0 | AT37: 0 | AY37: =(F37/4)*'CTI INPUTS'!C33 -> 0 | AZ37: =(H37*'CTI INPUTS'!C34)+(I37*'CTI INPUTS'!C33) -> 0 | BB37: =D37*'CTI INPUTS'!M39 -> 0 | BC37: =D37*'CTI INPUTS'!N39 -> 0 | BE37: =N37*'CTI INPUTS'!C37 -> 0 | BF37: =N37*'CTI INPUTS'!C38 -> 0 | BG37: =N37*'CTI INPUTS'!C39 -> 0 | BH37: =O37*'CTI INPUTS'!C37 -> 0 | BI37: =O37*'CTI INPUTS'!C38 -> 0 | BJ37: =O37*'CTI INPUTS'!C39 -> 0 | BL37: =(AY37*'CTI INPUTS'!C6)/60 -> 0 | BM37: =(AZ37*'CTI INPUTS'!C6)/60 -> 0 | BO37: =(BE37/60)*'CTI INPUTS'!C6 -> 0 | BP37: =(BF37/60)*'CTI INPUTS'!C6 -> 0 | BQ37: =(BG37/60)*'CTI INPUTS'!C6 -> 0 | BR37: =(BH37/60)*'CTI INPUTS'!C6 -> 0 | BS37: =(BI37/60)*'CTI INPUTS'!C6 -> 0 | BT37: =(BJ37/60)*'CTI INPUTS'!C6 -> 0 | BV37: =(Q37*('CTI INPUTS'!D17))+(T37*('CTI INPUTS'!D18))+(AE37*('CTI INPUTS'!D12))+(AF37*('CTI INPUTS'!D13))+(AG37*('CTI INPUTS'!D14)) -> 0 | BW37: =(N37*('CTI INPUTS'!D19))+(T37*('CTI INPUTS'!D18))+(AG37*('CTI INPUTS'!D14)) -> 0 | BX37: =(Y37*'CTI INPUTS'!D15)+(N37*'CTI INPUTS'!D16) -> 0 | BY37: =(R37*('CTI INPUTS'!D17))+(U37*('CTI INPUTS'!D18))+(AH37*('CTI INPUTS'!D12))+(AI37*('CTI INPUTS'!D13))+(AJ37*('CTI INPUTS'!D14)) -> 0 | BZ37: =(O37*('CTI INPUTS'!D19))+(U37*('CTI INPUTS'!D18))+(AJ37*('CTI INPUTS'!D14)) -> 0 | CA37: =(Z37*'CTI INPUTS'!D15)+(O37*'CTI INPUTS'!D16) -> 0 | CC37: =(AE37*('CTI INPUTS'!D12)) -> 0 | CD37: =(AF37*('CTI INPUTS'!D13)) -> 0 | CE37: =(AG37*('CTI INPUTS'!D14)) -> 0 | CF37: =(AH37*('CTI INPUTS'!D12)) -> 0 | CG37: =(AI37*('CTI INPUTS'!D13)) -> 0 | CH37: =(AJ37*('CTI INPUTS'!D14)) -> 0 | CJ37: =AL37*'CTI INPUTS'!D42 -> 0 | CK37: =AM37*'CTI INPUTS'!D43 -> 0 | CL37: =AN37*'CTI INPUTS'!D44 -> 0 | CM37: =AS37*'CTI INPUTS'!D45 -> 0 | CN37: =AO37*'CTI INPUTS'!D42 -> 0 | CO37: =AP37*'CTI INPUTS'!D43 -> 0 | CP37: =AQ37*'CTI INPUTS'!D44 -> 0 | CQ37: =AT37*'CTI INPUTS'!D45 -> 0
F38: =SUM(F26:F37) -> 0 | H38: =SUM((H26:H37)+(I26:I37)) -> 0 | K38: =SUM(K26:K37) -> 0 | L38: =SUM(L26:L37) -> 0 | N38: =SUM(N26:N37) -> 0 | O38: =SUM(O26:O37) -> 0 | Q38: =SUM(Q26:Q37) -> 0 | R38: =SUM(R26:R37) -> 0 | T38: =SUM(T26:T37) -> 0 | U38: =SUM(U26:U37) -> 0 | Y38: =SUM(Y26:Y37) -> 0 | Z38: =SUM(Z26:Z37) -> 0 | AE38: =SUM((AE26:AE37)+(AF26:AF37)+(AG26:AG37)) -> 0 | AH38: =SUM((AH26:AH37)+(AI26:AI37)+(AJ26:AJ37)) -> 0 | AL38: =SUM((AL26:AL37)+(AM26:AM37)+(AN26:AN37)) -> 0 | AO38: =SUM((AO26:AO37)+(AP26:AP37)+(AQ26:AQ37)) -> 0 | AS38: =SUM(AS26:AS37) -> 0 | AT38: =SUM(AT26:AT37) -> 0 | AY38: =SUM(AY26:AY37) -> 0 | AZ38: =SUM(AZ26:AZ37) -> 0 | BB38: =SUM(BB26:BB37) -> 0 | BC38: =SUM(BC26:BC37) -> 0 | BE38: =SUM(BE26:BE37) -> 0 | BF38: 0 | BG38: 0 | BH38: 0 | BI38: 0 | BJ38: 0 | BL38: =SUM(BL26:BL37) -> 0 | BM38: =SUM(BM26:BM37) -> 0 | BO38: =SUM(BO26:BO37) -> 0 | BP38: 0 | BQ38: 0 | BR38: 0 | BS38: 0 | BT38: 0 | BV38: =SUM(BV26:BV37) -> 0 | BW38: 0 | BX38: 0 | BY38: 0 | BZ38: 0 | CA38: 0 | CC38: =SUM((CC26:CC37)+(CD26:CD37)+(CE26:CE37)) -> 0 | CF38: =SUM((CF26:CF37)+(CG26:CG37)+(CH26:CH37)) -> 0 | CJ38: =SUM((CJ26:CJ37)+(CK26:CK37)+(CL26:CL37)) -> 0 | CM38: =SUM(CM26:CM37) -> 0 | CN38: =SUM((CN26:CN37)+(CO26:CO37)+(CP26:CP37)) -> 0 | CQ38: =SUM(CQ26:CQ37) -> 0 | CS38: =SUM(CS26:CS37) -> 0 | CT38: =SUM(CT26:CT37) -> 0 | CU38: =SUM(CU26:CU37) -> 0
B40: HORIZONTAL 90 BEND | F40: SPLICE | H40: POSI-LOK | K40: FITTING FABRICATION | N40: SUPPORT QUANTITY | Q40: STRUT L/FT | T40: ATR HANGER (L/FT) | Y40: WIRE HANGER (L/FT) | AE40: VE2 : ATR HARDWARE QUANTITY | AH40: TSS : ATR HARDWARE QUANTITY | AL40: HOLD DOWN & HDWR QUANTITY | AO40: TSS: HOLD DOWN & HDWR QUANTITY | AS40: H-DOWN CLIP QUANTITY | AY40: SPLICE INSTALLATION TIME (MIN) | BB40: FITTING FAB. TIME (MIN) | BE40: VE2 : SUPPORT INSTAL TIME (MIN) | BH40: TSS: SUPPORT INSTALLATION TIME (MIN) | BL40: SPLICE INSTALLATION COST ($) | BO40: SUPPORT INSTALLATION COST ($) | BR40: TSS: SUPPORT INSTALLATION COST ($) | BV40: SUPPORT COST ($) | BY40: TSS: SUPPORT COST ($) | CC40: ATR HARDWARE COST $ | CF40: TSS: ATR HARDWARE COST $ | CJ40: HOLD DOWN CLAMPS & HARDWARE COST ($) | CN40: TSS: HOLD DOWN CLAMPS & HARDWARE COST ($) | CS40: SUPPORT WEIGHT (LBS)
B42: HEIGHT | C42: WIDTH | D42: QUANTITY | F42: WSKIT | H42: PLOK | I42: WSKIT | K42: CUTS QTY | L42: WSKIT (pcs) | N42: FAB (VE2) | O42: C2G (TSS) | Q42: FAB (VE2) | R42: C2G (TSS) | T42: FAB (VE2) | U42: C2G (TSS) | Y42: FAB (VE2) | Z42: C2G (TSS) | AE42: SQ WSHR | AF42: FLT WSHR | AG42: HEX NUT | AH42: SQ WSHR | AI42: FLT WSHR | AJ42: HEX NUT | AL42: FLXW | AM42: 25HX | AN42: 25NC | AO42: FLXW | AP42: 25HX | AQ42: 25NC | AS42: VE2 : SRC (pc) | AT42: TSS : SRC (pc) | AY42: WSKIT | AZ42: POSI-LOK + WSKIT | BB42: CUTS | BC42: WSKIT | BE42: STRUT | BF42: URH | BG42: WIRE | BH42: STRUT | BI42: URH | BJ42: WIRE | BL42: WSKIT | BM42: POSI-LOK + WSKIT | BO42: VE2 : STRUT | BP42: VE2 : URH | BQ42: VE2 : WIRE | BR42: TSS : STRUT | BS42: TSS : URH | BT42: TSS : WIRE | BV42: STRUT | BW42: URH | BX42: WIRE | BY42: STRUT | BZ42: URH | CA42: WIRE | CC42: SQUARE WSHR | CD42: FLAT WSHR | CE42: HEX NUT | CF42: SQUARE WSHR | CG42: FLAT WSHR | CH42: HEX NUT | CJ42: FLXW | CK42: 25HX | CL42: 25NC | CM42: SRC CLIP | CN42: FLXW | CO42: 25HX | CP42: 25NC | CQ42: SRC CLIP | CS42: STRUT | CT42: URH | CU42: WIRE
B43: 2/4/6in | C43: 2in | D43: =ProjectData!E42 -> 0 | F43: =D43*8 -> 0 | H43: =D43*2 -> 0 | I43: =D43*0 -> 0 | K43: =D43*'CTI INPUTS'!R13 -> 0 | L43: =D43*'CTI INPUTS'!T13 -> 0 | N43: =D43*3 -> 0 | O43: =D43*1 -> 0 | Q43: =(6*N43)/12 -> 0 | R43: =(6*O43)/12 -> 0 | T43: =N43*'CTI INPUTS'!C48 -> 0 | U43: =O43*'CTI INPUTS'!C48 -> 0 | Y43: =N43*'CTI INPUTS'!C51 -> 0 | Z43: =O43*'CTI INPUTS'!C51 -> 0 | AE43: =N43*4 -> 0 | AF43: =N43*4 -> 0 | AG43: =N43*4 -> 0 | AH43: =O43*4 -> 0 | AI43: =O43*4 -> 0 | AJ43: =O43*4 -> 0 | AL43: =N43*2 -> 0 | AM43: =N43*2 -> 0 | AN43: =N43*2 -> 0 | AO43: =O43*2 -> 0 | AP43: =O43*2 -> 0 | AQ43: =O43*2 -> 0 | AS43: =N43*1 -> 0 | AT43: =O43*1 -> 0 | AY43: =(F43/4)*'CTI INPUTS'!C33 -> 0 | AZ43: =(H43*'CTI INPUTS'!C34)+(I43*'CTI INPUTS'!C33) -> 0 | BB43: =D43*'CTI INPUTS'!R28 -> 0 | BC43: =D43*'CTI INPUTS'!S28 -> 0 | BE43: =N43*'CTI INPUTS'!C37 -> 0 | BF43: =N43*'CTI INPUTS'!C38 -> 0 | BG43: =N43*'CTI INPUTS'!C39 -> 0 | BH43: =O43*'CTI INPUTS'!C37 -> 0 | BI43: =O43*'CTI INPUTS'!C38 -> 0 | BJ43: =O43*'CTI INPUTS'!C39 -> 0 | BL43: =(AY43*'CTI INPUTS'!C6)/60 -> 0 | BM43: =(AZ43*'CTI INPUTS'!C6)/60 -> 0 | BO43: =(BE43/60)*'CTI INPUTS'!C6 -> 0 | BP43: =(BF43/60)*'CTI INPUTS'!C6 -> 0 | BQ43: =(BG43/60)*'CTI INPUTS'!C6 -> 0 | BR43: =(BH43/60)*'CTI INPUTS'!C6 -> 0 | BS43: =(BI43/60)*'CTI INPUTS'!C6 -> 0 | BT43: =(BJ43/60)*'CTI INPUTS'!C6 -> 0 | BV43: =(Q43*('CTI INPUTS'!D17))+(T43*('CTI INPUTS'!D18))+(AE43*('CTI INPUTS'!D12))+(AF43*('CTI INPUTS'!D13))+(AG43*('CTI INPUTS'!D14)) -> 0 | BW43: =(N43*('CTI INPUTS'!D19))+(T43*('CTI INPUTS'!D18))+(AG43*('CTI INPUTS'!D14)) -> 0 | BX43: =(Y43*'CTI INPUTS'!D15)+(N43*'CTI INPUTS'!D16) -> 0 | BY43: =(R43*('CTI INPUTS'!D17))+(U43*('CTI INPUTS'!D18))+(AH43*('CTI INPUTS'!D12))+(AI43*('CTI INPUTS'!D13))+(AJ43*('CTI INPUTS'!D14)) -> 0 | BZ43: =(O43*('CTI INPUTS'!D19))+(U43*('CTI INPUTS'!D18))+(AJ43*('CTI INPUTS'!D14)) -> 0 | CA43: =(Z43*'CTI INPUTS'!D15)+(O43*'CTI INPUTS'!D16) -> 0 | CC43: =(AE43*('CTI INPUTS'!D12)) -> 0 | CD43: =(AF43*('CTI INPUTS'!D13)) -> 0 | CE43: =(AG43*('CTI INPUTS'!D14)) -> 0 | CF43: =(AH43*('CTI INPUTS'!D12)) -> 0 | CG43: =(AI43*('CTI INPUTS'!D13)) -> 0 | CH43: =(AJ43*('CTI INPUTS'!D14)) -> 0 | CJ43: =AL43*'CTI INPUTS'!D42 -> 0 | CK43: =AM43*'CTI INPUTS'!D43 -> 0 | CL43: =AN43*'CTI INPUTS'!D44 -> 0 | CM43: =AS43*'CTI INPUTS'!D45 -> 0 | CN43: =AO43*'CTI INPUTS'!D42 -> 0 | CO43: =AP43*'CTI INPUTS'!D43 -> 0 | CP43: =AQ43*'CTI INPUTS'!D44 -> 0 | CQ43: =AT43*'CTI INPUTS'!D45 -> 0
C44: 4in | D44: =ProjectData!E43 -> 0 | F44: =D44*16 -> 0 | H44: =D44*2 -> 0 | I44: =D44*0 -> 0 | K44: =D44*'CTI INPUTS'!R14 -> 0 | L44: =D44*'CTI INPUTS'!T14 -> 0 | N44: =D44*3 -> 0 | O44: 0 | Q44: =(8*N44)/12 -> 0 | R44: =(8*O44)/12 -> 0 | T44: =N44*'CTI INPUTS'!C48 -> 0 | U44: =O44*'CTI INPUTS'!C48 -> 0 | Y44: =N44*'CTI INPUTS'!C51 -> 0 | Z44: =O44*'CTI INPUTS'!C51 -> 0 | AE44: =N44*4 -> 0 | AF44: =N44*4 -> 0 | AG44: =N44*4 -> 0 | AH44: =O44*4 -> 0 | AI44: =O44*4 -> 0 | AJ44: =O44*4 -> 0 | AL44: =N44*2 -> 0 | AM44: =N44*2 -> 0 | AN44: =N44*2 -> 0 | AO44: =O44*2 -> 0 | AP44: =O44*2 -> 0 | AQ44: =O44*2 -> 0 | AS44: =N44*2 -> 0 | AT44: =O44*2 -> 0 | AY44: =(F44/4)*'CTI INPUTS'!C33 -> 0 | AZ44: =(H44*'CTI INPUTS'!C34)+(I44*'CTI INPUTS'!C33) -> 0 | BB44: =D44*'CTI INPUTS'!R29 -> 0 | BC44: =D44*'CTI INPUTS'!S29 -> 0 | BE44: =N44*'CTI INPUTS'!C37 -> 0 | BF44: =N44*'CTI INPUTS'!C38 -> 0 | BG44: =N44*'CTI INPUTS'!C39 -> 0 | BH44: =O44*'CTI INPUTS'!C37 -> 0 | BI44: =O44*'CTI INPUTS'!C38 -> 0 | BJ44: =O44*'CTI INPUTS'!C39 -> 0 | BL44: =(AY44*'CTI INPUTS'!C6)/60 -> 0 | BM44: =(AZ44*'CTI INPUTS'!C6)/60 -> 0 | BO44: =(BE44/60)*'CTI INPUTS'!C6 -> 0 | BP44: =(BF44/60)*'CTI INPUTS'!C6 -> 0 | BQ44: =(BG44/60)*'CTI INPUTS'!C6 -> 0 | BR44: =(BH44/60)*'CTI INPUTS'!C6 -> 0 | BS44: =(BI44/60)*'CTI INPUTS'!C6 -> 0 | BT44: =(BJ44/60)*'CTI INPUTS'!C6 -> 0 | BV44: =(Q44*('CTI INPUTS'!D17))+(T44*('CTI INPUTS'!D18))+(AE44*('CTI INPUTS'!D12))+(AF44*('CTI INPUTS'!D13))+(AG44*('CTI INPUTS'!D14)) -> 0 | BW44: =(N44*('CTI INPUTS'!D19))+(T44*('CTI INPUTS'!D18))+(AG44*('CTI INPUTS'!D14)) -> 0 | BX44: =(Y44*'CTI INPUTS'!D15)+(N44*'CTI INPUTS'!D16) -> 0 | BY44: =(R44*('CTI INPUTS'!D17))+(U44*('CTI INPUTS'!D18))+(AH44*('CTI INPUTS'!D12))+(AI44*('CTI INPUTS'!D13))+(AJ44*('CTI INPUTS'!D14)) -> 0 | BZ44: =(O44*('CTI INPUTS'!D19))+(U44*('CTI INPUTS'!D18))+(AJ44*('CTI INPUTS'!D14)) -> 0 | CA44: =(Z44*'CTI INPUTS'!D15)+(O44*'CTI INPUTS'!D16) -> 0 | CC44: =(AE44*('CTI INPUTS'!D12)) -> 0 | CD44: =(AF44*('CTI INPUTS'!D13)) -> 0 | CE44: =(AG44*('CTI INPUTS'!D14)) -> 0 | CF44: =(AH44*('CTI INPUTS'!D12)) -> 0 | CG44: =(AI44*('CTI INPUTS'!D13)) -> 0 | CH44: =(AJ44*('CTI INPUTS'!D14)) -> 0 | CJ44: =AL44*'CTI INPUTS'!D42 -> 0 | CK44: =AM44*'CTI INPUTS'!D43 -> 0 | CL44: =AN44*'CTI INPUTS'!D44 -> 0 | CM44: =AS44*'CTI INPUTS'!D45 -> 0 | CN44: =AO44*'CTI INPUTS'!D42 -> 0 | CO44: =AP44*'CTI INPUTS'!D43 -> 0 | CP44: =AQ44*'CTI INPUTS'!D44 -> 0 | CQ44: =AT44*'CTI INPUTS'!D45 -> 0
C45: 6in | D45: =ProjectData!E44 -> 0 | F45: =D45*16 -> 0 | H45: 0 | I45: =D45*0 -> 0 | K45: =D45*'CTI INPUTS'!R15 -> 0 | L45: =D45*'CTI INPUTS'!T15 -> 0 | N45: 0 | O45: 0 | Q45: =(10*N45)/12 -> 0 | R45: =(10*O45)/12 -> 0 | T45: =N45*'CTI INPUTS'!C48 -> 0 | U45: =O45*'CTI INPUTS'!C48 -> 0 | Y45: =N45*'CTI INPUTS'!C51 -> 0 | Z45: =O45*'CTI INPUTS'!C51 -> 0 | AE45: 0 | AF45: 0 | AG45: 0 | AH45: 0 | AI45: 0 | AJ45: 0 | AL45: 0 | AM45: 0 | AN45: 0 | AO45: 0 | AP45: 0 | AQ45: 0 | AS45: =N45*2 -> 0 | AT45: =O45*2 -> 0 | AY45: =(F45/4)*'CTI INPUTS'!C33 -> 0 | AZ45: =(H45*'CTI INPUTS'!C34)+(I45*'CTI INPUTS'!C33) -> 0 | BB45: =D45*'CTI INPUTS'!R30 -> 0 | BC45: =D45*'CTI INPUTS'!S30 -> 0 | BE45: =N45*'CTI INPUTS'!C37 -> 0 | BF45: =N45*'CTI INPUTS'!C38 -> 0 | BG45: =N45*'CTI INPUTS'!C39 -> 0 | BH45: =O45*'CTI INPUTS'!C37 -> 0 | BI45: =O45*'CTI INPUTS'!C38 -> 0 | BJ45: =O45*'CTI INPUTS'!C39 -> 0 | BL45: =(AY45*'CTI INPUTS'!C6)/60 -> 0 | BM45: =(AZ45*'CTI INPUTS'!C6)/60 -> 0 | BO45: =(BE45/60)*'CTI INPUTS'!C6 -> 0 | BP45: =(BF45/60)*'CTI INPUTS'!C6 -> 0 | BQ45: =(BG45/60)*'CTI INPUTS'!C6 -> 0 | BR45: =(BH45/60)*'CTI INPUTS'!C6 -> 0 | BS45: =(BI45/60)*'CTI INPUTS'!C6 -> 0 | BT45: =(BJ45/60)*'CTI INPUTS'!C6 -> 0 | BV45: =(Q45*('CTI INPUTS'!D17))+(T45*('CTI INPUTS'!D18))+(AE45*('CTI INPUTS'!D12))+(AF45*('CTI INPUTS'!D13))+(AG45*('CTI INPUTS'!D14)) -> 0 | BW45: =(N45*('CTI INPUTS'!D19))+(T45*('CTI INPUTS'!D18))+(AG45*('CTI INPUTS'!D14)) -> 0 | BX45: =(Y45*'CTI INPUTS'!D15)+(N45*'CTI INPUTS'!D16) -> 0 | BY45: =(R45*('CTI INPUTS'!D17))+(U45*('CTI INPUTS'!D18))+(AH45*('CTI INPUTS'!D12))+(AI45*('CTI INPUTS'!D13))+(AJ45*('CTI INPUTS'!D14)) -> 0 | BZ45: =(O45*('CTI INPUTS'!D19))+(U45*('CTI INPUTS'!D18))+(AJ45*('CTI INPUTS'!D14)) -> 0 | CA45: =(Z45*'CTI INPUTS'!D15)+(O45*'CTI INPUTS'!D16) -> 0 | CC45: =(AE45*('CTI INPUTS'!D12)) -> 0 | CD45: =(AF45*('CTI INPUTS'!D13)) -> 0 | CE45: =(AG45*('CTI INPUTS'!D14)) -> 0 | CF45: =(AH45*('CTI INPUTS'!D12)) -> 0 | CG45: =(AI45*('CTI INPUTS'!D13)) -> 0 | CH45: =(AJ45*('CTI INPUTS'!D14)) -> 0 | CJ45: =AL45*'CTI INPUTS'!D42 -> 0 | CK45: =AM45*'CTI INPUTS'!D43 -> 0 | CL45: =AN45*'CTI INPUTS'!D44 -> 0 | CM45: =AS45*'CTI INPUTS'!D45 -> 0 | CN45: =AO45*'CTI INPUTS'!D42 -> 0 | CO45: =AP45*'CTI INPUTS'!D43 -> 0 | CP45: =AQ45*'CTI INPUTS'!D44 -> 0 | CQ45: =AT45*'CTI INPUTS'!D45 -> 0
C46: 8in | D46: =ProjectData!E45 -> 0 | F46: =D46*20 -> 0 | H46: 0 | I46: =D46*4 -> 0 | K46: =D46*'CTI INPUTS'!R16 -> 0 | L46: =D46*'CTI INPUTS'!T16 -> 0 | N46: 0 | O46: 0 | Q46: =(12*N46)/12 -> 0 | R46: =(12*O46)/12 -> 0 | T46: =N46*'CTI INPUTS'!C48 -> 0 | U46: =O46*'CTI INPUTS'!C48 -> 0 | Y46: =N46*'CTI INPUTS'!C51 -> 0 | Z46: =O46*'CTI INPUTS'!C51 -> 0 | AE46: 0 | AF46: 0 | AG46: 0 | AH46: 0 | AI46: 0 | AJ46: 0 | AL46: 0 | AM46: 0 | AN46: 0 | AO46: 0 | AP46: 0 | AQ46: 0 | AS46: 0 | AT46: 0 | AY46: =(F46/4)*'CTI INPUTS'!C33 -> 0 | AZ46: =(H46*'CTI INPUTS'!C34)+(I46*'CTI INPUTS'!C33) -> 0 | BB46: =D46*'CTI INPUTS'!R31 -> 0 | BC46: =D46*'CTI INPUTS'!S31 -> 0 | BE46: =N46*'CTI INPUTS'!C37 -> 0 | BF46: =N46*'CTI INPUTS'!C38 -> 0 | BG46: =N46*'CTI INPUTS'!C39 -> 0 | BH46: =O46*'CTI INPUTS'!C37 -> 0 | BI46: =O46*'CTI INPUTS'!C38 -> 0 | BJ46: =O46*'CTI INPUTS'!C39 -> 0 | BL46: =(AY46*'CTI INPUTS'!C6)/60 -> 0 | BM46: =(AZ46*'CTI INPUTS'!C6)/60 -> 0 | BO46: =(BE46/60)*'CTI INPUTS'!C6 -> 0 | BP46: =(BF46/60)*'CTI INPUTS'!C6 -> 0 | BQ46: =(BG46/60)*'CTI INPUTS'!C6 -> 0 | BR46: =(BH46/60)*'CTI INPUTS'!C6 -> 0 | BS46: =(BI46/60)*'CTI INPUTS'!C6 -> 0 | BT46: =(BJ46/60)*'CTI INPUTS'!C6 -> 0 | BV46: =(Q46*('CTI INPUTS'!D17))+(T46*('CTI INPUTS'!D18))+(AE46*('CTI INPUTS'!D12))+(AF46*('CTI INPUTS'!D13))+(AG46*('CTI INPUTS'!D14)) -> 0 | BW46: =(N46*('CTI INPUTS'!D19))+(T46*('CTI INPUTS'!D18))+(AG46*('CTI INPUTS'!D14)) -> 0 | BX46: =(Y46*'CTI INPUTS'!D15)+(N46*'CTI INPUTS'!D16) -> 0 | BY46: =(R46*('CTI INPUTS'!D17))+(U46*('CTI INPUTS'!D18))+(AH46*('CTI INPUTS'!D12))+(AI46*('CTI INPUTS'!D13))+(AJ46*('CTI INPUTS'!D14)) -> 0 | BZ46: =(O46*('CTI INPUTS'!D19))+(U46*('CTI INPUTS'!D18))+(AJ46*('CTI INPUTS'!D14)) -> 0 | CA46: =(Z46*'CTI INPUTS'!D15)+(O46*'CTI INPUTS'!D16) -> 0 | CC46: =(AE46*('CTI INPUTS'!D12)) -> 0 | CD46: =(AF46*('CTI INPUTS'!D13)) -> 0 | CE46: =(AG46*('CTI INPUTS'!D14)) -> 0 | CF46: =(AH46*('CTI INPUTS'!D12)) -> 0 | CG46: =(AI46*('CTI INPUTS'!D13)) -> 0 | CH46: =(AJ46*('CTI INPUTS'!D14)) -> 0 | CJ46: =AL46*'CTI INPUTS'!D42 -> 0 | CK46: =AM46*'CTI INPUTS'!D43 -> 0 | CL46: =AN46*'CTI INPUTS'!D44 -> 0 | CM46: =AS46*'CTI INPUTS'!D45 -> 0 | CN46: =AO46*'CTI INPUTS'!D42 -> 0 | CO46: =AP46*'CTI INPUTS'!D43 -> 0 | CP46: =AQ46*'CTI INPUTS'!D44 -> 0 | CQ46: =AT46*'CTI INPUTS'!D45 -> 0
C47: 10in | D47: =ProjectData!E46 -> 0 | F47: =D47*20 -> 0 | H47: 0 | I47: =D47*4 -> 0 | K47: =D47*'CTI INPUTS'!R17 -> 0 | L47: =D47*'CTI INPUTS'!T17 -> 0 | N47: 0 | O47: 0 | Q47: =(14*N47)/12 -> 0 | R47: =(14*O47)/12 -> 0 | T47: =N47*'CTI INPUTS'!C48 -> 0 | U47: =O47*'CTI INPUTS'!C48 -> 0 | Y47: =N47*'CTI INPUTS'!C51 -> 0 | Z47: =O47*'CTI INPUTS'!C51 -> 0 | AE47: 0 | AF47: 0 | AG47: 0 | AH47: 0 | AI47: 0 | AJ47: 0 | AL47: 0 | AM47: 0 | AN47: 0 | AO47: 0 | AP47: 0 | AQ47: 0 | AS47: 0 | AT47: 0 | AY47: =(F47/4)*'CTI INPUTS'!C33 -> 0 | AZ47: =(H47*'CTI INPUTS'!C34)+(I47*'CTI INPUTS'!C33) -> 0 | BB47: =D47*'CTI INPUTS'!R32 -> 0 | BC47: =D47*'CTI INPUTS'!S32 -> 0 | BE47: =N47*'CTI INPUTS'!C37 -> 0 | BF47: =N47*'CTI INPUTS'!C38 -> 0 | BG47: =N47*'CTI INPUTS'!C39 -> 0 | BH47: =O47*'CTI INPUTS'!C37 -> 0 | BI47: =O47*'CTI INPUTS'!C38 -> 0 | BJ47: =O47*'CTI INPUTS'!C39 -> 0 | BL47: =(AY47*'CTI INPUTS'!C6)/60 -> 0 | BM47: =(AZ47*'CTI INPUTS'!C6)/60 -> 0 | BO47: =(BE47/60)*'CTI INPUTS'!C6 -> 0 | BP47: =(BF47/60)*'CTI INPUTS'!C6 -> 0 | BQ47: =(BG47/60)*'CTI INPUTS'!C6 -> 0 | BR47: =(BH47/60)*'CTI INPUTS'!C6 -> 0 | BS47: =(BI47/60)*'CTI INPUTS'!C6 -> 0 | BT47: =(BJ47/60)*'CTI INPUTS'!C6 -> 0 | BV47: =(Q47*('CTI INPUTS'!D17))+(T47*('CTI INPUTS'!D18))+(AE47*('CTI INPUTS'!D12))+(AF47*('CTI INPUTS'!D13))+(AG47*('CTI INPUTS'!D14)) -> 0 | BW47: =(N47*('CTI INPUTS'!D19))+(T47*('CTI INPUTS'!D18))+(AG47*('CTI INPUTS'!D14)) -> 0 | BX47: =(Y47*'CTI INPUTS'!D15)+(N47*'CTI INPUTS'!D16) -> 0 | BY47: =(R47*('CTI INPUTS'!D17))+(U47*('CTI INPUTS'!D18))+(AH47*('CTI INPUTS'!D12))+(AI47*('CTI INPUTS'!D13))+(AJ47*('CTI INPUTS'!D14)) -> 0 | BZ47: =(O47*('CTI INPUTS'!D19))+(U47*('CTI INPUTS'!D18))+(AJ47*('CTI INPUTS'!D14)) -> 0 | CA47: =(Z47*'CTI INPUTS'!D15)+(O47*'CTI INPUTS'!D16) -> 0 | CC47: =(AE47*('CTI INPUTS'!D12)) -> 0 | CD47: =(AF47*('CTI INPUTS'!D13)) -> 0 | CE47: =(AG47*('CTI INPUTS'!D14)) -> 0 | CF47: =(AH47*('CTI INPUTS'!D12)) -> 0 | CG47: =(AI47*('CTI INPUTS'!D13)) -> 0 | CH47: =(AJ47*('CTI INPUTS'!D14)) -> 0 | CJ47: =AL47*'CTI INPUTS'!D42 -> 0 | CK47: =AM47*'CTI INPUTS'!D43 -> 0 | CL47: =AN47*'CTI INPUTS'!D44 -> 0 | CM47: =AS47*'CTI INPUTS'!D45 -> 0 | CN47: =AO47*'CTI INPUTS'!D42 -> 0 | CO47: =AP47*'CTI INPUTS'!D43 -> 0 | CP47: =AQ47*'CTI INPUTS'!D44 -> 0 | CQ47: =AT47*'CTI INPUTS'!D45 -> 0
C48: 12in | D48: =ProjectData!E47 -> 5 | F48: =D48*24 -> 120 | H48: 10 | I48: =D48*4 -> 20 | K48: =D48*'CTI INPUTS'!R18 -> 480 | L48: =D48*'CTI INPUTS'!T18 -> 120 | N48: 15 | O48: 5 | Q48: =(16*N48)/12 -> 20 | R48: =(16*O48)/12 -> 6.666666667 | T48: =N48*'CTI INPUTS'!C48 -> 60 | U48: =O48*'CTI INPUTS'!C48 -> 20 | Y48: =N48*'CTI INPUTS'!C51 -> 90 | Z48: =O48*'CTI INPUTS'!C51 -> 30 | AE48: 60 | AF48: 60 | AG48: 60 | AH48: 20 | AI48: 20 | AJ48: 20 | AL48: 30 | AM48: 30 | AN48: 30 | AO48: 10 | AP48: 10 | AQ48: 10 | AS48: 30 | AT48: 10 | AY48: =(F48/4)*'CTI INPUTS'!C33 -> 15 | AZ48: =(H48*'CTI INPUTS'!C34)+(I48*'CTI INPUTS'!C33) -> 12 | BB48: =D48*'CTI INPUTS'!R33 -> 24 | BC48: =D48*'CTI INPUTS'!S33 -> 15 | BE48: =N48*'CTI INPUTS'!C37 -> 60 | BF48: =N48*'CTI INPUTS'!C38 -> 45 | BG48: =N48*'CTI INPUTS'!C39 -> 30 | BH48: =O48*'CTI INPUTS'!C37 -> 20 | BI48: =O48*'CTI INPUTS'!C38 -> 15 | BJ48: =O48*'CTI INPUTS'!C39 -> 10 | BL48: =(AY48*'CTI INPUTS'!C6)/60 -> 25 | BM48: =(AZ48*'CTI INPUTS'!C6)/60 -> 20 | BO48: =(BE48/60)*'CTI INPUTS'!C6 -> 100 | BP48: =(BF48/60)*'CTI INPUTS'!C6 -> 75 | BQ48: =(BG48/60)*'CTI INPUTS'!C6 -> 50 | BR48: =(BH48/60)*'CTI INPUTS'!C6 -> 33.33333333 | BS48: =(BI48/60)*'CTI INPUTS'!C6 -> 25 | BT48: =(BJ48/60)*'CTI INPUTS'!C6 -> 16.66666667 | BV48: =(Q48*('CTI INPUTS'!D17))+(T48*('CTI INPUTS'!D18))+(AE48*('CTI INPUTS'!D12))+(AF48*('CTI INPUTS'!D13))+(AG48*('CTI INPUTS'!D14)) -> 276 | BW48: =(N48*('CTI INPUTS'!D19))+(T48*('CTI INPUTS'!D18))+(AG48*('CTI INPUTS'!D14)) -> 191.85 | BX48: =(Y48*'CTI INPUTS'!D15)+(N48*'CTI INPUTS'!D16) -> 150 | BY48: =(R48*('CTI INPUTS'!D17))+(U48*('CTI INPUTS'!D18))+(AH48*('CTI INPUTS'!D12))+(AI48*('CTI INPUTS'!D13))+(AJ48*('CTI INPUTS'!D14)) -> 92 | BZ48: =(O48*('CTI INPUTS'!D19))+(U48*('CTI INPUTS'!D18))+(AJ48*('CTI INPUTS'!D14)) -> 63.95 | CA48: =(Z48*'CTI INPUTS'!D15)+(O48*'CTI INPUTS'!D16) -> 50 | CC48: =(AE48*('CTI INPUTS'!D12)) -> 60 | CD48: =(AF48*('CTI INPUTS'!D13)) -> 9 | CE48: =(AG48*('CTI INPUTS'!D14)) -> 15 | CF48: =(AH48*('CTI INPUTS'!D12)) -> 20 | CG48: =(AI48*('CTI INPUTS'!D13)) -> 3 | CH48: =(AJ48*('CTI INPUTS'!D14)) -> 5 | CJ48: =AL48*'CTI INPUTS'!D42 -> 60.3 | CK48: =AM48*'CTI INPUTS'!D43 -> 21 | CL48: =AN48*'CTI INPUTS'!D44 -> 27 | CM48: =AS48*'CTI INPUTS'!D45 -> 82.5 | CN48: =AO48*'CTI INPUTS'!D42 -> 20.1 | CO48: =AP48*'CTI INPUTS'!D43 -> 7 | CP48: =AQ48*'CTI INPUTS'!D44 -> 9 | CQ48: =AT48*'CTI INPUTS'!D45 -> 27.5
C49: 16in | D49: =ProjectData!E48 -> 0 | F49: =D49*24 -> 0 | H49: 0 | I49: =D49*8 -> 0 | K49: =D49*'CTI INPUTS'!R19 -> 0 | L49: =D49*'CTI INPUTS'!T19 -> 0 | N49: 0 | O49: 0 | Q49: =(20*N49)/12 -> 0 | R49: =(20*O49)/12 -> 0 | T49: =N49*'CTI INPUTS'!C48 -> 0 | U49: =O49*'CTI INPUTS'!C48 -> 0 | Y49: =N49*'CTI INPUTS'!C51 -> 0 | Z49: =O49*'CTI INPUTS'!C51 -> 0 | AE49: 0 | AF49: 0 | AG49: 0 | AH49: 0 | AI49: 0 | AJ49: 0 | AL49: 0 | AM49: 0 | AN49: 0 | AO49: 0 | AP49: 0 | AQ49: 0 | AS49: 0 | AT49: 0 | AY49: =(F49/4)*'CTI INPUTS'!C33 -> 0 | AZ49: =(H49*'CTI INPUTS'!C34)+(I49*'CTI INPUTS'!C33) -> 0 | BB49: =D49*'CTI INPUTS'!R34 -> 0 | BC49: =D49*'CTI INPUTS'!S34 -> 0 | BE49: =N49*'CTI INPUTS'!C37 -> 0 | BF49: =N49*'CTI INPUTS'!C38 -> 0 | BG49: =N49*'CTI INPUTS'!C39 -> 0 | BH49: =O49*'CTI INPUTS'!C37 -> 0 | BI49: =O49*'CTI INPUTS'!C38 -> 0 | BJ49: =O49*'CTI INPUTS'!C39 -> 0 | BL49: =(AY49*'CTI INPUTS'!C6)/60 -> 0 | BM49: =(AZ49*'CTI INPUTS'!C6)/60 -> 0 | BO49: =(BE49/60)*'CTI INPUTS'!C6 -> 0 | BP49: =(BF49/60)*'CTI INPUTS'!C6 -> 0 | BQ49: =(BG49/60)*'CTI INPUTS'!C6 -> 0 | BR49: =(BH49/60)*'CTI INPUTS'!C6 -> 0 | BS49: =(BI49/60)*'CTI INPUTS'!C6 -> 0 | BT49: =(BJ49/60)*'CTI INPUTS'!C6 -> 0 | BV49: =(Q49*('CTI INPUTS'!D17))+(T49*('CTI INPUTS'!D18))+(AE49*('CTI INPUTS'!D12))+(AF49*('CTI INPUTS'!D13))+(AG49*('CTI INPUTS'!D14)) -> 0 | BW49: =(N49*('CTI INPUTS'!D19))+(T49*('CTI INPUTS'!D18))+(AG49*('CTI INPUTS'!D14)) -> 0 | BX49: =(Y49*'CTI INPUTS'!D15)+(N49*'CTI INPUTS'!D16) -> 0 | BY49: =(R49*('CTI INPUTS'!D17))+(U49*('CTI INPUTS'!D18))+(AH49*('CTI INPUTS'!D12))+(AI49*('CTI INPUTS'!D13))+(AJ49*('CTI INPUTS'!D14)) -> 0 | BZ49: =(O49*('CTI INPUTS'!D19))+(U49*('CTI INPUTS'!D18))+(AJ49*('CTI INPUTS'!D14)) -> 0 | CA49: =(Z49*'CTI INPUTS'!D15)+(O49*'CTI INPUTS'!D16) -> 0 | CC49: =(AE49*('CTI INPUTS'!D12)) -> 0 | CD49: =(AF49*('CTI INPUTS'!D13)) -> 0 | CE49: =(AG49*('CTI INPUTS'!D14)) -> 0 | CF49: =(AH49*('CTI INPUTS'!D12)) -> 0 | CG49: =(AI49*('CTI INPUTS'!D13)) -> 0 | CH49: =(AJ49*('CTI INPUTS'!D14)) -> 0 | CJ49: =AL49*'CTI INPUTS'!D42 -> 0 | CK49: =AM49*'CTI INPUTS'!D43 -> 0 | CL49: =AN49*'CTI INPUTS'!D44 -> 0 | CM49: =AS49*'CTI INPUTS'!D45 -> 0 | CN49: =AO49*'CTI INPUTS'!D42 -> 0 | CO49: =AP49*'CTI INPUTS'!D43 -> 0 | CP49: =AQ49*'CTI INPUTS'!D44 -> 0 | CQ49: =AT49*'CTI INPUTS'!D45 -> 0
C50: 18in | D50: =ProjectData!E49 -> 0 | F50: =D50*24 -> 0 | H50: 0 | I50: =D50*8 -> 0 | K50: =D50*'CTI INPUTS'!R20 -> 0 | L50: =D50*'CTI INPUTS'!T20 -> 0 | N50: 0 | O50: 0 | Q50: =(22*N50)/12 -> 0 | R50: =(22*O50)/12 -> 0 | T50: =N50*'CTI INPUTS'!C48 -> 0 | U50: =O50*'CTI INPUTS'!C48 -> 0 | Y50: =N50*'CTI INPUTS'!C51 -> 0 | Z50: =O50*'CTI INPUTS'!C51 -> 0 | AE50: 0 | AF50: 0 | AG50: 0 | AH50: 0 | AI50: 0 | AJ50: 0 | AL50: 0 | AM50: 0 | AN50: 0 | AO50: 0 | AP50: 0 | AQ50: 0 | AS50: 0 | AT50: 0 | AY50: =(F50/4)*'CTI INPUTS'!C33 -> 0 | AZ50: =(H50*'CTI INPUTS'!C34)+(I50*'CTI INPUTS'!C33) -> 0 | BB50: =D50*'CTI INPUTS'!R35 -> 0 | BC50: =D50*'CTI INPUTS'!S35 -> 0 | BE50: =N50*'CTI INPUTS'!C37 -> 0 | BF50: =N50*'CTI INPUTS'!C38 -> 0 | BG50: =N50*'CTI INPUTS'!C39 -> 0 | BH50: =O50*'CTI INPUTS'!C37 -> 0 | BI50: =O50*'CTI INPUTS'!C38 -> 0 | BJ50: =O50*'CTI INPUTS'!C39 -> 0 | BL50: =(AY50*'CTI INPUTS'!C6)/60 -> 0 | BM50: =(AZ50*'CTI INPUTS'!C6)/60 -> 0 | BO50: =(BE50/60)*'CTI INPUTS'!C6 -> 0 | BP50: =(BF50/60)*'CTI INPUTS'!C6 -> 0 | BQ50: =(BG50/60)*'CTI INPUTS'!C6 -> 0 | BR50: =(BH50/60)*'CTI INPUTS'!C6 -> 0 | BS50: =(BI50/60)*'CTI INPUTS'!C6 -> 0 | BT50: =(BJ50/60)*'CTI INPUTS'!C6 -> 0 | BV50: =(Q50*('CTI INPUTS'!D17))+(T50*('CTI INPUTS'!D18))+(AE50*('CTI INPUTS'!D12))+(AF50*('CTI INPUTS'!D13))+(AG50*('CTI INPUTS'!D14)) -> 0 | BW50: =(N50*('CTI INPUTS'!D19))+(T50*('CTI INPUTS'!D18))+(AG50*('CTI INPUTS'!D14)) -> 0 | BX50: =(Y50*'CTI INPUTS'!D15)+(N50*'CTI INPUTS'!D16) -> 0 | BY50: =(R50*('CTI INPUTS'!D17))+(U50*('CTI INPUTS'!D18))+(AH50*('CTI INPUTS'!D12))+(AI50*('CTI INPUTS'!D13))+(AJ50*('CTI INPUTS'!D14)) -> 0 | BZ50: =(O50*('CTI INPUTS'!D19))+(U50*('CTI INPUTS'!D18))+(AJ50*('CTI INPUTS'!D14)) -> 0 | CA50: =(Z50*'CTI INPUTS'!D15)+(O50*'CTI INPUTS'!D16) -> 0 | CC50: =(AE50*('CTI INPUTS'!D12)) -> 0 | CD50: =(AF50*('CTI INPUTS'!D13)) -> 0 | CE50: =(AG50*('CTI INPUTS'!D14)) -> 0 | CF50: =(AH50*('CTI INPUTS'!D12)) -> 0 | CG50: =(AI50*('CTI INPUTS'!D13)) -> 0 | CH50: =(AJ50*('CTI INPUTS'!D14)) -> 0 | CJ50: =AL50*'CTI INPUTS'!D42 -> 0 | CK50: =AM50*'CTI INPUTS'!D43 -> 0 | CL50: =AN50*'CTI INPUTS'!D44 -> 0 | CM50: =AS50*'CTI INPUTS'!D45 -> 0 | CN50: =AO50*'CTI INPUTS'!D42 -> 0 | CO50: =AP50*'CTI INPUTS'!D43 -> 0 | CP50: =AQ50*'CTI INPUTS'!D44 -> 0 | CQ50: =AT50*'CTI INPUTS'!D45 -> 0
C51: 20in | D51: =ProjectData!E50 -> 0 | F51: =D51*28 -> 0 | H51: 0 | I51: =D51*8 -> 0 | K51: =D51*'CTI INPUTS'!R21 -> 0 | L51: =D51*'CTI INPUTS'!T21 -> 0 | N51: 0 | O51: 0 | Q51: =(24*N51)/12 -> 0 | R51: =(24*O51)/12 -> 0 | T51: =N51*'CTI INPUTS'!C48 -> 0 | U51: =O51*'CTI INPUTS'!C48 -> 0 | Y51: =N51*'CTI INPUTS'!C51 -> 0 | Z51: =O51*'CTI INPUTS'!C51 -> 0 | AE51: 0 | AF51: 0 | AG51: 0 | AH51: 0 | AI51: 0 | AJ51: 0 | AL51: 0 | AM51: 0 | AN51: 0 | AO51: 0 | AP51: 0 | AQ51: 0 | AS51: 0 | AT51: 0 | AY51: =(F51/4)*'CTI INPUTS'!C33 -> 0 | AZ51: =(H51*'CTI INPUTS'!C34)+(I51*'CTI INPUTS'!C33) -> 0 | BB51: =D51*'CTI INPUTS'!R36 -> 0 | BC51: =D51*'CTI INPUTS'!S36 -> 0 | BE51: =N51*'CTI INPUTS'!C37 -> 0 | BF51: =N51*'CTI INPUTS'!C38 -> 0 | BG51: =N51*'CTI INPUTS'!C39 -> 0 | BH51: =O51*'CTI INPUTS'!C37 -> 0 | BI51: =O51*'CTI INPUTS'!C38 -> 0 | BJ51: =O51*'CTI INPUTS'!C39 -> 0 | BL51: =(AY51*'CTI INPUTS'!C6)/60 -> 0 | BM51: =(AZ51*'CTI INPUTS'!C6)/60 -> 0 | BO51: =(BE51/60)*'CTI INPUTS'!C6 -> 0 | BP51: =(BF51/60)*'CTI INPUTS'!C6 -> 0 | BQ51: =(BG51/60)*'CTI INPUTS'!C6 -> 0 | BR51: =(BH51/60)*'CTI INPUTS'!C6 -> 0 | BS51: =(BI51/60)*'CTI INPUTS'!C6 -> 0 | BT51: =(BJ51/60)*'CTI INPUTS'!C6 -> 0 | BV51: =(Q51*('CTI INPUTS'!D17))+(T51*('CTI INPUTS'!D18))+(AE51*('CTI INPUTS'!D12))+(AF51*('CTI INPUTS'!D13))+(AG51*('CTI INPUTS'!D14)) -> 0 | BW51: =(N51*('CTI INPUTS'!D19))+(T51*('CTI INPUTS'!D18))+(AG51*('CTI INPUTS'!D14)) -> 0 | BX51: =(Y51*'CTI INPUTS'!D15)+(N51*'CTI INPUTS'!D16) -> 0 | BY51: =(R51*('CTI INPUTS'!D17))+(U51*('CTI INPUTS'!D18))+(AH51*('CTI INPUTS'!D12))+(AI51*('CTI INPUTS'!D13))+(AJ51*('CTI INPUTS'!D14)) -> 0 | BZ51: =(O51*('CTI INPUTS'!D19))+(U51*('CTI INPUTS'!D18))+(AJ51*('CTI INPUTS'!D14)) -> 0 | CA51: =(Z51*'CTI INPUTS'!D15)+(O51*'CTI INPUTS'!D16) -> 0 | CC51: =(AE51*('CTI INPUTS'!D12)) -> 0 | CD51: =(AF51*('CTI INPUTS'!D13)) -> 0 | CE51: =(AG51*('CTI INPUTS'!D14)) -> 0 | CF51: =(AH51*('CTI INPUTS'!D12)) -> 0 | CG51: =(AI51*('CTI INPUTS'!D13)) -> 0 | CH51: =(AJ51*('CTI INPUTS'!D14)) -> 0 | CJ51: =AL51*'CTI INPUTS'!D42 -> 0 | CK51: =AM51*'CTI INPUTS'!D43 -> 0 | CL51: =AN51*'CTI INPUTS'!D44 -> 0 | CM51: =AS51*'CTI INPUTS'!D45 -> 0 | CN51: =AO51*'CTI INPUTS'!D42 -> 0 | CO51: =AP51*'CTI INPUTS'!D43 -> 0 | CP51: =AQ51*'CTI INPUTS'!D44 -> 0 | CQ51: =AT51*'CTI INPUTS'!D45 -> 0
C52: 24in | D52: =ProjectData!E51 -> 0 | F52: =D52*28 -> 0 | H52: 0 | I52: =D52*8 -> 0 | K52: =D52*'CTI INPUTS'!R22 -> 0 | L52: =D52*'CTI INPUTS'!T22 -> 0 | N52: 0 | O52: 0 | Q52: =(28*N52)/12 -> 0 | R52: =(28*O52)/12 -> 0 | T52: =N52*'CTI INPUTS'!C48 -> 0 | U52: =O52*'CTI INPUTS'!C48 -> 0 | Y52: =N52*'CTI INPUTS'!C51 -> 0 | Z52: =O52*'CTI INPUTS'!C51 -> 0 | AE52: 0 | AF52: 0 | AG52: 0 | AH52: 0 | AI52: 0 | AJ52: 0 | AL52: 0 | AM52: 0 | AN52: 0 | AO52: 0 | AP52: 0 | AQ52: 0 | AS52: 0 | AT52: 0 | AY52: =(F52/4)*'CTI INPUTS'!C33 -> 0 | AZ52: =(H52*'CTI INPUTS'!C34)+(I52*'CTI INPUTS'!C33) -> 0 | BB52: =D52*'CTI INPUTS'!R37 -> 0 | BC52: =D52*'CTI INPUTS'!S37 -> 0 | BE52: =N52*'CTI INPUTS'!C37 -> 0 | BF52: =N52*'CTI INPUTS'!C38 -> 0 | BG52: =N52*'CTI INPUTS'!C39 -> 0 | BH52: =O52*'CTI INPUTS'!C37 -> 0 | BI52: =O52*'CTI INPUTS'!C38 -> 0 | BJ52: =O52*'CTI INPUTS'!C39 -> 0 | BL52: =(AY52*'CTI INPUTS'!C6)/60 -> 0 | BM52: =(AZ52*'CTI INPUTS'!C6)/60 -> 0 | BO52: =(BE52/60)*'CTI INPUTS'!C6 -> 0 | BP52: =(BF52/60)*'CTI INPUTS'!C6 -> 0 | BQ52: =(BG52/60)*'CTI INPUTS'!C6 -> 0 | BR52: =(BH52/60)*'CTI INPUTS'!C6 -> 0 | BS52: =(BI52/60)*'CTI INPUTS'!C6 -> 0 | BT52: =(BJ52/60)*'CTI INPUTS'!C6 -> 0 | BV52: =(Q52*('CTI INPUTS'!D17))+(T52*('CTI INPUTS'!D18))+(AE52*('CTI INPUTS'!D12))+(AF52*('CTI INPUTS'!D13))+(AG52*('CTI INPUTS'!D14)) -> 0 | BW52: =(N52*('CTI INPUTS'!D19))+(T52*('CTI INPUTS'!D18))+(AG52*('CTI INPUTS'!D14)) -> 0 | BX52: =(Y52*'CTI INPUTS'!D15)+(N52*'CTI INPUTS'!D16) -> 0 | BY52: =(R52*('CTI INPUTS'!D17))+(U52*('CTI INPUTS'!D18))+(AH52*('CTI INPUTS'!D12))+(AI52*('CTI INPUTS'!D13))+(AJ52*('CTI INPUTS'!D14)) -> 0 | BZ52: =(O52*('CTI INPUTS'!D19))+(U52*('CTI INPUTS'!D18))+(AJ52*('CTI INPUTS'!D14)) -> 0 | CA52: =(Z52*'CTI INPUTS'!D15)+(O52*'CTI INPUTS'!D16) -> 0 | CC52: =(AE52*('CTI INPUTS'!D12)) -> 0 | CD52: =(AF52*('CTI INPUTS'!D13)) -> 0 | CE52: =(AG52*('CTI INPUTS'!D14)) -> 0 | CF52: =(AH52*('CTI INPUTS'!D12)) -> 0 | CG52: =(AI52*('CTI INPUTS'!D13)) -> 0 | CH52: =(AJ52*('CTI INPUTS'!D14)) -> 0 | CJ52: =AL52*'CTI INPUTS'!D42 -> 0 | CK52: =AM52*'CTI INPUTS'!D43 -> 0 | CL52: =AN52*'CTI INPUTS'!D44 -> 0 | CM52: =AS52*'CTI INPUTS'!D45 -> 0 | CN52: =AO52*'CTI INPUTS'!D42 -> 0 | CO52: =AP52*'CTI INPUTS'!D43 -> 0 | CP52: =AQ52*'CTI INPUTS'!D44 -> 0 | CQ52: =AT52*'CTI INPUTS'!D45 -> 0
C53: 30in | D53: =ProjectData!E52 -> 0 | F53: =D53*32 -> 0 | H53: 0 | I53: =D53*12 -> 0 | K53: =D53*'CTI INPUTS'!R23 -> 0 | L53: =D53*'CTI INPUTS'!T23 -> 0 | N53: 0 | O53: 0 | Q53: =(34*N53)/12 -> 0 | R53: =(34*O53)/12 -> 0 | T53: =N53*'CTI INPUTS'!C48 -> 0 | U53: =O53*'CTI INPUTS'!C48 -> 0 | Y53: =N53*'CTI INPUTS'!C51 -> 0 | Z53: =O53*'CTI INPUTS'!C51 -> 0 | AE53: 0 | AF53: 0 | AG53: 0 | AH53: 0 | AI53: 0 | AJ53: 0 | AL53: 0 | AM53: 0 | AN53: 0 | AO53: 0 | AP53: 0 | AQ53: 0 | AS53: 0 | AT53: 0 | AY53: =(F53/4)*'CTI INPUTS'!C33 -> 0 | AZ53: =(H53*'CTI INPUTS'!C34)+(I53*'CTI INPUTS'!C33) -> 0 | BB53: =D53*'CTI INPUTS'!R38 -> 0 | BC53: =D53*'CTI INPUTS'!S38 -> 0 | BE53: =N53*'CTI INPUTS'!C37 -> 0 | BF53: =N53*'CTI INPUTS'!C38 -> 0 | BG53: =N53*'CTI INPUTS'!C39 -> 0 | BH53: =O53*'CTI INPUTS'!C37 -> 0 | BI53: =O53*'CTI INPUTS'!C38 -> 0 | BJ53: =O53*'CTI INPUTS'!C39 -> 0 | BL53: =(AY53*'CTI INPUTS'!C6)/60 -> 0 | BM53: =(AZ53*'CTI INPUTS'!C6)/60 -> 0 | BO53: =(BE53/60)*'CTI INPUTS'!C6 -> 0 | BP53: =(BF53/60)*'CTI INPUTS'!C6 -> 0 | BQ53: =(BG53/60)*'CTI INPUTS'!C6 -> 0 | BR53: =(BH53/60)*'CTI INPUTS'!C6 -> 0 | BS53: =(BI53/60)*'CTI INPUTS'!C6 -> 0 | BT53: =(BJ53/60)*'CTI INPUTS'!C6 -> 0 | BV53: =(Q53*('CTI INPUTS'!D17))+(T53*('CTI INPUTS'!D18))+(AE53*('CTI INPUTS'!D12))+(AF53*('CTI INPUTS'!D13))+(AG53*('CTI INPUTS'!D14)) -> 0 | BW53: =(N53*('CTI INPUTS'!D19))+(T53*('CTI INPUTS'!D18))+(AG53*('CTI INPUTS'!D14)) -> 0 | BX53: =(Y53*'CTI INPUTS'!D15)+(N53*'CTI INPUTS'!D16) -> 0 | BY53: =(R53*('CTI INPUTS'!D17))+(U53*('CTI INPUTS'!D18))+(AH53*('CTI INPUTS'!D12))+(AI53*('CTI INPUTS'!D13))+(AJ53*('CTI INPUTS'!D14)) -> 0 | BZ53: =(O53*('CTI INPUTS'!D19))+(U53*('CTI INPUTS'!D18))+(AJ53*('CTI INPUTS'!D14)) -> 0 | CA53: =(Z53*'CTI INPUTS'!D15)+(O53*'CTI INPUTS'!D16) -> 0 | CC53: =(AE53*('CTI INPUTS'!D12)) -> 0 | CD53: =(AF53*('CTI INPUTS'!D13)) -> 0 | CE53: =(AG53*('CTI INPUTS'!D14)) -> 0 | CF53: =(AH53*('CTI INPUTS'!D12)) -> 0 | CG53: =(AI53*('CTI INPUTS'!D13)) -> 0 | CH53: =(AJ53*('CTI INPUTS'!D14)) -> 0 | CJ53: =AL53*'CTI INPUTS'!D42 -> 0 | CK53: =AM53*'CTI INPUTS'!D43 -> 0 | CL53: =AN53*'CTI INPUTS'!D44 -> 0 | CM53: =AS53*'CTI INPUTS'!D45 -> 0 | CN53: =AO53*'CTI INPUTS'!D42 -> 0 | CO53: =AP53*'CTI INPUTS'!D43 -> 0 | CP53: =AQ53*'CTI INPUTS'!D44 -> 0 | CQ53: =AT53*'CTI INPUTS'!D45 -> 0
C54: 36in | D54: =ProjectData!E53 -> 0 | F54: =D54*32 -> 0 | H54: =D54*2 -> 0 | I54: =D54*12 -> 0 | K54: =D54*'CTI INPUTS'!R24 -> 0 | L54: =D54*'CTI INPUTS'!T24 -> 0 | N54: 0 | O54: 0 | Q54: =(40*N54)/12 -> 0 | R54: =(40*O54)/12 -> 0 | T54: =N54*'CTI INPUTS'!C48 -> 0 | U54: =O54*'CTI INPUTS'!C48 -> 0 | Y54: =N54*'CTI INPUTS'!C51 -> 0 | Z54: =O54*'CTI INPUTS'!C51 -> 0 | AE54: 0 | AF54: 0 | AG54: 0 | AH54: 0 | AI54: 0 | AJ54: 0 | AL54: 0 | AM54: 0 | AN54: 0 | AO54: 0 | AP54: 0 | AQ54: 0 | AS54: 0 | AT54: 0 | AY54: =(F54/4)*'CTI INPUTS'!C33 -> 0 | AZ54: =(H54*'CTI INPUTS'!C34)+(I54*'CTI INPUTS'!C33) -> 0 | BB54: =D54*'CTI INPUTS'!R39 -> 0 | BC54: =D54*'CTI INPUTS'!S39 -> 0 | BE54: =N54*'CTI INPUTS'!C37 -> 0 | BF54: =N54*'CTI INPUTS'!C38 -> 0 | BG54: =N54*'CTI INPUTS'!C39 -> 0 | BH54: =O54*'CTI INPUTS'!C37 -> 0 | BI54: =O54*'CTI INPUTS'!C38 -> 0 | BJ54: =O54*'CTI INPUTS'!C39 -> 0 | BL54: =(AY54*'CTI INPUTS'!C6)/60 -> 0 | BM54: =(AZ54*'CTI INPUTS'!C6)/60 -> 0 | BO54: =(BE54/60)*'CTI INPUTS'!C6 -> 0 | BP54: =(BF54/60)*'CTI INPUTS'!C6 -> 0 | BQ54: =(BG54/60)*'CTI INPUTS'!C6 -> 0 | BR54: =(BH54/60)*'CTI INPUTS'!C6 -> 0 | BS54: =(BI54/60)*'CTI INPUTS'!C6 -> 0 | BT54: =(BJ54/60)*'CTI INPUTS'!C6 -> 0 | BV54: =(Q54*('CTI INPUTS'!D17))+(T54*('CTI INPUTS'!D18))+(AE54*('CTI INPUTS'!D12))+(AF54*('CTI INPUTS'!D13))+(AG54*('CTI INPUTS'!D14)) -> 0 | BW54: =(N54*('CTI INPUTS'!D19))+(T54*('CTI INPUTS'!D18))+(AG54*('CTI INPUTS'!D14)) -> 0 | BX54: =(Y54*'CTI INPUTS'!D15)+(N54*'CTI INPUTS'!D16) -> 0 | BY54: =(R54*('CTI INPUTS'!D17))+(U54*('CTI INPUTS'!D18))+(AH54*('CTI INPUTS'!D12))+(AI54*('CTI INPUTS'!D13))+(AJ54*('CTI INPUTS'!D14)) -> 0 | BZ54: =(O54*('CTI INPUTS'!D19))+(U54*('CTI INPUTS'!D18))+(AJ54*('CTI INPUTS'!D14)) -> 0 | CA54: =(Z54*'CTI INPUTS'!D15)+(O54*'CTI INPUTS'!D16) -> 0 | CC54: =(AE54*('CTI INPUTS'!D12)) -> 0 | CD54: =(AF54*('CTI INPUTS'!D13)) -> 0 | CE54: =(AG54*('CTI INPUTS'!D14)) -> 0 | CF54: =(AH54*('CTI INPUTS'!D12)) -> 0 | CG54: =(AI54*('CTI INPUTS'!D13)) -> 0 | CH54: =(AJ54*('CTI INPUTS'!D14)) -> 0 | CJ54: =AL54*'CTI INPUTS'!D42 -> 0 | CK54: =AM54*'CTI INPUTS'!D43 -> 0 | CL54: =AN54*'CTI INPUTS'!D44 -> 0 | CM54: =AS54*'CTI INPUTS'!D45 -> 0 | CN54: =AO54*'CTI INPUTS'!D42 -> 0 | CO54: =AP54*'CTI INPUTS'!D43 -> 0 | CP54: =AQ54*'CTI INPUTS'!D44 -> 0 | CQ54: =AT54*'CTI INPUTS'!D45 -> 0
F55: =SUM(F43:F54) -> 120 | H55: =SUM((H43:H54)+(I43:I54)) -> 30 | K55: =SUM(K43:K54) -> 480 | L55: =SUM(L43:L54) -> 120 | N55: =SUM(N43:N54) -> 15 | O55: =SUM(O43:O54) -> 5 | Q55: =SUM(Q43:Q54) -> 20 | R55: =SUM(R43:R54) -> 6.666666667 | T55: =SUM(T43:T54) -> 60 | U55: =SUM(U43:U54) -> 20 | Y55: =SUM(Y43:Y54) -> 90 | Z55: =SUM(Z43:Z54) -> 30 | AE55: =SUM((AE43:AE54)+(AF43:AF54)+(AG43:AG54)) -> 180 | AH55: =SUM((AH43:AH54)+(AI43:AI54)+(AJ43:AJ54)) -> 60 | AL55: =SUM((AL43:AL54)+(AM43:AM54)+(AN43:AN54)) -> 90 | AO55: =SUM((AO43:AO54)+(AP43:AP54)+(AQ43:AQ54)) -> 30 | AS55: =SUM(AS43:AS54) -> 30 | AT55: =SUM(AT43:AT54) -> 10 | AY55: =SUM(AY43:AY54) -> 15 | AZ55: =SUM(AZ43:AZ54) -> 12 | BB55: =SUM(BB43:BB54) -> 24 | BC55: =SUM(BC43:BC54) -> 15 | BE55: =SUM(BE43:BE54) -> 60 | BF55: 45 | BG55: 30 | BH55: 20 | BI55: 15 | BJ55: 10 | BL55: =SUM(BL43:BL54) -> 25 | BM55: =SUM(BM43:BM54) -> 20 | BO55: =SUM(BO43:BO54) -> 100 | BP55: 75 | BQ55: 50 | BR55: 33.33333333 | BS55: 25 | BT55: 16.66666667 | BV55: =SUM(BV43:BV54) -> 276 | BW55: 191.85 | BX55: 150 | BY55: 92 | BZ55: 63.95 | CA55: 50 | CC55: =SUM((CC43:CC54)+(CD43:CD54)+(CE43:CE54)) -> 84 | CF55: =SUM((CF43:CF54)+(CG43:CG54)+(CH43:CH54)) -> 28 | CJ55: =SUM((CJ43:CJ54)+(CK43:CK54)+(CL43:CL54)) -> 108.3 | CM55: =SUM(CM43:CM54) -> 82.5 | CN55: =SUM((CN43:CN54)+(CO43:CO54)+(CP43:CP54)) -> 36.1 | CQ55: =SUM(CQ43:CQ54) -> 27.5 | CS55: =SUM(CS43:CS54) -> 0 | CT55: =SUM(CT43:CT54) -> 0 | CU55: =SUM(CU43:CU54) -> 0
B57: VERTICAL BEND | F57: SPLICE | H57: POSI-LOK | K57: FITTING FABRICATION | N57: SUPPORT QUANTITY | Q57: STRUT L/FT | T57: ATR HANGER (L/FT) | Y57: WIRE HANGER (L/FT) | AE57: VE2 : ATR HARDWARE QUANTITY | AH57: TSS : ATR HARDWARE QUANTITY | AL57: HOLD DOWN & HDWR QUANTITY | AO57: TSS: HOLD DOWN & HDWR QUANTITY | AS57: H-DOWN CLIP QUANTITY | AY57: SPLICE INSTALLATION TIME (MIN) | BB57: FITTING FAB. TIME (MIN) | BE57: VE2 : SUPPORT INSTAL TIME (MIN) | BH57: TSS: SUPPORT INSTALLATION TIME (MIN) | BL57: SPLICE INSTALLATION COST ($) | BO57: SUPPORT INSTALLATION COST ($) | BR57: TSS: SUPPORT INSTALLATION COST ($) | BV57: SUPPORT COST ($) | BY57: TSS: SUPPORT COST ($) | CC57: ATR HARDWARE COST $ | CF57: TSS: ATR HARDWARE COST $ | CJ57: HOLD DOWN CLAMPS & HARDWARE COST ($) | CN57: TSS: HOLD DOWN CLAMPS & HARDWARE COST ($) | CS57: SUPPORT WEIGHT (LBS)
B59: HEIGHT | C59: WIDTH | D59: QUANTITY | F59: WSKIT | H59: PLOK | I59: WSKIT | K59: CUTS QTY | L59: WSKIT (pcs) | N59: FAB (VE2) | O59: C2G (TSS) | Q59: FAB (VE2) | R59: C2G (TSS) | T59: FAB (VE2) | U59: C2G (TSS) | Y59: FAB (VE2) | Z59: C2G (TSS) | AE59: SQ WSHR | AF59: FLT WSHR | AG59: HEX NUT | AH59: SQ WSHR | AI59: FLT WSHR | AJ59: HEX NUT | AL59: FLXW | AM59: 25HX | AN59: 25NC | AO59: FLXW | AP59: 25HX | AQ59: 25NC | AS59: VE2 : SRC (pc) | AT59: TSS : SRC (pc) | AY59: WSKIT | AZ59: POSI-LOK + WSKIT | BB59: CUTS | BC59: WSKIT | BE59: STRUT | BF59: URH | BG59: WIRE | BH59: STRUT | BI59: URH | BJ59: WIRE | BL59: WSKIT | BM59: POSI-LOK + WSKIT | BO59: VE2 : STRUT | BP59: VE2 : URH | BQ59: VE2 : WIRE | BR59: TSS : STRUT | BS59: TSS : URH | BT59: TSS : WIRE | BV59: STRUT | BW59: URH | BX59: WIRE | BY59: STRUT | BZ59: URH | CA59: WIRE | CC59: SQUARE WSHR | CD59: FLAT WSHR | CE59: HEX NUT | CF59: SQUARE WSHR | CG59: FLAT WSHR | CH59: HEX NUT | CJ59: FLXW | CK59: 25HX | CL59: 25NC | CM59: SRC CLIP | CN59: FLXW | CO59: 25HX | CP59: 25NC | CQ59: SRC CLIP | CS59: STRUT | CT59: URH | CU59: WIRE
B60: 2/4/6in | C60: 2in | D60: =ProjectData!G42 -> 0 | F60: =D60*8 -> 0 | H60: =D60*2 -> 0 | I60: =D60*0 -> 0 | K60: =D60*'CTI INPUTS'!W13 -> 0 | L60: =D60*'CTI INPUTS'!Y13 -> 0 | N60: =D60*3 -> 0 | O60: =D60*2 -> 0 | Q60: =(6*N60)/12 -> 0 | R60: =(6*O60)/12 -> 0 | T60: =N60*'CTI INPUTS'!C48 -> 0 | U60: =O60*'CTI INPUTS'!C48 -> 0 | Y60: =N60*'CTI INPUTS'!C51 -> 0 | Z60: =O60*'CTI INPUTS'!C51 -> 0 | AE60: =N60*4 -> 0 | AF60: =N60*4 -> 0 | AG60: =N60*4 -> 0 | AH60: =O60*4 -> 0 | AI60: =O60*4 -> 0 | AJ60: =O60*4 -> 0 | AL60: =N60*2 -> 0 | AM60: =N60*2 -> 0 | AN60: =N60*2 -> 0 | AO60: =O60*2 -> 0 | AP60: =O60*2 -> 0 | AQ60: =O60*2 -> 0 | AS60: =N60*1 -> 0 | AT60: =O60*1 -> 0 | AY60: =(F60/4)*'CTI INPUTS'!C33 -> 0 | AZ60: =(H60*'CTI INPUTS'!C34)+(I60*'CTI INPUTS'!C33) -> 0 | BB60: =D60*'CTI INPUTS'!W28 -> 0 | BC60: =D60*'CTI INPUTS'!X28 -> 0 | BE60: =N60*'CTI INPUTS'!C37 -> 0 | BF60: =N60*'CTI INPUTS'!C38 -> 0 | BG60: =N60*'CTI INPUTS'!C39 -> 0 | BH60: =O60*'CTI INPUTS'!C37 -> 0 | BI60: =O60*'CTI INPUTS'!C38 -> 0 | BJ60: =O60*'CTI INPUTS'!C39 -> 0 | BL60: =(AY60*'CTI INPUTS'!C6)/60 -> 0 | BM60: =(AZ60*'CTI INPUTS'!C6)/60 -> 0 | BO60: =(BE60/60)*'CTI INPUTS'!C6 -> 0 | BP60: =(BF60/60)*'CTI INPUTS'!C6 -> 0 | BQ60: =(BG60/60)*'CTI INPUTS'!C6 -> 0 | BR60: =(BH60/60)*'CTI INPUTS'!C6 -> 0 | BS60: =(BI60/60)*'CTI INPUTS'!C6 -> 0 | BT60: =(BJ60/60)*'CTI INPUTS'!C6 -> 0 | BV60: =(Q60*('CTI INPUTS'!D17))+(T60*('CTI INPUTS'!D18))+(AE60*('CTI INPUTS'!D12))+(AF60*('CTI INPUTS'!D13))+(AG60*('CTI INPUTS'!D14)) -> 0 | BW60: =(N60*('CTI INPUTS'!D19))+(T60*('CTI INPUTS'!D18))+(AG60*('CTI INPUTS'!D14)) -> 0 | BX60: =(Y60*'CTI INPUTS'!D15)+(N60*'CTI INPUTS'!D16) -> 0 | BY60: =(R60*('CTI INPUTS'!D17))+(U60*('CTI INPUTS'!D18))+(AH60*('CTI INPUTS'!D12))+(AI60*('CTI INPUTS'!D13))+(AJ60*('CTI INPUTS'!D14)) -> 0 | BZ60: =(O60*('CTI INPUTS'!D19))+(U60*('CTI INPUTS'!D18))+(AJ60*('CTI INPUTS'!D14)) -> 0 | CA60: =(Z60*'CTI INPUTS'!D15)+(O60*'CTI INPUTS'!D16) -> 0 | CC60: =(AE60*('CTI INPUTS'!D12)) -> 0 | CD60: =(AF60*('CTI INPUTS'!D13)) -> 0 | CE60: =(AG60*('CTI INPUTS'!D14)) -> 0 | CF60: =(AH60*('CTI INPUTS'!D12)) -> 0 | CG60: =(AI60*('CTI INPUTS'!D13)) -> 0 | CH60: =(AJ60*('CTI INPUTS'!D14)) -> 0 | CJ60: =AL60*'CTI INPUTS'!D42 -> 0 | CK60: =AM60*'CTI INPUTS'!D43 -> 0 | CL60: =AN60*'CTI INPUTS'!D44 -> 0 | CM60: =AS60*'CTI INPUTS'!D45 -> 0 | CN60: =AO60*'CTI INPUTS'!D42 -> 0 | CO60: =AP60*'CTI INPUTS'!D43 -> 0 | CP60: =AQ60*'CTI INPUTS'!D44 -> 0 | CQ60: =AT60*'CTI INPUTS'!D45 -> 0
C61: 4in | D61: =ProjectData!G43 -> 0 | F61: =D61*16 -> 0 | H61: =D61*2 -> 0 | I61: =D61*0 -> 0 | K61: =D61*'CTI INPUTS'!W14 -> 0 | L61: =D61*'CTI INPUTS'!Y14 -> 0 | N61: =D61*3 -> 0 | O61: 0 | Q61: =(8*N61)/12 -> 0 | R61: =(8*O61)/12 -> 0 | T61: =N61*'CTI INPUTS'!C48 -> 0 | U61: =O61*'CTI INPUTS'!C48 -> 0 | Y61: =N61*'CTI INPUTS'!C51 -> 0 | Z61: =O61*'CTI INPUTS'!C51 -> 0 | AE61: =N61*4 -> 0 | AF61: =N61*4 -> 0 | AG61: =N61*4 -> 0 | AH61: =O61*4 -> 0 | AI61: =O61*4 -> 0 | AJ61: =O61*4 -> 0 | AL61: =N61*2 -> 0 | AM61: =N61*2 -> 0 | AN61: =N61*2 -> 0 | AO61: =O61*2 -> 0 | AP61: =O61*2 -> 0 | AQ61: =O61*2 -> 0 | AS61: =N61*2 -> 0 | AT61: =O61*2 -> 0 | AY61: =(F61/4)*'CTI INPUTS'!C33 -> 0 | AZ61: =(H61*'CTI INPUTS'!C34)+(I61*'CTI INPUTS'!C33) -> 0 | BB61: =D61*'CTI INPUTS'!W29 -> 0 | BC61: =D61*'CTI INPUTS'!X29 -> 0 | BE61: =N61*'CTI INPUTS'!C37 -> 0 | BF61: =N61*'CTI INPUTS'!C38 -> 0 | BG61: =N61*'CTI INPUTS'!C39 -> 0 | BH61: =O61*'CTI INPUTS'!C37 -> 0 | BI61: =O61*'CTI INPUTS'!C38 -> 0 | BJ61: =O61*'CTI INPUTS'!C39 -> 0 | BL61: =(AY61*'CTI INPUTS'!C6)/60 -> 0 | BM61: =(AZ61*'CTI INPUTS'!C6)/60 -> 0 | BO61: =(BE61/60)*'CTI INPUTS'!C6 -> 0 | BP61: =(BF61/60)*'CTI INPUTS'!C6 -> 0 | BQ61: =(BG61/60)*'CTI INPUTS'!C6 -> 0 | BR61: =(BH61/60)*'CTI INPUTS'!C6 -> 0 | BS61: =(BI61/60)*'CTI INPUTS'!C6 -> 0 | BT61: =(BJ61/60)*'CTI INPUTS'!C6 -> 0 | BV61: =(Q61*('CTI INPUTS'!D17))+(T61*('CTI INPUTS'!D18))+(AE61*('CTI INPUTS'!D12))+(AF61*('CTI INPUTS'!D13))+(AG61*('CTI INPUTS'!D14)) -> 0 | BW61: =(N61*('CTI INPUTS'!D19))+(T61*('CTI INPUTS'!D18))+(AG61*('CTI INPUTS'!D14)) -> 0 | BX61: =(Y61*'CTI INPUTS'!D15)+(N61*'CTI INPUTS'!D16) -> 0 | BY61: =(R61*('CTI INPUTS'!D17))+(U61*('CTI INPUTS'!D18))+(AH61*('CTI INPUTS'!D12))+(AI61*('CTI INPUTS'!D13))+(AJ61*('CTI INPUTS'!D14)) -> 0 | BZ61: =(O61*('CTI INPUTS'!D19))+(U61*('CTI INPUTS'!D18))+(AJ61*('CTI INPUTS'!D14)) -> 0 | CA61: =(Z61*'CTI INPUTS'!D15)+(O61*'CTI INPUTS'!D16) -> 0 | CC61: =(AE61*('CTI INPUTS'!D12)) -> 0 | CD61: =(AF61*('CTI INPUTS'!D13)) -> 0 | CE61: =(AG61*('CTI INPUTS'!D14)) -> 0 | CF61: =(AH61*('CTI INPUTS'!D12)) -> 0 | CG61: =(AI61*('CTI INPUTS'!D13)) -> 0 | CH61: =(AJ61*('CTI INPUTS'!D14)) -> 0 | CJ61: =AL61*'CTI INPUTS'!D42 -> 0 | CK61: =AM61*'CTI INPUTS'!D43 -> 0 | CL61: =AN61*'CTI INPUTS'!D44 -> 0 | CM61: =AS61*'CTI INPUTS'!D45 -> 0 | CN61: =AO61*'CTI INPUTS'!D42 -> 0 | CO61: =AP61*'CTI INPUTS'!D43 -> 0 | CP61: =AQ61*'CTI INPUTS'!D44 -> 0 | CQ61: =AT61*'CTI INPUTS'!D45 -> 0
C62: 6in | D62: =ProjectData!G44 -> 0 | F62: =D62*16 -> 0 | H62: 0 | I62: =D62*0 -> 0 | K62: =D62*'CTI INPUTS'!W15 -> 0 | L62: =D62*'CTI INPUTS'!Y15 -> 0 | N62: 0 | O62: 0 | Q62: =(10*N62)/12 -> 0 | R62: =(10*O62)/12 -> 0 | T62: =N62*'CTI INPUTS'!C48 -> 0 | U62: =O62*'CTI INPUTS'!C48 -> 0 | Y62: =N62*'CTI INPUTS'!C51 -> 0 | Z62: =O62*'CTI INPUTS'!C51 -> 0 | AE62: 0 | AF62: 0 | AG62: 0 | AH62: 0 | AI62: 0 | AJ62: 0 | AL62: 0 | AM62: 0 | AN62: 0 | AO62: 0 | AP62: 0 | AQ62: 0 | AS62: =N62*2 -> 0 | AT62: =O62*2 -> 0 | AY62: =(F62/4)*'CTI INPUTS'!C33 -> 0 | AZ62: =(H62*'CTI INPUTS'!C34)+(I62*'CTI INPUTS'!C33) -> 0 | BB62: =D62*'CTI INPUTS'!W30 -> 0 | BC62: =D62*'CTI INPUTS'!X30 -> 0 | BE62: =N62*'CTI INPUTS'!C37 -> 0 | BF62: =N62*'CTI INPUTS'!C38 -> 0 | BG62: =N62*'CTI INPUTS'!C39 -> 0 | BH62: =O62*'CTI INPUTS'!C37 -> 0 | BI62: =O62*'CTI INPUTS'!C38 -> 0 | BJ62: =O62*'CTI INPUTS'!C39 -> 0 | BL62: =(AY62*'CTI INPUTS'!C6)/60 -> 0 | BM62: =(AZ62*'CTI INPUTS'!C6)/60 -> 0 | BO62: =(BE62/60)*'CTI INPUTS'!C6 -> 0 | BP62: =(BF62/60)*'CTI INPUTS'!C6 -> 0 | BQ62: =(BG62/60)*'CTI INPUTS'!C6 -> 0 | BR62: =(BH62/60)*'CTI INPUTS'!C6 -> 0 | BS62: =(BI62/60)*'CTI INPUTS'!C6 -> 0 | BT62: =(BJ62/60)*'CTI INPUTS'!C6 -> 0 | BV62: =(Q62*('CTI INPUTS'!D17))+(T62*('CTI INPUTS'!D18))+(AE62*('CTI INPUTS'!D12))+(AF62*('CTI INPUTS'!D13))+(AG62*('CTI INPUTS'!D14)) -> 0 | BW62: =(N62*('CTI INPUTS'!D19))+(T62*('CTI INPUTS'!D18))+(AG62*('CTI INPUTS'!D14)) -> 0 | BX62: =(Y62*'CTI INPUTS'!D15)+(N62*'CTI INPUTS'!D16) -> 0 | BY62: =(R62*('CTI INPUTS'!D17))+(U62*('CTI INPUTS'!D18))+(AH62*('CTI INPUTS'!D12))+(AI62*('CTI INPUTS'!D13))+(AJ62*('CTI INPUTS'!D14)) -> 0 | BZ62: =(O62*('CTI INPUTS'!D19))+(U62*('CTI INPUTS'!D18))+(AJ62*('CTI INPUTS'!D14)) -> 0 | CA62: =(Z62*'CTI INPUTS'!D15)+(O62*'CTI INPUTS'!D16) -> 0 | CC62: =(AE62*('CTI INPUTS'!D12)) -> 0 | CD62: =(AF62*('CTI INPUTS'!D13)) -> 0 | CE62: =(AG62*('CTI INPUTS'!D14)) -> 0 | CF62: =(AH62*('CTI INPUTS'!D12)) -> 0 | CG62: =(AI62*('CTI INPUTS'!D13)) -> 0 | CH62: =(AJ62*('CTI INPUTS'!D14)) -> 0 | CJ62: =AL62*'CTI INPUTS'!D42 -> 0 | CK62: =AM62*'CTI INPUTS'!D43 -> 0 | CL62: =AN62*'CTI INPUTS'!D44 -> 0 | CM62: =AS62*'CTI INPUTS'!D45 -> 0 | CN62: =AO62*'CTI INPUTS'!D42 -> 0 | CO62: =AP62*'CTI INPUTS'!D43 -> 0 | CP62: =AQ62*'CTI INPUTS'!D44 -> 0 | CQ62: =AT62*'CTI INPUTS'!D45 -> 0
C63: 8in | D63: =ProjectData!G45 -> 0 | F63: =D63*20 -> 0 | H63: 0 | I63: =D63*4 -> 0 | K63: =D63*'CTI INPUTS'!W16 -> 0 | L63: =D63*'CTI INPUTS'!Y16 -> 0 | N63: 0 | O63: 0 | Q63: =(12*N63)/12 -> 0 | R63: =(12*O63)/12 -> 0 | T63: =N63*'CTI INPUTS'!C48 -> 0 | U63: =O63*'CTI INPUTS'!C48 -> 0 | Y63: =N63*'CTI INPUTS'!C51 -> 0 | Z63: =O63*'CTI INPUTS'!C51 -> 0 | AE63: 0 | AF63: 0 | AG63: 0 | AH63: 0 | AI63: 0 | AJ63: 0 | AL63: 0 | AM63: 0 | AN63: 0 | AO63: 0 | AP63: 0 | AQ63: 0 | AS63: 0 | AT63: 0 | AY63: =(F63/4)*'CTI INPUTS'!C33 -> 0 | AZ63: =(H63*'CTI INPUTS'!C34)+(I63*'CTI INPUTS'!C33) -> 0 | BB63: =D63*'CTI INPUTS'!W31 -> 0 | BC63: =D63*'CTI INPUTS'!X31 -> 0 | BE63: =N63*'CTI INPUTS'!C37 -> 0 | BF63: =N63*'CTI INPUTS'!C38 -> 0 | BG63: =N63*'CTI INPUTS'!C39 -> 0 | BH63: =O63*'CTI INPUTS'!C37 -> 0 | BI63: =O63*'CTI INPUTS'!C38 -> 0 | BJ63: =O63*'CTI INPUTS'!C39 -> 0 | BL63: =(AY63*'CTI INPUTS'!C6)/60 -> 0 | BM63: =(AZ63*'CTI INPUTS'!C6)/60 -> 0 | BO63: =(BE63/60)*'CTI INPUTS'!C6 -> 0 | BP63: =(BF63/60)*'CTI INPUTS'!C6 -> 0 | BQ63: =(BG63/60)*'CTI INPUTS'!C6 -> 0 | BR63: =(BH63/60)*'CTI INPUTS'!C6 -> 0 | BS63: =(BI63/60)*'CTI INPUTS'!C6 -> 0 | BT63: =(BJ63/60)*'CTI INPUTS'!C6 -> 0 | BV63: =(Q63*('CTI INPUTS'!D17))+(T63*('CTI INPUTS'!D18))+(AE63*('CTI INPUTS'!D12))+(AF63*('CTI INPUTS'!D13))+(AG63*('CTI INPUTS'!D14)) -> 0 | BW63: =(N63*('CTI INPUTS'!D19))+(T63*('CTI INPUTS'!D18))+(AG63*('CTI INPUTS'!D14)) -> 0 | BX63: =(Y63*'CTI INPUTS'!D15)+(N63*'CTI INPUTS'!D16) -> 0 | BY63: =(R63*('CTI INPUTS'!D17))+(U63*('CTI INPUTS'!D18))+(AH63*('CTI INPUTS'!D12))+(AI63*('CTI INPUTS'!D13))+(AJ63*('CTI INPUTS'!D14)) -> 0 | BZ63: =(O63*('CTI INPUTS'!D19))+(U63*('CTI INPUTS'!D18))+(AJ63*('CTI INPUTS'!D14)) -> 0 | CA63: =(Z63*'CTI INPUTS'!D15)+(O63*'CTI INPUTS'!D16) -> 0 | CC63: =(AE63*('CTI INPUTS'!D12)) -> 0 | CD63: =(AF63*('CTI INPUTS'!D13)) -> 0 | CE63: =(AG63*('CTI INPUTS'!D14)) -> 0 | CF63: =(AH63*('CTI INPUTS'!D12)) -> 0 | CG63: =(AI63*('CTI INPUTS'!D13)) -> 0 | CH63: =(AJ63*('CTI INPUTS'!D14)) -> 0 | CJ63: =AL63*'CTI INPUTS'!D42 -> 0 | CK63: =AM63*'CTI INPUTS'!D43 -> 0 | CL63: =AN63*'CTI INPUTS'!D44 -> 0 | CM63: =AS63*'CTI INPUTS'!D45 -> 0 | CN63: =AO63*'CTI INPUTS'!D42 -> 0 | CO63: =AP63*'CTI INPUTS'!D43 -> 0 | CP63: =AQ63*'CTI INPUTS'!D44 -> 0 | CQ63: =AT63*'CTI INPUTS'!D45 -> 0
C64: 10in | D64: =ProjectData!G46 -> 0 | F64: =D64*20 -> 0 | H64: 0 | I64: =D64*4 -> 0 | K64: =D64*'CTI INPUTS'!W17 -> 0 | L64: =D64*'CTI INPUTS'!Y17 -> 0 | N64: 0 | O64: 0 | Q64: =(14*N64)/12 -> 0 | R64: =(14*O64)/12 -> 0 | T64: =N64*'CTI INPUTS'!C48 -> 0 | U64: =O64*'CTI INPUTS'!C48 -> 0 | Y64: =N64*'CTI INPUTS'!C51 -> 0 | Z64: =O64*'CTI INPUTS'!C51 -> 0 | AE64: 0 | AF64: 0 | AG64: 0 | AH64: 0 | AI64: 0 | AJ64: 0 | AL64: 0 | AM64: 0 | AN64: 0 | AO64: 0 | AP64: 0 | AQ64: 0 | AS64: 0 | AT64: 0 | AY64: =(F64/4)*'CTI INPUTS'!C33 -> 0 | AZ64: =(H64*'CTI INPUTS'!C34)+(I64*'CTI INPUTS'!C33) -> 0 | BB64: =D64*'CTI INPUTS'!W32 -> 0 | BC64: =D64*'CTI INPUTS'!X32 -> 0 | BE64: =N64*'CTI INPUTS'!C37 -> 0 | BF64: =N64*'CTI INPUTS'!C38 -> 0 | BG64: =N64*'CTI INPUTS'!C39 -> 0 | BH64: =O64*'CTI INPUTS'!C37 -> 0 | BI64: =O64*'CTI INPUTS'!C38 -> 0 | BJ64: =O64*'CTI INPUTS'!C39 -> 0 | BL64: =(AY64*'CTI INPUTS'!C6)/60 -> 0 | BM64: =(AZ64*'CTI INPUTS'!C6)/60 -> 0 | BO64: =(BE64/60)*'CTI INPUTS'!C6 -> 0 | BP64: =(BF64/60)*'CTI INPUTS'!C6 -> 0 | BQ64: =(BG64/60)*'CTI INPUTS'!C6 -> 0 | BR64: =(BH64/60)*'CTI INPUTS'!C6 -> 0 | BS64: =(BI64/60)*'CTI INPUTS'!C6 -> 0 | BT64: =(BJ64/60)*'CTI INPUTS'!C6 -> 0 | BV64: =(Q64*('CTI INPUTS'!D17))+(T64*('CTI INPUTS'!D18))+(AE64*('CTI INPUTS'!D12))+(AF64*('CTI INPUTS'!D13))+(AG64*('CTI INPUTS'!D14)) -> 0 | BW64: =(N64*('CTI INPUTS'!D19))+(T64*('CTI INPUTS'!D18))+(AG64*('CTI INPUTS'!D14)) -> 0 | BX64: =(Y64*'CTI INPUTS'!D15)+(N64*'CTI INPUTS'!D16) -> 0 | BY64: =(R64*('CTI INPUTS'!D17))+(U64*('CTI INPUTS'!D18))+(AH64*('CTI INPUTS'!D12))+(AI64*('CTI INPUTS'!D13))+(AJ64*('CTI INPUTS'!D14)) -> 0 | BZ64: =(O64*('CTI INPUTS'!D19))+(U64*('CTI INPUTS'!D18))+(AJ64*('CTI INPUTS'!D14)) -> 0 | CA64: =(Z64*'CTI INPUTS'!D15)+(O64*'CTI INPUTS'!D16) -> 0 | CC64: =(AE64*('CTI INPUTS'!D12)) -> 0 | CD64: =(AF64*('CTI INPUTS'!D13)) -> 0 | CE64: =(AG64*('CTI INPUTS'!D14)) -> 0 | CF64: =(AH64*('CTI INPUTS'!D12)) -> 0 | CG64: =(AI64*('CTI INPUTS'!D13)) -> 0 | CH64: =(AJ64*('CTI INPUTS'!D14)) -> 0 | CJ64: =AL64*'CTI INPUTS'!D42 -> 0 | CK64: =AM64*'CTI INPUTS'!D43 -> 0 | CL64: =AN64*'CTI INPUTS'!D44 -> 0 | CM64: =AS64*'CTI INPUTS'!D45 -> 0 | CN64: =AO64*'CTI INPUTS'!D42 -> 0 | CO64: =AP64*'CTI INPUTS'!D43 -> 0 | CP64: =AQ64*'CTI INPUTS'!D44 -> 0 | CQ64: =AT64*'CTI INPUTS'!D45 -> 0
C65: 12in | D65: =ProjectData!G47 -> 12 | F65: =D65*24 -> 288 | H65: 24 | I65: =D65*4 -> 48 | K65: =D65*'CTI INPUTS'!W18 -> 432 | L65: =D65*'CTI INPUTS'!Y18 -> 0 | N65: 36 | O65: 24 | Q65: =(16*N65)/12 -> 48 | R65: =(16*O65)/12 -> 32 | T65: =N65*'CTI INPUTS'!C48 -> 144 | U65: =O65*'CTI INPUTS'!C48 -> 96 | Y65: =N65*'CTI INPUTS'!C51 -> 216 | Z65: =O65*'CTI INPUTS'!C51 -> 144 | AE65: 144 | AF65: 144 | AG65: 144 | AH65: 96 | AI65: 96 | AJ65: 96 | AL65: 72 | AM65: 72 | AN65: 72 | AO65: 48 | AP65: 48 | AQ65: 48 | AS65: 72 | AT65: 48 | AY65: =(F65/4)*'CTI INPUTS'!C33 -> 36 | AZ65: =(H65*'CTI INPUTS'!C34)+(I65*'CTI INPUTS'!C33) -> 28.8 | BB65: =D65*'CTI INPUTS'!W33 -> 21.6 | BC65: =D65*'CTI INPUTS'!X33 -> 0 | BE65: =N65*'CTI INPUTS'!C37 -> 144 | BF65: =N65*'CTI INPUTS'!C38 -> 108 | BG65: =N65*'CTI INPUTS'!C39 -> 72 | BH65: =O65*'CTI INPUTS'!C37 -> 96 | BI65: =O65*'CTI INPUTS'!C38 -> 72 | BJ65: =O65*'CTI INPUTS'!C39 -> 48 | BL65: =(AY65*'CTI INPUTS'!C6)/60 -> 60 | BM65: =(AZ65*'CTI INPUTS'!C6)/60 -> 48 | BO65: =(BE65/60)*'CTI INPUTS'!C6 -> 240 | BP65: =(BF65/60)*'CTI INPUTS'!C6 -> 180 | BQ65: =(BG65/60)*'CTI INPUTS'!C6 -> 120 | BR65: =(BH65/60)*'CTI INPUTS'!C6 -> 160 | BS65: =(BI65/60)*'CTI INPUTS'!C6 -> 120 | BT65: =(BJ65/60)*'CTI INPUTS'!C6 -> 80 | BV65: =(Q65*('CTI INPUTS'!D17))+(T65*('CTI INPUTS'!D18))+(AE65*('CTI INPUTS'!D12))+(AF65*('CTI INPUTS'!D13))+(AG65*('CTI INPUTS'!D14)) -> 662.4 | BW65: =(N65*('CTI INPUTS'!D19))+(T65*('CTI INPUTS'!D18))+(AG65*('CTI INPUTS'!D14)) -> 460.44 | BX65: =(Y65*'CTI INPUTS'!D15)+(N65*'CTI INPUTS'!D16) -> 360 | BY65: =(R65*('CTI INPUTS'!D17))+(U65*('CTI INPUTS'!D18))+(AH65*('CTI INPUTS'!D12))+(AI65*('CTI INPUTS'!D13))+(AJ65*('CTI INPUTS'!D14)) -> 441.6 | BZ65: =(O65*('CTI INPUTS'!D19))+(U65*('CTI INPUTS'!D18))+(AJ65*('CTI INPUTS'!D14)) -> 306.96 | CA65: =(Z65*'CTI INPUTS'!D15)+(O65*'CTI INPUTS'!D16) -> 240 | CC65: =(AE65*('CTI INPUTS'!D12)) -> 144 | CD65: =(AF65*('CTI INPUTS'!D13)) -> 21.6 | CE65: =(AG65*('CTI INPUTS'!D14)) -> 36 | CF65: =(AH65*('CTI INPUTS'!D12)) -> 96 | CG65: =(AI65*('CTI INPUTS'!D13)) -> 14.4 | CH65: =(AJ65*('CTI INPUTS'!D14)) -> 24 | CJ65: =AL65*'CTI INPUTS'!D42 -> 144.72 | CK65: =AM65*'CTI INPUTS'!D43 -> 50.4 | CL65: =AN65*'CTI INPUTS'!D44 -> 64.8 | CM65: =AS65*'CTI INPUTS'!D45 -> 198 | CN65: =AO65*'CTI INPUTS'!D42 -> 96.48 | CO65: =AP65*'CTI INPUTS'!D43 -> 33.6 | CP65: =AQ65*'CTI INPUTS'!D44 -> 43.2 | CQ65: =AT65*'CTI INPUTS'!D45 -> 132
C66: 16in | D66: =ProjectData!G48 -> 0 | F66: =D66*24 -> 0 | H66: 0 | I66: =D66*8 -> 0 | K66: =D66*'CTI INPUTS'!W19 -> 0 | L66: =D66*'CTI INPUTS'!Y19 -> 0 | N66: 0 | O66: 0 | Q66: =(20*N66)/12 -> 0 | R66: =(20*O66)/12 -> 0 | T66: =N66*'CTI INPUTS'!C48 -> 0 | U66: =O66*'CTI INPUTS'!C48 -> 0 | Y66: =N66*'CTI INPUTS'!C51 -> 0 | Z66: =O66*'CTI INPUTS'!C51 -> 0 | AE66: 0 | AF66: 0 | AG66: 0 | AH66: 0 | AI66: 0 | AJ66: 0 | AL66: 0 | AM66: 0 | AN66: 0 | AO66: 0 | AP66: 0 | AQ66: 0 | AS66: 0 | AT66: 0 | AY66: =(F66/4)*'CTI INPUTS'!C33 -> 0 | AZ66: =(H66*'CTI INPUTS'!C34)+(I66*'CTI INPUTS'!C33) -> 0 | BB66: =D66*'CTI INPUTS'!W34 -> 0 | BC66: =D66*'CTI INPUTS'!X34 -> 0 | BE66: =N66*'CTI INPUTS'!C37 -> 0 | BF66: =N66*'CTI INPUTS'!C38 -> 0 | BG66: =N66*'CTI INPUTS'!C39 -> 0 | BH66: =O66*'CTI INPUTS'!C37 -> 0 | BI66: =O66*'CTI INPUTS'!C38 -> 0 | BJ66: =O66*'CTI INPUTS'!C39 -> 0 | BL66: =(AY66*'CTI INPUTS'!C6)/60 -> 0 | BM66: =(AZ66*'CTI INPUTS'!C6)/60 -> 0 | BO66: =(BE66/60)*'CTI INPUTS'!C6 -> 0 | BP66: =(BF66/60)*'CTI INPUTS'!C6 -> 0 | BQ66: =(BG66/60)*'CTI INPUTS'!C6 -> 0 | BR66: =(BH66/60)*'CTI INPUTS'!C6 -> 0 | BS66: =(BI66/60)*'CTI INPUTS'!C6 -> 0 | BT66: =(BJ66/60)*'CTI INPUTS'!C6 -> 0 | BV66: =(Q66*('CTI INPUTS'!D17))+(T66*('CTI INPUTS'!D18))+(AE66*('CTI INPUTS'!D12))+(AF66*('CTI INPUTS'!D13))+(AG66*('CTI INPUTS'!D14)) -> 0 | BW66: =(N66*('CTI INPUTS'!D19))+(T66*('CTI INPUTS'!D18))+(AG66*('CTI INPUTS'!D14)) -> 0 | BX66: =(Y66*'CTI INPUTS'!D15)+(N66*'CTI INPUTS'!D16) -> 0 | BY66: =(R66*('CTI INPUTS'!D17))+(U66*('CTI INPUTS'!D18))+(AH66*('CTI INPUTS'!D12))+(AI66*('CTI INPUTS'!D13))+(AJ66*('CTI INPUTS'!D14)) -> 0 | BZ66: =(O66*('CTI INPUTS'!D19))+(U66*('CTI INPUTS'!D18))+(AJ66*('CTI INPUTS'!D14)) -> 0 | CA66: =(Z66*'CTI INPUTS'!D15)+(O66*'CTI INPUTS'!D16) -> 0 | CC66: =(AE66*('CTI INPUTS'!D12)) -> 0 | CD66: =(AF66*('CTI INPUTS'!D13)) -> 0 | CE66: =(AG66*('CTI INPUTS'!D14)) -> 0 | CF66: =(AH66*('CTI INPUTS'!D12)) -> 0 | CG66: =(AI66*('CTI INPUTS'!D13)) -> 0 | CH66: =(AJ66*('CTI INPUTS'!D14)) -> 0 | CJ66: =AL66*'CTI INPUTS'!D42 -> 0 | CK66: =AM66*'CTI INPUTS'!D43 -> 0 | CL66: =AN66*'CTI INPUTS'!D44 -> 0 | CM66: =AS66*'CTI INPUTS'!D45 -> 0 | CN66: =AO66*'CTI INPUTS'!D42 -> 0 | CO66: =AP66*'CTI INPUTS'!D43 -> 0 | CP66: =AQ66*'CTI INPUTS'!D44 -> 0 | CQ66: =AT66*'CTI INPUTS'!D45 -> 0
C67: 18in | D67: =ProjectData!G49 -> 0 | F67: =D67*24 -> 0 | H67: 0 | I67: =D67*8 -> 0 | K67: =D67*'CTI INPUTS'!W20 -> 0 | L67: =D67*'CTI INPUTS'!Y20 -> 0 | N67: 0 | O67: 0 | Q67: =(22*N67)/12 -> 0 | R67: =(22*O67)/12 -> 0 | T67: =N67*'CTI INPUTS'!C48 -> 0 | U67: =O67*'CTI INPUTS'!C48 -> 0 | Y67: =N67*'CTI INPUTS'!C51 -> 0 | Z67: =O67*'CTI INPUTS'!C51 -> 0 | AE67: 0 | AF67: 0 | AG67: 0 | AH67: 0 | AI67: 0 | AJ67: 0 | AL67: 0 | AM67: 0 | AN67: 0 | AO67: 0 | AP67: 0 | AQ67: 0 | AS67: 0 | AT67: 0 | AY67: =(F67/4)*'CTI INPUTS'!C33 -> 0 | AZ67: =(H67*'CTI INPUTS'!C34)+(I67*'CTI INPUTS'!C33) -> 0 | BB67: =D67*'CTI INPUTS'!W35 -> 0 | BC67: =D67*'CTI INPUTS'!X35 -> 0 | BE67: =N67*'CTI INPUTS'!C37 -> 0 | BF67: =N67*'CTI INPUTS'!C38 -> 0 | BG67: =N67*'CTI INPUTS'!C39 -> 0 | BH67: =O67*'CTI INPUTS'!C37 -> 0 | BI67: =O67*'CTI INPUTS'!C38 -> 0 | BJ67: =O67*'CTI INPUTS'!C39 -> 0 | BL67: =(AY67*'CTI INPUTS'!C6)/60 -> 0 | BM67: =(AZ67*'CTI INPUTS'!C6)/60 -> 0 | BO67: =(BE67/60)*'CTI INPUTS'!C6 -> 0 | BP67: =(BF67/60)*'CTI INPUTS'!C6 -> 0 | BQ67: =(BG67/60)*'CTI INPUTS'!C6 -> 0 | BR67: =(BH67/60)*'CTI INPUTS'!C6 -> 0 | BS67: =(BI67/60)*'CTI INPUTS'!C6 -> 0 | BT67: =(BJ67/60)*'CTI INPUTS'!C6 -> 0 | BV67: =(Q67*('CTI INPUTS'!D17))+(T67*('CTI INPUTS'!D18))+(AE67*('CTI INPUTS'!D12))+(AF67*('CTI INPUTS'!D13))+(AG67*('CTI INPUTS'!D14)) -> 0 | BW67: =(N67*('CTI INPUTS'!D19))+(T67*('CTI INPUTS'!D18))+(AG67*('CTI INPUTS'!D14)) -> 0 | BX67: =(Y67*'CTI INPUTS'!D15)+(N67*'CTI INPUTS'!D16) -> 0 | BY67: =(R67*('CTI INPUTS'!D17))+(U67*('CTI INPUTS'!D18))+(AH67*('CTI INPUTS'!D12))+(AI67*('CTI INPUTS'!D13))+(AJ67*('CTI INPUTS'!D14)) -> 0 | BZ67: =(O67*('CTI INPUTS'!D19))+(U67*('CTI INPUTS'!D18))+(AJ67*('CTI INPUTS'!D14)) -> 0 | CA67: =(Z67*'CTI INPUTS'!D15)+(O67*'CTI INPUTS'!D16) -> 0 | CC67: =(AE67*('CTI INPUTS'!D12)) -> 0 | CD67: =(AF67*('CTI INPUTS'!D13)) -> 0 | CE67: =(AG67*('CTI INPUTS'!D14)) -> 0 | CF67: =(AH67*('CTI INPUTS'!D12)) -> 0 | CG67: =(AI67*('CTI INPUTS'!D13)) -> 0 | CH67: =(AJ67*('CTI INPUTS'!D14)) -> 0 | CJ67: =AL67*'CTI INPUTS'!D42 -> 0 | CK67: =AM67*'CTI INPUTS'!D43 -> 0 | CL67: =AN67*'CTI INPUTS'!D44 -> 0 | CM67: =AS67*'CTI INPUTS'!D45 -> 0 | CN67: =AO67*'CTI INPUTS'!D42 -> 0 | CO67: =AP67*'CTI INPUTS'!D43 -> 0 | CP67: =AQ67*'CTI INPUTS'!D44 -> 0 | CQ67: =AT67*'CTI INPUTS'!D45 -> 0
C68: 20in | D68: =ProjectData!G50 -> 0 | F68: =D68*28 -> 0 | H68: 0 | I68: =D68*8 -> 0 | K68: =D68*'CTI INPUTS'!W21 -> 0 | L68: =D68*'CTI INPUTS'!Y21 -> 0 | N68: 0 | O68: 0 | Q68: =(24*N68)/12 -> 0 | R68: =(24*O68)/12 -> 0 | T68: =N68*'CTI INPUTS'!C48 -> 0 | U68: =O68*'CTI INPUTS'!C48 -> 0 | Y68: =N68*'CTI INPUTS'!C51 -> 0 | Z68: =O68*'CTI INPUTS'!C51 -> 0 | AE68: 0 | AF68: 0 | AG68: 0 | AH68: 0 | AI68: 0 | AJ68: 0 | AL68: 0 | AM68: 0 | AN68: 0 | AO68: 0 | AP68: 0 | AQ68: 0 | AS68: 0 | AT68: 0 | AY68: =(F68/4)*'CTI INPUTS'!C33 -> 0 | AZ68: =(H68*'CTI INPUTS'!C34)+(I68*'CTI INPUTS'!C33) -> 0 | BB68: =D68*'CTI INPUTS'!W36 -> 0 | BC68: =D68*'CTI INPUTS'!X36 -> 0 | BE68: =N68*'CTI INPUTS'!C37 -> 0 | BF68: =N68*'CTI INPUTS'!C38 -> 0 | BG68: =N68*'CTI INPUTS'!C39 -> 0 | BH68: =O68*'CTI INPUTS'!C37 -> 0 | BI68: =O68*'CTI INPUTS'!C38 -> 0 | BJ68: =O68*'CTI INPUTS'!C39 -> 0 | BL68: =(AY68*'CTI INPUTS'!C6)/60 -> 0 | BM68: =(AZ68*'CTI INPUTS'!C6)/60 -> 0 | BO68: =(BE68/60)*'CTI INPUTS'!C6 -> 0 | BP68: =(BF68/60)*'CTI INPUTS'!C6 -> 0 | BQ68: =(BG68/60)*'CTI INPUTS'!C6 -> 0 | BR68: =(BH68/60)*'CTI INPUTS'!C6 -> 0 | BS68: =(BI68/60)*'CTI INPUTS'!C6 -> 0 | BT68: =(BJ68/60)*'CTI INPUTS'!C6 -> 0 | BV68: =(Q68*('CTI INPUTS'!D17))+(T68*('CTI INPUTS'!D18))+(AE68*('CTI INPUTS'!D12))+(AF68*('CTI INPUTS'!D13))+(AG68*('CTI INPUTS'!D14)) -> 0 | BW68: =(N68*('CTI INPUTS'!D19))+(T68*('CTI INPUTS'!D18))+(AG68*('CTI INPUTS'!D14)) -> 0 | BX68: =(Y68*'CTI INPUTS'!D15)+(N68*'CTI INPUTS'!D16) -> 0 | BY68: =(R68*('CTI INPUTS'!D17))+(U68*('CTI INPUTS'!D18))+(AH68*('CTI INPUTS'!D12))+(AI68*('CTI INPUTS'!D13))+(AJ68*('CTI INPUTS'!D14)) -> 0 | BZ68: =(O68*('CTI INPUTS'!D19))+(U68*('CTI INPUTS'!D18))+(AJ68*('CTI INPUTS'!D14)) -> 0 | CA68: =(Z68*'CTI INPUTS'!D15)+(O68*'CTI INPUTS'!D16) -> 0 | CC68: =(AE68*('CTI INPUTS'!D12)) -> 0 | CD68: =(AF68*('CTI INPUTS'!D13)) -> 0 | CE68: =(AG68*('CTI INPUTS'!D14)) -> 0 | CF68: =(AH68*('CTI INPUTS'!D12)) -> 0 | CG68: =(AI68*('CTI INPUTS'!D13)) -> 0 | CH68: =(AJ68*('CTI INPUTS'!D14)) -> 0 | CJ68: =AL68*'CTI INPUTS'!D42 -> 0 | CK68: =AM68*'CTI INPUTS'!D43 -> 0 | CL68: =AN68*'CTI INPUTS'!D44 -> 0 | CM68: =AS68*'CTI INPUTS'!D45 -> 0 | CN68: =AO68*'CTI INPUTS'!D42 -> 0 | CO68: =AP68*'CTI INPUTS'!D43 -> 0 | CP68: =AQ68*'CTI INPUTS'!D44 -> 0 | CQ68: =AT68*'CTI INPUTS'!D45 -> 0
C69: 24in | D69: =ProjectData!G51 -> 0 | F69: =D69*28 -> 0 | H69: 0 | I69: =D69*8 -> 0 | K69: =D69*'CTI INPUTS'!W22 -> 0 | L69: =D69*'CTI INPUTS'!Y22 -> 0 | N69: 0 | O69: 0 | Q69: =(28*N69)/12 -> 0 | R69: =(28*O69)/12 -> 0 | T69: =N69*'CTI INPUTS'!C48 -> 0 | U69: =O69*'CTI INPUTS'!C48 -> 0 | Y69: =N69*'CTI INPUTS'!C51 -> 0 | Z69: =O69*'CTI INPUTS'!C51 -> 0 | AE69: 0 | AF69: 0 | AG69: 0 | AH69: 0 | AI69: 0 | AJ69: 0 | AL69: 0 | AM69: 0 | AN69: 0 | AO69: 0 | AP69: 0 | AQ69: 0 | AS69: 0 | AT69: 0 | AY69: =(F69/4)*'CTI INPUTS'!C33 -> 0 | AZ69: =(H69*'CTI INPUTS'!C34)+(I69*'CTI INPUTS'!C33) -> 0 | BB69: =D69*'CTI INPUTS'!W37 -> 0 | BC69: =D69*'CTI INPUTS'!X37 -> 0 | BE69: =N69*'CTI INPUTS'!C37 -> 0 | BF69: =N69*'CTI INPUTS'!C38 -> 0 | BG69: =N69*'CTI INPUTS'!C39 -> 0 | BH69: =O69*'CTI INPUTS'!C37 -> 0 | BI69: =O69*'CTI INPUTS'!C38 -> 0 | BJ69: =O69*'CTI INPUTS'!C39 -> 0 | BL69: =(AY69*'CTI INPUTS'!C6)/60 -> 0 | BM69: =(AZ69*'CTI INPUTS'!C6)/60 -> 0 | BO69: =(BE69/60)*'CTI INPUTS'!C6 -> 0 | BP69: =(BF69/60)*'CTI INPUTS'!C6 -> 0 | BQ69: =(BG69/60)*'CTI INPUTS'!C6 -> 0 | BR69: =(BH69/60)*'CTI INPUTS'!C6 -> 0 | BS69: =(BI69/60)*'CTI INPUTS'!C6 -> 0 | BT69: =(BJ69/60)*'CTI INPUTS'!C6 -> 0 | BV69: =(Q69*('CTI INPUTS'!D17))+(T69*('CTI INPUTS'!D18))+(AE69*('CTI INPUTS'!D12))+(AF69*('CTI INPUTS'!D13))+(AG69*('CTI INPUTS'!D14)) -> 0 | BW69: =(N69*('CTI INPUTS'!D19))+(T69*('CTI INPUTS'!D18))+(AG69*('CTI INPUTS'!D14)) -> 0 | BX69: =(Y69*'CTI INPUTS'!D15)+(N69*'CTI INPUTS'!D16) -> 0 | BY69: =(R69*('CTI INPUTS'!D17))+(U69*('CTI INPUTS'!D18))+(AH69*('CTI INPUTS'!D12))+(AI69*('CTI INPUTS'!D13))+(AJ69*('CTI INPUTS'!D14)) -> 0 | BZ69: =(O69*('CTI INPUTS'!D19))+(U69*('CTI INPUTS'!D18))+(AJ69*('CTI INPUTS'!D14)) -> 0 | CA69: =(Z69*'CTI INPUTS'!D15)+(O69*'CTI INPUTS'!D16) -> 0 | CC69: =(AE69*('CTI INPUTS'!D12)) -> 0 | CD69: =(AF69*('CTI INPUTS'!D13)) -> 0 | CE69: =(AG69*('CTI INPUTS'!D14)) -> 0 | CF69: =(AH69*('CTI INPUTS'!D12)) -> 0 | CG69: =(AI69*('CTI INPUTS'!D13)) -> 0 | CH69: =(AJ69*('CTI INPUTS'!D14)) -> 0 | CJ69: =AL69*'CTI INPUTS'!D42 -> 0 | CK69: =AM69*'CTI INPUTS'!D43 -> 0 | CL69: =AN69*'CTI INPUTS'!D44 -> 0 | CM69: =AS69*'CTI INPUTS'!D45 -> 0 | CN69: =AO69*'CTI INPUTS'!D42 -> 0 | CO69: =AP69*'CTI INPUTS'!D43 -> 0 | CP69: =AQ69*'CTI INPUTS'!D44 -> 0 | CQ69: =AT69*'CTI INPUTS'!D45 -> 0
C70: 30in | D70: =ProjectData!G52 -> 0 | F70: =D70*32 -> 0 | H70: 0 | I70: =D70*12 -> 0 | K70: =D70*'CTI INPUTS'!W23 -> 0 | L70: =D70*'CTI INPUTS'!Y23 -> 0 | N70: 0 | O70: 0 | Q70: =(34*N70)/12 -> 0 | R70: =(34*O70)/12 -> 0 | T70: =N70*'CTI INPUTS'!C48 -> 0 | U70: =O70*'CTI INPUTS'!C48 -> 0 | Y70: =N70*'CTI INPUTS'!C51 -> 0 | Z70: =O70*'CTI INPUTS'!C51 -> 0 | AE70: 0 | AF70: 0 | AG70: 0 | AH70: 0 | AI70: 0 | AJ70: 0 | AL70: 0 | AM70: 0 | AN70: 0 | AO70: 0 | AP70: 0 | AQ70: 0 | AS70: 0 | AT70: 0 | AY70: =(F70/4)*'CTI INPUTS'!C33 -> 0 | AZ70: =(H70*'CTI INPUTS'!C34)+(I70*'CTI INPUTS'!C33) -> 0 | BB70: =D70*'CTI INPUTS'!W38 -> 0 | BC70: =D70*'CTI INPUTS'!X38 -> 0 | BE70: =N70*'CTI INPUTS'!C37 -> 0 | BF70: =N70*'CTI INPUTS'!C38 -> 0 | BG70: =N70*'CTI INPUTS'!C39 -> 0 | BH70: =O70*'CTI INPUTS'!C37 -> 0 | BI70: =O70*'CTI INPUTS'!C38 -> 0 | BJ70: =O70*'CTI INPUTS'!C39 -> 0 | BL70: =(AY70*'CTI INPUTS'!C6)/60 -> 0 | BM70: =(AZ70*'CTI INPUTS'!C6)/60 -> 0 | BO70: =(BE70/60)*'CTI INPUTS'!C6 -> 0 | BP70: =(BF70/60)*'CTI INPUTS'!C6 -> 0 | BQ70: =(BG70/60)*'CTI INPUTS'!C6 -> 0 | BR70: =(BH70/60)*'CTI INPUTS'!C6 -> 0 | BS70: =(BI70/60)*'CTI INPUTS'!C6 -> 0 | BT70: =(BJ70/60)*'CTI INPUTS'!C6 -> 0 | BV70: =(Q70*('CTI INPUTS'!D17))+(T70*('CTI INPUTS'!D18))+(AE70*('CTI INPUTS'!D12))+(AF70*('CTI INPUTS'!D13))+(AG70*('CTI INPUTS'!D14)) -> 0 | BW70: =(N70*('CTI INPUTS'!D19))+(T70*('CTI INPUTS'!D18))+(AG70*('CTI INPUTS'!D14)) -> 0 | BX70: =(Y70*'CTI INPUTS'!D15)+(N70*'CTI INPUTS'!D16) -> 0 | BY70: =(R70*('CTI INPUTS'!D17))+(U70*('CTI INPUTS'!D18))+(AH70*('CTI INPUTS'!D12))+(AI70*('CTI INPUTS'!D13))+(AJ70*('CTI INPUTS'!D14)) -> 0 | BZ70: =(O70*('CTI INPUTS'!D19))+(U70*('CTI INPUTS'!D18))+(AJ70*('CTI INPUTS'!D14)) -> 0 | CA70: =(Z70*'CTI INPUTS'!D15)+(O70*'CTI INPUTS'!D16) -> 0 | CC70: =(AE70*('CTI INPUTS'!D12)) -> 0 | CD70: =(AF70*('CTI INPUTS'!D13)) -> 0 | CE70: =(AG70*('CTI INPUTS'!D14)) -> 0 | CF70: =(AH70*('CTI INPUTS'!D12)) -> 0 | CG70: =(AI70*('CTI INPUTS'!D13)) -> 0 | CH70: =(AJ70*('CTI INPUTS'!D14)) -> 0 | CJ70: =AL70*'CTI INPUTS'!D42 -> 0 | CK70: =AM70*'CTI INPUTS'!D43 -> 0 | CL70: =AN70*'CTI INPUTS'!D44 -> 0 | CM70: =AS70*'CTI INPUTS'!D45 -> 0 | CN70: =AO70*'CTI INPUTS'!D42 -> 0 | CO70: =AP70*'CTI INPUTS'!D43 -> 0 | CP70: =AQ70*'CTI INPUTS'!D44 -> 0 | CQ70: =AT70*'CTI INPUTS'!D45 -> 0
C71: 36in | D71: =ProjectData!G53 -> 0 | F71: =D71*32 -> 0 | H71: =D71*2 -> 0 | I71: =D71*12 -> 0 | K71: =D71*'CTI INPUTS'!W24 -> 0 | L71: =D71*'CTI INPUTS'!Y24 -> 0 | N71: 0 | O71: 0 | Q71: =(40*N71)/12 -> 0 | R71: =(40*O71)/12 -> 0 | T71: =N71*'CTI INPUTS'!C48 -> 0 | U71: =O71*'CTI INPUTS'!C48 -> 0 | Y71: =N71*'CTI INPUTS'!C51 -> 0 | Z71: =O71*'CTI INPUTS'!C51 -> 0 | AE71: 0 | AF71: 0 | AG71: 0 | AH71: 0 | AI71: 0 | AJ71: 0 | AL71: 0 | AM71: 0 | AN71: 0 | AO71: 0 | AP71: 0 | AQ71: 0 | AS71: 0 | AT71: 0 | AY71: =(F71/4)*'CTI INPUTS'!C33 -> 0 | AZ71: =(H71*'CTI INPUTS'!C34)+(I71*'CTI INPUTS'!C33) -> 0 | BB71: =D71*'CTI INPUTS'!W39 -> 0 | BC71: =D71*'CTI INPUTS'!X39 -> 0 | BE71: =N71*'CTI INPUTS'!C37 -> 0 | BF71: =N71*'CTI INPUTS'!C38 -> 0 | BG71: =N71*'CTI INPUTS'!C39 -> 0 | BH71: =O71*'CTI INPUTS'!C37 -> 0 | BI71: =O71*'CTI INPUTS'!C38 -> 0 | BJ71: =O71*'CTI INPUTS'!C39 -> 0 | BL71: =(AY71*'CTI INPUTS'!C6)/60 -> 0 | BM71: =(AZ71*'CTI INPUTS'!C6)/60 -> 0 | BO71: =(BE71/60)*'CTI INPUTS'!C6 -> 0 | BP71: =(BF71/60)*'CTI INPUTS'!C6 -> 0 | BQ71: =(BG71/60)*'CTI INPUTS'!C6 -> 0 | BR71: =(BH71/60)*'CTI INPUTS'!C6 -> 0 | BS71: =(BI71/60)*'CTI INPUTS'!C6 -> 0 | BT71: =(BJ71/60)*'CTI INPUTS'!C6 -> 0 | BV71: =(Q71*('CTI INPUTS'!D17))+(T71*('CTI INPUTS'!D18))+(AE71*('CTI INPUTS'!D12))+(AF71*('CTI INPUTS'!D13))+(AG71*('CTI INPUTS'!D14)) -> 0 | BW71: =(N71*('CTI INPUTS'!D19))+(T71*('CTI INPUTS'!D18))+(AG71*('CTI INPUTS'!D14)) -> 0 | BX71: =(Y71*'CTI INPUTS'!D15)+(N71*'CTI INPUTS'!D16) -> 0 | BY71: =(R71*('CTI INPUTS'!D17))+(U71*('CTI INPUTS'!D18))+(AH71*('CTI INPUTS'!D12))+(AI71*('CTI INPUTS'!D13))+(AJ71*('CTI INPUTS'!D14)) -> 0 | BZ71: =(O71*('CTI INPUTS'!D19))+(U71*('CTI INPUTS'!D18))+(AJ71*('CTI INPUTS'!D14)) -> 0 | CA71: =(Z71*'CTI INPUTS'!D15)+(O71*'CTI INPUTS'!D16) -> 0 | CC71: =(AE71*('CTI INPUTS'!D12)) -> 0 | CD71: =(AF71*('CTI INPUTS'!D13)) -> 0 | CE71: =(AG71*('CTI INPUTS'!D14)) -> 0 | CF71: =(AH71*('CTI INPUTS'!D12)) -> 0 | CG71: =(AI71*('CTI INPUTS'!D13)) -> 0 | CH71: =(AJ71*('CTI INPUTS'!D14)) -> 0 | CJ71: =AL71*'CTI INPUTS'!D42 -> 0 | CK71: =AM71*'CTI INPUTS'!D43 -> 0 | CL71: =AN71*'CTI INPUTS'!D44 -> 0 | CM71: =AS71*'CTI INPUTS'!D45 -> 0 | CN71: =AO71*'CTI INPUTS'!D42 -> 0 | CO71: =AP71*'CTI INPUTS'!D43 -> 0 | CP71: =AQ71*'CTI INPUTS'!D44 -> 0 | CQ71: =AT71*'CTI INPUTS'!D45 -> 0
F72: =SUM(F60:F71) -> 288 | H72: =SUM((H60:H71)+(I60:I71)) -> 72 | K72: =SUM(K60:K71) -> 432 | L72: =SUM(L60:L71) -> 0 | N72: =SUM(N60:N71) -> 36 | O72: =SUM(O60:O71) -> 24 | Q72: =SUM(Q60:Q71) -> 48 | R72: =SUM(R60:R71) -> 32 | T72: =SUM(T60:T71) -> 144 | U72: =SUM(U60:U71) -> 96 | Y72: =SUM(Y60:Y71) -> 216 | Z72: =SUM(Z60:Z71) -> 144 | AE72: =SUM((AE60:AE71)+(AF60:AF71)+(AG60:AG71)) -> 432 | AH72: =SUM((AH60:AH71)+(AI60:AI71)+(AJ60:AJ71)) -> 288 | AL72: =SUM((AL60:AL71)+(AM60:AM71)+(AN60:AN71)) -> 216 | AO72: =SUM((AO60:AO71)+(AP60:AP71)+(AQ60:AQ71)) -> 144 | AS72: =SUM(AS60:AS71) -> 72 | AT72: =SUM(AT60:AT71) -> 48 | AY72: =SUM(AY60:AY71) -> 36 | AZ72: =SUM(AZ60:AZ71) -> 28.8 | BB72: =SUM(BB60:BB71) -> 21.6 | BC72: =SUM(BC60:BC71) -> 0 | BE72: =SUM(BE60:BE71) -> 144 | BF72: 108 | BG72: 72 | BH72: 96 | BI72: 72 | BJ72: 48 | BL72: =SUM(BL60:BL71) -> 60 | BM72: =SUM(BM60:BM71) -> 48 | BO72: =SUM(BO60:BO71) -> 240 | BP72: 180 | BQ72: 120 | BR72: 160 | BS72: 120 | BT72: 80 | BV72: =SUM(BV60:BV71) -> 662.4 | BW72: 460.44 | BX72: 360 | BY72: 441.6 | BZ72: 306.96 | CA72: 240 | CC72: =SUM((CC60:CC71)+(CD60:CD71)+(CE60:CE71)) -> 201.6 | CF72: =SUM((CF60:CF71)+(CG60:CG71)+(CH60:CH71)) -> 134.4 | CJ72: =SUM((CJ60:CJ71)+(CK60:CK71)+(CL60:CL71)) -> 259.92 | CM72: =SUM(CM60:CM71) -> 198 | CN72: =SUM((CN60:CN71)+(CO60:CO71)+(CP60:CP71)) -> 173.28 | CQ72: =SUM(CQ60:CQ71) -> 132 | CS72: =SUM(CS60:CS71) -> 0 | CT72: =SUM(CT60:CT71) -> 0 | CU72: =SUM(CU60:CU71) -> 0
B74: HORIZONTAL TEE | F74: SPLICE | H74: POSI-LOK | K74: FITTING FABRICATION | N74: SUPPORT QUANTITY | Q74: STRUT L/FT | T74: ATR HANGER (L/FT) | Y74: WIRE HANGER (L/FT) | AE74: VE2 : ATR HARDWARE QUANTITY | AH74: TSS : ATR HARDWARE QUANTITY | AL74: HOLD DOWN & HDWR QUANTITY | AO74: TSS: HOLD DOWN & HDWR QUANTITY | AS74: H-DOWN CLIP QUANTITY | AY74: SPLICE INSTALLATION TIME (MIN) | BB74: FITTING FAB. TIME (MIN) | BE74: VE2 : SUPPORT INSTAL TIME (MIN) | BH74: TSS: SUPPORT INSTALLATION TIME (MIN) | BL74: SPLICE INSTALLATION COST ($) | BO74: SUPPORT INSTALLATION COST ($) | BR74: TSS: SUPPORT INSTALLATION COST ($) | BV74: SUPPORT COST ($) | BY74: TSS: SUPPORT COST ($) | CC74: ATR HARDWARE COST $ | CF74: TSS: ATR HARDWARE COST $ | CJ74: HOLD DOWN CLAMPS & HARDWARE COST ($) | CN74: TSS: HOLD DOWN CLAMPS & HARDWARE COST ($) | CS74: SUPPORT WEIGHT (LBS)
B76: HEIGHT | C76: WIDTH | D76: QUANTITY | F76: WSKIT | H76: PLOK | I76: WSKIT | K76: CUTS QTY | L76: WSKIT (pcs) | N76: FAB (VE2) | O76: C2G (TSS) | Q76: FAB (VE2) | R76: C2G (TSS) | T76: FAB (VE2) | U76: C2G (TSS) | Y76: FAB (VE2) | Z76: C2G (TSS) | AE76: SQ WSHR | AF76: FLT WSHR | AG76: HEX NUT | AH76: SQ WSHR | AI76: FLT WSHR | AJ76: HEX NUT | AL76: FLXW | AM76: 25HX | AN76: 25NC | AO76: FLXW | AP76: 25HX | AQ76: 25NC | AS76: VE2 : SRC (pc) | AT76: TSS : SRC (pc) | AY76: WSKIT | AZ76: POSI-LOK + WSKIT | BB76: CUTS | BC76: WSKIT | BE76: STRUT | BF76: URH | BG76: WIRE | BH76: STRUT | BI76: URH | BJ76: WIRE | BL76: WSKIT | BM76: POSI-LOK + WSKIT | BO76: VE2 : STRUT | BP76: VE2 : URH | BQ76: VE2 : WIRE | BR76: TSS : STRUT | BS76: TSS : URH | BT76: TSS : WIRE | BV76: STRUT | BW76: URH | BX76: WIRE | BY76: STRUT | BZ76: URH | CA76: WIRE | CC76: SQUARE WSHR | CD76: FLAT WSHR | CE76: HEX NUT | CF76: SQUARE WSHR | CG76: FLAT WSHR | CH76: HEX NUT | CJ76: FLXW | CK76: 25HX | CL76: 25NC | CM76: SRC CLIP | CN76: FLXW | CO76: 25HX | CP76: 25NC | CQ76: SRC CLIP | CS76: STRUT | CT76: URH | CU76: WIRE
B77: 2/4/6in | C77: 2in | D77: =ProjectData!I42 -> 0 | F77: =(D77*8)*2 -> 0 | H77: =(D77*2)*2 -> 0 | I77: =(D77*0)*2 -> 0 | K77: =D77*'CTI INPUTS'!AB13 -> 0 | L77: =D77*'CTI INPUTS'!AD13 -> 0 | N77: =D77*5 -> 0 | O77: =D77*5 -> 0 | Q77: =(6*N77)/12 -> 0 | R77: =(6*O77)/12 -> 0 | T77: =N77*'CTI INPUTS'!C48 -> 0 | U77: =O77*'CTI INPUTS'!C48 -> 0 | Y77: =N77*'CTI INPUTS'!C51 -> 0 | Z77: =O77*'CTI INPUTS'!C51 -> 0 | AE77: =N77*4 -> 0 | AF77: =N77*4 -> 0 | AG77: =N77*4 -> 0 | AH77: =O77*4 -> 0 | AI77: =O77*4 -> 0 | AJ77: =O77*4 -> 0 | AL77: =N77*2 -> 0 | AM77: =N77*2 -> 0 | AN77: =N77*2 -> 0 | AO77: =O77*2 -> 0 | AP77: =O77*2 -> 0 | AQ77: =O77*2 -> 0 | AS77: =N77*1 -> 0 | AT77: =O77*1 -> 0 | AY77: =(F77/4)*'CTI INPUTS'!C33 -> 0 | AZ77: =(H77*'CTI INPUTS'!C34)+(I77*'CTI INPUTS'!C33) -> 0 | BB77: =D77*'CTI INPUTS'!AB28 -> 0 | BC77: =D77*'CTI INPUTS'!AC28 -> 0 | BE77: =N77*'CTI INPUTS'!C37 -> 0 | BF77: =N77*'CTI INPUTS'!C38 -> 0 | BG77: =N77*'CTI INPUTS'!C39 -> 0 | BH77: =O77*'CTI INPUTS'!C37 -> 0 | BI77: =O77*'CTI INPUTS'!C38 -> 0 | BJ77: =O77*'CTI INPUTS'!C39 -> 0 | BL77: =(AY77*'CTI INPUTS'!C6)/60 -> 0 | BM77: =(AZ77*'CTI INPUTS'!C6)/60 -> 0 | BO77: =(BE77/60)*'CTI INPUTS'!C6 -> 0 | BP77: =(BF77/60)*'CTI INPUTS'!C6 -> 0 | BQ77: =(BG77/60)*'CTI INPUTS'!C6 -> 0 | BR77: =(BH77/60)*'CTI INPUTS'!C6 -> 0 | BS77: =(BI77/60)*'CTI INPUTS'!C6 -> 0 | BT77: =(BJ77/60)*'CTI INPUTS'!C6 -> 0 | BV77: =(Q77*('CTI INPUTS'!D17))+(T77*('CTI INPUTS'!D18))+(AE77*('CTI INPUTS'!D12))+(AF77*('CTI INPUTS'!D13))+(AG77*('CTI INPUTS'!D14)) -> 0 | BW77: =(N77*('CTI INPUTS'!D19))+(T77*('CTI INPUTS'!D18))+(AG77*('CTI INPUTS'!D14)) -> 0 | BX77: =(Y77*'CTI INPUTS'!D15)+(N77*'CTI INPUTS'!D16) -> 0 | BY77: =(R77*('CTI INPUTS'!D17))+(U77*('CTI INPUTS'!D18))+(AH77*('CTI INPUTS'!D12))+(AI77*('CTI INPUTS'!D13))+(AJ77*('CTI INPUTS'!D14)) -> 0 | BZ77: =(O77*('CTI INPUTS'!D19))+(U77*('CTI INPUTS'!D18))+(AJ77*('CTI INPUTS'!D14)) -> 0 | CA77: =(Z77*'CTI INPUTS'!D15)+(O77*'CTI INPUTS'!D16) -> 0 | CC77: =(AE77*('CTI INPUTS'!D12)) -> 0 | CD77: =(AF77*('CTI INPUTS'!D13)) -> 0 | CE77: =(AG77*('CTI INPUTS'!D14)) -> 0 | CF77: =(AH77*('CTI INPUTS'!D12)) -> 0 | CG77: =(AI77*('CTI INPUTS'!D13)) -> 0 | CH77: =(AJ77*('CTI INPUTS'!D14)) -> 0 | CJ77: =AL77*'CTI INPUTS'!D42 -> 0 | CK77: =AM77*'CTI INPUTS'!D43 -> 0 | CL77: =AN77*'CTI INPUTS'!D44 -> 0 | CM77: =AS77*'CTI INPUTS'!D45 -> 0 | CN77: =AO77*'CTI INPUTS'!D42 -> 0 | CO77: =AP77*'CTI INPUTS'!D43 -> 0 | CP77: =AQ77*'CTI INPUTS'!D44 -> 0 | CQ77: =AT77*'CTI INPUTS'!D45 -> 0
C78: 4in | D78: =ProjectData!I43 -> 0 | F78: =(D78*8)*2 -> 0 | H78: 0 | I78: =(D78*0)*2 -> 0 | K78: =D78*'CTI INPUTS'!AB14 -> 0 | L78: =D78*'CTI INPUTS'!AD14 -> 0 | N78: 0 | O78: 0 | Q78: =(8*N78)/12 -> 0 | R78: =(8*O78)/12 -> 0 | T78: =N78*'CTI INPUTS'!C48 -> 0 | U78: =O78*'CTI INPUTS'!C48 -> 0 | Y78: =N78*'CTI INPUTS'!C51 -> 0 | Z78: =O78*'CTI INPUTS'!C51 -> 0 | AE78: =N78*4 -> 0 | AF78: =N78*4 -> 0 | AG78: =N78*4 -> 0 | AH78: =O78*4 -> 0 | AI78: =O78*4 -> 0 | AJ78: =O78*4 -> 0 | AL78: =N78*2 -> 0 | AM78: =N78*2 -> 0 | AN78: =N78*2 -> 0 | AO78: =O78*2 -> 0 | AP78: =O78*2 -> 0 | AQ78: =O78*2 -> 0 | AS78: =N78*2 -> 0 | AT78: =O78*2 -> 0 | AY78: =(F78/4)*'CTI INPUTS'!C33 -> 0 | AZ78: =(H78*'CTI INPUTS'!C34)+(I78*'CTI INPUTS'!C33) -> 0 | BB78: =D78*'CTI INPUTS'!AB29 -> 0 | BC78: =D78*'CTI INPUTS'!AC29 -> 0 | BE78: =N78*'CTI INPUTS'!C37 -> 0 | BF78: =N78*'CTI INPUTS'!C38 -> 0 | BG78: =N78*'CTI INPUTS'!C39 -> 0 | BH78: =O78*'CTI INPUTS'!C37 -> 0 | BI78: =O78*'CTI INPUTS'!C38 -> 0 | BJ78: =O78*'CTI INPUTS'!C39 -> 0 | BL78: =(AY78*'CTI INPUTS'!C6)/60 -> 0 | BM78: =(AZ78*'CTI INPUTS'!C6)/60 -> 0 | BO78: =(BE78/60)*'CTI INPUTS'!C6 -> 0 | BP78: =(BF78/60)*'CTI INPUTS'!C6 -> 0 | BQ78: =(BG78/60)*'CTI INPUTS'!C6 -> 0 | BR78: =(BH78/60)*'CTI INPUTS'!C6 -> 0 | BS78: =(BI78/60)*'CTI INPUTS'!C6 -> 0 | BT78: =(BJ78/60)*'CTI INPUTS'!C6 -> 0 | BV78: =(Q78*('CTI INPUTS'!D17))+(T78*('CTI INPUTS'!D18))+(AE78*('CTI INPUTS'!D12))+(AF78*('CTI INPUTS'!D13))+(AG78*('CTI INPUTS'!D14)) -> 0 | BW78: =(N78*('CTI INPUTS'!D19))+(T78*('CTI INPUTS'!D18))+(AG78*('CTI INPUTS'!D14)) -> 0 | BX78: =(Y78*'CTI INPUTS'!D15)+(N78*'CTI INPUTS'!D16) -> 0 | BY78: =(R78*('CTI INPUTS'!D17))+(U78*('CTI INPUTS'!D18))+(AH78*('CTI INPUTS'!D12))+(AI78*('CTI INPUTS'!D13))+(AJ78*('CTI INPUTS'!D14)) -> 0 | BZ78: =(O78*('CTI INPUTS'!D19))+(U78*('CTI INPUTS'!D18))+(AJ78*('CTI INPUTS'!D14)) -> 0 | CA78: =(Z78*'CTI INPUTS'!D15)+(O78*'CTI INPUTS'!D16) -> 0 | CC78: =(AE78*('CTI INPUTS'!D12)) -> 0 | CD78: =(AF78*('CTI INPUTS'!D13)) -> 0 | CE78: =(AG78*('CTI INPUTS'!D14)) -> 0 | CF78: =(AH78*('CTI INPUTS'!D12)) -> 0 | CG78: =(AI78*('CTI INPUTS'!D13)) -> 0 | CH78: =(AJ78*('CTI INPUTS'!D14)) -> 0 | CJ78: =AL78*'CTI INPUTS'!D42 -> 0 | CK78: =AM78*'CTI INPUTS'!D43 -> 0 | CL78: =AN78*'CTI INPUTS'!D44 -> 0 | CM78: =AS78*'CTI INPUTS'!D45 -> 0 | CN78: =AO78*'CTI INPUTS'!D42 -> 0 | CO78: =AP78*'CTI INPUTS'!D43 -> 0 | CP78: =AQ78*'CTI INPUTS'!D44 -> 0 | CQ78: =AT78*'CTI INPUTS'!D45 -> 0
C79: 6in | D79: =ProjectData!I44 -> 0 | F79: =(D79*16)*2 -> 0 | H79: 0 | I79: =(D79*0)*2 -> 0 | K79: =D79*'CTI INPUTS'!AB15 -> 0 | L79: =D79*'CTI INPUTS'!AD15 -> 0 | N79: 0 | O79: 0 | Q79: =(10*N79)/12 -> 0 | R79: =(10*O79)/12 -> 0 | T79: =N79*'CTI INPUTS'!C48 -> 0 | U79: =O79*'CTI INPUTS'!C48 -> 0 | Y79: =N79*'CTI INPUTS'!C51 -> 0 | Z79: =O79*'CTI INPUTS'!C51 -> 0 | AE79: 0 | AF79: 0 | AG79: 0 | AH79: 0 | AI79: 0 | AJ79: 0 | AL79: 0 | AM79: 0 | AN79: 0 | AO79: 0 | AP79: 0 | AQ79: 0 | AS79: =N79*2 -> 0 | AT79: =O79*2 -> 0 | AY79: =(F79/4)*'CTI INPUTS'!C33 -> 0 | AZ79: =(H79*'CTI INPUTS'!C34)+(I79*'CTI INPUTS'!C33) -> 0 | BB79: =D79*'CTI INPUTS'!AB30 -> 0 | BC79: =D79*'CTI INPUTS'!AC30 -> 0 | BE79: =N79*'CTI INPUTS'!C37 -> 0 | BF79: =N79*'CTI INPUTS'!C38 -> 0 | BG79: =N79*'CTI INPUTS'!C39 -> 0 | BH79: =O79*'CTI INPUTS'!C37 -> 0 | BI79: =O79*'CTI INPUTS'!C38 -> 0 | BJ79: =O79*'CTI INPUTS'!C39 -> 0 | BL79: =(AY79*'CTI INPUTS'!C6)/60 -> 0 | BM79: =(AZ79*'CTI INPUTS'!C6)/60 -> 0 | BO79: =(BE79/60)*'CTI INPUTS'!C6 -> 0 | BP79: =(BF79/60)*'CTI INPUTS'!C6 -> 0 | BQ79: =(BG79/60)*'CTI INPUTS'!C6 -> 0 | BR79: =(BH79/60)*'CTI INPUTS'!C6 -> 0 | BS79: =(BI79/60)*'CTI INPUTS'!C6 -> 0 | BT79: =(BJ79/60)*'CTI INPUTS'!C6 -> 0 | BV79: =(Q79*('CTI INPUTS'!D17))+(T79*('CTI INPUTS'!D18))+(AE79*('CTI INPUTS'!D12))+(AF79*('CTI INPUTS'!D13))+(AG79*('CTI INPUTS'!D14)) -> 0 | BW79: =(N79*('CTI INPUTS'!D19))+(T79*('CTI INPUTS'!D18))+(AG79*('CTI INPUTS'!D14)) -> 0 | BX79: =(Y79*'CTI INPUTS'!D15)+(N79*'CTI INPUTS'!D16) -> 0 | BY79: =(R79*('CTI INPUTS'!D17))+(U79*('CTI INPUTS'!D18))+(AH79*('CTI INPUTS'!D12))+(AI79*('CTI INPUTS'!D13))+(AJ79*('CTI INPUTS'!D14)) -> 0 | BZ79: =(O79*('CTI INPUTS'!D19))+(U79*('CTI INPUTS'!D18))+(AJ79*('CTI INPUTS'!D14)) -> 0 | CA79: =(Z79*'CTI INPUTS'!D15)+(O79*'CTI INPUTS'!D16) -> 0 | CC79: =(AE79*('CTI INPUTS'!D12)) -> 0 | CD79: =(AF79*('CTI INPUTS'!D13)) -> 0 | CE79: =(AG79*('CTI INPUTS'!D14)) -> 0 | CF79: =(AH79*('CTI INPUTS'!D12)) -> 0 | CG79: =(AI79*('CTI INPUTS'!D13)) -> 0 | CH79: =(AJ79*('CTI INPUTS'!D14)) -> 0 | CJ79: =AL79*'CTI INPUTS'!D42 -> 0 | CK79: =AM79*'CTI INPUTS'!D43 -> 0 | CL79: =AN79*'CTI INPUTS'!D44 -> 0 | CM79: =AS79*'CTI INPUTS'!D45 -> 0 | CN79: =AO79*'CTI INPUTS'!D42 -> 0 | CO79: =AP79*'CTI INPUTS'!D43 -> 0 | CP79: =AQ79*'CTI INPUTS'!D44 -> 0 | CQ79: =AT79*'CTI INPUTS'!D45 -> 0
C80: 8in | D80: =ProjectData!I45 -> 0 | F80: =(D80*20)*2 -> 0 | H80: 0 | I80: =(D80*4)*2 -> 0 | K80: =D80*'CTI INPUTS'!AB16 -> 0 | L80: =D80*'CTI INPUTS'!AD16 -> 0 | N80: 0 | O80: 0 | Q80: =(12*N80)/12 -> 0 | R80: =(12*O80)/12 -> 0 | T80: =N80*'CTI INPUTS'!C48 -> 0 | U80: =O80*'CTI INPUTS'!C48 -> 0 | Y80: =N80*'CTI INPUTS'!C51 -> 0 | Z80: =O80*'CTI INPUTS'!C51 -> 0 | AE80: 0 | AF80: 0 | AG80: 0 | AH80: 0 | AI80: 0 | AJ80: 0 | AL80: 0 | AM80: 0 | AN80: 0 | AO80: 0 | AP80: 0 | AQ80: 0 | AS80: 0 | AT80: 0 | AY80: =(F80/4)*'CTI INPUTS'!C33 -> 0 | AZ80: =(H80*'CTI INPUTS'!C34)+(I80*'CTI INPUTS'!C33) -> 0 | BB80: =D80*'CTI INPUTS'!AB31 -> 0 | BC80: =D80*'CTI INPUTS'!AC31 -> 0 | BE80: =N80*'CTI INPUTS'!C37 -> 0 | BF80: =N80*'CTI INPUTS'!C38 -> 0 | BG80: =N80*'CTI INPUTS'!C39 -> 0 | BH80: =O80*'CTI INPUTS'!C37 -> 0 | BI80: =O80*'CTI INPUTS'!C38 -> 0 | BJ80: =O80*'CTI INPUTS'!C39 -> 0 | BL80: =(AY80*'CTI INPUTS'!C6)/60 -> 0 | BM80: =(AZ80*'CTI INPUTS'!C6)/60 -> 0 | BO80: =(BE80/60)*'CTI INPUTS'!C6 -> 0 | BP80: =(BF80/60)*'CTI INPUTS'!C6 -> 0 | BQ80: =(BG80/60)*'CTI INPUTS'!C6 -> 0 | BR80: =(BH80/60)*'CTI INPUTS'!C6 -> 0 | BS80: =(BI80/60)*'CTI INPUTS'!C6 -> 0 | BT80: =(BJ80/60)*'CTI INPUTS'!C6 -> 0 | BV80: =(Q80*('CTI INPUTS'!D17))+(T80*('CTI INPUTS'!D18))+(AE80*('CTI INPUTS'!D12))+(AF80*('CTI INPUTS'!D13))+(AG80*('CTI INPUTS'!D14)) -> 0 | BW80: =(N80*('CTI INPUTS'!D19))+(T80*('CTI INPUTS'!D18))+(AG80*('CTI INPUTS'!D14)) -> 0 | BX80: =(Y80*'CTI INPUTS'!D15)+(N80*'CTI INPUTS'!D16) -> 0 | BY80: =(R80*('CTI INPUTS'!D17))+(U80*('CTI INPUTS'!D18))+(AH80*('CTI INPUTS'!D12))+(AI80*('CTI INPUTS'!D13))+(AJ80*('CTI INPUTS'!D14)) -> 0 | BZ80: =(O80*('CTI INPUTS'!D19))+(U80*('CTI INPUTS'!D18))+(AJ80*('CTI INPUTS'!D14)) -> 0 | CA80: =(Z80*'CTI INPUTS'!D15)+(O80*'CTI INPUTS'!D16) -> 0 | CC80: =(AE80*('CTI INPUTS'!D12)) -> 0 | CD80: =(AF80*('CTI INPUTS'!D13)) -> 0 | CE80: =(AG80*('CTI INPUTS'!D14)) -> 0 | CF80: =(AH80*('CTI INPUTS'!D12)) -> 0 | CG80: =(AI80*('CTI INPUTS'!D13)) -> 0 | CH80: =(AJ80*('CTI INPUTS'!D14)) -> 0 | CJ80: =AL80*'CTI INPUTS'!D42 -> 0 | CK80: =AM80*'CTI INPUTS'!D43 -> 0 | CL80: =AN80*'CTI INPUTS'!D44 -> 0 | CM80: =AS80*'CTI INPUTS'!D45 -> 0 | CN80: =AO80*'CTI INPUTS'!D42 -> 0 | CO80: =AP80*'CTI INPUTS'!D43 -> 0 | CP80: =AQ80*'CTI INPUTS'!D44 -> 0 | CQ80: =AT80*'CTI INPUTS'!D45 -> 0
C81: 10in | D81: =ProjectData!I46 -> 0 | F81: =(D81*20)*2 -> 0 | H81: 0 | I81: =(D81*4)*2 -> 0 | K81: =D81*'CTI INPUTS'!AB17 -> 0 | L81: =D81*'CTI INPUTS'!AD17 -> 0 | N81: 0 | O81: 0 | Q81: =(14*N81)/12 -> 0 | R81: =(14*O81)/12 -> 0 | T81: =N81*'CTI INPUTS'!C48 -> 0 | U81: =O81*'CTI INPUTS'!C48 -> 0 | Y81: =N81*'CTI INPUTS'!C51 -> 0 | Z81: =O81*'CTI INPUTS'!C51 -> 0 | AE81: 0 | AF81: 0 | AG81: 0 | AH81: 0 | AI81: 0 | AJ81: 0 | AL81: 0 | AM81: 0 | AN81: 0 | AO81: 0 | AP81: 0 | AQ81: 0 | AS81: 0 | AT81: 0 | AY81: =(F81/4)*'CTI INPUTS'!C33 -> 0 | AZ81: =(H81*'CTI INPUTS'!C34)+(I81*'CTI INPUTS'!C33) -> 0 | BB81: =D81*'CTI INPUTS'!AB32 -> 0 | BC81: =D81*'CTI INPUTS'!AC32 -> 0 | BE81: =N81*'CTI INPUTS'!C37 -> 0 | BF81: =N81*'CTI INPUTS'!C38 -> 0 | BG81: =N81*'CTI INPUTS'!C39 -> 0 | BH81: =O81*'CTI INPUTS'!C37 -> 0 | BI81: =O81*'CTI INPUTS'!C38 -> 0 | BJ81: =O81*'CTI INPUTS'!C39 -> 0 | BL81: =(AY81*'CTI INPUTS'!C6)/60 -> 0 | BM81: =(AZ81*'CTI INPUTS'!C6)/60 -> 0 | BO81: =(BE81/60)*'CTI INPUTS'!C6 -> 0 | BP81: =(BF81/60)*'CTI INPUTS'!C6 -> 0 | BQ81: =(BG81/60)*'CTI INPUTS'!C6 -> 0 | BR81: =(BH81/60)*'CTI INPUTS'!C6 -> 0 | BS81: =(BI81/60)*'CTI INPUTS'!C6 -> 0 | BT81: =(BJ81/60)*'CTI INPUTS'!C6 -> 0 | BV81: =(Q81*('CTI INPUTS'!D17))+(T81*('CTI INPUTS'!D18))+(AE81*('CTI INPUTS'!D12))+(AF81*('CTI INPUTS'!D13))+(AG81*('CTI INPUTS'!D14)) -> 0 | BW81: =(N81*('CTI INPUTS'!D19))+(T81*('CTI INPUTS'!D18))+(AG81*('CTI INPUTS'!D14)) -> 0 | BX81: =(Y81*'CTI INPUTS'!D15)+(N81*'CTI INPUTS'!D16) -> 0 | BY81: =(R81*('CTI INPUTS'!D17))+(U81*('CTI INPUTS'!D18))+(AH81*('CTI INPUTS'!D12))+(AI81*('CTI INPUTS'!D13))+(AJ81*('CTI INPUTS'!D14)) -> 0 | BZ81: =(O81*('CTI INPUTS'!D19))+(U81*('CTI INPUTS'!D18))+(AJ81*('CTI INPUTS'!D14)) -> 0 | CA81: =(Z81*'CTI INPUTS'!D15)+(O81*'CTI INPUTS'!D16) -> 0 | CC81: =(AE81*('CTI INPUTS'!D12)) -> 0 | CD81: =(AF81*('CTI INPUTS'!D13)) -> 0 | CE81: =(AG81*('CTI INPUTS'!D14)) -> 0 | CF81: =(AH81*('CTI INPUTS'!D12)) -> 0 | CG81: =(AI81*('CTI INPUTS'!D13)) -> 0 | CH81: =(AJ81*('CTI INPUTS'!D14)) -> 0 | CJ81: =AL81*'CTI INPUTS'!D42 -> 0 | CK81: =AM81*'CTI INPUTS'!D43 -> 0 | CL81: =AN81*'CTI INPUTS'!D44 -> 0 | CM81: =AS81*'CTI INPUTS'!D45 -> 0 | CN81: =AO81*'CTI INPUTS'!D42 -> 0 | CO81: =AP81*'CTI INPUTS'!D43 -> 0 | CP81: =AQ81*'CTI INPUTS'!D44 -> 0 | CQ81: =AT81*'CTI INPUTS'!D45 -> 0
C82: 12in | D82: =ProjectData!I47 -> 60 | F82: =(D82*24)*2 -> 2880 | H82: 240 | I82: =(D82*4)*2 -> 480 | K82: =D82*'CTI INPUTS'!AB18 -> 960 | L82: =D82*'CTI INPUTS'!AD18 -> 960 | N82: 300 | O82: 300 | Q82: =(16*N82)/12 -> 400 | R82: =(16*O82)/12 -> 400 | T82: =N82*'CTI INPUTS'!C48 -> 1200 | U82: =O82*'CTI INPUTS'!C48 -> 1200 | Y82: =N82*'CTI INPUTS'!C51 -> 1800 | Z82: =O82*'CTI INPUTS'!C51 -> 1800 | AE82: 1200 | AF82: 1200 | AG82: 1200 | AH82: 1200 | AI82: 1200 | AJ82: 1200 | AL82: 600 | AM82: 600 | AN82: 600 | AO82: 600 | AP82: 600 | AQ82: 600 | AS82: 600 | AT82: 600 | AY82: =(F82/4)*'CTI INPUTS'!C33 -> 360 | AZ82: =(H82*'CTI INPUTS'!C34)+(I82*'CTI INPUTS'!C33) -> 288 | BB82: =D82*'CTI INPUTS'!AB33 -> 48 | BC82: =D82*'CTI INPUTS'!AC33 -> 120 | BE82: =N82*'CTI INPUTS'!C37 -> 1200 | BF82: =N82*'CTI INPUTS'!C38 -> 900 | BG82: =N82*'CTI INPUTS'!C39 -> 600 | BH82: =O82*'CTI INPUTS'!C37 -> 1200 | BI82: =O82*'CTI INPUTS'!C38 -> 900 | BJ82: =O82*'CTI INPUTS'!C39 -> 600 | BL82: =(AY82*'CTI INPUTS'!C6)/60 -> 600 | BM82: =(AZ82*'CTI INPUTS'!C6)/60 -> 480 | BO82: =(BE82/60)*'CTI INPUTS'!C6 -> 2000 | BP82: =(BF82/60)*'CTI INPUTS'!C6 -> 1500 | BQ82: =(BG82/60)*'CTI INPUTS'!C6 -> 1000 | BR82: =(BH82/60)*'CTI INPUTS'!C6 -> 2000 | BS82: =(BI82/60)*'CTI INPUTS'!C6 -> 1500 | BT82: =(BJ82/60)*'CTI INPUTS'!C6 -> 1000 | BV82: =(Q82*('CTI INPUTS'!D17))+(T82*('CTI INPUTS'!D18))+(AE82*('CTI INPUTS'!D12))+(AF82*('CTI INPUTS'!D13))+(AG82*('CTI INPUTS'!D14)) -> 5520 | BW82: =(N82*('CTI INPUTS'!D19))+(T82*('CTI INPUTS'!D18))+(AG82*('CTI INPUTS'!D14)) -> 3837 | BX82: =(Y82*'CTI INPUTS'!D15)+(N82*'CTI INPUTS'!D16) -> 3000 | BY82: =(R82*('CTI INPUTS'!D17))+(U82*('CTI INPUTS'!D18))+(AH82*('CTI INPUTS'!D12))+(AI82*('CTI INPUTS'!D13))+(AJ82*('CTI INPUTS'!D14)) -> 5520 | BZ82: =(O82*('CTI INPUTS'!D19))+(U82*('CTI INPUTS'!D18))+(AJ82*('CTI INPUTS'!D14)) -> 3837 | CA82: =(Z82*'CTI INPUTS'!D15)+(O82*'CTI INPUTS'!D16) -> 3000 | CC82: =(AE82*('CTI INPUTS'!D12)) -> 1200 | CD82: =(AF82*('CTI INPUTS'!D13)) -> 180 | CE82: =(AG82*('CTI INPUTS'!D14)) -> 300 | CF82: =(AH82*('CTI INPUTS'!D12)) -> 1200 | CG82: =(AI82*('CTI INPUTS'!D13)) -> 180 | CH82: =(AJ82*('CTI INPUTS'!D14)) -> 300 | CJ82: =AL82*'CTI INPUTS'!D42 -> 1206 | CK82: =AM82*'CTI INPUTS'!D43 -> 420 | CL82: =AN82*'CTI INPUTS'!D44 -> 540 | CM82: =AS82*'CTI INPUTS'!D45 -> 1650 | CN82: =AO82*'CTI INPUTS'!D42 -> 1206 | CO82: =AP82*'CTI INPUTS'!D43 -> 420 | CP82: =AQ82*'CTI INPUTS'!D44 -> 540 | CQ82: =AT82*'CTI INPUTS'!D45 -> 1650
C83: 16in | D83: =ProjectData!I48 -> 0 | F83: =(D83*24)*2 -> 0 | H83: 0 | I83: =(D83*8)*2 -> 0 | K83: =D83*'CTI INPUTS'!AB19 -> 0 | L83: =D83*'CTI INPUTS'!AD19 -> 0 | N83: 0 | O83: 0 | Q83: =(20*N83)/12 -> 0 | R83: =(20*O83)/12 -> 0 | T83: =N83*'CTI INPUTS'!C48 -> 0 | U83: =O83*'CTI INPUTS'!C48 -> 0 | Y83: =N83*'CTI INPUTS'!C51 -> 0 | Z83: =O83*'CTI INPUTS'!C51 -> 0 | AE83: 0 | AF83: 0 | AG83: 0 | AH83: 0 | AI83: 0 | AJ83: 0 | AL83: 0 | AM83: 0 | AN83: 0 | AO83: 0 | AP83: 0 | AQ83: 0 | AS83: 0 | AT83: 0 | AY83: =(F83/4)*'CTI INPUTS'!C33 -> 0 | AZ83: =(H83*'CTI INPUTS'!C34)+(I83*'CTI INPUTS'!C33) -> 0 | BB83: =D83*'CTI INPUTS'!AB34 -> 0 | BC83: =D83*'CTI INPUTS'!AC34 -> 0 | BE83: =N83*'CTI INPUTS'!C37 -> 0 | BF83: =N83*'CTI INPUTS'!C38 -> 0 | BG83: =N83*'CTI INPUTS'!C39 -> 0 | BH83: =O83*'CTI INPUTS'!C37 -> 0 | BI83: =O83*'CTI INPUTS'!C38 -> 0 | BJ83: =O83*'CTI INPUTS'!C39 -> 0 | BL83: =(AY83*'CTI INPUTS'!C6)/60 -> 0 | BM83: =(AZ83*'CTI INPUTS'!C6)/60 -> 0 | BO83: =(BE83/60)*'CTI INPUTS'!C6 -> 0 | BP83: =(BF83/60)*'CTI INPUTS'!C6 -> 0 | BQ83: =(BG83/60)*'CTI INPUTS'!C6 -> 0 | BR83: =(BH83/60)*'CTI INPUTS'!C6 -> 0 | BS83: =(BI83/60)*'CTI INPUTS'!C6 -> 0 | BT83: =(BJ83/60)*'CTI INPUTS'!C6 -> 0 | BV83: =(Q83*('CTI INPUTS'!D17))+(T83*('CTI INPUTS'!D18))+(AE83*('CTI INPUTS'!D12))+(AF83*('CTI INPUTS'!D13))+(AG83*('CTI INPUTS'!D14)) -> 0 | BW83: =(N83*('CTI INPUTS'!D19))+(T83*('CTI INPUTS'!D18))+(AG83*('CTI INPUTS'!D14)) -> 0 | BX83: =(Y83*'CTI INPUTS'!D15)+(N83*'CTI INPUTS'!D16) -> 0 | BY83: =(R83*('CTI INPUTS'!D17))+(U83*('CTI INPUTS'!D18))+(AH83*('CTI INPUTS'!D12))+(AI83*('CTI INPUTS'!D13))+(AJ83*('CTI INPUTS'!D14)) -> 0 | BZ83: =(O83*('CTI INPUTS'!D19))+(U83*('CTI INPUTS'!D18))+(AJ83*('CTI INPUTS'!D14)) -> 0 | CA83: =(Z83*'CTI INPUTS'!D15)+(O83*'CTI INPUTS'!D16) -> 0 | CC83: =(AE83*('CTI INPUTS'!D12)) -> 0 | CD83: =(AF83*('CTI INPUTS'!D13)) -> 0 | CE83: =(AG83*('CTI INPUTS'!D14)) -> 0 | CF83: =(AH83*('CTI INPUTS'!D12)) -> 0 | CG83: =(AI83*('CTI INPUTS'!D13)) -> 0 | CH83: =(AJ83*('CTI INPUTS'!D14)) -> 0 | CJ83: =AL83*'CTI INPUTS'!D42 -> 0 | CK83: =AM83*'CTI INPUTS'!D43 -> 0 | CL83: =AN83*'CTI INPUTS'!D44 -> 0 | CM83: =AS83*'CTI INPUTS'!D45 -> 0 | CN83: =AO83*'CTI INPUTS'!D42 -> 0 | CO83: =AP83*'CTI INPUTS'!D43 -> 0 | CP83: =AQ83*'CTI INPUTS'!D44 -> 0 | CQ83: =AT83*'CTI INPUTS'!D45 -> 0
C84: 18in | D84: =ProjectData!I49 -> 0 | F84: =(D84*24)*2 -> 0 | H84: 0 | I84: =(D84*8)*2 -> 0 | K84: =D84*'CTI INPUTS'!AB20 -> 0 | L84: =D84*'CTI INPUTS'!AD20 -> 0 | N84: 0 | O84: 0 | Q84: =(22*N84)/12 -> 0 | R84: =(22*O84)/12 -> 0 | T84: =N84*'CTI INPUTS'!C48 -> 0 | U84: =O84*'CTI INPUTS'!C48 -> 0 | Y84: =N84*'CTI INPUTS'!C51 -> 0 | Z84: =O84*'CTI INPUTS'!C51 -> 0 | AE84: 0 | AF84: 0 | AG84: 0 | AH84: 0 | AI84: 0 | AJ84: 0 | AL84: 0 | AM84: 0 | AN84: 0 | AO84: 0 | AP84: 0 | AQ84: 0 | AS84: 0 | AT84: 0 | AY84: =(F84/4)*'CTI INPUTS'!C33 -> 0 | AZ84: =(H84*'CTI INPUTS'!C34)+(I84*'CTI INPUTS'!C33) -> 0 | BB84: =D84*'CTI INPUTS'!AB35 -> 0 | BC84: =D84*'CTI INPUTS'!AC35 -> 0 | BE84: =N84*'CTI INPUTS'!C37 -> 0 | BF84: =N84*'CTI INPUTS'!C38 -> 0 | BG84: =N84*'CTI INPUTS'!C39 -> 0 | BH84: =O84*'CTI INPUTS'!C37 -> 0 | BI84: =O84*'CTI INPUTS'!C38 -> 0 | BJ84: =O84*'CTI INPUTS'!C39 -> 0 | BL84: =(AY84*'CTI INPUTS'!C6)/60 -> 0 | BM84: =(AZ84*'CTI INPUTS'!C6)/60 -> 0 | BO84: =(BE84/60)*'CTI INPUTS'!C6 -> 0 | BP84: =(BF84/60)*'CTI INPUTS'!C6 -> 0 | BQ84: =(BG84/60)*'CTI INPUTS'!C6 -> 0 | BR84: =(BH84/60)*'CTI INPUTS'!C6 -> 0 | BS84: =(BI84/60)*'CTI INPUTS'!C6 -> 0 | BT84: =(BJ84/60)*'CTI INPUTS'!C6 -> 0 | BV84: =(Q84*('CTI INPUTS'!D17))+(T84*('CTI INPUTS'!D18))+(AE84*('CTI INPUTS'!D12))+(AF84*('CTI INPUTS'!D13))+(AG84*('CTI INPUTS'!D14)) -> 0 | BW84: =(N84*('CTI INPUTS'!D19))+(T84*('CTI INPUTS'!D18))+(AG84*('CTI INPUTS'!D14)) -> 0 | BX84: =(Y84*'CTI INPUTS'!D15)+(N84*'CTI INPUTS'!D16) -> 0 | BY84: =(R84*('CTI INPUTS'!D17))+(U84*('CTI INPUTS'!D18))+(AH84*('CTI INPUTS'!D12))+(AI84*('CTI INPUTS'!D13))+(AJ84*('CTI INPUTS'!D14)) -> 0 | BZ84: =(O84*('CTI INPUTS'!D19))+(U84*('CTI INPUTS'!D18))+(AJ84*('CTI INPUTS'!D14)) -> 0 | CA84: =(Z84*'CTI INPUTS'!D15)+(O84*'CTI INPUTS'!D16) -> 0 | CC84: =(AE84*('CTI INPUTS'!D12)) -> 0 | CD84: =(AF84*('CTI INPUTS'!D13)) -> 0 | CE84: =(AG84*('CTI INPUTS'!D14)) -> 0 | CF84: =(AH84*('CTI INPUTS'!D12)) -> 0 | CG84: =(AI84*('CTI INPUTS'!D13)) -> 0 | CH84: =(AJ84*('CTI INPUTS'!D14)) -> 0 | CJ84: =AL84*'CTI INPUTS'!D42 -> 0 | CK84: =AM84*'CTI INPUTS'!D43 -> 0 | CL84: =AN84*'CTI INPUTS'!D44 -> 0 | CM84: =AS84*'CTI INPUTS'!D45 -> 0 | CN84: =AO84*'CTI INPUTS'!D42 -> 0 | CO84: =AP84*'CTI INPUTS'!D43 -> 0 | CP84: =AQ84*'CTI INPUTS'!D44 -> 0 | CQ84: =AT84*'CTI INPUTS'!D45 -> 0
C85: 20in | D85: =ProjectData!I50 -> 0 | F85: =(D85*28)*2 -> 0 | H85: 0 | I85: =(D85*8)*2 -> 0 | K85: =D85*'CTI INPUTS'!AB21 -> 0 | L85: =D85*'CTI INPUTS'!AD21 -> 0 | N85: 0 | O85: 0 | Q85: =(24*N85)/12 -> 0 | R85: =(24*O85)/12 -> 0 | T85: =N85*'CTI INPUTS'!C48 -> 0 | U85: =O85*'CTI INPUTS'!C48 -> 0 | Y85: =N85*'CTI INPUTS'!C51 -> 0 | Z85: =O85*'CTI INPUTS'!C51 -> 0 | AE85: 0 | AF85: 0 | AG85: 0 | AH85: 0 | AI85: 0 | AJ85: 0 | AL85: 0 | AM85: 0 | AN85: 0 | AO85: 0 | AP85: 0 | AQ85: 0 | AS85: 0 | AT85: 0 | AY85: =(F85/4)*'CTI INPUTS'!C33 -> 0 | AZ85: =(H85*'CTI INPUTS'!C34)+(I85*'CTI INPUTS'!C33) -> 0 | BB85: =D85*'CTI INPUTS'!AB36 -> 0 | BC85: =D85*'CTI INPUTS'!AC36 -> 0 | BE85: =N85*'CTI INPUTS'!C37 -> 0 | BF85: =N85*'CTI INPUTS'!C38 -> 0 | BG85: =N85*'CTI INPUTS'!C39 -> 0 | BH85: =O85*'CTI INPUTS'!C37 -> 0 | BI85: =O85*'CTI INPUTS'!C38 -> 0 | BJ85: =O85*'CTI INPUTS'!C39 -> 0 | BL85: =(AY85*'CTI INPUTS'!C6)/60 -> 0 | BM85: =(AZ85*'CTI INPUTS'!C6)/60 -> 0 | BO85: =(BE85/60)*'CTI INPUTS'!C6 -> 0 | BP85: =(BF85/60)*'CTI INPUTS'!C6 -> 0 | BQ85: =(BG85/60)*'CTI INPUTS'!C6 -> 0 | BR85: =(BH85/60)*'CTI INPUTS'!C6 -> 0 | BS85: =(BI85/60)*'CTI INPUTS'!C6 -> 0 | BT85: =(BJ85/60)*'CTI INPUTS'!C6 -> 0 | BV85: =(Q85*('CTI INPUTS'!D17))+(T85*('CTI INPUTS'!D18))+(AE85*('CTI INPUTS'!D12))+(AF85*('CTI INPUTS'!D13))+(AG85*('CTI INPUTS'!D14)) -> 0 | BW85: =(N85*('CTI INPUTS'!D19))+(T85*('CTI INPUTS'!D18))+(AG85*('CTI INPUTS'!D14)) -> 0 | BX85: =(Y85*'CTI INPUTS'!D15)+(N85*'CTI INPUTS'!D16) -> 0 | BY85: =(R85*('CTI INPUTS'!D17))+(U85*('CTI INPUTS'!D18))+(AH85*('CTI INPUTS'!D12))+(AI85*('CTI INPUTS'!D13))+(AJ85*('CTI INPUTS'!D14)) -> 0 | BZ85: =(O85*('CTI INPUTS'!D19))+(U85*('CTI INPUTS'!D18))+(AJ85*('CTI INPUTS'!D14)) -> 0 | CA85: =(Z85*'CTI INPUTS'!D15)+(O85*'CTI INPUTS'!D16) -> 0 | CC85: =(AE85*('CTI INPUTS'!D12)) -> 0 | CD85: =(AF85*('CTI INPUTS'!D13)) -> 0 | CE85: =(AG85*('CTI INPUTS'!D14)) -> 0 | CF85: =(AH85*('CTI INPUTS'!D12)) -> 0 | CG85: =(AI85*('CTI INPUTS'!D13)) -> 0 | CH85: =(AJ85*('CTI INPUTS'!D14)) -> 0 | CJ85: =AL85*'CTI INPUTS'!D42 -> 0 | CK85: =AM85*'CTI INPUTS'!D43 -> 0 | CL85: =AN85*'CTI INPUTS'!D44 -> 0 | CM85: =AS85*'CTI INPUTS'!D45 -> 0 | CN85: =AO85*'CTI INPUTS'!D42 -> 0 | CO85: =AP85*'CTI INPUTS'!D43 -> 0 | CP85: =AQ85*'CTI INPUTS'!D44 -> 0 | CQ85: =AT85*'CTI INPUTS'!D45 -> 0
C86: 24in | D86: =ProjectData!I51 -> 0 | F86: =(D86*28)*2 -> 0 | H86: 0 | I86: =(D86*8)*2 -> 0 | K86: =D86*'CTI INPUTS'!AB22 -> 0 | L86: =D86*'CTI INPUTS'!AD22 -> 0 | N86: 0 | O86: 0 | Q86: =(28*N86)/12 -> 0 | R86: =(28*O86)/12 -> 0 | T86: =N86*'CTI INPUTS'!C48 -> 0 | U86: =O86*'CTI INPUTS'!C48 -> 0 | Y86: =N86*'CTI INPUTS'!C51 -> 0 | Z86: =O86*'CTI INPUTS'!C51 -> 0 | AE86: 0 | AF86: 0 | AG86: 0 | AH86: 0 | AI86: 0 | AJ86: 0 | AL86: 0 | AM86: 0 | AN86: 0 | AO86: 0 | AP86: 0 | AQ86: 0 | AS86: 0 | AT86: 0 | AY86: =(F86/4)*'CTI INPUTS'!C33 -> 0 | AZ86: =(H86*'CTI INPUTS'!C34)+(I86*'CTI INPUTS'!C33) -> 0 | BB86: =D86*'CTI INPUTS'!AB37 -> 0 | BC86: =D86*'CTI INPUTS'!AC37 -> 0 | BE86: =N86*'CTI INPUTS'!C37 -> 0 | BF86: =N86*'CTI INPUTS'!C38 -> 0 | BG86: =N86*'CTI INPUTS'!C39 -> 0 | BH86: =O86*'CTI INPUTS'!C37 -> 0 | BI86: =O86*'CTI INPUTS'!C38 -> 0 | BJ86: =O86*'CTI INPUTS'!C39 -> 0 | BL86: =(AY86*'CTI INPUTS'!C6)/60 -> 0 | BM86: =(AZ86*'CTI INPUTS'!C6)/60 -> 0 | BO86: =(BE86/60)*'CTI INPUTS'!C6 -> 0 | BP86: =(BF86/60)*'CTI INPUTS'!C6 -> 0 | BQ86: =(BG86/60)*'CTI INPUTS'!C6 -> 0 | BR86: =(BH86/60)*'CTI INPUTS'!C6 -> 0 | BS86: =(BI86/60)*'CTI INPUTS'!C6 -> 0 | BT86: =(BJ86/60)*'CTI INPUTS'!C6 -> 0 | BV86: =(Q86*('CTI INPUTS'!D17))+(T86*('CTI INPUTS'!D18))+(AE86*('CTI INPUTS'!D12))+(AF86*('CTI INPUTS'!D13))+(AG86*('CTI INPUTS'!D14)) -> 0 | BW86: =(N86*('CTI INPUTS'!D19))+(T86*('CTI INPUTS'!D18))+(AG86*('CTI INPUTS'!D14)) -> 0 | BX86: =(Y86*'CTI INPUTS'!D15)+(N86*'CTI INPUTS'!D16) -> 0 | BY86: =(R86*('CTI INPUTS'!D17))+(U86*('CTI INPUTS'!D18))+(AH86*('CTI INPUTS'!D12))+(AI86*('CTI INPUTS'!D13))+(AJ86*('CTI INPUTS'!D14)) -> 0 | BZ86: =(O86*('CTI INPUTS'!D19))+(U86*('CTI INPUTS'!D18))+(AJ86*('CTI INPUTS'!D14)) -> 0 | CA86: =(Z86*'CTI INPUTS'!D15)+(O86*'CTI INPUTS'!D16) -> 0 | CC86: =(AE86*('CTI INPUTS'!D12)) -> 0 | CD86: =(AF86*('CTI INPUTS'!D13)) -> 0 | CE86: =(AG86*('CTI INPUTS'!D14)) -> 0 | CF86: =(AH86*('CTI INPUTS'!D12)) -> 0 | CG86: =(AI86*('CTI INPUTS'!D13)) -> 0 | CH86: =(AJ86*('CTI INPUTS'!D14)) -> 0 | CJ86: =AL86*'CTI INPUTS'!D42 -> 0 | CK86: =AM86*'CTI INPUTS'!D43 -> 0 | CL86: =AN86*'CTI INPUTS'!D44 -> 0 | CM86: =AS86*'CTI INPUTS'!D45 -> 0 | CN86: =AO86*'CTI INPUTS'!D42 -> 0 | CO86: =AP86*'CTI INPUTS'!D43 -> 0 | CP86: =AQ86*'CTI INPUTS'!D44 -> 0 | CQ86: =AT86*'CTI INPUTS'!D45 -> 0
C87: 30in | D87: =ProjectData!I52 -> 0 | F87: =(D87*32)*2 -> 0 | H87: 0 | I87: =(D87*12)*2 -> 0 | K87: =D87*'CTI INPUTS'!AB23 -> 0 | L87: =D87*'CTI INPUTS'!AD23 -> 0 | N87: 0 | O87: 0 | Q87: =(34*N87)/12 -> 0 | R87: =(34*O87)/12 -> 0 | T87: =N87*'CTI INPUTS'!C48 -> 0 | U87: =O87*'CTI INPUTS'!C48 -> 0 | Y87: =N87*'CTI INPUTS'!C51 -> 0 | Z87: =O87*'CTI INPUTS'!C51 -> 0 | AE87: 0 | AF87: 0 | AG87: 0 | AH87: 0 | AI87: 0 | AJ87: 0 | AL87: 0 | AM87: 0 | AN87: 0 | AO87: 0 | AP87: 0 | AQ87: 0 | AS87: 0 | AT87: 0 | AY87: =(F87/4)*'CTI INPUTS'!C33 -> 0 | AZ87: =(H87*'CTI INPUTS'!C34)+(I87*'CTI INPUTS'!C33) -> 0 | BB87: =D87*'CTI INPUTS'!AB38 -> 0 | BC87: =D87*'CTI INPUTS'!AC38 -> 0 | BE87: =N87*'CTI INPUTS'!C37 -> 0 | BF87: =N87*'CTI INPUTS'!C38 -> 0 | BG87: =N87*'CTI INPUTS'!C39 -> 0 | BH87: =O87*'CTI INPUTS'!C37 -> 0 | BI87: =O87*'CTI INPUTS'!C38 -> 0 | BJ87: =O87*'CTI INPUTS'!C39 -> 0 | BL87: =(AY87*'CTI INPUTS'!C6)/60 -> 0 | BM87: =(AZ87*'CTI INPUTS'!C6)/60 -> 0 | BO87: =(BE87/60)*'CTI INPUTS'!C6 -> 0 | BP87: =(BF87/60)*'CTI INPUTS'!C6 -> 0 | BQ87: =(BG87/60)*'CTI INPUTS'!C6 -> 0 | BR87: =(BH87/60)*'CTI INPUTS'!C6 -> 0 | BS87: =(BI87/60)*'CTI INPUTS'!C6 -> 0 | BT87: =(BJ87/60)*'CTI INPUTS'!C6 -> 0 | BV87: =(Q87*('CTI INPUTS'!D17))+(T87*('CTI INPUTS'!D18))+(AE87*('CTI INPUTS'!D12))+(AF87*('CTI INPUTS'!D13))+(AG87*('CTI INPUTS'!D14)) -> 0 | BW87: =(N87*('CTI INPUTS'!D19))+(T87*('CTI INPUTS'!D18))+(AG87*('CTI INPUTS'!D14)) -> 0 | BX87: =(Y87*'CTI INPUTS'!D15)+(N87*'CTI INPUTS'!D16) -> 0 | BY87: =(R87*('CTI INPUTS'!D17))+(U87*('CTI INPUTS'!D18))+(AH87*('CTI INPUTS'!D12))+(AI87*('CTI INPUTS'!D13))+(AJ87*('CTI INPUTS'!D14)) -> 0 | BZ87: =(O87*('CTI INPUTS'!D19))+(U87*('CTI INPUTS'!D18))+(AJ87*('CTI INPUTS'!D14)) -> 0 | CA87: =(Z87*'CTI INPUTS'!D15)+(O87*'CTI INPUTS'!D16) -> 0 | CC87: =(AE87*('CTI INPUTS'!D12)) -> 0 | CD87: =(AF87*('CTI INPUTS'!D13)) -> 0 | CE87: =(AG87*('CTI INPUTS'!D14)) -> 0 | CF87: =(AH87*('CTI INPUTS'!D12)) -> 0 | CG87: =(AI87*('CTI INPUTS'!D13)) -> 0 | CH87: =(AJ87*('CTI INPUTS'!D14)) -> 0 | CJ87: =AL87*'CTI INPUTS'!D42 -> 0 | CK87: =AM87*'CTI INPUTS'!D43 -> 0 | CL87: =AN87*'CTI INPUTS'!D44 -> 0 | CM87: =AS87*'CTI INPUTS'!D45 -> 0 | CN87: =AO87*'CTI INPUTS'!D42 -> 0 | CO87: =AP87*'CTI INPUTS'!D43 -> 0 | CP87: =AQ87*'CTI INPUTS'!D44 -> 0 | CQ87: =AT87*'CTI INPUTS'!D45 -> 0
C88: 36in | D88: =ProjectData!I53 -> 0 | F88: =(D88*32)*2 -> 0 | H88: 0 | I88: =(D88*12)*2 -> 0 | K88: =D88*'CTI INPUTS'!AB24 -> 0 | L88: =D88*'CTI INPUTS'!AD24 -> 0 | N88: 0 | O88: 0 | Q88: =(40*N88)/12 -> 0 | R88: =(40*O88)/12 -> 0 | T88: =N88*'CTI INPUTS'!C48 -> 0 | U88: =O88*'CTI INPUTS'!C48 -> 0 | Y88: =N88*'CTI INPUTS'!C51 -> 0 | Z88: =O88*'CTI INPUTS'!C51 -> 0 | AE88: 0 | AF88: 0 | AG88: 0 | AH88: 0 | AI88: 0 | AJ88: 0 | AL88: 0 | AM88: 0 | AN88: 0 | AO88: 0 | AP88: 0 | AQ88: 0 | AS88: 0 | AT88: 0 | AY88: =(F88/4)*'CTI INPUTS'!C33 -> 0 | AZ88: =(H88*'CTI INPUTS'!C34)+(I88*'CTI INPUTS'!C33) -> 0 | BB88: =D88*'CTI INPUTS'!AB39 -> 0 | BC88: =D88*'CTI INPUTS'!AC39 -> 0 | BE88: =N88*'CTI INPUTS'!C37 -> 0 | BF88: =N88*'CTI INPUTS'!C38 -> 0 | BG88: =N88*'CTI INPUTS'!C39 -> 0 | BH88: =O88*'CTI INPUTS'!C37 -> 0 | BI88: =O88*'CTI INPUTS'!C38 -> 0 | BJ88: =O88*'CTI INPUTS'!C39 -> 0 | BL88: =(AY88*'CTI INPUTS'!C6)/60 -> 0 | BM88: =(AZ88*'CTI INPUTS'!C6)/60 -> 0 | BO88: =(BE88/60)*'CTI INPUTS'!C6 -> 0 | BP88: =(BF88/60)*'CTI INPUTS'!C6 -> 0 | BQ88: =(BG88/60)*'CTI INPUTS'!C6 -> 0 | BR88: =(BH88/60)*'CTI INPUTS'!C6 -> 0 | BS88: =(BI88/60)*'CTI INPUTS'!C6 -> 0 | BT88: =(BJ88/60)*'CTI INPUTS'!C6 -> 0 | BV88: =(Q88*('CTI INPUTS'!D17))+(T88*('CTI INPUTS'!D18))+(AE88*('CTI INPUTS'!D12))+(AF88*('CTI INPUTS'!D13))+(AG88*('CTI INPUTS'!D14)) -> 0 | BW88: =(N88*('CTI INPUTS'!D19))+(T88*('CTI INPUTS'!D18))+(AG88*('CTI INPUTS'!D14)) -> 0 | BX88: =(Y88*'CTI INPUTS'!D15)+(N88*'CTI INPUTS'!D16) -> 0 | BY88: =(R88*('CTI INPUTS'!D17))+(U88*('CTI INPUTS'!D18))+(AH88*('CTI INPUTS'!D12))+(AI88*('CTI INPUTS'!D13))+(AJ88*('CTI INPUTS'!D14)) -> 0 | BZ88: =(O88*('CTI INPUTS'!D19))+(U88*('CTI INPUTS'!D18))+(AJ88*('CTI INPUTS'!D14)) -> 0 | CA88: =(Z88*'CTI INPUTS'!D15)+(O88*'CTI INPUTS'!D16) -> 0 | CC88: =(AE88*('CTI INPUTS'!D12)) -> 0 | CD88: =(AF88*('CTI INPUTS'!D13)) -> 0 | CE88: =(AG88*('CTI INPUTS'!D14)) -> 0 | CF88: =(AH88*('CTI INPUTS'!D12)) -> 0 | CG88: =(AI88*('CTI INPUTS'!D13)) -> 0 | CH88: =(AJ88*('CTI INPUTS'!D14)) -> 0 | CJ88: =AL88*'CTI INPUTS'!D42 -> 0 | CK88: =AM88*'CTI INPUTS'!D43 -> 0 | CL88: =AN88*'CTI INPUTS'!D44 -> 0 | CM88: =AS88*'CTI INPUTS'!D45 -> 0 | CN88: =AO88*'CTI INPUTS'!D42 -> 0 | CO88: =AP88*'CTI INPUTS'!D43 -> 0 | CP88: =AQ88*'CTI INPUTS'!D44 -> 0 | CQ88: =AT88*'CTI INPUTS'!D45 -> 0
F89: =SUM(F77:F88) -> 2880 | H89: =SUM((H77:H88)+(I77:I88)) -> 720 | K89: =SUM(K77:K88) -> 960 | L89: =SUM(L77:L88) -> 960 | N89: =SUM(N77:N88) -> 300 | O89: =SUM(O77:O88) -> 300 | Q89: =SUM(Q77:Q88) -> 400 | R89: =SUM(R77:R88) -> 400 | T89: =SUM(T77:T88) -> 1200 | U89: =SUM(U77:U88) -> 1200 | Y89: =SUM(Y77:Y88) -> 1800 | Z89: =SUM(Z77:Z88) -> 1800 | AE89: =SUM((AE77:AE88)+(AF77:AF88)+(AG77:AG88)) -> 3600 | AH89: =SUM((AH77:AH88)+(AI77:AI88)+(AJ77:AJ88)) -> 3600 | AL89: =SUM((AL77:AL88)+(AM77:AM88)+(AN77:AN88)) -> 1800 | AO89: =SUM((AO77:AO88)+(AP77:AP88)+(AQ77:AQ88)) -> 1800 | AS89: =SUM(AS77:AS88) -> 600 | AT89: =SUM(AT77:AT88) -> 600 | AY89: =SUM(AY77:AY88) -> 360 | AZ89: =SUM(AZ77:AZ88) -> 288 | BB89: =SUM(BB77:BB88) -> 48 | BC89: =SUM(BC77:BC88) -> 120 | BE89: =SUM(BE77:BE88) -> 1200 | BF89: 900 | BG89: 600 | BH89: 1200 | BI89: 900 | BJ89: 600 | BL89: =SUM(BL77:BL88) -> 600 | BM89: =SUM(BM77:BM88) -> 480 | BO89: =SUM(BO77:BO88) -> 2000 | BP89: 1500 | BQ89: 1000 | BR89: 2000 | BS89: 1500 | BT89: 1000 | BV89: =SUM(BV77:BV88) -> 5520 | BW89: 3837 | BX89: 3000 | BY89: 5520 | BZ89: 3837 | CA89: 3000 | CC89: =SUM((CC77:CC88)+(CD77:CD88)+(CE77:CE88)) -> 1680 | CF89: =SUM((CF77:CF88)+(CG77:CG88)+(CH77:CH88)) -> 1680 | CJ89: =SUM((CJ77:CJ88)+(CK77:CK88)+(CL77:CL88)) -> 2166 | CM89: =SUM(CM77:CM88) -> 1650 | CN89: =SUM((CN77:CN88)+(CO77:CO88)+(CP77:CP88)) -> 2166 | CQ89: =SUM(CQ77:CQ88) -> 1650 | CS89: =SUM(CS77:CS88) -> 0 | CT89: =SUM(CT77:CT88) -> 0 | CU89: =SUM(CU77:CU88) -> 0
B91: HORIZONTAL CROSS | F91: SPLICE | H91: POSI-LOK | K91: FITTING FABRICATION | N91: SUPPORT QUANTITY | Q91: STRUT L/FT | T91: ATR HANGER (L/FT) | Y91: WIRE HANGER (L/FT) | AE91: VE2 : ATR HARDWARE QUANTITY | AH91: TSS : ATR HARDWARE QUANTITY | AL91: HOLD DOWN & HDWR QUANTITY | AO91: TSS: HOLD DOWN & HDWR QUANTITY | AS91: H-DOWN CLIP QUANTITY | AY91: SPLICE INSTALLATION TIME (MIN) | BB91: FITTING FAB. TIME (MIN) | BE91: VE2 : SUPPORT INSTAL TIME (MIN) | BH91: TSS: SUPPORT INSTALLATION TIME (MIN) | BL91: SPLICE INSTALLATION COST ($) | BO91: SUPPORT INSTALLATION COST ($) | BR91: TSS: SUPPORT INSTALLATION COST ($) | BV91: SUPPORT COST ($) | BY91: TSS: SUPPORT COST ($) | CC91: ATR HARDWARE COST $ | CF91: TSS: ATR HARDWARE COST $ | CJ91: HOLD DOWN CLAMPS & HARDWARE COST ($) | CN91: TSS: HOLD DOWN CLAMPS & HARDWARE COST ($) | CS91: SUPPORT WEIGHT (LBS)
B93: HEIGHT | C93: WIDTH | D93: QUANTITY | F93: WSKIT | H93: PLOK | I93: WSKIT | K93: CUTS QTY | L93: WSKIT (pcs) | N93: FAB (VE2) | O93: C2G (TSS) | Q93: FAB (VE2) | R93: C2G (TSS) | T93: FAB (VE2) | U93: C2G (TSS) | Y93: FAB (VE2) | Z93: C2G (TSS) | AE93: SQ WSHR | AF93: FLT WSHR | AG93: HEX NUT | AH93: SQ WSHR | AI93: FLT WSHR | AJ93: HEX NUT | AL93: FLXW | AM93: 25HX | AN93: 25NC | AO93: FLXW | AP93: 25HX | AQ93: 25NC | AS93: VE2 : SRC (pc) | AT93: TSS : SRC (pc) | AY93: WSKIT | AZ93: POSI-LOK + WSKIT | BB93: CUTS | BC93: WSKIT | BE93: STRUT | BF93: URH | BG93: WIRE | BH93: STRUT | BI93: URH | BJ93: WIRE | BL93: WSKIT | BM93: POSI-LOK + WSKIT | BO93: VE2 : STRUT | BP93: VE2 : URH | BQ93: VE2 : WIRE | BR93: TSS : STRUT | BS93: TSS : URH | BT93: TSS : WIRE | BV93: STRUT | BW93: URH | BX93: WIRE | BY93: STRUT | BZ93: URH | CA93: WIRE | CC93: SQUARE WSHR | CD93: FLAT WSHR | CE93: HEX NUT | CF93: SQUARE WSHR | CG93: FLAT WSHR | CH93: HEX NUT | CJ93: FLXW | CK93: 25HX | CL93: 25NC | CM93: SRC CLIP | CN93: FLXW | CO93: 25HX | CP93: 25NC | CQ93: SRC CLIP | CS93: STRUT | CT93: URH | CU93: WIRE
B94: 2/4/6in | C94: 2in | D94: =ProjectData!K42 -> 0 | F94: =(D94*8)*3 -> 0 | H94: =(D94*2)*3 -> 0 | I94: =(D94*0)*3 -> 0 | K94: =D94*'CTI INPUTS'!AG13 -> 0 | L94: =D94*'CTI INPUTS'!AI13 -> 0 | N94: =D94*6 -> 0 | O94: =D94*6 -> 0 | Q94: =(6*N94)/12 -> 0 | R94: =(6*O94)/12 -> 0 | T94: =N94*'CTI INPUTS'!C48 -> 0 | U94: =O94*'CTI INPUTS'!C48 -> 0 | Y94: =N94*'CTI INPUTS'!C51 -> 0 | Z94: =O94*'CTI INPUTS'!C51 -> 0 | AE94: =N94*4 -> 0 | AF94: =N94*4 -> 0 | AG94: =N94*4 -> 0 | AH94: =O94*4 -> 0 | AI94: =O94*4 -> 0 | AJ94: =O94*4 -> 0 | AL94: =N94*2 -> 0 | AM94: =N94*2 -> 0 | AN94: =N94*2 -> 0 | AO94: =O94*2 -> 0 | AP94: =O94*2 -> 0 | AQ94: =O94*2 -> 0 | AS94: =N94*1 -> 0 | AT94: =O94*1 -> 0 | AY94: =(F94/4)*'CTI INPUTS'!C33 -> 0 | AZ94: =(H94*'CTI INPUTS'!C34)+(I94*'CTI INPUTS'!C33) -> 0 | BB94: =D94*'CTI INPUTS'!AG28 -> 0 | BC94: =D94*'CTI INPUTS'!AH28 -> 0 | BE94: =N94*'CTI INPUTS'!C37 -> 0 | BF94: =N94*'CTI INPUTS'!C38 -> 0 | BG94: =N94*'CTI INPUTS'!C39 -> 0 | BH94: =O94*'CTI INPUTS'!C37 -> 0 | BI94: =O94*'CTI INPUTS'!C38 -> 0 | BJ94: =O94*'CTI INPUTS'!C39 -> 0 | BL94: =(AY94*'CTI INPUTS'!C6)/60 -> 0 | BM94: =(AZ94*'CTI INPUTS'!C6)/60 -> 0 | BO94: =(BE94/60)*'CTI INPUTS'!C6 -> 0 | BP94: =(BF94/60)*'CTI INPUTS'!C6 -> 0 | BQ94: =(BG94/60)*'CTI INPUTS'!C6 -> 0 | BR94: =(BH94/60)*'CTI INPUTS'!C6 -> 0 | BS94: =(BI94/60)*'CTI INPUTS'!C6 -> 0 | BT94: =(BJ94/60)*'CTI INPUTS'!C6 -> 0 | BV94: =(Q94*('CTI INPUTS'!D17))+(T94*('CTI INPUTS'!D18))+(AE94*('CTI INPUTS'!D12))+(AF94*('CTI INPUTS'!D13))+(AG94*('CTI INPUTS'!D14)) -> 0 | BW94: =(N94*('CTI INPUTS'!D19))+(T94*('CTI INPUTS'!D18))+(AG94*('CTI INPUTS'!D14)) -> 0 | BX94: =(Y94*'CTI INPUTS'!D15)+(N94*'CTI INPUTS'!D16) -> 0 | BY94: =(R94*('CTI INPUTS'!D17))+(U94*('CTI INPUTS'!D18))+(AH94*('CTI INPUTS'!D12))+(AI94*('CTI INPUTS'!D13))+(AJ94*('CTI INPUTS'!D14)) -> 0 | BZ94: =(O94*('CTI INPUTS'!D19))+(U94*('CTI INPUTS'!D18))+(AJ94*('CTI INPUTS'!D14)) -> 0 | CA94: =(Z94*'CTI INPUTS'!D15)+(O94*'CTI INPUTS'!D16) -> 0 | CC94: =(AE94*('CTI INPUTS'!D12)) -> 0 | CD94: =(AF94*('CTI INPUTS'!D13)) -> 0 | CE94: =(AG94*('CTI INPUTS'!D14)) -> 0 | CF94: =(AH94*('CTI INPUTS'!D12)) -> 0 | CG94: =(AI94*('CTI INPUTS'!D13)) -> 0 | CH94: =(AJ94*('CTI INPUTS'!D14)) -> 0 | CJ94: =AL94*'CTI INPUTS'!D42 -> 0 | CK94: =AM94*'CTI INPUTS'!D43 -> 0 | CL94: =AN94*'CTI INPUTS'!D44 -> 0 | CM94: =AS94*'CTI INPUTS'!D45 -> 0 | CN94: =AO94*'CTI INPUTS'!D42 -> 0 | CO94: =AP94*'CTI INPUTS'!D43 -> 0 | CP94: =AQ94*'CTI INPUTS'!D44 -> 0 | CQ94: =AT94*'CTI INPUTS'!D45 -> 0
C95: 4in | D95: =ProjectData!K43 -> 0 | F95: =(D95*16)*3 -> 0 | H95: 0 | I95: =(D95*0)*3 -> 0 | K95: =D95*'CTI INPUTS'!AG14 -> 0 | L95: =D95*'CTI INPUTS'!AI14 -> 0 | N95: 0 | O95: 0 | Q95: =(8*N95)/12 -> 0 | R95: =(8*O95)/12 -> 0 | T95: =N95*'CTI INPUTS'!C48 -> 0 | U95: =O95*'CTI INPUTS'!C48 -> 0 | Y95: =N95*'CTI INPUTS'!C51 -> 0 | Z95: =O95*'CTI INPUTS'!C51 -> 0 | AE95: =N95*4 -> 0 | AF95: =N95*4 -> 0 | AG95: =N95*4 -> 0 | AH95: =O95*4 -> 0 | AI95: =O95*4 -> 0 | AJ95: =O95*4 -> 0 | AL95: =N95*2 -> 0 | AM95: =N95*2 -> 0 | AN95: =N95*2 -> 0 | AO95: =O95*2 -> 0 | AP95: =O95*2 -> 0 | AQ95: =O95*2 -> 0 | AS95: =N95*2 -> 0 | AT95: =O95*2 -> 0 | AY95: =(F95/4)*'CTI INPUTS'!C33 -> 0 | AZ95: =(H95*'CTI INPUTS'!C34)+(I95*'CTI INPUTS'!C33) -> 0 | BB95: =D95*'CTI INPUTS'!AG29 -> 0 | BC95: =D95*'CTI INPUTS'!AH29 -> 0 | BE95: =N95*'CTI INPUTS'!C37 -> 0 | BF95: =N95*'CTI INPUTS'!C38 -> 0 | BG95: =N95*'CTI INPUTS'!C39 -> 0 | BH95: =O95*'CTI INPUTS'!C37 -> 0 | BI95: =O95*'CTI INPUTS'!C38 -> 0 | BJ95: =O95*'CTI INPUTS'!C39 -> 0 | BL95: =(AY95*'CTI INPUTS'!C6)/60 -> 0 | BM95: =(AZ95*'CTI INPUTS'!C6)/60 -> 0 | BO95: =(BE95/60)*'CTI INPUTS'!C6 -> 0 | BP95: =(BF95/60)*'CTI INPUTS'!C6 -> 0 | BQ95: =(BG95/60)*'CTI INPUTS'!C6 -> 0 | BR95: =(BH95/60)*'CTI INPUTS'!C6 -> 0 | BS95: =(BI95/60)*'CTI INPUTS'!C6 -> 0 | BT95: =(BJ95/60)*'CTI INPUTS'!C6 -> 0 | BV95: =(Q95*('CTI INPUTS'!D17))+(T95*('CTI INPUTS'!D18))+(AE95*('CTI INPUTS'!D12))+(AF95*('CTI INPUTS'!D13))+(AG95*('CTI INPUTS'!D14)) -> 0 | BW95: =(N95*('CTI INPUTS'!D20))+(T95*('CTI INPUTS'!D19))+(AG95*('CTI INPUTS'!D15)) -> 0 | BX95: =(Y95*'CTI INPUTS'!D16)+(N95*'CTI INPUTS'!D17) -> 0 | BY95: =(R95*('CTI INPUTS'!D17))+(U95*('CTI INPUTS'!D18))+(AH95*('CTI INPUTS'!D12))+(AI95*('CTI INPUTS'!D13))+(AJ95*('CTI INPUTS'!D14)) -> 0 | BZ95: =(O95*('CTI INPUTS'!D19))+(U95*('CTI INPUTS'!D18))+(AJ95*('CTI INPUTS'!D14)) -> 0 | CA95: =(Z95*'CTI INPUTS'!D15)+(O95*'CTI INPUTS'!D16) -> 0 | CC95: =(AE95*('CTI INPUTS'!D12)) -> 0 | CD95: =(AF95*('CTI INPUTS'!D13)) -> 0 | CE95: =(AG95*('CTI INPUTS'!D14)) -> 0 | CF95: =(AH95*('CTI INPUTS'!D12)) -> 0 | CG95: =(AI95*('CTI INPUTS'!D13)) -> 0 | CH95: =(AJ95*('CTI INPUTS'!D14)) -> 0 | CJ95: =AL95*'CTI INPUTS'!D42 -> 0 | CK95: =AM95*'CTI INPUTS'!D43 -> 0 | CL95: =AN95*'CTI INPUTS'!D44 -> 0 | CM95: =AS95*'CTI INPUTS'!D45 -> 0 | CN95: =AO95*'CTI INPUTS'!D42 -> 0 | CO95: =AP95*'CTI INPUTS'!D43 -> 0 | CP95: =AQ95*'CTI INPUTS'!D44 -> 0 | CQ95: =AT95*'CTI INPUTS'!D45 -> 0
C96: 6in | D96: =ProjectData!K44 -> 0 | F96: =(D96*16)*3 -> 0 | H96: 0 | I96: =(D96*0)*3 -> 0 | K96: =D96*'CTI INPUTS'!AG15 -> 0 | L96: =D96*'CTI INPUTS'!AI15 -> 0 | N96: 0 | O96: 0 | Q96: =(10*N96)/12 -> 0 | R96: =(10*O96)/12 -> 0 | T96: =N96*'CTI INPUTS'!C48 -> 0 | U96: =O96*'CTI INPUTS'!C48 -> 0 | Y96: =N96*'CTI INPUTS'!C51 -> 0 | Z96: =O96*'CTI INPUTS'!C51 -> 0 | AE96: 0 | AF96: 0 | AG96: 0 | AH96: 0 | AI96: 0 | AJ96: 0 | AL96: 0 | AM96: 0 | AN96: 0 | AO96: 0 | AP96: 0 | AQ96: 0 | AS96: =N96*2 -> 0 | AT96: =O96*2 -> 0 | AY96: =(F96/4)*'CTI INPUTS'!C33 -> 0 | AZ96: =(H96*'CTI INPUTS'!C34)+(I96*'CTI INPUTS'!C33) -> 0 | BB96: =D96*'CTI INPUTS'!AG30 -> 0 | BC96: =D96*'CTI INPUTS'!AH30 -> 0 | BE96: =N96*'CTI INPUTS'!C37 -> 0 | BF96: =N96*'CTI INPUTS'!C38 -> 0 | BG96: =N96*'CTI INPUTS'!C39 -> 0 | BH96: =O96*'CTI INPUTS'!C37 -> 0 | BI96: =O96*'CTI INPUTS'!C38 -> 0 | BJ96: =O96*'CTI INPUTS'!C39 -> 0 | BL96: =(AY96*'CTI INPUTS'!C6)/60 -> 0 | BM96: =(AZ96*'CTI INPUTS'!C6)/60 -> 0 | BO96: =(BE96/60)*'CTI INPUTS'!C6 -> 0 | BP96: =(BF96/60)*'CTI INPUTS'!C6 -> 0 | BQ96: =(BG96/60)*'CTI INPUTS'!C6 -> 0 | BR96: =(BH96/60)*'CTI INPUTS'!C6 -> 0 | BS96: =(BI96/60)*'CTI INPUTS'!C6 -> 0 | BT96: =(BJ96/60)*'CTI INPUTS'!C6 -> 0 | BV96: =(Q96*('CTI INPUTS'!D19))+(T96*('CTI INPUTS'!D20))+(AE96*('CTI INPUTS'!D14))+(AF96*('CTI INPUTS'!D15))+(AG96*('CTI INPUTS'!D16)) -> 0 | BW96: =(N96*('CTI INPUTS'!D21))+(T96*('CTI INPUTS'!D20))+(AG96*('CTI INPUTS'!D16)) -> 0 | BX96: =(Y96*'CTI INPUTS'!D17)+(N96*'CTI INPUTS'!D18) -> 0 | BY96: =(R96*('CTI INPUTS'!D17))+(U96*('CTI INPUTS'!D18))+(AH96*('CTI INPUTS'!D12))+(AI96*('CTI INPUTS'!D13))+(AJ96*('CTI INPUTS'!D14)) -> 0 | BZ96: =(O96*('CTI INPUTS'!D19))+(U96*('CTI INPUTS'!D18))+(AJ96*('CTI INPUTS'!D14)) -> 0 | CA96: =(Z96*'CTI INPUTS'!D15)+(O96*'CTI INPUTS'!D16) -> 0 | CC96: =(AE96*('CTI INPUTS'!D12)) -> 0 | CD96: =(AF96*('CTI INPUTS'!D13)) -> 0 | CE96: =(AG96*('CTI INPUTS'!D14)) -> 0 | CF96: =(AH96*('CTI INPUTS'!D12)) -> 0 | CG96: =(AI96*('CTI INPUTS'!D13)) -> 0 | CH96: =(AJ96*('CTI INPUTS'!D14)) -> 0 | CJ96: =AL96*'CTI INPUTS'!D42 -> 0 | CK96: =AM96*'CTI INPUTS'!D43 -> 0 | CL96: =AN96*'CTI INPUTS'!D44 -> 0 | CM96: =AS96*'CTI INPUTS'!D45 -> 0 | CN96: =AO96*'CTI INPUTS'!D42 -> 0 | CO96: =AP96*'CTI INPUTS'!D43 -> 0 | CP96: =AQ96*'CTI INPUTS'!D44 -> 0 | CQ96: =AT96*'CTI INPUTS'!D45 -> 0
C97: 8in | D97: =ProjectData!K45 -> 0 | F97: =(D97*20)*3 -> 0 | H97: 0 | I97: =(D97*4)*3 -> 0 | K97: =D97*'CTI INPUTS'!AG16 -> 0 | L97: =D97*'CTI INPUTS'!AI16 -> 0 | N97: 0 | O97: 0 | Q97: =(12*N97)/12 -> 0 | R97: =(12*O97)/12 -> 0 | T97: =N97*'CTI INPUTS'!C48 -> 0 | U97: =O97*'CTI INPUTS'!C48 -> 0 | Y97: =N97*'CTI INPUTS'!C51 -> 0 | Z97: =O97*'CTI INPUTS'!C51 -> 0 | AE97: 0 | AF97: 0 | AG97: 0 | AH97: 0 | AI97: 0 | AJ97: 0 | AL97: 0 | AM97: 0 | AN97: 0 | AO97: 0 | AP97: 0 | AQ97: 0 | AS97: 0 | AT97: 0 | AY97: =(F97/4)*'CTI INPUTS'!C33 -> 0 | AZ97: =(H97*'CTI INPUTS'!C34)+(I97*'CTI INPUTS'!C33) -> 0 | BB97: =D97*'CTI INPUTS'!AG31 -> 0 | BC97: =D97*'CTI INPUTS'!AH31 -> 0 | BE97: =N97*'CTI INPUTS'!C37 -> 0 | BF97: =N97*'CTI INPUTS'!C38 -> 0 | BG97: =N97*'CTI INPUTS'!C39 -> 0 | BH97: =O97*'CTI INPUTS'!C37 -> 0 | BI97: =O97*'CTI INPUTS'!C38 -> 0 | BJ97: =O97*'CTI INPUTS'!C39 -> 0 | BL97: =(AY97*'CTI INPUTS'!C6)/60 -> 0 | BM97: =(AZ97*'CTI INPUTS'!C6)/60 -> 0 | BO97: =(BE97/60)*'CTI INPUTS'!C6 -> 0 | BP97: =(BF97/60)*'CTI INPUTS'!C6 -> 0 | BQ97: =(BG97/60)*'CTI INPUTS'!C6 -> 0 | BR97: =(BH97/60)*'CTI INPUTS'!C6 -> 0 | BS97: =(BI97/60)*'CTI INPUTS'!C6 -> 0 | BT97: =(BJ97/60)*'CTI INPUTS'!C6 -> 0 | BV97: =(Q97*('CTI INPUTS'!D20))+(T97*('CTI INPUTS'!D21))+(AE97*('CTI INPUTS'!D15))+(AF97*('CTI INPUTS'!D16))+(AG97*('CTI INPUTS'!D17)) -> 0 | BW97: =(N97*('CTI INPUTS'!D22))+(T97*('CTI INPUTS'!D21))+(AG97*('CTI INPUTS'!D17)) -> 0 | BX97: =(Y97*'CTI INPUTS'!D18)+(N97*'CTI INPUTS'!D19) -> 0 | BY97: =(R97*('CTI INPUTS'!D17))+(U97*('CTI INPUTS'!D18))+(AH97*('CTI INPUTS'!D12))+(AI97*('CTI INPUTS'!D13))+(AJ97*('CTI INPUTS'!D14)) -> 0 | BZ97: =(O97*('CTI INPUTS'!D19))+(U97*('CTI INPUTS'!D18))+(AJ97*('CTI INPUTS'!D14)) -> 0 | CA97: =(Z97*'CTI INPUTS'!D15)+(O97*'CTI INPUTS'!D16) -> 0 | CC97: =(AE97*('CTI INPUTS'!D12)) -> 0 | CD97: =(AF97*('CTI INPUTS'!D13)) -> 0 | CE97: =(AG97*('CTI INPUTS'!D14)) -> 0 | CF97: =(AH97*('CTI INPUTS'!D12)) -> 0 | CG97: =(AI97*('CTI INPUTS'!D13)) -> 0 | CH97: =(AJ97*('CTI INPUTS'!D14)) -> 0 | CJ97: =AL97*'CTI INPUTS'!D42 -> 0 | CK97: =AM97*'CTI INPUTS'!D43 -> 0 | CL97: =AN97*'CTI INPUTS'!D44 -> 0 | CM97: =AS97*'CTI INPUTS'!D45 -> 0 | CN97: =AO97*'CTI INPUTS'!D42 -> 0 | CO97: =AP97*'CTI INPUTS'!D43 -> 0 | CP97: =AQ97*'CTI INPUTS'!D44 -> 0 | CQ97: =AT97*'CTI INPUTS'!D45 -> 0
C98: 10in | D98: =ProjectData!K46 -> 0 | F98: =(D98*20)*3 -> 0 | H98: 0 | I98: =(D98*4)*3 -> 0 | K98: =D98*'CTI INPUTS'!AG17 -> 0 | L98: =D98*'CTI INPUTS'!AI17 -> 0 | N98: 0 | O98: 0 | Q98: =(14*N98)/12 -> 0 | R98: =(14*O98)/12 -> 0 | T98: =N98*'CTI INPUTS'!C48 -> 0 | U98: =O98*'CTI INPUTS'!C48 -> 0 | Y98: =N98*'CTI INPUTS'!C51 -> 0 | Z98: =O98*'CTI INPUTS'!C51 -> 0 | AE98: 0 | AF98: 0 | AG98: 0 | AH98: 0 | AI98: 0 | AJ98: 0 | AL98: 0 | AM98: 0 | AN98: 0 | AO98: 0 | AP98: 0 | AQ98: 0 | AS98: 0 | AT98: 0 | AY98: =(F98/4)*'CTI INPUTS'!C33 -> 0 | AZ98: =(H98*'CTI INPUTS'!C34)+(I98*'CTI INPUTS'!C33) -> 0 | BB98: =D98*'CTI INPUTS'!AG32 -> 0 | BC98: =D98*'CTI INPUTS'!AH32 -> 0 | BE98: =N98*'CTI INPUTS'!C37 -> 0 | BF98: =N98*'CTI INPUTS'!C38 -> 0 | BG98: =N98*'CTI INPUTS'!C39 -> 0 | BH98: =O98*'CTI INPUTS'!C37 -> 0 | BI98: =O98*'CTI INPUTS'!C38 -> 0 | BJ98: =O98*'CTI INPUTS'!C39 -> 0 | BL98: =(AY98*'CTI INPUTS'!C6)/60 -> 0 | BM98: =(AZ98*'CTI INPUTS'!C6)/60 -> 0 | BO98: =(BE98/60)*'CTI INPUTS'!C6 -> 0 | BP98: =(BF98/60)*'CTI INPUTS'!C6 -> 0 | BQ98: =(BG98/60)*'CTI INPUTS'!C6 -> 0 | BR98: =(BH98/60)*'CTI INPUTS'!C6 -> 0 | BS98: =(BI98/60)*'CTI INPUTS'!C6 -> 0 | BT98: =(BJ98/60)*'CTI INPUTS'!C6 -> 0 | BV98: =(Q98*('CTI INPUTS'!D21))+(T98*('CTI INPUTS'!D22))+(AE98*('CTI INPUTS'!D16))+(AF98*('CTI INPUTS'!D17))+(AG98*('CTI INPUTS'!D18)) -> 0 | BW98: =(N98*('CTI INPUTS'!D23))+(T98*('CTI INPUTS'!D22))+(AG98*('CTI INPUTS'!D18)) -> 0 | BX98: =(Y98*'CTI INPUTS'!D19)+(N98*'CTI INPUTS'!D20) -> 0 | BY98: =(R98*('CTI INPUTS'!D17))+(U98*('CTI INPUTS'!D18))+(AH98*('CTI INPUTS'!D12))+(AI98*('CTI INPUTS'!D13))+(AJ98*('CTI INPUTS'!D14)) -> 0 | BZ98: =(O98*('CTI INPUTS'!D19))+(U98*('CTI INPUTS'!D18))+(AJ98*('CTI INPUTS'!D14)) -> 0 | CA98: =(Z98*'CTI INPUTS'!D15)+(O98*'CTI INPUTS'!D16) -> 0 | CC98: =(AE98*('CTI INPUTS'!D12)) -> 0 | CD98: =(AF98*('CTI INPUTS'!D13)) -> 0 | CE98: =(AG98*('CTI INPUTS'!D14)) -> 0 | CF98: =(AH98*('CTI INPUTS'!D12)) -> 0 | CG98: =(AI98*('CTI INPUTS'!D13)) -> 0 | CH98: =(AJ98*('CTI INPUTS'!D14)) -> 0 | CJ98: =AL98*'CTI INPUTS'!D42 -> 0 | CK98: =AM98*'CTI INPUTS'!D43 -> 0 | CL98: =AN98*'CTI INPUTS'!D44 -> 0 | CM98: =AS98*'CTI INPUTS'!D45 -> 0 | CN98: =AO98*'CTI INPUTS'!D42 -> 0 | CO98: =AP98*'CTI INPUTS'!D43 -> 0 | CP98: =AQ98*'CTI INPUTS'!D44 -> 0 | CQ98: =AT98*'CTI INPUTS'!D45 -> 0
C99: 12in | D99: =ProjectData!K47 -> 10 | F99: =(D99*24)*3 -> 720 | H99: 60 | I99: =(D99*4)*3 -> 120 | K99: =D99*'CTI INPUTS'!AG18 -> 320 | L99: =D99*'CTI INPUTS'!AI18 -> 320 | N99: 60 | O99: 60 | Q99: =(16*N99)/12 -> 80 | R99: =(16*O99)/12 -> 80 | T99: =N99*'CTI INPUTS'!C48 -> 240 | U99: =O99*'CTI INPUTS'!C48 -> 240 | Y99: =N99*'CTI INPUTS'!C51 -> 360 | Z99: =O99*'CTI INPUTS'!C51 -> 360 | AE99: 240 | AF99: 240 | AG99: 240 | AH99: 240 | AI99: 240 | AJ99: 240 | AL99: 120 | AM99: 120 | AN99: 120 | AO99: 120 | AP99: 120 | AQ99: 120 | AS99: 120 | AT99: 120 | AY99: =(F99/4)*'CTI INPUTS'!C33 -> 90 | AZ99: =(H99*'CTI INPUTS'!C34)+(I99*'CTI INPUTS'!C33) -> 72 | BB99: =D99*'CTI INPUTS'!AG33 -> 16 | BC99: =D99*'CTI INPUTS'!AH33 -> 40 | BE99: =N99*'CTI INPUTS'!C37 -> 240 | BF99: =N99*'CTI INPUTS'!C38 -> 180 | BG99: =N99*'CTI INPUTS'!C39 -> 120 | BH99: =O99*'CTI INPUTS'!C37 -> 240 | BI99: =O99*'CTI INPUTS'!C38 -> 180 | BJ99: =O99*'CTI INPUTS'!C39 -> 120 | BL99: =(AY99*'CTI INPUTS'!C6)/60 -> 150 | BM99: =(AZ99*'CTI INPUTS'!C6)/60 -> 120 | BO99: =(BE99/60)*'CTI INPUTS'!C6 -> 400 | BP99: =(BF99/60)*'CTI INPUTS'!C6 -> 300 | BQ99: =(BG99/60)*'CTI INPUTS'!C6 -> 200 | BR99: =(BH99/60)*'CTI INPUTS'!C6 -> 400 | BS99: =(BI99/60)*'CTI INPUTS'!C6 -> 300 | BT99: =(BJ99/60)*'CTI INPUTS'!C6 -> 200 | BV99: =(Q99*('CTI INPUTS'!D22))+(T99*('CTI INPUTS'!D23))+(AE99*('CTI INPUTS'!D17))+(AF99*('CTI INPUTS'!D18))+(AG99*('CTI INPUTS'!D19)) -> 5476.8 | BW99: =(N99*('CTI INPUTS'!D24))+(T99*('CTI INPUTS'!D23))+(AG99*('CTI INPUTS'!D19)) -> 3989.4 | BX99: =(Y99*'CTI INPUTS'!D20)+(N99*'CTI INPUTS'!D21) -> 2494.2 | BY99: =(R99*('CTI INPUTS'!D17))+(U99*('CTI INPUTS'!D18))+(AH99*('CTI INPUTS'!D12))+(AI99*('CTI INPUTS'!D13))+(AJ99*('CTI INPUTS'!D14)) -> 1104 | BZ99: =(O99*('CTI INPUTS'!D19))+(U99*('CTI INPUTS'!D18))+(AJ99*('CTI INPUTS'!D14)) -> 767.4 | CA99: =(Z99*'CTI INPUTS'!D15)+(O99*'CTI INPUTS'!D16) -> 600 | CC99: =(AE99*('CTI INPUTS'!D12)) -> 240 | CD99: =(AF99*('CTI INPUTS'!D13)) -> 36 | CE99: =(AG99*('CTI INPUTS'!D14)) -> 60 | CF99: =(AH99*('CTI INPUTS'!D12)) -> 240 | CG99: =(AI99*('CTI INPUTS'!D13)) -> 36 | CH99: =(AJ99*('CTI INPUTS'!D14)) -> 60 | CJ99: =AL99*'CTI INPUTS'!D42 -> 241.2 | CK99: =AM99*'CTI INPUTS'!D43 -> 84 | CL99: =AN99*'CTI INPUTS'!D44 -> 108 | CM99: =AS99*'CTI INPUTS'!D45 -> 330 | CN99: =AO99*'CTI INPUTS'!D42 -> 241.2 | CO99: =AP99*'CTI INPUTS'!D43 -> 84 | CP99: =AQ99*'CTI INPUTS'!D44 -> 108 | CQ99: =AT99*'CTI INPUTS'!D45 -> 330
C100: 16in | D100: =ProjectData!K48 -> 0 | F100: =(D100*24)*3 -> 0 | H100: 0 | I100: =(D100*8)*3 -> 0 | K100: =D100*'CTI INPUTS'!AG19 -> 0 | L100: =D100*'CTI INPUTS'!AI19 -> 0 | N100: 0 | O100: 0 | Q100: =(20*N100)/12 -> 0 | R100: =(20*O100)/12 -> 0 | T100: =N100*'CTI INPUTS'!C48 -> 0 | U100: =O100*'CTI INPUTS'!C48 -> 0 | Y100: =N100*'CTI INPUTS'!C51 -> 0 | Z100: =O100*'CTI INPUTS'!C51 -> 0 | AE100: 0 | AF100: 0 | AG100: 0 | AH100: 0 | AI100: 0 | AJ100: 0 | AL100: 0 | AM100: 0 | AN100: 0 | AO100: 0 | AP100: 0 | AQ100: 0 | AS100: 0 | AT100: 0 | AY100: =(F100/4)*'CTI INPUTS'!C33 -> 0 | AZ100: =(H100*'CTI INPUTS'!C34)+(I100*'CTI INPUTS'!C33) -> 0 | BB100: =D100*'CTI INPUTS'!AG34 -> 0 | BC100: =D100*'CTI INPUTS'!AH34 -> 0 | BE100: =N100*'CTI INPUTS'!C37 -> 0 | BF100: =N100*'CTI INPUTS'!C38 -> 0 | BG100: =N100*'CTI INPUTS'!C39 -> 0 | BH100: =O100*'CTI INPUTS'!C37 -> 0 | BI100: =O100*'CTI INPUTS'!C38 -> 0 | BJ100: =O100*'CTI INPUTS'!C39 -> 0 | BL100: =(AY100*'CTI INPUTS'!C6)/60 -> 0 | BM100: =(AZ100*'CTI INPUTS'!C6)/60 -> 0 | BO100: =(BE100/60)*'CTI INPUTS'!C6 -> 0 | BP100: =(BF100/60)*'CTI INPUTS'!C6 -> 0 | BQ100: =(BG100/60)*'CTI INPUTS'!C6 -> 0 | BR100: =(BH100/60)*'CTI INPUTS'!C6 -> 0 | BS100: =(BI100/60)*'CTI INPUTS'!C6 -> 0 | BT100: =(BJ100/60)*'CTI INPUTS'!C6 -> 0 | BV100: =(Q100*('CTI INPUTS'!D23))+(T100*('CTI INPUTS'!D24))+(AE100*('CTI INPUTS'!D18))+(AF100*('CTI INPUTS'!D19))+(AG100*('CTI INPUTS'!D20)) -> 0 | BW100: =(N100*('CTI INPUTS'!D25))+(T100*('CTI INPUTS'!D24))+(AG100*('CTI INPUTS'!D20)) -> 0 | BX100: =(Y100*'CTI INPUTS'!D21)+(N100*'CTI INPUTS'!D22) -> 0 | BY100: =(R100*('CTI INPUTS'!D17))+(U100*('CTI INPUTS'!D18))+(AH100*('CTI INPUTS'!D12))+(AI100*('CTI INPUTS'!D13))+(AJ100*('CTI INPUTS'!D14)) -> 0 | BZ100: =(O100*('CTI INPUTS'!D19))+(U100*('CTI INPUTS'!D18))+(AJ100*('CTI INPUTS'!D14)) -> 0 | CA100: =(Z100*'CTI INPUTS'!D15)+(O100*'CTI INPUTS'!D16) -> 0 | CC100: =(AE100*('CTI INPUTS'!D12)) -> 0 | CD100: =(AF100*('CTI INPUTS'!D13)) -> 0 | CE100: =(AG100*('CTI INPUTS'!D14)) -> 0 | CF100: =(AH100*('CTI INPUTS'!D12)) -> 0 | CG100: =(AI100*('CTI INPUTS'!D13)) -> 0 | CH100: =(AJ100*('CTI INPUTS'!D14)) -> 0 | CJ100: =AL100*'CTI INPUTS'!D42 -> 0 | CK100: =AM100*'CTI INPUTS'!D43 -> 0 | CL100: =AN100*'CTI INPUTS'!D44 -> 0 | CM100: =AS100*'CTI INPUTS'!D45 -> 0 | CN100: =AO100*'CTI INPUTS'!D42 -> 0 | CO100: =AP100*'CTI INPUTS'!D43 -> 0 | CP100: =AQ100*'CTI INPUTS'!D44 -> 0 | CQ100: =AT100*'CTI INPUTS'!D45 -> 0
C101: 18in | D101: =ProjectData!K49 -> 0 | F101: =(D101*24)*3 -> 0 | H101: 0 | I101: =(D101*8)*3 -> 0 | K101: =D101*'CTI INPUTS'!AG20 -> 0 | L101: =D101*'CTI INPUTS'!AI20 -> 0 | N101: 0 | O101: 0 | Q101: =(22*N101)/12 -> 0 | R101: =(22*O101)/12 -> 0 | T101: =N101*'CTI INPUTS'!C48 -> 0 | U101: =O101*'CTI INPUTS'!C48 -> 0 | Y101: =N101*'CTI INPUTS'!C51 -> 0 | Z101: =O101*'CTI INPUTS'!C51 -> 0 | AE101: 0 | AF101: 0 | AG101: 0 | AH101: 0 | AI101: 0 | AJ101: 0 | AL101: 0 | AM101: 0 | AN101: 0 | AO101: 0 | AP101: 0 | AQ101: 0 | AS101: 0 | AT101: 0 | AY101: =(F101/4)*'CTI INPUTS'!C33 -> 0 | AZ101: =(H101*'CTI INPUTS'!C34)+(I101*'CTI INPUTS'!C33) -> 0 | BB101: =D101*'CTI INPUTS'!AG35 -> 0 | BC101: =D101*'CTI INPUTS'!AH35 -> 0 | BE101: =N101*'CTI INPUTS'!C37 -> 0 | BF101: =N101*'CTI INPUTS'!C38 -> 0 | BG101: =N101*'CTI INPUTS'!C39 -> 0 | BH101: =O101*'CTI INPUTS'!C37 -> 0 | BI101: =O101*'CTI INPUTS'!C38 -> 0 | BJ101: =O101*'CTI INPUTS'!C39 -> 0 | BL101: =(AY101*'CTI INPUTS'!C6)/60 -> 0 | BM101: =(AZ101*'CTI INPUTS'!C6)/60 -> 0 | BO101: =(BE101/60)*'CTI INPUTS'!C6 -> 0 | BP101: =(BF101/60)*'CTI INPUTS'!C6 -> 0 | BQ101: =(BG101/60)*'CTI INPUTS'!C6 -> 0 | BR101: =(BH101/60)*'CTI INPUTS'!C6 -> 0 | BS101: =(BI101/60)*'CTI INPUTS'!C6 -> 0 | BT101: =(BJ101/60)*'CTI INPUTS'!C6 -> 0 | BV101: =(Q101*('CTI INPUTS'!D24))+(T101*('CTI INPUTS'!D25))+(AE101*('CTI INPUTS'!D19))+(AF101*('CTI INPUTS'!D20))+(AG101*('CTI INPUTS'!D21)) -> 0 | BW101: =(N101*('CTI INPUTS'!D26))+(T101*('CTI INPUTS'!D25))+(AG101*('CTI INPUTS'!D21)) -> 0 | BX101: =(Y101*'CTI INPUTS'!D22)+(N101*'CTI INPUTS'!D23) -> 0 | BY101: =(R101*('CTI INPUTS'!D17))+(U101*('CTI INPUTS'!D18))+(AH101*('CTI INPUTS'!D12))+(AI101*('CTI INPUTS'!D13))+(AJ101*('CTI INPUTS'!D14)) -> 0 | BZ101: =(O101*('CTI INPUTS'!D19))+(U101*('CTI INPUTS'!D18))+(AJ101*('CTI INPUTS'!D14)) -> 0 | CA101: =(Z101*'CTI INPUTS'!D15)+(O101*'CTI INPUTS'!D16) -> 0 | CC101: =(AE101*('CTI INPUTS'!D12)) -> 0 | CD101: =(AF101*('CTI INPUTS'!D13)) -> 0 | CE101: =(AG101*('CTI INPUTS'!D14)) -> 0 | CF101: =(AH101*('CTI INPUTS'!D12)) -> 0 | CG101: =(AI101*('CTI INPUTS'!D13)) -> 0 | CH101: =(AJ101*('CTI INPUTS'!D14)) -> 0 | CJ101: =AL101*'CTI INPUTS'!D42 -> 0 | CK101: =AM101*'CTI INPUTS'!D43 -> 0 | CL101: =AN101*'CTI INPUTS'!D44 -> 0 | CM101: =AS101*'CTI INPUTS'!D45 -> 0 | CN101: =AO101*'CTI INPUTS'!D42 -> 0 | CO101: =AP101*'CTI INPUTS'!D43 -> 0 | CP101: =AQ101*'CTI INPUTS'!D44 -> 0 | CQ101: =AT101*'CTI INPUTS'!D45 -> 0
C102: 20in | D102: =ProjectData!K50 -> 0 | F102: =(D102*28)*3 -> 0 | H102: 0 | I102: =(D102*8)*3 -> 0 | K102: =D102*'CTI INPUTS'!AG21 -> 0 | L102: =D102*'CTI INPUTS'!AI21 -> 0 | N102: 0 | O102: 0 | Q102: =(24*N102)/12 -> 0 | R102: =(24*O102)/12 -> 0 | T102: =N102*'CTI INPUTS'!C48 -> 0 | U102: =O102*'CTI INPUTS'!C48 -> 0 | Y102: =N102*'CTI INPUTS'!C51 -> 0 | Z102: =O102*'CTI INPUTS'!C51 -> 0 | AE102: 0 | AF102: 0 | AG102: 0 | AH102: 0 | AI102: 0 | AJ102: 0 | AL102: 0 | AM102: 0 | AN102: 0 | AO102: 0 | AP102: 0 | AQ102: 0 | AS102: 0 | AT102: 0 | AY102: =(F102/4)*'CTI INPUTS'!C33 -> 0 | AZ102: =(H102*'CTI INPUTS'!C34)+(I102*'CTI INPUTS'!C33) -> 0 | BB102: =D102*'CTI INPUTS'!AG36 -> 0 | BC102: =D102*'CTI INPUTS'!AH36 -> 0 | BE102: =N102*'CTI INPUTS'!C37 -> 0 | BF102: =N102*'CTI INPUTS'!C38 -> 0 | BG102: =N102*'CTI INPUTS'!C39 -> 0 | BH102: =O102*'CTI INPUTS'!C37 -> 0 | BI102: =O102*'CTI INPUTS'!C38 -> 0 | BJ102: =O102*'CTI INPUTS'!C39 -> 0 | BL102: =(AY102*'CTI INPUTS'!C6)/60 -> 0 | BM102: =(AZ102*'CTI INPUTS'!C6)/60 -> 0 | BO102: =(BE102/60)*'CTI INPUTS'!C6 -> 0 | BP102: =(BF102/60)*'CTI INPUTS'!C6 -> 0 | BQ102: =(BG102/60)*'CTI INPUTS'!C6 -> 0 | BR102: =(BH102/60)*'CTI INPUTS'!C6 -> 0 | BS102: =(BI102/60)*'CTI INPUTS'!C6 -> 0 | BT102: =(BJ102/60)*'CTI INPUTS'!C6 -> 0 | BV102: =(Q102*('CTI INPUTS'!D25))+(T102*('CTI INPUTS'!D26))+(AE102*('CTI INPUTS'!D20))+(AF102*('CTI INPUTS'!D21))+(AG102*('CTI INPUTS'!D22)) -> 0 | BW102: =(N102*('CTI INPUTS'!D27))+(T102*('CTI INPUTS'!D26))+(AG102*('CTI INPUTS'!D22)) -> 0 | BX102: =(Y102*'CTI INPUTS'!D23)+(N102*'CTI INPUTS'!D24) -> 0 | BY102: =(R102*('CTI INPUTS'!D17))+(U102*('CTI INPUTS'!D18))+(AH102*('CTI INPUTS'!D12))+(AI102*('CTI INPUTS'!D13))+(AJ102*('CTI INPUTS'!D14)) -> 0 | BZ102: =(O102*('CTI INPUTS'!D19))+(U102*('CTI INPUTS'!D18))+(AJ102*('CTI INPUTS'!D14)) -> 0 | CA102: =(Z102*'CTI INPUTS'!D15)+(O102*'CTI INPUTS'!D16) -> 0 | CC102: =(AE102*('CTI INPUTS'!D12)) -> 0 | CD102: =(AF102*('CTI INPUTS'!D13)) -> 0 | CE102: =(AG102*('CTI INPUTS'!D14)) -> 0 | CF102: =(AH102*('CTI INPUTS'!D12)) -> 0 | CG102: =(AI102*('CTI INPUTS'!D13)) -> 0 | CH102: =(AJ102*('CTI INPUTS'!D14)) -> 0 | CJ102: =AL102*'CTI INPUTS'!D42 -> 0 | CK102: =AM102*'CTI INPUTS'!D43 -> 0 | CL102: =AN102*'CTI INPUTS'!D44 -> 0 | CM102: =AS102*'CTI INPUTS'!D45 -> 0 | CN102: =AO102*'CTI INPUTS'!D42 -> 0 | CO102: =AP102*'CTI INPUTS'!D43 -> 0 | CP102: =AQ102*'CTI INPUTS'!D44 -> 0 | CQ102: =AT102*'CTI INPUTS'!D45 -> 0
C103: 24in | D103: =ProjectData!K51 -> 0 | F103: =(D103*28)*3 -> 0 | H103: 0 | I103: =(D103*8)*3 -> 0 | K103: =D103*'CTI INPUTS'!AG22 -> 0 | L103: =D103*'CTI INPUTS'!AI22 -> 0 | N103: 0 | O103: 0 | Q103: =(28*N103)/12 -> 0 | R103: =(28*O103)/12 -> 0 | T103: =N103*'CTI INPUTS'!C48 -> 0 | U103: =O103*'CTI INPUTS'!C48 -> 0 | Y103: =N103*'CTI INPUTS'!C51 -> 0 | Z103: =O103*'CTI INPUTS'!C51 -> 0 | AE103: 0 | AF103: 0 | AG103: 0 | AH103: 0 | AI103: 0 | AJ103: 0 | AL103: 0 | AM103: 0 | AN103: 0 | AO103: 0 | AP103: 0 | AQ103: 0 | AS103: 0 | AT103: 0 | AY103: =(F103/4)*'CTI INPUTS'!C33 -> 0 | AZ103: =(H103*'CTI INPUTS'!C34)+(I103*'CTI INPUTS'!C33) -> 0 | BB103: =D103*'CTI INPUTS'!AG37 -> 0 | BC103: =D103*'CTI INPUTS'!AH37 -> 0 | BE103: =N103*'CTI INPUTS'!C37 -> 0 | BF103: =N103*'CTI INPUTS'!C38 -> 0 | BG103: =N103*'CTI INPUTS'!C39 -> 0 | BH103: =O103*'CTI INPUTS'!C37 -> 0 | BI103: =O103*'CTI INPUTS'!C38 -> 0 | BJ103: =O103*'CTI INPUTS'!C39 -> 0 | BL103: =(AY103*'CTI INPUTS'!C6)/60 -> 0 | BM103: =(AZ103*'CTI INPUTS'!C6)/60 -> 0 | BO103: =(BE103/60)*'CTI INPUTS'!C6 -> 0 | BP103: =(BF103/60)*'CTI INPUTS'!C6 -> 0 | BQ103: =(BG103/60)*'CTI INPUTS'!C6 -> 0 | BR103: =(BH103/60)*'CTI INPUTS'!C6 -> 0 | BS103: =(BI103/60)*'CTI INPUTS'!C6 -> 0 | BT103: =(BJ103/60)*'CTI INPUTS'!C6 -> 0 | BV103: =(Q103*('CTI INPUTS'!D26))+(T103*('CTI INPUTS'!D27))+(AE103*('CTI INPUTS'!D21))+(AF103*('CTI INPUTS'!D22))+(AG103*('CTI INPUTS'!D23)) -> 0 | BW103: =(N103*('CTI INPUTS'!D28))+(T103*('CTI INPUTS'!D27))+(AG103*('CTI INPUTS'!D23)) -> 0 | BX103: =(Y103*'CTI INPUTS'!D24)+(N103*'CTI INPUTS'!D25) -> 0 | BY103: =(R103*('CTI INPUTS'!D17))+(U103*('CTI INPUTS'!D18))+(AH103*('CTI INPUTS'!D12))+(AI103*('CTI INPUTS'!D13))+(AJ103*('CTI INPUTS'!D14)) -> 0 | BZ103: =(O103*('CTI INPUTS'!D19))+(U103*('CTI INPUTS'!D18))+(AJ103*('CTI INPUTS'!D14)) -> 0 | CA103: =(Z103*'CTI INPUTS'!D15)+(O103*'CTI INPUTS'!D16) -> 0 | CC103: =(AE103*('CTI INPUTS'!D12)) -> 0 | CD103: =(AF103*('CTI INPUTS'!D13)) -> 0 | CE103: =(AG103*('CTI INPUTS'!D14)) -> 0 | CF103: =(AH103*('CTI INPUTS'!D12)) -> 0 | CG103: =(AI103*('CTI INPUTS'!D13)) -> 0 | CH103: =(AJ103*('CTI INPUTS'!D14)) -> 0 | CJ103: =AL103*'CTI INPUTS'!D42 -> 0 | CK103: =AM103*'CTI INPUTS'!D43 -> 0 | CL103: =AN103*'CTI INPUTS'!D44 -> 0 | CM103: =AS103*'CTI INPUTS'!D45 -> 0 | CN103: =AO103*'CTI INPUTS'!D42 -> 0 | CO103: =AP103*'CTI INPUTS'!D43 -> 0 | CP103: =AQ103*'CTI INPUTS'!D44 -> 0 | CQ103: =AT103*'CTI INPUTS'!D45 -> 0
C104: 30in | D104: =ProjectData!K52 -> 0 | F104: =(D104*32)*3 -> 0 | H104: 0 | I104: =(D104*12)*3 -> 0 | K104: =D104*'CTI INPUTS'!AG23 -> 0 | L104: =D104*'CTI INPUTS'!AI23 -> 0 | N104: 0 | O104: 0 | Q104: =(34*N104)/12 -> 0 | R104: =(34*O104)/12 -> 0 | T104: =N104*'CTI INPUTS'!C48 -> 0 | U104: =O104*'CTI INPUTS'!C48 -> 0 | Y104: =N104*'CTI INPUTS'!C51 -> 0 | Z104: =O104*'CTI INPUTS'!C51 -> 0 | AE104: 0 | AF104: 0 | AG104: 0 | AH104: 0 | AI104: 0 | AJ104: 0 | AL104: 0 | AM104: 0 | AN104: 0 | AO104: 0 | AP104: 0 | AQ104: 0 | AS104: 0 | AT104: 0 | AY104: =(F104/4)*'CTI INPUTS'!C33 -> 0 | AZ104: =(H104*'CTI INPUTS'!C34)+(I104*'CTI INPUTS'!C33) -> 0 | BB104: =D104*'CTI INPUTS'!AG38 -> 0 | BC104: =D104*'CTI INPUTS'!AH38 -> 0 | BE104: =N104*'CTI INPUTS'!C37 -> 0 | BF104: =N104*'CTI INPUTS'!C38 -> 0 | BG104: =N104*'CTI INPUTS'!C39 -> 0 | BH104: =O104*'CTI INPUTS'!C37 -> 0 | BI104: =O104*'CTI INPUTS'!C38 -> 0 | BJ104: =O104*'CTI INPUTS'!C39 -> 0 | BL104: =(AY104*'CTI INPUTS'!C6)/60 -> 0 | BM104: =(AZ104*'CTI INPUTS'!C6)/60 -> 0 | BO104: =(BE104/60)*'CTI INPUTS'!C6 -> 0 | BP104: =(BF104/60)*'CTI INPUTS'!C6 -> 0 | BQ104: =(BG104/60)*'CTI INPUTS'!C6 -> 0 | BR104: =(BH104/60)*'CTI INPUTS'!C6 -> 0 | BS104: =(BI104/60)*'CTI INPUTS'!C6 -> 0 | BT104: =(BJ104/60)*'CTI INPUTS'!C6 -> 0 | BV104: =(Q104*('CTI INPUTS'!D27))+(T104*('CTI INPUTS'!D28))+(AE104*('CTI INPUTS'!D22))+(AF104*('CTI INPUTS'!D23))+(AG104*('CTI INPUTS'!D24)) -> 0 | BW104: =(N104*('CTI INPUTS'!D29))+(T104*('CTI INPUTS'!D28))+(AG104*('CTI INPUTS'!D24)) -> 0 | BX104: =(Y104*'CTI INPUTS'!D25)+(N104*'CTI INPUTS'!D26) -> 0 | BY104: =(R104*('CTI INPUTS'!D17))+(U104*('CTI INPUTS'!D18))+(AH104*('CTI INPUTS'!D12))+(AI104*('CTI INPUTS'!D13))+(AJ104*('CTI INPUTS'!D14)) -> 0 | BZ104: =(O104*('CTI INPUTS'!D19))+(U104*('CTI INPUTS'!D18))+(AJ104*('CTI INPUTS'!D14)) -> 0 | CA104: =(Z104*'CTI INPUTS'!D15)+(O104*'CTI INPUTS'!D16) -> 0 | CC104: =(AE104*('CTI INPUTS'!D12)) -> 0 | CD104: =(AF104*('CTI INPUTS'!D13)) -> 0 | CE104: =(AG104*('CTI INPUTS'!D14)) -> 0 | CF104: =(AH104*('CTI INPUTS'!D12)) -> 0 | CG104: =(AI104*('CTI INPUTS'!D13)) -> 0 | CH104: =(AJ104*('CTI INPUTS'!D14)) -> 0 | CJ104: =AL104*'CTI INPUTS'!D42 -> 0 | CK104: =AM104*'CTI INPUTS'!D43 -> 0 | CL104: =AN104*'CTI INPUTS'!D44 -> 0 | CM104: =AS104*'CTI INPUTS'!D45 -> 0 | CN104: =AO104*'CTI INPUTS'!D42 -> 0 | CO104: =AP104*'CTI INPUTS'!D43 -> 0 | CP104: =AQ104*'CTI INPUTS'!D44 -> 0 | CQ104: =AT104*'CTI INPUTS'!D45 -> 0
C105: 36in | D105: =ProjectData!K53 -> 0 | F105: =(D105*32)*3 -> 0 | H105: 0 | I105: =(D105*12)*3 -> 0 | K105: =D105*'CTI INPUTS'!AG24 -> 0 | L105: =D105*'CTI INPUTS'!AI24 -> 0 | N105: 0 | O105: 0 | Q105: =(40*N105)/12 -> 0 | R105: =(40*O105)/12 -> 0 | T105: =N105*'CTI INPUTS'!C48 -> 0 | U105: =O105*'CTI INPUTS'!C48 -> 0 | Y105: =N105*'CTI INPUTS'!C51 -> 0 | Z105: =O105*'CTI INPUTS'!C51 -> 0 | AE105: 0 | AF105: 0 | AG105: 0 | AH105: 0 | AI105: 0 | AJ105: 0 | AL105: 0 | AM105: 0 | AN105: 0 | AO105: 0 | AP105: 0 | AQ105: 0 | AS105: 0 | AT105: 0 | AY105: =(F105/4)*'CTI INPUTS'!C33 -> 0 | AZ105: =(H105*'CTI INPUTS'!C34)+(I105*'CTI INPUTS'!C33) -> 0 | BB105: =D105*'CTI INPUTS'!AG39 -> 0 | BC105: =D105*'CTI INPUTS'!AH39 -> 0 | BE105: =N105*'CTI INPUTS'!C37 -> 0 | BF105: =N105*'CTI INPUTS'!C38 -> 0 | BG105: =N105*'CTI INPUTS'!C39 -> 0 | BH105: =O105*'CTI INPUTS'!C37 -> 0 | BI105: =O105*'CTI INPUTS'!C38 -> 0 | BJ105: =O105*'CTI INPUTS'!C39 -> 0 | BL105: =(AY105*'CTI INPUTS'!C6)/60 -> 0 | BM105: =(AZ105*'CTI INPUTS'!C6)/60 -> 0 | BO105: =(BE105/60)*'CTI INPUTS'!C6 -> 0 | BP105: =(BF105/60)*'CTI INPUTS'!C6 -> 0 | BQ105: =(BG105/60)*'CTI INPUTS'!C6 -> 0 | BR105: =(BH105/60)*'CTI INPUTS'!C6 -> 0 | BS105: =(BI105/60)*'CTI INPUTS'!C6 -> 0 | BT105: =(BJ105/60)*'CTI INPUTS'!C6 -> 0 | BV105: =(Q105*('CTI INPUTS'!D28))+(T105*('CTI INPUTS'!D29))+(AE105*('CTI INPUTS'!D23))+(AF105*('CTI INPUTS'!D24))+(AG105*('CTI INPUTS'!D25)) -> 0 | BW105: =(N105*('CTI INPUTS'!D30))+(T105*('CTI INPUTS'!D29))+(AG105*('CTI INPUTS'!D25)) -> 0 | BX105: =(Y105*'CTI INPUTS'!D26)+(N105*'CTI INPUTS'!D27) -> 0 | BY105: =(R105*('CTI INPUTS'!D17))+(U105*('CTI INPUTS'!D18))+(AH105*('CTI INPUTS'!D12))+(AI105*('CTI INPUTS'!D13))+(AJ105*('CTI INPUTS'!D14)) -> 0 | BZ105: =(O105*('CTI INPUTS'!D19))+(U105*('CTI INPUTS'!D18))+(AJ105*('CTI INPUTS'!D14)) -> 0 | CA105: =(Z105*'CTI INPUTS'!D15)+(O105*'CTI INPUTS'!D16) -> 0 | CC105: =(AE105*('CTI INPUTS'!D12)) -> 0 | CD105: =(AF105*('CTI INPUTS'!D13)) -> 0 | CE105: =(AG105*('CTI INPUTS'!D14)) -> 0 | CF105: =(AH105*('CTI INPUTS'!D12)) -> 0 | CG105: =(AI105*('CTI INPUTS'!D13)) -> 0 | CH105: =(AJ105*('CTI INPUTS'!D14)) -> 0 | CJ105: =AL105*'CTI INPUTS'!D42 -> 0 | CK105: =AM105*'CTI INPUTS'!D43 -> 0 | CL105: =AN105*'CTI INPUTS'!D44 -> 0 | CM105: =AS105*'CTI INPUTS'!D45 -> 0 | CN105: =AO105*'CTI INPUTS'!D42 -> 0 | CO105: =AP105*'CTI INPUTS'!D43 -> 0 | CP105: =AQ105*'CTI INPUTS'!D44 -> 0 | CQ105: =AT105*'CTI INPUTS'!D45 -> 0
F106: =SUM(F94:F105) -> 720 | H106: =SUM((H94:H105)+(I94:I105)) -> 180 | K106: =SUM(K94:K105) -> 320 | L106: =SUM(L94:L105) -> 320 | N106: =SUM(N94:N105) -> 60 | O106: =SUM(O94:O105) -> 60 | Q106: =SUM(Q94:Q105) -> 80 | R106: =SUM(R94:R105) -> 80 | T106: =SUM(T94:T105) -> 240 | U106: =SUM(U94:U105) -> 240 | Y106: =SUM(Y94:Y105) -> 360 | Z106: =SUM(Z94:Z105) -> 360 | AE106: =SUM((AE94:AE105)+(AF94:AF105)+(AG94:AG105)) -> 720 | AH106: =SUM((AH94:AH105)+(AI94:AI105)+(AJ94:AJ105)) -> 720 | AL106: =SUM((AL94:AL105)+(AM94:AM105)+(AN94:AN105)) -> 360 | AO106: =SUM((AO94:AO105)+(AP94:AP105)+(AQ94:AQ105)) -> 360 | AS106: =SUM(AS94:AS105) -> 120 | AT106: =SUM(AT94:AT105) -> 120 | AY106: =SUM(AY94:AY105) -> 90 | AZ106: =SUM(AZ94:AZ105) -> 72 | BB106: =SUM(BB94:BB105) -> 16 | BC106: =SUM(BC94:BC105) -> 40 | BE106: =SUM(BE94:BE105) -> 240 | BF106: 180 | BG106: 120 | BH106: 240 | BI106: 180 | BJ106: 120 | BL106: =SUM(BL94:BL105) -> 150 | BM106: =SUM(BM94:BM105) -> 120 | BO106: =SUM(BO94:BO105) -> 400 | BP106: 300 | BQ106: 200 | BR106: 400 | BS106: 300 | BT106: 200 | BV106: =SUM(BV94:BV105) -> 5476.8 | BW106: 3989.4 | BX106: 2494.2 | BY106: 1104 | BZ106: 767.4 | CA106: 600 | CC106: =SUM((CC94:CC105)+(CD94:CD105)+(CE94:CE105)) -> 336 | CF106: =SUM((CF94:CF105)+(CG94:CG105)+(CH94:CH105)) -> 336 | CJ106: =SUM((CJ94:CJ105)+(CK94:CK105)+(CL94:CL105)) -> 433.2 | CM106: =SUM(CM94:CM105) -> 330 | CN106: =SUM((CN94:CN105)+(CO94:CO105)+(CP94:CP105)) -> 433.2 | CQ106: =SUM(CQ94:CQ105) -> 330 | CS106: =SUM(CS94:CS105) -> 0 | CT106: =SUM(CT94:CT105) -> 0 | CU106: =SUM(CU94:CU105) -> 0
B109: SUMMARY OF QUANTITIES | K109: SUMMARY OF INSTALLATION TIMES
B111: INDUSTRY STANDARD | F111: TOUGH SUPPORT SAVINGS | K111: INDUSTRY STANDARD | Q111: TOUGH SUPPORT SAVINGS
B113: SUPPORT QTY (PCS) | D113: =SUM(N19+N38+N55+N72+N89+N106) -> 4459 | F113: SUPPORT QTY (PCS) | I113: =SUM(O19+O38+O55+O72+O89+O106) -> 2413 | K113: STRUT SUPPORT INSTALLATION TIME (MIN) | N113: =D113*'CTI INPUTS'!C37 -> 17836 | Q113: STRUT SUPPORT INSTALLATION TIME (MIN) | T113: =I113*'CTI INPUTS'!C37 -> 9652
B115: STRUT SUPPORT QTY (FT) | D115: =SUM(Q19+Q38+Q55+Q72+Q89+Q106) -> 6433.333333 | F115: STRUT SUPPORT QTY (FT) | I115: =SUM(R19+R38+R55+R72+R89+R106) -> 3461.333333 | K115: URH SUPPORT INSTALLATION TIME (MIN) | N115: =D117*'CTI INPUTS'!C38 -> 13377 | Q115: URH SUPPORT INSTALLATION TIME (MIN) | T115: =I113*'CTI INPUTS'!C38 -> 7239
B117: URH SUPPORT QTY (PCS) | D117: =SUM(N19+N38+N55+N72+N89+N106) -> 4459 | F117: URH SUPPORT QTY (PCS) | I117: =SUM(O19+O38+O55+O72+O89+O106) -> 2413 | K117: CABLE SUPPORT INSTALLATION TIME (MIN) | N117: =D113*'CTI INPUTS'!C39 -> 8918 | Q117: CABLE SUPPORT INSTALLATION TIME (MIN) | T117: =I113*'CTI INPUTS'!C39 -> 4826
B119: CABLE SUPPORT QTY (FT) | D119: =SUM(Y19+Y38+Y55+Y72+Y89+Y106) -> 26754 | F119: CABLE SUPPORT QTY (FT) | I119: =SUM(AA19+Z38+Z55+Z72+Z89+Z106) -> 14478 | K119: POSI-LOK + WSKIT INSTALLATION TIME (MIN) | N119: =D127*'CTI INPUTS'!C34 -> 3299.6 | Q119: POSI-LOK + WSKIT INSTALLATION TIME (MIN) | T119: =I127*'CTI INPUTS'!C34 -> 3275.6
B121: ALL THREAD ROD (FT) | D121: =SUM(T19+T38+T55+T72+T89+T106) -> 17836 | F121: ALL THREAD ROD (FT) | I121: =SUM(V19+U38+U55+U72+U89+U106) -> 9652 | K121: WASHER SPLICE KIT INSTALLATION TIME (MIN) | N121: =D129*'CTI INPUTS'!C33 -> 26992 | Q121: WASHER SPLICE KIT INSTALLATION TIME (MIN) | T121: =I129*'CTI INPUTS'!C33 -> 26932
B123: ATR HARDWARE FOR STRUT (PCS) | D123: =SUM(AE19+AE38+AE55+AE72+AE89+AE106) -> 53508 | F123: ALL THREAD ROD HARDWARE (PCS) | I123: =SUM(AH19+AH38+AH55+AH72+AH89+AH106) -> 28956 | K123: HOLD DOWN CLAMP INSTALLATION TIME (MIN) | N123: =D131*'CTI INPUTS'!C35 -> 13377 | Q123: HOLD DOWN CLAMP INSTALLATION TIME (MIN) | T123: =I131*'CTI INPUTS'!C35 -> 7239
B125: ATR HARDWARE FOR URH (PCS) | D125: =D123-(SUM(AE7:AE18+AE26:AE37+AE43:AE54+AE60:AE71+AE77:AE88+AE94:AE105)) -> 35672 | F125: ATR HARDWARE FOR URH (PCS) | I125: =I123-(SUM(AH7:AH18+AH26:AH37+AH43:AH54+AH60:AH71+AH77:AH88+AH94:AH105)) -> 19304
B127: POSI-LOK SPLICE + WSKIT (PCS) | D127: =SUM(H19+H38+H55+H72+H89+H106+L106+L89+L55+L38) -> 16498 | F127: POSI-LOK SPLICE + WSKIT (PCS) | I127: =SUM(H19+H38+H55+H72+H89+H106+L89+L106) -> 16378 | K127: STRUT RETENTION CLIP INSTALLATION TIME (MIN) | N127: =D133*'CTI INPUTS'!C36 -> 445.9 | Q127: STRUT RETENTION CLIP INSTALLATION TIME (MIN) | T127: =I133*'CTI INPUTS'!C36 -> 241.3
B129: WASHER SPLICE KIT (PCS) | D129: =SUM(F19+F38+F55+F72+F89+F106+L38+L55+L89+L106) -> 53984 | F129: WASHER SPLICE KIT (PCS) | I129: =SUM(F19+F38+F55+F72+F89+F106+L89+L106) -> 53864 | K129: COVER INSTALLATION TIME (MIN) | N129: =BB19 -> 10120 | Q129: COVER INSTALLATION TIME (MIN) | T129: =BC19 -> 1012
B131: HOLD DOWN CLAMP + HWR (PCS) | D131: =SUM(AL19+AL38+AL55+AL72+AL89+AL106) -> 26754 | F131: HOLD DOWN CLAMP + HWR (PCS) | I131: =SUM(AO19+AO38+AO55+AO72+AO89+AO106) -> 14478 | K131: FITTINGS FABRICATION CUT WIRES TIME (MIN) | N131: =SUM(BB38+BB55+BB72+BB89+BB106) -> 109.6 | Q131: FITTINGS CUT WIRES TIME (MIN) | T131: =SUM(BB72+BB89+BB106) -> 85.6
B133: STRUT RETENTION CLIP (PCS) | D133: =SUM(AS19+AS38+AS55+AS72+AS89+AS106) -> 8918 | F133: STRUT RETENTION CLIP (PCS) | I133: =SUM(AU19+AT38+AT55+AT72+AT89+AT106) -> 4826 | K133: FITTINGS FABRICATION WSKIT TIME (MIN) | N133: =SUM(BC38+BC55+BC72+BC89+BC106) -> 175 | Q133: FITTINGS FABRICATION WSKIT TIME (MIN) | T133: =SUM(BC72+BC89+BC106) -> 160
B135: COVER HOLD DOWN KITS (PCS) | D135: =K19 -> 72864 | F135: SNAP-ON COVER H-D KITS (PCS) | I135: =L19 -> 0 | K135: FABRICATION TIME : FABRICATED HB (EA) | N135: =SUM(BB38+BC38+BB55+BC55) -> 39 | Q135: FABRICATION TIME : C2G HB (EA) | T135: 0
B137: ALL FITTINGS CUT WIRES QTY (EACH) | D137: =SUM(K38+K55+K72+K89+K106) -> 2192 | F137: FITTINGS CUT WIRES QTY (EACH) | I137: =SUM(K72+K89+K106) -> 1712
B139: SUPPORT QTY : FABRICATED HB (EA) | D139: =(N38+N55) -> 15 | F139: SUPPORT QTY : C2G HB (EA) | I139: =(O38+O55) -> 5
B145: SUPPORT OPTIMIZATION | I145: SPEED OF INSTALLATION | Q145: SAFETY & SCHEDULE RISK
B147: ST SC SUPPORT SPAN OPTIMIZATION | D147: QTY (EA) | E147: QTY SAVED | F147: % SAVING | I147: ST SC SUPPORT INSTALLATION TIME | L147: TIME (MIN) | M147: TIME SAVED | N147: % SAVING | Q147: PERSONAL SAFETY | T147: QTY (EA) | U147: QTY SAVED | V147: % SAVING
B148: SUPPORT QTY : Customer Input | D148: =N233 -> 4048 | E148: 0 | F148: 0 | I148: STRUT INSTALLATION : Customer Input | L148: =D148*'CTI INPUTS'!$C$37 -> 16192 | M148: 0 | N148: 0 | Q148: FABRICATED HB SHARP EDGES | T148: =(D137-I137) -> 480 | U148: 0 | V148: 0
B149: SUPPORT QTY : TSS 8ft | D149: =N252 -> 2530 | E149: =(D148-D149) -> 1518 | F149: =(D148-D149)/D148 -> 0.375 | I149: STRUT INSTALLATION : TSS 8ft | L149: =D149*'CTI INPUTS'!$C$37 -> 10120 | M149: =L148-L149 -> 6072 | N149: =(L148-L149)/L148 -> 0.375 | Q149: PRE-FORMED HB SHARP EDGES | T149: 0 | U149: =T148 -> 480 | V149: 1
B150: SUPPORT QTY : TSS 10ft | D150: =N271 -> 2024 | E150: =(D148-D150) -> 2024 | F150: =(D148-D150)/D148 -> 0.5 | I150: STRUT INSTALLATION : TSS 10ft | L150: =D150*'CTI INPUTS'!$C$37 -> 8096 | M150: =L148-L150 -> 8096 | N150: =(L148-L150)/L148 -> 0.5
Q151: CABLE SAFETY | T151: QTY (EA) | U151: QTY SAVED | V151: % SAVING
B152: C2G FITTINGS SUPPORT OPTIMIZATION | D152: QTY (EA) | E152: QTY SAVED | F152: % SAVING | I152: ST SC COVERS | L152: TIME (MIN) | M152: TIME SAVED | N152: % SAVING | Q152: All FABRICATED FITTINGS SHARP EDGES | T152: =D137 -> 2192 | U152: 0 | V152: 0
B153: SUPPORT QTY : FABRICATED FITTINGS | D153: =D139 -> 15 | E153: 0 | F153: 0 | I153: HDKIT SECURED COVERS | L153: =N129 -> 10120 | M153: 0 | N153: 0 | Q153: USING C2G HB FITTINGS SHARP EDGES | T153: =I137 -> 1712 | U153: =(T152-T153) -> 480 | V153: =(T152-T153)/T152 -> 0.2189781022
B154: SUPPORT QTY : USING C2G FITTINGS | D154: =I139 -> 5 | E154: =(D153-D154) -> 10 | F154: =(D153-D154)/D153 -> 0.6666666667 | I154: SNAP-ON COVERS | L154: =T129 -> 1012 | M154: =L153-L154 -> 9108 | N154: =(L153-L154)/L153 -> 0.9
Q155: MATERIAL HANDLING SAFETY | T155: QTY (L/FT) | U155: QTY SAVED | V155: % SAVING
B156: TOTAL TRAY SYSTEM SUPPORT OPTIMIZATION | D156: QTY (EA) | E156: QTY SAVED | F156: % SAVING | I156: C2G FITTINGS INSTALLATION TIME | L156: TIME (MIN) | M156: TIME SAVED | N156: % SAVING | Q156: TOTAL STRUT MATERIAL :Customer Input | T156: =D162 -> 6433.333333 | U156: 0 | V156: 0
B157: SYSTEM SUPPORT QTY : Customer Input | D157: =D113 -> 4459 | E157: 0 | F157: 0 | I157: FABRICATED HORIZONTAL BENDS | L157: =N135 -> 39 | M157: 0 | N157: 0 | Q157: TOTAL STRUT MATERIAL : TSS 8ft | T157: =D163 -> 4197 | U157: =T156-T157 -> 2236.333333 | V157: =(T156-T157)/T156 -> 0.3476165803
B158: SYSTEM SUPPORT QTY : TSS 8ft | D158: =D159+(D149-D150) -> 2919 | E158: =(D157-D158) -> 1540 | F158: =(D157-D158)/D157 -> 0.3453689168 | I158: C2G HORIZONTAL BENDS | L158: 0 | M158: =(L157-L158) -> 39 | N158: =(L157-L158)/L157 -> 1 | Q158: TOTAL STRUT MATERIAL : TSS 10ft | T158: =D164 -> 3461.333333 | U158: =T156-T158 -> 2972 | V158: =(T156-T158)/T156 -> 0.4619689119
B159: SYSTEM SUPPORT QTY : TSS 10ft | D159: =I113 -> 2413 | E159: =(D157-D159) -> 2046 | F159: =(D157-D159)/D157 -> 0.4588472752 | Q159: TOTAL URH MATERIAL : TSS 8ft | T159: =D174 -> 4197 | U159: =T156-T159 -> 2236.333333 | V159: =(T157-T159)/T157 -> 0
I160: ALL FITTINGS INSTALLATION TIME | L160: TIME (MIN) | M160: TIME SAVED | N160: % SAVING | Q160: TOTAL URH MATERIAL : TSS 10ft | T160: =D175 -> 3461.333333 | U160: =T156-T160 -> 2972 | V160: =(T156-T160)/T156 -> 0.4619689119
B161: STRUT CHANNEL SUPPORT | D161: QTY | E161: QTY SAVED | F161: % SAVING | I161: ALL FABRICATED FITTINGS | L161: =(N131+N133) -> 284.6 | M161: 0 | N161: 0 | Q161: TOTAL CABLE MATERIAL : TSS 8ft | T161: =D185 -> 17514 | U161: =T156-T161 -> -11080.66667 | V161: =(T156-T161)/T156 -> -1.72238342
B162: STRUT CHANNEL : Customer Input (L/FT) | D162: =D115 -> 6433.333333 | E162: 0 | F162: 0 | I162: C2G HB + FABRICATED FITTINGS | L162: =(L161-N135) -> 245.6 | M162: =(L161-L162) -> 39 | N162: =(L161-L162)/L161 -> 0.1370344343 | Q162: TOTAL CABLE MATERIAL : TSS 10ft | T162: =D186 -> 14478 | U162: =T156-T162 -> -8044.666667 | V162: =(T156-T162)/T156 -> -1.250466321
B163: STRUT CHANNEL : TSS 8ft (L/FT) | D163: =D164+(P252-P271) -> 4197 | E163: =(D162-D163) -> 2236.333333 | F163: =(D162-D163)/D162 -> 0.3476165803
B164: STRUT CHANNEL : TSS 10ft (L/FT) | D164: =I115 -> 3461.333333 | E164: =(D162-D164) -> 2972 | F164: =(D162-D164)/D162 -> 0.4619689119 | I164: SPLICE INSTALLATION TIME | L164: TIME (MIN) | M164: TIME SAVED | N164: % SAVING | Q164: MATERIAL HANDLING SAFETY | T164: QTY (PCS) | U164: QTY SAVED | V164: % SAVING
B165: ALLTHREAD ROD : Customer Input (L/FT) | D165: =D121 -> 17836 | E165: 0 | F165: 0 | I165: WSKIT TIME : Customer Input | L165: =D204*'CTI INPUTS'!C33 -> 26992 | M165: 0 | N165: 0 | Q165: TOTAL TM SPLICING MATERIALS : Customer Input | T165: =D204 -> 53984 | U165: 0 | V165: 0
B166: ALLTHREAD ROD : TSS 8ft (L/FT) | D166: =D167+(R252-R271) -> 11676 | E166: =(D165-D166) -> 6160 | F166: =(D165-D166)/D165 -> 0.3453689168 | I166: POSI-LOK TIME : Customer Input | L166: =D205*'CTI INPUTS'!C34 -> 3299.6 | M166: =L165-L166 -> 23692.4 | N166: =(L165-L166)/L165 -> 0.8777563723 | Q166: TOTAL TM SPLICING MATERIALS : TSS 8ft | T166: =D208 -> 16378 | U166: =T165-T166 -> 37606 | V166: =(T165-T166)/T165 -> 0.6966138115
B167: ALLTHREAD ROD : TSS 10ft (L/FT) | D167: =I121 -> 9652 | E167: =(D165-D167) -> 8184 | F167: =(D165-D167)/D165 -> 0.4588472752 | I167: WSKIT TIME : TSS 8ft | L167: =D206*'CTI INPUTS'!$C$33 -> 26932 | M167: =L165-L167 -> 60 | N167: =(L165-L167)/L165 -> 0.002222880854 | Q167: TOTAL TM SPLICING MATERIALS : TSS 10ft | T167: =D209 -> 16378 | U167: =T165-T167 -> 37606 | V167: =(T165-T167)/T165 -> 0.6966138115
B168: HARDWARE : Customer Input (PCS) | D168: =D123 -> 53508 | E168: 0 | F168: 0 | I168: WSKIT TIME : TSS 10ft | L168: =D207*'CTI INPUTS'!$C$33 -> 26932 | M168: =L165-L168 -> 60 | N168: =(L165-L168)/L165 -> 0.002222880854
B169: HARDWARE : TSS 8ft (PCS) | D169: =D170+(X252-X271) -> 35028 | E169: =(D168-D169) -> 18480 | F169: =(D168-D169)/D168 -> 0.3453689168 | I169: POSI-LOK TIME : TSS 8ft | L169: =D208*'CTI INPUTS'!$C$34 -> 3275.6 | M169: =L165-L169 -> 23716.4 | N169: =(L165-L169)/L165 -> 0.8786455246 | Q169: MATERIAL HANDLING SAFETY | T169: QTY (PCS) | U169: QTY SAVED | V169: % SAVING
B170: HARDWARE : TSS 10ft (PCS) | D170: =I123 -> 28956 | E170: =(D168-D170) -> 24552 | F170: =(D168-D170)/D168 -> 0.4588472752 | I170: POSI-LOK TIME : TSS 10ft | L170: =D209*'CTI INPUTS'!$C$34 -> 3275.6 | M170: =L165-L170 -> 23716.4 | N170: =(L165-L170)/L165 -> 0.8786455246 | Q170: TOTAL HARDWARE MATERIALS : Customer Input | T170: =D212 -> 134246 | U170: 0 | V170: 0
Q171: TOTAL HARDWARE MATERIALS : TSS 8ft | T171: =D213 -> 47592 | U171: =T170-T171 -> 86654 | V171: =(T170-T171)/T170 -> 0.6454866439
B172: URH CHANNEL SUPPORT | D172: QTY | E172: QTY SAVED | F172: % SAVING | I172: SUPPORT TYPE INSTALLATION TIME | L172: TIME (MIN) | M172: TIME SAVED | N172: % SAVING | Q172: TOTAL HARDWARE MATERIALS : TSS 10ft | T172: =D214 -> 40508 | U172: =T170-T172 -> 93738 | V172: =(T170-T172)/T170 -> 0.6982554415
B173: URH CHANNEL : Customer Input (L/FT) | D173: =D115 -> 6433.333333 | E173: 0 | F173: 0 | I173: STRUT SUPPORT : Customer Input | L173: =N113 -> 17836 | M173: 0 | N173: 0 | Q173: (supports, hangers, hold downs)
B174: URH CHANNEL : TSS 8ft (L/FT) | D174: =D175+(P252-P271) -> 4197 | E174: =(D173-D174) -> 2236.333333 | F174: =(D173-D174)/D173 -> 0.3476165803 | I174: URH SUPPORT : Customer Input | L174: =N115 -> 13377 | M174: =L173-L174 -> 4459 | N174: =(L173-L174)/L173 -> 0.25
B175: URH CHANNEL : TSS 10ft (L/FT) | D175: =I115 -> 3461.333333 | E175: =(D173-D175) -> 2972 | F175: =(D173-D175)/D173 -> 0.4619689119 | I175: CABLE SUPPORT : Customer Input | L175: =N117 -> 8918 | M175: =L173-L175 -> 8918 | N175: =(L173-L175)/L173 -> 0.5 | Q175: SCHEDULE : BUDGET | T175: COST ($) | U175: COST SAVED | V175: % SAVING
B176: ALL THREAD ROD : Customer Input (L/FT) | D176: =D121 -> 17836 | E176: 0 | F176: 0 | I176: STRUT SUPPORT : TSS 8ft | L176: =L177+(AP252-AP271) -> 11676 | M176: =L173-L176 -> 6160 | N176: =(L173-L176)/L173 -> 0.3453689168 | Q176: TRAY INSTALLATION WORKS : Customer Input | T176: =E286 -> 285292.0667 | U176: 0 | V176: 0
B177: ALL THREAD ROD : TSS 8ft (L/FT) | D177: =D178+(R252-R271) -> 11676 | E177: =(D176-D177) -> 6160 | F177: =(D176-D177)/D176 -> 0.3453689168 | I177: STRUT SUPPORT : TSS 10ft | L177: =T113 -> 9652 | M177: =L173-L177 -> 8184 | N177: =(L173-L177)/L173 -> 0.4588472752 | Q177: TRAY INSTALLATION WORKS : TSS 8ft | T177: =K285 -> 110864.3367 | U177: =T176-T177 -> 174427.73 | V177: =(T176-T177)/T176 -> 0.6114005624
B178: ALL THREAD ROD : TSS 10ft (L/FT) | D178: =I121 -> 9652 | E178: =(D176-D178) -> 8184 | F178: =(D176-D178)/D176 -> 0.4588472752 | I178: URH SUPPORT : TSS 8ft | L178: =L179+(AQ252-AQ271) -> 8757 | M178: =L173-L178 -> 9079 | N178: =(L173-L178)/L173 -> 0.5090266876 | Q178: TRAY INSTALLATION WORKS : TSS 10ft | T178: =P285 -> 97179.24 | U178: =T176-T178 -> 188112.8267 | V178: =(T176-T178)/T176 -> 0.6593692873
B179: HARDWARE : Customer Input (PCS) | D179: =D125 -> 35672 | E179: 0 | F179: 0 | I179: URH SUPPORT : TSS 10ft | L179: =T115 -> 7239 | M179: =L173-L179 -> 10597 | N179: =(L173-L179)/L173 -> 0.5941354564 | Q179: TRAY INSTALLATION WORKS : TSS 8ft | T179: =K297 -> 75030.44667 | U179: =T176-T179 -> 210261.62 | V179: =(T176-T179)/T176 -> 0.7370047911
B180: HARDWARE : TSS 8ft (PCS) | D180: =D181+(X252-X271) -> 25376 | E180: =(D179-D180) -> 10296 | F180: =(D179-D180)/D179 -> 0.2886297376 | I180: CABLE SUPPORT : TSS 8ft | L180: =L181+(AR252-AR271) -> 5838 | M180: =L173-L180 -> 11998 | N180: =(L173-L180)/L173 -> 0.6726844584 | Q180: TRAY INSTALLATION WORKS : TSS 10ft | T180: =P297 -> 68283.78 | U180: =T176-T180 -> 217008.2867 | V180: =(T176-T180)/T176 -> 0.7606530711
B181: HARDWARE : TSS 10ft (PCS) | D181: =I125 -> 19304 | E181: =(D179-D181) -> 16368 | F181: =(D179-D181)/D179 -> 0.4588472752 | I181: CABLE SUPPORT : TSS 10ft | L181: =T117 -> 4826 | M181: =L173-L181 -> 13010 | N181: =(L173-L181)/L173 -> 0.7294236376 | Q181: (materials + installation time cost)
B183: CABLE SUPPORT | D183: QTY | E183: QTY SAVED | F183: % SAVING | I183: H-D CLAMP INSTALLATION TIME | L183: TIME (MIN) | M183: TIME SAVED | N183: % SAVING | Q183: SCHEULE : CRITICAL PATH RISK | T183: WORK (MIN) | U183: WORK SAVED | V183: Risk Reduction
B184: CABLE : Customer Input (L/FT) | D184: =D119 -> 26754 | E184: 0 | F184: 0 | I184: FLXW + HDWR : Customer Input | L184: =D192*'CTI INPUTS'!C35 -> 13377 | M184: 0 | N184: 0 | Q184: INSTALLATION WORKS : Customer Input | T184: =L173+L161+L165+L184 -> 58489.6 | U184: 0 | V184: 0
B185: CABLE : TSS 8ft (L/FT) | D185: =D186+(U252-U271) -> 17514 | E185: =(D184-D185) -> 9240 | F185: =(D184-D185)/D184 -> 0.3453689168 | I185: FLXW + HDWR : TSS 8ft | L185: =D193*'CTI INPUTS'!$C$35 -> 8757 | M185: =L184-L185 -> 4620 | N185: =(L184-L185)/L184 -> 0.3453689168 | Q185: INSTALLATION WORKS : TSS 8ft URH | T185: =L178+L161+L169+L189 -> 12609.1 | U185: =T184-T185 -> 45880.5 | V185: =(T184-T185)/T184 -> 0.784421504
B186: CABLE : TSS 10ft (L/FT) | D186: =I119 -> 14478 | E186: =(D184-D186) -> 12276 | F186: =(D184-D186)/D184 -> 0.4588472752 | I186: FLXW + HDWR : TSS 10ft | L186: =D194*'CTI INPUTS'!$C$35 -> 7239 | M186: =L184-L186 -> 6138 | N186: =(L184-L186)/L184 -> 0.4588472752 | Q186: INSTALLATION WORKS : TSS 10ft URH | T186: =L179+L162+L170+L190 -> 11001.5 | U186: =T184-T186 -> 47488.1 | V186: =(T184-T186)/T184 -> 0.8119067321
B187: HARDWARE : Customer Input (PCS) | D187: =D117*2 -> 8918 | E187: 0 | F187: 0 | I187: SRC CLIP : TSS 8ft | L187: =D196*'CTI INPUTS'!$C$36 -> 291.9 | M187: =L184-L187 -> 13085.1 | N187: =(L184-L187)/L184 -> 0.9781789639 | Q187: INSTALLATION WORKS : TSS 8ft CABLE | T187: =L180+L163+L171+L191 -> 5838 | U187: =T184-T187 -> 52651.6 | V187: =(T184-T187)/T184 -> 0.9001873837
B188: HARDWARE : TSS 8ft (PCS) | D188: =D189+(N252-N271) -> 5332 | E188: =(D187-D188) -> 3586 | F188: =(D187-D188)/D187 -> 0.402108096 | I188: SRC CLIP : TSS 10ft | L188: =D197*'CTI INPUTS'!$C$36 -> 241.3 | M188: =L184-L188 -> 13135.7 | N188: =(L184-L188)/L184 -> 0.9819615758 | Q188: INSTALLATION WORKS : TSS 10ft CABLE | T188: =L181+L162+L170+L192 -> 8347.2 | U188: =T186-T188 -> 2654.3 | V188: =(T184-T188)/T184 -> 0.8572874494
B189: HARDWARE : TSS 10ft (PCS) | D189: =I117*2 -> 4826 | E189: =(D187-D189) -> 4092 | F189: =(D187-D189)/D187 -> 0.4588472752 | I189: URH TAB : TSS 8ft | L189: =D158*'CTI INPUTS'!$C$59 -> 291.9 | M189: =L184-L189 -> 13085.1 | N189: =(L184-L189)/L184 -> 0.9781789639 | Q189: (installation time cost)
I190: URH TAB : TSS 10ft | L190: =D159*'CTI INPUTS'!$C$59 -> 241.3 | M190: =L184-L190 -> 13135.7 | N190: =(L184-L190)/L184 -> 0.9819615758
B191: HOLD DOWN CLAMP OPTIMIZATION (PCS) | D191: QTY (PCS) | E191: QTY SAVED | F191: % SAVING | I191: CABLE SUPPORT : TSS 8ft | L191: 0 | M191: =L184-L192 -> 13377 | N191: =(L184-L191)/L184 -> 1 | Q191: FINISH PERFORMANCE
B192: STRUT SUPPORT FLXW + HDWR QTY : Customer Input | D192: =D119 -> 26754 | E192: 0 | F192: 0 | I192: CABLE SUPPORT : TSS 10ft | L192: 0 | M192: =L184-L192 -> 13377 | N192: =(L184-L192)/L184 -> 1 | Q192: FINISH | S192: COST ($) | T192: SAVING (%)
B193: STRUT SUPPORT FLXW + HDWR QTY : 8ft | D193: =D194+(AB252-AB271) -> 17514 | E193: =(D192-D193) -> 9240 | F193: =(D192-D193)/D192 -> 0.3453689168 | Q193: SS316 | S193: 200 | T193: 0
B194: STRUT SUPPORT FLXW + HDWR QTY : 10ft | D194: =I119 -> 14478 | E194: =(D192-D194) -> 12276 | F194: =(D192-D194)/D192 -> 0.4588472752 | Q194: SS304 | S194: 160 | T194: =(S193-S194)/S193 -> 0.2
B195: STRUT SUPPORT SRC CKIP QTY : Customer Input | D195: =D133 -> 8918 | E195: 0 | F195: 0 | Q195: HDG | S195: 80 | T195: =(S193-S195)/S193 -> 0.6
B196: STRUT SUPPORT SRC CKIP QTY : TSS 8ft | D196: =D197+(AF252-AF271) -> 5838 | E196: =(D195-D196) -> 3080 | F196: =(D195-D196)/D195 -> 0.3453689168 | Q196: TG | S196: 60 | T196: =(S193-S196)/S193 -> 0.7
B197: STRUT SUPPORT SRC CKIP QTY : TSS 10ft | D197: =I133 -> 4826 | E197: =(D195-D197) -> 4092 | F197: =(D195-D197)/D195 -> 0.4588472752 | Q197: EG | S197: 50 | T197: =(S193-S197)/S193 -> 0.75
B198: CLAMP QUANTITY : URH 8ft SUPPORT | D198: 0 | E198: =D192 -> 26754 | F198: 1
B199: CLAMP QUANTITY : URH 10ft SUPPORT | D199: 0 | E199: =D192 -> 26754 | F199: 1 | Q199: PERFORMANCE | S199: LIFE (YRS)
B200: CLAMP QUANTITY : CABLE SUPPORT | D200: 0 | E200: =D192 -> 26754 | F200: 1 | Q200: SS316 | S200: 45
B201: CLAMP QUANTITY : CABLE SUPPORT | D201: 0 | E201: =D192 -> 26754 | F201: 1 | Q201: SS304 | S201: 35
Q202: HDG | S202: 25
B203: SPLICE PLATE OPTIMIZATION (PCS) | D203: QTY (PCS) | E203: QTY SAVED | F203: % SAVING | Q203: TG | S203: 50
B204: WSKIT SPLICE QTY : Customer Input | D204: =D129 -> 53984 | E204: 0 | F204: 0 | Q204: EG | S204: 5
B205: PLOK + WSKIT SPLICE QTY : Customer Input | D205: =D127 -> 16498 | E205: =D204-D205 -> 37486 | F205: =(D204-D205)/D204 -> 0.6943909306
B206: WSKIT SPLICE QTY : TSS 8ft | D206: =D207+(F252-F271) -> 53864 | E206: =(D204-D206) -> 120 | F206: =(D204-D206)/D204 -> 0.002222880854 | Q206: AVAILABILITY | S206: WKS (ARO) | T206: SAVING (%)
B207: WSKIT SPLICE QTY : TSS 10ft | D207: =I129 -> 53864 | E207: =(D204-D207) -> 120 | F207: =(D204-D207)/D204 -> 0.002222880854 | Q207: SS316 | S207: 7 | T207: 0
B208: PLOK + WSKIT SPLICE QTY : TSS 8ft | D208: =D209 -> 16378 | E208: =E209 -> 37606 | F208: =(D205-D208)/D205 -> 0.007273608922 | Q208: SS304 | S208: 6 | T208: =(S207-S208)/S207 -> 0.1428571429
B209: PLOK + WSKIT SPLICE QTY : TSS 10ft | D209: =I127 -> 16378 | E209: =(D204-D209) -> 37606 | F209: =(D205-D209)/D205 -> 0.007273608922 | Q209: HDG | S209: 5 | T209: =(S207-S209)/S207 -> 0.2857142857
Q210: TG | S210: 3 | T210: =(S207-S210)/S207 -> 0.5714285714
B211: TRAY HARDWARE OPTIMIZATION (PCS) | D211: QTY (PCS) | E211: QTY SAVED | F211: % SAVING | Q211: EG | S211: 3 | T211: =(S207-S211)/S207 -> 0.5714285714
B212: STANDARD INSTALLATION : Customer Input | D212: =(D168+D192+D204) -> 134246 | E212: 0 | F212: 0
B213: RECOMMENDED INSTALLATION : TSS 8ft | D213: =(D180+D196+D208) -> 47592 | E213: =(D212-D213) -> 86654 | F213: =(D212-D213)/D212 -> 0.6454866439
B214: RECOMMENDED INSTALLATION : TSS 10ft | D214: =(D181+D197+D209) -> 40508 | E214: =(D212-D214) -> 93738 | F214: =(D212-D214)/D212 -> 0.6982554415
B216: TM STRAIGHT SECTIONS : Customer Input | H216: =ProjectData!B17 -> 5 | I216: FT
B218: STRAIGHT SECTIONS | F218: SPLICE | H218: POSI-LOK | K218: COVER FIXINGS | N218: SUPPORT QTY | P218: SUPPORT L/FT | R218: ATR HANGER | U218: WIRE HANGER | X218: ATR HARDWARE QUANTITY | AB218: HOLD DOWN & HDWR QUANTITY | AF218: SRC CLIP | AH218: SRC CLIP | AJ218: SPLICE INSTALLATION TIME (MIN) | AM218: COVER INSTAL TIME (MIN) | AP218: SUPPORT INSTALLATION TIME (MIN) | AT218: SPLICE INSTALLATION COST ($) | AW218: SUPPORT INSTALLATION COST ($) | BA218: SUPPORT COST ($) | BE218: ATR HARDWARE COST $ | BI218: HOLD DOWN CLAMPS & HARDWARE COST ($) | BN218: SUPPORT WEIGHT (LBS)
B220: HEIGHT | C220: WIDTH | D220: LINEAR FT | F220: WSKIT (pcs) | H220: PLOKM (pcs) | I220: WSKIT (pcs) | K220: HDKIT (pcs) | L220: SNAP-ON | N220: ALL TYPES | P220: STRUT (FT) | R220: LINEAR FT | S220: LBS | U220: LINEAR FT | V220: LBS | X220: SQ WSHR | Y220: FLT WSHR | Z220: HEX NUT | AB220: FLXW | AC220: 25HX | AD220: 25NC | AF220: QUANTITY (pc) | AH220: INSTAL (MIN) | AJ220: WSKIT | AK220: POSI-LOK + WSKIT | AM220: HDKIT | AN220: SNAP-ON | AP220: STRUT | AQ220: URH | AR220: CABLE | AT220: WSKIT | AU220: POSI-LOK + WSKIT | AW220: STRUT | AX220: URH | AY220: CABLE | BA220: STRUT | BB220: URH | BC220: CABLE | BE220: SQUARE WSHR | BF220: FLAT WSHR | BG220: HEX NUT | BI220: FLXW | BJ220: 25HX | BK220: 25NC | BL220: SRC CLIP | BN220: STRUT | BO220: URH | BP220: WIRE
B221: 2/4/6in | C221: 2in | D221: =ProjectData!C24 -> 0 | F221: =(D221/10)*8 -> 0 | H221: =(D221/10)*2 -> 0 | I221: =(D221/10)*0 -> 0 | K221: =(D221/10)*36 -> 0 | L221: 0 | N221: =D221/'CTI INPUTS'!$C$3 -> 0 | P221: =(6*N221)/12 -> 0 | R221: =N221*'CTI INPUTS'!C48 -> 0 | S221: =R221*('CTI INPUTS'!C203) -> 0 | U221: =N221*'CTI INPUTS'!$C$51 -> 0 | V221: =U221*('CTI INPUTS'!C204) -> 0 | X221: =N221*4 -> 0 | Y221: =N221*4 -> 0 | Z221: =N221*4 -> 0 | AB221: =N221*2 -> 0 | AC221: =N221*2 -> 0 | AD221: =N221*2 -> 0 | AF221: =N221*1 -> 0 | AH221: =AF221*'CTI INPUTS'!C36 -> 0 | AJ221: =(F221/4)*'CTI INPUTS'!$C$33 -> 0 | AK221: =(H221*'CTI INPUTS'!$C$34)+(I221*'CTI INPUTS'!$C$33) -> 0 | AM221: =(D221/10)*'CTI INPUTS'!$C$55 -> 0 | AN221: =(D221/10)*'CTI INPUTS'!C56 -> 0 | AP221: =N221*'CTI INPUTS'!$C$37 -> 0 | AQ221: =N221*'CTI INPUTS'!C38 -> 0 | AR221: =N221*'CTI INPUTS'!C39 -> 0 | AT221: =(AJ221*'CTI INPUTS'!$C$6)/60 -> 0 | AU221: =(AK221*'CTI INPUTS'!$C$6)/60 -> 0 | AW221: =(N221*'CTI INPUTS'!$C$37)*(('CTI INPUTS'!$C$6)/60) -> 0 | AX221: =(AQ221/60)*'CTI INPUTS'!C6 -> 0 | AY221: =(AR221/60)*'CTI INPUTS'!C6 -> 0 | BA221: =(P221*('CTI INPUTS'!$D$17))+(R221*('CTI INPUTS'!$D$18))+(X221*('CTI INPUTS'!$D$12))+(Y221*('CTI INPUTS'!$D$13))+(Z221*('CTI INPUTS'!$D$14)) -> 0 | BB221: =(N221*('CTI INPUTS'!D19))+(R221*('CTI INPUTS'!D18))+(Z221*('CTI INPUTS'!D14)) -> 0 | BC221: =(U221*'CTI INPUTS'!D15)+(N221*'CTI INPUTS'!D16) -> 0 | BE221: =(X221*('CTI INPUTS'!$D$12)) -> 0 | BF221: =(Y221*('CTI INPUTS'!$D$13)) -> 0 | BG221: =(Z221*('CTI INPUTS'!$D$14)) -> 0 | BI221: =AB221*'CTI INPUTS'!$D$42 -> 0 | BJ221: =AC221*'CTI INPUTS'!$D$43 -> 0 | BK221: =AD221*'CTI INPUTS'!$D$44 -> 0 | BL221: =AF221*'CTI INPUTS'!$D$45 -> 0
C222: 4in | D222: =ProjectData!C25 -> 0 | F222: =(D222/10)*16 -> 0 | H222: 0 | I222: =(D222/10)*0 -> 0 | K222: 0 | L222: 0 | N222: =D222/'CTI INPUTS'!$C$3 -> 0 | P222: =(8*N222)/12 -> 0 | R222: =N222*'CTI INPUTS'!C48 -> 0 | S222: =R222*('CTI INPUTS'!C203) -> 0 | U222: =N222*'CTI INPUTS'!C51 -> 0 | V222: =U222*('CTI INPUTS'!C204) -> 0 | X222: 0 | Y222: 0 | Z222: 0 | AB222: 0 | AC222: 0 | AD222: 0 | AF222: =N222*2 -> 0 | AH222: =AF222*'CTI INPUTS'!C36 -> 0 | AJ222: =(F222/4)*'CTI INPUTS'!C33 -> 0 | AK222: =(H222*'CTI INPUTS'!C34)+(I222*'CTI INPUTS'!C33) -> 0 | AM222: =(D222/10)*'CTI INPUTS'!C55 -> 0 | AN222: =(D222/10)*'CTI INPUTS'!C56 -> 0 | AP222: =N222*'CTI INPUTS'!C37 -> 0 | AQ222: =N222*'CTI INPUTS'!C38 -> 0 | AR222: =N222*'CTI INPUTS'!C39 -> 0 | AT222: =(AJ222*'CTI INPUTS'!C6)/60 -> 0 | AU222: =(AK222*'CTI INPUTS'!C6)/60 -> 0 | AW222: =(N222*'CTI INPUTS'!C37)*(('CTI INPUTS'!C6)/60) -> 0 | AX222: =(AQ222/60)*'CTI INPUTS'!C6 -> 0 | AY222: =(AR222/60)*'CTI INPUTS'!C6 -> 0 | BA222: =(P222*('CTI INPUTS'!D17))+(R222*('CTI INPUTS'!D18))+(X222*('CTI INPUTS'!D12))+(Y222*('CTI INPUTS'!D13))+(Z222*('CTI INPUTS'!D14)) -> 0 | BB222: =(N222*('CTI INPUTS'!D19))+(R222*('CTI INPUTS'!D18))+(Z222*('CTI INPUTS'!D14)) -> 0 | BC222: =(U222*'CTI INPUTS'!D15)+(N222*'CTI INPUTS'!D16) -> 0 | BE222: =(X222*('CTI INPUTS'!$D$12)) -> 0 | BF222: =(Y222*('CTI INPUTS'!$D$13)) -> 0 | BG222: =(Z222*('CTI INPUTS'!$D$14)) -> 0 | BI222: =AB222*'CTI INPUTS'!$D$42 -> 0 | BJ222: =AC222*'CTI INPUTS'!$D$43 -> 0 | BK222: =AD222*'CTI INPUTS'!$D$44 -> 0 | BL222: =AF222*'CTI INPUTS'!$D$45 -> 0
C223: 6in | D223: =ProjectData!C26 -> 0 | F223: =(D223/10)*16 -> 0 | H223: 0 | I223: =(D223/10)*0 -> 0 | K223: 0 | L223: 0 | N223: =D223/'CTI INPUTS'!$C$3 -> 0 | P223: =(10*N223)/12 -> 0 | R223: =N223*'CTI INPUTS'!C48 -> 0 | S223: =R223*('CTI INPUTS'!C203) -> 0 | U223: =N223*'CTI INPUTS'!C51 -> 0 | V223: =U223*('CTI INPUTS'!C204) -> 0 | X223: 0 | Y223: 0 | Z223: 0 | AB223: 0 | AC223: 0 | AD223: 0 | AF223: 0 | AH223: =AF223*'CTI INPUTS'!C36 -> 0 | AJ223: =(F223/4)*'CTI INPUTS'!C33 -> 0 | AK223: =(H223*'CTI INPUTS'!C34)+(I223*'CTI INPUTS'!C33) -> 0 | AM223: =(D223/10)*'CTI INPUTS'!C55 -> 0 | AN223: =(D223/10)*'CTI INPUTS'!C56 -> 0 | AP223: =N223*'CTI INPUTS'!C37 -> 0 | AQ223: =N223*'CTI INPUTS'!C38 -> 0 | AR223: =N223*'CTI INPUTS'!C39 -> 0 | AT223: =(AJ223*'CTI INPUTS'!C6)/60 -> 0 | AU223: =(AK223*'CTI INPUTS'!C6)/60 -> 0 | AW223: =(N223*'CTI INPUTS'!C37)*(('CTI INPUTS'!C6)/60) -> 0 | AX223: =(AQ223/60)*'CTI INPUTS'!C6 -> 0 | AY223: =(AR223/60)*'CTI INPUTS'!C6 -> 0 | BA223: =(P223*('CTI INPUTS'!D17))+(R223*('CTI INPUTS'!D18))+(X223*('CTI INPUTS'!D12))+(Y223*('CTI INPUTS'!D13))+(Z223*('CTI INPUTS'!D14)) -> 0 | BB223: =(N223*('CTI INPUTS'!D19))+(R223*('CTI INPUTS'!D18))+(Z223*('CTI INPUTS'!D14)) -> 0 | BC223: =(U223*'CTI INPUTS'!D15)+(N223*'CTI INPUTS'!D16) -> 0 | BE223: =(X223*('CTI INPUTS'!$D$12)) -> 0 | BF223: =(Y223*('CTI INPUTS'!$D$13)) -> 0 | BG223: =(Z223*('CTI INPUTS'!$D$14)) -> 0 | BI223: =AB223*'CTI INPUTS'!$D$42 -> 0 | BJ223: =AC223*'CTI INPUTS'!$D$43 -> 0 | BK223: =AD223*'CTI INPUTS'!$D$44 -> 0 | BL223: =AF223*'CTI INPUTS'!$D$45 -> 0
C224: 8in | D224: =ProjectData!C27 -> 0 | F224: =(D224/10)*20 -> 0 | H224: 0 | I224: =(D224/10)*4 -> 0 | K224: 0 | L224: 0 | N224: =D224/'CTI INPUTS'!$C$3 -> 0 | P224: =(12*N224)/12 -> 0 | R224: =N224*'CTI INPUTS'!C48 -> 0 | S224: =R224*('CTI INPUTS'!C203) -> 0 | U224: =N224*'CTI INPUTS'!C51 -> 0 | V224: =U224*('CTI INPUTS'!C204) -> 0 | X224: 0 | Y224: 0 | Z224: 0 | AB224: 0 | AC224: 0 | AD224: 0 | AF224: 0 | AH224: =AF224*'CTI INPUTS'!C36 -> 0 | AJ224: =(F224/4)*'CTI INPUTS'!C33 -> 0 | AK224: =(H224*'CTI INPUTS'!C34)+(I224*'CTI INPUTS'!C33) -> 0 | AM224: =(D224/10)*'CTI INPUTS'!C55 -> 0 | AN224: =(D224/10)*'CTI INPUTS'!C56 -> 0 | AP224: =N224*'CTI INPUTS'!C37 -> 0 | AQ224: =N224*'CTI INPUTS'!C38 -> 0 | AR224: =N224*'CTI INPUTS'!C39 -> 0 | AT224: =(AJ224*'CTI INPUTS'!C6)/60 -> 0 | AU224: =(AK224*'CTI INPUTS'!C6)/60 -> 0 | AW224: =(N224*'CTI INPUTS'!C37)*(('CTI INPUTS'!C6)/60) -> 0 | AX224: =(AQ224/60)*'CTI INPUTS'!C6 -> 0 | AY224: =(AR224/60)*'CTI INPUTS'!C6 -> 0 | BA224: =(P224*('CTI INPUTS'!D17))+(R224*('CTI INPUTS'!D18))+(X224*('CTI INPUTS'!D12))+(Y224*('CTI INPUTS'!D13))+(Z224*('CTI INPUTS'!D14)) -> 0 | BB224: =(N224*('CTI INPUTS'!D19))+(R224*('CTI INPUTS'!D18))+(Z224*('CTI INPUTS'!D14)) -> 0 | BC224: =(U224*'CTI INPUTS'!D15)+(N224*'CTI INPUTS'!D16) -> 0 | BE224: =(X224*('CTI INPUTS'!$D$12)) -> 0 | BF224: =(Y224*('CTI INPUTS'!$D$13)) -> 0 | BG224: =(Z224*('CTI INPUTS'!$D$14)) -> 0 | BI224: =AB224*'CTI INPUTS'!$D$42 -> 0 | BJ224: =AC224*'CTI INPUTS'!$D$43 -> 0 | BK224: =AD224*'CTI INPUTS'!$D$44 -> 0 | BL224: =AF224*'CTI INPUTS'!$D$45 -> 0
C225: 10in | D225: =ProjectData!C28 -> 0 | F225: =(D225/10)*20 -> 0 | H225: 0 | I225: =(D225/10)*4 -> 0 | K225: 0 | L225: 0 | N225: =D225/'CTI INPUTS'!$C$3 -> 0 | P225: =(14*N225)/12 -> 0 | R225: =N225*'CTI INPUTS'!C48 -> 0 | S225: =R225*('CTI INPUTS'!C203) -> 0 | U225: =N225*'CTI INPUTS'!C51 -> 0 | V225: =U225*('CTI INPUTS'!C204) -> 0 | X225: 0 | Y225: 0 | Z225: 0 | AB225: 0 | AC225: 0 | AD225: 0 | AF225: 0 | AH225: =AF225*'CTI INPUTS'!C36 -> 0 | AJ225: =(F225/4)*'CTI INPUTS'!C33 -> 0 | AK225: =(H225*'CTI INPUTS'!C34)+(I225*'CTI INPUTS'!C33) -> 0 | AM225: =(D225/10)*'CTI INPUTS'!C55 -> 0 | AN225: =(D225/10)*'CTI INPUTS'!C56 -> 0 | AP225: =N225*'CTI INPUTS'!C37 -> 0 | AQ225: =N225*'CTI INPUTS'!C38 -> 0 | AR225: =N225*'CTI INPUTS'!C39 -> 0 | AT225: =(AJ225*'CTI INPUTS'!C6)/60 -> 0 | AU225: =(AK225*'CTI INPUTS'!C6)/60 -> 0 | AW225: =(N225*'CTI INPUTS'!C37)*(('CTI INPUTS'!C6)/60) -> 0 | AX225: =(AQ225/60)*'CTI INPUTS'!C6 -> 0 | AY225: =(AR225/60)*'CTI INPUTS'!C6 -> 0 | BA225: =(P225*('CTI INPUTS'!D17))+(R225*('CTI INPUTS'!D18))+(X225*('CTI INPUTS'!D12))+(Y225*('CTI INPUTS'!D13))+(Z225*('CTI INPUTS'!D14)) -> 0 | BB225: =(N225*('CTI INPUTS'!D19))+(R225*('CTI INPUTS'!D18))+(Z225*('CTI INPUTS'!D14)) -> 0 | BC225: =(U225*'CTI INPUTS'!D15)+(N225*'CTI INPUTS'!D16) -> 0 | BE225: =(X225*('CTI INPUTS'!$D$12)) -> 0 | BF225: =(Y225*('CTI INPUTS'!$D$13)) -> 0 | BG225: =(Z225*('CTI INPUTS'!$D$14)) -> 0 | BI225: =AB225*'CTI INPUTS'!$D$42 -> 0 | BJ225: =AC225*'CTI INPUTS'!$D$43 -> 0 | BK225: =AD225*'CTI INPUTS'!$D$44 -> 0 | BL225: =AF225*'CTI INPUTS'!$D$45 -> 0
C226: 12in | D226: =ProjectData!C29 -> 15360 | F226: =(D226/10)*24 -> 36864 | H226: 3072 | I226: =(D226/10)*4 -> 6144 | K226: 55296 | L226: 0 | N226: =D226/'CTI INPUTS'!$C$3 -> 3072 | P226: =(16*N226)/12 -> 4096 | R226: =N226*'CTI INPUTS'!C48 -> 12288 | S226: =R226*('CTI INPUTS'!C203) -> 0 | U226: =N226*'CTI INPUTS'!C51 -> 18432 | V226: =U226*('CTI INPUTS'!C204) -> 0 | X226: 12288 | Y226: 12288 | Z226: 12288 | AB226: 6144 | AC226: 6144 | AD226: 6144 | AF226: 6144 | AH226: =AF226*'CTI INPUTS'!C36 -> 307.2 | AJ226: =(F226/4)*'CTI INPUTS'!C33 -> 4608 | AK226: =(H226*'CTI INPUTS'!C34)+(I226*'CTI INPUTS'!C33) -> 3686.4 | AM226: =(D226/10)*'CTI INPUTS'!C55 -> 7680 | AN226: =(D226/10)*'CTI INPUTS'!C56 -> 768 | AP226: =N226*'CTI INPUTS'!C37 -> 12288 | AQ226: =N226*'CTI INPUTS'!C38 -> 9216 | AR226: =N226*'CTI INPUTS'!C39 -> 6144 | AT226: =(AJ226*'CTI INPUTS'!C6)/60 -> 7680 | AU226: =(AK226*'CTI INPUTS'!C6)/60 -> 6144 | AW226: =(N226*'CTI INPUTS'!C37)*(('CTI INPUTS'!C6)/60) -> 20480 | AX226: =(AQ226/60)*'CTI INPUTS'!C6 -> 15360 | AY226: =(AR226/60)*'CTI INPUTS'!C6 -> 10240 | BA226: =(P226*('CTI INPUTS'!D17))+(R226*('CTI INPUTS'!D18))+(X226*('CTI INPUTS'!D12))+(Y226*('CTI INPUTS'!D13))+(Z226*('CTI INPUTS'!D14)) -> 56524.8 | BB226: =(N226*('CTI INPUTS'!D19))+(R226*('CTI INPUTS'!D18))+(Z226*('CTI INPUTS'!D14)) -> 39290.88 | BC226: =(U226*'CTI INPUTS'!D15)+(N226*'CTI INPUTS'!D16) -> 30720 | BE226: =(X226*('CTI INPUTS'!$D$12)) -> 12288 | BF226: =(Y226*('CTI INPUTS'!$D$13)) -> 1843.2 | BG226: =(Z226*('CTI INPUTS'!$D$14)) -> 3072 | BI226: =AB226*'CTI INPUTS'!$D$42 -> 12349.44 | BJ226: =AC226*'CTI INPUTS'!$D$43 -> 4300.8 | BK226: =AD226*'CTI INPUTS'!$D$44 -> 5529.6 | BL226: =AF226*'CTI INPUTS'!$D$45 -> 16896
C227: 16in | D227: =ProjectData!C30 -> 0 | F227: =(D227/10)*24 -> 0 | H227: 0 | I227: =(D227/10)*8 -> 0 | K227: 0 | L227: 0 | N227: =D227/'CTI INPUTS'!$C$3 -> 0 | P227: =(20*N227)/12 -> 0 | R227: =N227*'CTI INPUTS'!C48 -> 0 | S227: =R227*('CTI INPUTS'!C203) -> 0 | U227: =N227*'CTI INPUTS'!C51 -> 0 | V227: =U227*('CTI INPUTS'!C204) -> 0 | X227: 0 | Y227: 0 | Z227: 0 | AB227: 0 | AC227: 0 | AD227: 0 | AF227: 0 | AH227: =AF227*'CTI INPUTS'!C36 -> 0 | AJ227: =(F227/4)*'CTI INPUTS'!C33 -> 0 | AK227: =(H227*'CTI INPUTS'!C34)+(I227*'CTI INPUTS'!C33) -> 0 | AM227: =(D227/10)*'CTI INPUTS'!C55 -> 0 | AN227: =(D227/10)*'CTI INPUTS'!C56 -> 0 | AP227: =N227*'CTI INPUTS'!C37 -> 0 | AQ227: =N227*'CTI INPUTS'!C38 -> 0 | AR227: =N227*'CTI INPUTS'!C39 -> 0 | AT227: =(AJ227*'CTI INPUTS'!C6)/60 -> 0 | AU227: =(AK227*'CTI INPUTS'!C6)/60 -> 0 | AW227: =(N227*'CTI INPUTS'!C37)*(('CTI INPUTS'!C6)/60) -> 0 | AX227: =(AQ227/60)*'CTI INPUTS'!C6 -> 0 | AY227: =(AR227/60)*'CTI INPUTS'!C6 -> 0 | BA227: =(P227*('CTI INPUTS'!D17))+(R227*('CTI INPUTS'!D18))+(X227*('CTI INPUTS'!D12))+(Y227*('CTI INPUTS'!D13))+(Z227*('CTI INPUTS'!D14)) -> 0 | BB227: =(N227*('CTI INPUTS'!D19))+(R227*('CTI INPUTS'!D18))+(Z227*('CTI INPUTS'!D14)) -> 0 | BC227: =(U227*'CTI INPUTS'!D15)+(N227*'CTI INPUTS'!D16) -> 0 | BE227: =(X227*('CTI INPUTS'!$D$12)) -> 0 | BF227: =(Y227*('CTI INPUTS'!$D$13)) -> 0 | BG227: =(Z227*('CTI INPUTS'!$D$14)) -> 0 | BI227: =AB227*'CTI INPUTS'!$D$42 -> 0 | BJ227: =AC227*'CTI INPUTS'!$D$43 -> 0 | BK227: =AD227*'CTI INPUTS'!$D$44 -> 0 | BL227: =AF227*'CTI INPUTS'!$D$45 -> 0
C228: 18in | D228: =ProjectData!C31 -> 4880 | F228: =(D228/10)*24 -> 11712 | H228: 976 | I228: =(D228/10)*8 -> 3904 | K228: 17568 | L228: 0 | N228: =D228/'CTI INPUTS'!$C$3 -> 976 | P228: =(22*N228)/12 -> 1789.333333 | R228: =N228*'CTI INPUTS'!C48 -> 3904 | S228: =R228*('CTI INPUTS'!C203) -> 0 | U228: =N228*'CTI INPUTS'!C51 -> 5856 | V228: =U228*('CTI INPUTS'!C204) -> 0 | X228: 3904 | Y228: 3904 | Z228: 3904 | AB228: 1952 | AC228: 1952 | AD228: 1952 | AF228: 1952 | AH228: =AF228*'CTI INPUTS'!C36 -> 97.6 | AJ228: =(F228/4)*'CTI INPUTS'!C33 -> 1464 | AK228: =(H228*'CTI INPUTS'!C34)+(I228*'CTI INPUTS'!C33) -> 2147.2 | AM228: =(D228/10)*'CTI INPUTS'!C55 -> 2440 | AN228: =(D228/10)*'CTI INPUTS'!C56 -> 244 | AP228: =N228*'CTI INPUTS'!C37 -> 3904 | AQ228: =N228*'CTI INPUTS'!C38 -> 2928 | AR228: =N228*'CTI INPUTS'!C39 -> 1952 | AT228: =(AJ228*'CTI INPUTS'!C6)/60 -> 2440 | AU228: =(AK228*'CTI INPUTS'!C6)/60 -> 3578.666667 | AW228: =(N228*'CTI INPUTS'!C37)*(('CTI INPUTS'!C6)/60) -> 6506.666667 | AX228: =(AQ228/60)*'CTI INPUTS'!C6 -> 4880 | AY228: =(AR228/60)*'CTI INPUTS'!C6 -> 3253.333333 | BA228: =(P228*('CTI INPUTS'!D17))+(R228*('CTI INPUTS'!D18))+(X228*('CTI INPUTS'!D12))+(Y228*('CTI INPUTS'!D13))+(Z228*('CTI INPUTS'!D14)) -> 20154.4 | BB228: =(N228*('CTI INPUTS'!D19))+(R228*('CTI INPUTS'!D18))+(Z228*('CTI INPUTS'!D14)) -> 12483.04 | BC228: =(U228*'CTI INPUTS'!D15)+(N228*'CTI INPUTS'!D16) -> 9760 | BE228: =(X228*('CTI INPUTS'!$D$12)) -> 3904 | BF228: =(Y228*('CTI INPUTS'!$D$13)) -> 585.6 | BG228: =(Z228*('CTI INPUTS'!$D$14)) -> 976 | BI228: =AB228*'CTI INPUTS'!$D$42 -> 3923.52 | BJ228: =AC228*'CTI INPUTS'!$D$43 -> 1366.4 | BK228: =AD228*'CTI INPUTS'!$D$44 -> 1756.8 | BL228: =AF228*'CTI INPUTS'!$D$45 -> 5368
C229: 20in | D229: =ProjectData!C32 -> 0 | F229: =(D229/10)*28 -> 0 | H229: 0 | I229: =(D229/10)*8 -> 0 | K229: 0 | L229: 0 | N229: =D229/'CTI INPUTS'!$C$3 -> 0 | P229: =(24*N229)/12 -> 0 | R229: =N229*'CTI INPUTS'!C48 -> 0 | S229: =R229*('CTI INPUTS'!C203) -> 0 | U229: =N229*'CTI INPUTS'!C51 -> 0 | V229: =U229*('CTI INPUTS'!C204) -> 0 | X229: 0 | Y229: 0 | Z229: 0 | AB229: 0 | AC229: 0 | AD229: 0 | AF229: 0 | AH229: =AF229*'CTI INPUTS'!C36 -> 0 | AJ229: =(F229/4)*'CTI INPUTS'!C33 -> 0 | AK229: =(H229*'CTI INPUTS'!C34)+(I229*'CTI INPUTS'!C33) -> 0 | AM229: =(D229/10)*'CTI INPUTS'!C55 -> 0 | AN229: =(D229/10)*'CTI INPUTS'!C56 -> 0 | AP229: =N229*'CTI INPUTS'!C37 -> 0 | AQ229: =N229*'CTI INPUTS'!C38 -> 0 | AR229: =N229*'CTI INPUTS'!C39 -> 0 | AT229: =(AJ229*'CTI INPUTS'!C6)/60 -> 0 | AU229: =(AK229*'CTI INPUTS'!C6)/60 -> 0 | AW229: =(N229*'CTI INPUTS'!C37)*(('CTI INPUTS'!C6)/60) -> 0 | AX229: =(AQ229/60)*'CTI INPUTS'!C6 -> 0 | AY229: =(AR229/60)*'CTI INPUTS'!C6 -> 0 | BA229: =(P229*('CTI INPUTS'!D17))+(R229*('CTI INPUTS'!D18))+(X229*('CTI INPUTS'!D12))+(Y229*('CTI INPUTS'!D13))+(Z229*('CTI INPUTS'!D14)) -> 0 | BB229: =(N229*('CTI INPUTS'!D19))+(R229*('CTI INPUTS'!D18))+(Z229*('CTI INPUTS'!D14)) -> 0 | BC229: =(U229*'CTI INPUTS'!D15)+(N229*'CTI INPUTS'!D16) -> 0 | BE229: =(X229*('CTI INPUTS'!$D$12)) -> 0 | BF229: =(Y229*('CTI INPUTS'!$D$13)) -> 0 | BG229: =(Z229*('CTI INPUTS'!$D$14)) -> 0 | BI229: =AB229*'CTI INPUTS'!$D$42 -> 0 | BJ229: =AC229*'CTI INPUTS'!$D$43 -> 0 | BK229: =AD229*'CTI INPUTS'!$D$44 -> 0 | BL229: =AF229*'CTI INPUTS'!$D$45 -> 0
C230: 24in | D230: =ProjectData!C33 -> 0 | F230: =(D230/10)*28 -> 0 | H230: 0 | I230: =(D230/10)*8 -> 0 | K230: 0 | L230: 0 | N230: =D230/'CTI INPUTS'!$C$3 -> 0 | P230: =(28*N230)/12 -> 0 | R230: =N230*'CTI INPUTS'!C48 -> 0 | S230: =R230*('CTI INPUTS'!C203) -> 0 | U230: =N230*'CTI INPUTS'!C51 -> 0 | V230: =U230*('CTI INPUTS'!C204) -> 0 | X230: 0 | Y230: 0 | Z230: 0 | AB230: 0 | AC230: 0 | AD230: 0 | AF230: 0 | AH230: =AF230*'CTI INPUTS'!C36 -> 0 | AJ230: =(F230/4)*'CTI INPUTS'!C33 -> 0 | AK230: =(H230*'CTI INPUTS'!C34)+(I230*'CTI INPUTS'!C33) -> 0 | AM230: =(D230/10)*'CTI INPUTS'!C55 -> 0 | AN230: =(D230/10)*'CTI INPUTS'!C56 -> 0 | AP230: =N230*'CTI INPUTS'!C37 -> 0 | AQ230: =N230*'CTI INPUTS'!C38 -> 0 | AR230: =N230*'CTI INPUTS'!C39 -> 0 | AT230: =(AJ230*'CTI INPUTS'!C6)/60 -> 0 | AU230: =(AK230*'CTI INPUTS'!C6)/60 -> 0 | AW230: =(N230*'CTI INPUTS'!C37)*(('CTI INPUTS'!C6)/60) -> 0 | AX230: =(AQ230/60)*'CTI INPUTS'!C6 -> 0 | AY230: =(AR230/60)*'CTI INPUTS'!C6 -> 0 | BA230: =(P230*('CTI INPUTS'!D17))+(R230*('CTI INPUTS'!D18))+(X230*('CTI INPUTS'!D12))+(Y230*('CTI INPUTS'!D13))+(Z230*('CTI INPUTS'!D14)) -> 0 | BB230: =(N230*('CTI INPUTS'!D19))+(R230*('CTI INPUTS'!D18))+(Z230*('CTI INPUTS'!D14)) -> 0 | BC230: =(U230*'CTI INPUTS'!D15)+(N230*'CTI INPUTS'!D16) -> 0 | BE230: =(X230*('CTI INPUTS'!$D$12)) -> 0 | BF230: =(Y230*('CTI INPUTS'!$D$13)) -> 0 | BG230: =(Z230*('CTI INPUTS'!$D$14)) -> 0 | BI230: =AB230*'CTI INPUTS'!$D$42 -> 0 | BJ230: =AC230*'CTI INPUTS'!$D$43 -> 0 | BK230: =AD230*'CTI INPUTS'!$D$44 -> 0 | BL230: =AF230*'CTI INPUTS'!$D$45 -> 0
C231: 30in | D231: =ProjectData!C34 -> 0 | F231: =(D231/10)*32 -> 0 | H231: 0 | I231: =(D231/10)*12 -> 0 | K231: 0 | L231: 0 | N231: =D231/'CTI INPUTS'!$C$3 -> 0 | P231: =(34*N231)/12 -> 0 | R231: =N231*'CTI INPUTS'!C48 -> 0 | S231: =R231*('CTI INPUTS'!C203) -> 0 | U231: =N231*'CTI INPUTS'!C51 -> 0 | V231: =U231*('CTI INPUTS'!C204) -> 0 | X231: 0 | Y231: 0 | Z231: 0 | AB231: 0 | AC231: 0 | AD231: 0 | AF231: 0 | AH231: =AF231*'CTI INPUTS'!C36 -> 0 | AJ231: =(F231/4)*'CTI INPUTS'!C33 -> 0 | AK231: =(H231*'CTI INPUTS'!C34)+(I231*'CTI INPUTS'!C33) -> 0 | AM231: =(D231/10)*'CTI INPUTS'!C55 -> 0 | AN231: =(D231/10)*'CTI INPUTS'!C56 -> 0 | AP231: =N231*'CTI INPUTS'!C37 -> 0 | AQ231: =N231*'CTI INPUTS'!C38 -> 0 | AR231: =N231*'CTI INPUTS'!C39 -> 0 | AT231: =(AJ231*'CTI INPUTS'!C6)/60 -> 0 | AU231: =(AK231*'CTI INPUTS'!C6)/60 -> 0 | AW231: =(N231*'CTI INPUTS'!C37)*(('CTI INPUTS'!C6)/60) -> 0 | AX231: =(AQ231/60)*'CTI INPUTS'!C6 -> 0 | AY231: =(AR231/60)*'CTI INPUTS'!C6 -> 0 | BA231: =(P231*('CTI INPUTS'!D17))+(R231*('CTI INPUTS'!D18))+(X231*('CTI INPUTS'!D12))+(Y231*('CTI INPUTS'!D13))+(Z231*('CTI INPUTS'!D14)) -> 0 | BB231: =(N231*('CTI INPUTS'!D19))+(R231*('CTI INPUTS'!D18))+(Z231*('CTI INPUTS'!D14)) -> 0 | BC231: =(U231*'CTI INPUTS'!D15)+(N231*'CTI INPUTS'!D16) -> 0 | BE231: =(X231*('CTI INPUTS'!$D$12)) -> 0 | BF231: =(Y231*('CTI INPUTS'!$D$13)) -> 0 | BG231: =(Z231*('CTI INPUTS'!$D$14)) -> 0 | BI231: =AB231*'CTI INPUTS'!$D$42 -> 0 | BJ231: =AC231*'CTI INPUTS'!$D$43 -> 0 | BK231: =AD231*'CTI INPUTS'!$D$44 -> 0 | BL231: =AF231*'CTI INPUTS'!$D$45 -> 0
C232: 36in | D232: =ProjectData!C35 -> 0 | F232: =(D232/10)*32 -> 0 | H232: 0 | I232: =(D232/10)*12 -> 0 | K232: 0 | L232: 0 | N232: =D232/'CTI INPUTS'!$C$3 -> 0 | P232: =(40*N232)/12 -> 0 | R232: =N232*'CTI INPUTS'!C48 -> 0 | S232: =R232*('CTI INPUTS'!C203) -> 0 | U232: =N232*'CTI INPUTS'!C51 -> 0 | V232: =U232*('CTI INPUTS'!C204) -> 0 | X232: 0 | Y232: 0 | Z232: 0 | AB232: 0 | AC232: 0 | AD232: 0 | AF232: 0 | AH232: =AF232*'CTI INPUTS'!C36 -> 0 | AJ232: =(F232/4)*'CTI INPUTS'!C33 -> 0 | AK232: =(H232*'CTI INPUTS'!C34)+(I232*'CTI INPUTS'!C33) -> 0 | AM232: =(D232/10)*'CTI INPUTS'!C55 -> 0 | AN232: =(D232/10)*'CTI INPUTS'!C56 -> 0 | AP232: =N232*'CTI INPUTS'!C37 -> 0 | AQ232: =N232*'CTI INPUTS'!C38 -> 0 | AR232: =N232*'CTI INPUTS'!C39 -> 0 | AT232: =(AJ232*'CTI INPUTS'!C6)/60 -> 0 | AU232: =(AK232*'CTI INPUTS'!C6)/60 -> 0 | AW232: =(N232*'CTI INPUTS'!C37)*(('CTI INPUTS'!C6)/60) -> 0 | AX232: =(AQ232/60)*'CTI INPUTS'!C6 -> 0 | AY232: =(AR232/60)*'CTI INPUTS'!C6 -> 0 | BA232: =(P232*('CTI INPUTS'!D17))+(R232*('CTI INPUTS'!D18))+(X232*('CTI INPUTS'!D12))+(Y232*('CTI INPUTS'!D13))+(Z232*('CTI INPUTS'!D14)) -> 0 | BB232: =(N232*('CTI INPUTS'!D19))+(R232*('CTI INPUTS'!D18))+(Z232*('CTI INPUTS'!D14)) -> 0 | BC232: =(U232*'CTI INPUTS'!D15)+(N232*'CTI INPUTS'!D16) -> 0 | BE232: =(X232*('CTI INPUTS'!$D$12)) -> 0 | BF232: =(Y232*('CTI INPUTS'!$D$13)) -> 0 | BG232: =(Z232*('CTI INPUTS'!$D$14)) -> 0 | BI232: =AB232*'CTI INPUTS'!$D$42 -> 0 | BJ232: =AC232*'CTI INPUTS'!$D$43 -> 0 | BK232: =AD232*'CTI INPUTS'!$D$44 -> 0 | BL232: =AF232*'CTI INPUTS'!$D$45 -> 0
F233: =SUM(F221:F232) -> 48576 | H233: =SUM((H221:H232)+(I221:I232)) -> 14096 | K233: =SUM(K221:K232) -> 72864 | L233: =SUM(L221:L232) -> 0 | N233: =SUM(N221:N232) -> 4048 | P233: =SUM(P221:P232) -> 5885.333333 | R233: =SUM(R221:R232) -> 16192 | S233: =SUM(S221:S232) -> 0 | U233: =SUM(U221:U232) -> 24288 | V233: =SUM(V221:V232) -> 0 | X233: =SUM((X221:X232)+(Y221:Y232)+(Z221:Z232)) -> 48576 | AB233: =SUM((AB221:AB232)+(AC221:AC232)+(AD221:AD232)) -> 24288 | AF233: =SUM(AF221:AF232) -> 8096 | AH233: =SUM(AH221:AH232) -> 404.8 | AJ233: =SUM(AJ221:AJ232) -> 6072 | AK233: =SUM(AK221:AK232) -> 5833.6 | AM233: =SUM(AM221:AM232) -> 10120 | AN233: =SUM(AN221:AN232) -> 1012 | AP233: =SUM(AP221:AP232) -> 16192 | AQ233: =SUM(AQ221:AQ232) -> 12144 | AR233: =SUM(AR221:AR232) -> 8096 | AT233: =SUM(AT221:AT232) -> 10120 | AU233: =SUM(AU221:AU232) -> 9722.666667 | AW233: =SUM(AW221:AW232) -> 26986.66667 | AX233: =SUM(AX221:AX232) -> 20240 | AY233: =SUM(AY221:AY232) -> 13493.33333 | BA233: =SUM(BA221:BA232) -> 76679.2 | BB233: =SUM(BB221:BB232) -> 51773.92 | BC233: =SUM(BC221:BC232) -> 40480 | BE233: =SUM((BE221:BE232)+(BF221:BF232)+(BG221:BG232)) -> 22668.8 | BI233: =SUM((BI221:BI232)+(BJ221:BJ232)+(BK221:BK232)) -> 29226.56 | BL233: =SUM(BL221:BL232) -> 22264 | BN233: =SUM(BN221:BN232) -> 0 | BO233: =SUM(BO221:BO232) -> 0 | BP233: =SUM(BP221:BP232) -> 0
B235: TM STRAIGHT SECTIONS: 8FT SPAN | H235: 8 | I235: FT
B237: STRAIGHT SECTIONS | F237: SPLICE | H237: POSI-LOK | K237: COVER FIXINGS | N237: SUPPORT QTY | P237: SUPPORT L/FT | R237: ATR HANGER | U237: WIRE HANGER | X237: ATR HARDWARE QUANTITY | AB237: HOLD DOWN & HDWR QUANTITY | AF237: SRC CLIP | AH237: SRC CLIP | AJ237: SPLICE INSTALLATION TIME (MIN) | AM237: COVER INSTAL TIME (MIN) | AP237: SUPPORT INSTALLATION TIME (MIN) | AT237: SPLICE INSTALLATION COST ($) | AW237: SUPPORT INSTALLATION COST ($) | BA237: SUPPORT COST ($) | BE237: ATR HARDWARE COST $ | BI237: HOLD DOWN CLAMPS & HARDWARE COST ($) | BN237: SUPPORT WEIGHT (LBS)
B239: HEIGHT | C239: WIDTH | D239: LINEAR FT | F239: WSKIT (pcs) | H239: PLOKM (pcs) | I239: WSKIT (pcs) | K239: HDKIT (pcs) | L239: SNAP-ON | N239: ALL TYPES | P239: STRUT (FT) | R239: LINEAR FT | S239: LBS | U239: LINEAR FT | V239: LBS | X239: SQ WSHR | Y239: FLT WSHR | Z239: HEX NUT | AB239: FLXW | AC239: 25HX | AD239: 25NC | AF239: QUANTITY (pc) | AH239: INSTAL (MIN) | AJ239: WSKIT | AK239: POSI-LOK + WSKIT | AM239: HDKIT | AN239: SNAP-ON | AP239: STRUT | AQ239: URH | AR239: CABLE | AT239: WSKIT | AU239: POSI-LOK + WSKIT | AW239: STRUT | AX239: URH | AY239: CABLE | BA239: STRUT | BB239: URH | BC239: CABLE | BE239: SQUARE WSHR | BF239: FLAT WSHR | BG239: HEX NUT | BI239: FLXW | BJ239: 25HX | BK239: 25NC | BL239: SRC CLIP | BN239: STRUT | BO239: URH | BP239: WIRE
B240: 2/4/6in | C240: 2in | D240: =D221 -> 0 | F240: =(D240/10)*8 -> 0 | H240: =(D240/10)*2 -> 0 | I240: =(D240/10)*0 -> 0 | K240: =(D240/10)*36 -> 0 | L240: 0 | N240: =D240/$H$235 -> 0 | P240: =(6*N240)/12 -> 0 | R240: =N240*'CTI INPUTS'!$C$48 -> 0 | S240: =R240*('CTI INPUTS'!C200) -> 0 | U240: =N240*'CTI INPUTS'!$C$51 -> 0 | V240: =U240*('CTI INPUTS'!C201) -> 0 | X240: =N240*4 -> 0 | Y240: =N240*4 -> 0 | Z240: =N240*4 -> 0 | AB240: =N240*2 -> 0 | AC240: =N240*2 -> 0 | AD240: =N240*2 -> 0 | AF240: =N240*1 -> 0 | AH240: =AF240*'CTI INPUTS'!$C$36 -> 0 | AJ240: =(F240/4)*'CTI INPUTS'!$C$33 -> 0 | AK240: =(H240*'CTI INPUTS'!$C$34)+(I240*'CTI INPUTS'!$C$33) -> 0 | AM240: =(D240/10)*'CTI INPUTS'!$C$55 -> 0 | AN240: =(D240/10)*'CTI INPUTS'!C53 -> 0 | AP240: =N240*'CTI INPUTS'!$C$37 -> 0 | AQ240: =N240*'CTI INPUTS'!$C$38 -> 0 | AR240: =N240*'CTI INPUTS'!$C$39 -> 0 | AT240: =(AJ240*'CTI INPUTS'!$C$6)/60 -> 0 | AU240: =(AK240*'CTI INPUTS'!$C$6)/60 -> 0 | AW240: =(N240*'CTI INPUTS'!$C$37)*(('CTI INPUTS'!$C$6)/60) -> 0 | AX240: =(AQ240/60)*'CTI INPUTS'!$C$6 -> 0 | AY240: =(AR240/60)*'CTI INPUTS'!$C$6 -> 0 | BA240: =(P240*('CTI INPUTS'!$D$17))+(R240*('CTI INPUTS'!$D$18))+(X240*('CTI INPUTS'!$D$12))+(Y240*('CTI INPUTS'!$D$13))+(Z240*('CTI INPUTS'!$D$14)) -> 0 | BB240: =(N240*('CTI INPUTS'!$D$19))+(R240*('CTI INPUTS'!$D$18))+(Z240*('CTI INPUTS'!$D$14)) -> 0 | BC240: =(U240*'CTI INPUTS'!$D$15)+(N240*'CTI INPUTS'!$D$16) -> 0 | BE240: =(X240*('CTI INPUTS'!$D$12)) -> 0 | BF240: =(Y240*('CTI INPUTS'!$D$13)) -> 0 | BG240: =(Z240*('CTI INPUTS'!$D$14)) -> 0 | BI240: =AB240*'CTI INPUTS'!$D$42 -> 0 | BJ240: =AC240*'CTI INPUTS'!$D$43 -> 0 | BK240: =AD240*'CTI INPUTS'!$D$44 -> 0 | BL240: =AF240*'CTI INPUTS'!$D$45 -> 0
C241: 4in | D241: =D222 -> 0 | F241: =(D241/10)*16 -> 0 | H241: 0 | I241: =(D241/10)*0 -> 0 | K241: 0 | L241: 0 | N241: 0 | P241: =(8*N241)/12 -> 0 | R241: =N241*'CTI INPUTS'!$C$48 -> 0 | S241: =R241*('CTI INPUTS'!C200) -> 0 | U241: =N241*'CTI INPUTS'!$C$51 -> 0 | V241: =U241*('CTI INPUTS'!C201) -> 0 | X241: 0 | Y241: 0 | Z241: 0 | AB241: 0 | AC241: 0 | AD241: 0 | AF241: =N241*2 -> 0 | AH241: =AF241*'CTI INPUTS'!$C$36 -> 0 | AJ241: =(F241/4)*'CTI INPUTS'!$C$33 -> 0 | AK241: =(H241*'CTI INPUTS'!$C$34)+(I241*'CTI INPUTS'!$C$33) -> 0 | AM241: =(D241/10)*'CTI INPUTS'!$C$55 -> 0 | AN241: =(D241/10)*'CTI INPUTS'!C53 -> 0 | AP241: =N241*'CTI INPUTS'!$C$37 -> 0 | AQ241: =N241*'CTI INPUTS'!$C$38 -> 0 | AR241: =N241*'CTI INPUTS'!$C$39 -> 0 | AT241: =(AJ241*'CTI INPUTS'!$C$6)/60 -> 0 | AU241: =(AK241*'CTI INPUTS'!$C$6)/60 -> 0 | AW241: =(N241*'CTI INPUTS'!$C$37)*(('CTI INPUTS'!$C$6)/60) -> 0 | AX241: =(AQ241/60)*'CTI INPUTS'!$C$6 -> 0 | AY241: =(AR241/60)*'CTI INPUTS'!$C$6 -> 0 | BA241: =(P241*('CTI INPUTS'!$D$17))+(R241*('CTI INPUTS'!$D$18))+(X241*('CTI INPUTS'!$D$12))+(Y241*('CTI INPUTS'!$D$13))+(Z241*('CTI INPUTS'!$D$14)) -> 0 | BB241: =(N241*('CTI INPUTS'!$D$19))+(R241*('CTI INPUTS'!$D$18))+(Z241*('CTI INPUTS'!$D$14)) -> 0 | BC241: =(U241*'CTI INPUTS'!$D$15)+(N241*'CTI INPUTS'!$D$16) -> 0 | BE241: =(X241*('CTI INPUTS'!$D$12)) -> 0 | BF241: =(Y241*('CTI INPUTS'!$D$13)) -> 0 | BG241: =(Z241*('CTI INPUTS'!$D$14)) -> 0 | BI241: =AB241*'CTI INPUTS'!$D$42 -> 0 | BJ241: =AC241*'CTI INPUTS'!$D$43 -> 0 | BK241: =AD241*'CTI INPUTS'!$D$44 -> 0 | BL241: =AF241*'CTI INPUTS'!$D$45 -> 0
C242: 6in | D242: 0 | F242: =(D242/10)*16 -> 0 | H242: 0 | I242: =(D242/10)*0 -> 0 | K242: 0 | L242: 0 | N242: 0 | P242: =(10*N242)/12 -> 0 | R242: =N242*'CTI INPUTS'!$C$48 -> 0 | S242: =R242*('CTI INPUTS'!C200) -> 0 | U242: =N242*'CTI INPUTS'!$C$51 -> 0 | V242: =U242*('CTI INPUTS'!C201) -> 0 | X242: 0 | Y242: 0 | Z242: 0 | AB242: 0 | AC242: 0 | AD242: 0 | AF242: 0 | AH242: =AF242*'CTI INPUTS'!$C$36 -> 0 | AJ242: =(F242/4)*'CTI INPUTS'!$C$33 -> 0 | AK242: =(H242*'CTI INPUTS'!$C$34)+(I242*'CTI INPUTS'!$C$33) -> 0 | AM242: =(D242/10)*'CTI INPUTS'!$C$55 -> 0 | AN242: =(D242/10)*'CTI INPUTS'!C53 -> 0 | AP242: =N242*'CTI INPUTS'!$C$37 -> 0 | AQ242: =N242*'CTI INPUTS'!$C$38 -> 0 | AR242: =N242*'CTI INPUTS'!$C$39 -> 0 | AT242: =(AJ242*'CTI INPUTS'!$C$6)/60 -> 0 | AU242: =(AK242*'CTI INPUTS'!$C$6)/60 -> 0 | AW242: =(N242*'CTI INPUTS'!$C$37)*(('CTI INPUTS'!$C$6)/60) -> 0 | AX242: =(AQ242/60)*'CTI INPUTS'!$C$6 -> 0 | AY242: =(AR242/60)*'CTI INPUTS'!$C$6 -> 0 | BA242: =(P242*('CTI INPUTS'!$D$17))+(R242*('CTI INPUTS'!$D$18))+(X242*('CTI INPUTS'!$D$12))+(Y242*('CTI INPUTS'!$D$13))+(Z242*('CTI INPUTS'!$D$14)) -> 0 | BB242: =(N242*('CTI INPUTS'!$D$19))+(R242*('CTI INPUTS'!$D$18))+(Z242*('CTI INPUTS'!$D$14)) -> 0 | BC242: =(U242*'CTI INPUTS'!$D$15)+(N242*'CTI INPUTS'!$D$16) -> 0 | BE242: =(X242*('CTI INPUTS'!$D$12)) -> 0 | BF242: =(Y242*('CTI INPUTS'!$D$13)) -> 0 | BG242: =(Z242*('CTI INPUTS'!$D$14)) -> 0 | BI242: =AB242*'CTI INPUTS'!$D$42 -> 0 | BJ242: =AC242*'CTI INPUTS'!$D$43 -> 0 | BK242: =AD242*'CTI INPUTS'!$D$44 -> 0 | BL242: =AF242*'CTI INPUTS'!$D$45 -> 0
C243: 8in | D243: 0 | F243: =(D243/10)*20 -> 0 | H243: 0 | I243: =(D243/10)*4 -> 0 | K243: 0 | L243: 0 | N243: 0 | P243: =(12*N243)/12 -> 0 | R243: =N243*'CTI INPUTS'!$C$48 -> 0 | S243: =R243*('CTI INPUTS'!C200) -> 0 | U243: =N243*'CTI INPUTS'!$C$51 -> 0 | V243: =U243*('CTI INPUTS'!C201) -> 0 | X243: 0 | Y243: 0 | Z243: 0 | AB243: 0 | AC243: 0 | AD243: 0 | AF243: 0 | AH243: =AF243*'CTI INPUTS'!$C$36 -> 0 | AJ243: =(F243/4)*'CTI INPUTS'!$C$33 -> 0 | AK243: =(H243*'CTI INPUTS'!$C$34)+(I243*'CTI INPUTS'!$C$33) -> 0 | AM243: =(D243/10)*'CTI INPUTS'!$C$55 -> 0 | AN243: =(D243/10)*'CTI INPUTS'!C53 -> 0 | AP243: =N243*'CTI INPUTS'!$C$37 -> 0 | AQ243: =N243*'CTI INPUTS'!$C$38 -> 0 | AR243: =N243*'CTI INPUTS'!$C$39 -> 0 | AT243: =(AJ243*'CTI INPUTS'!$C$6)/60 -> 0 | AU243: =(AK243*'CTI INPUTS'!$C$6)/60 -> 0 | AW243: =(N243*'CTI INPUTS'!$C$37)*(('CTI INPUTS'!$C$6)/60) -> 0 | AX243: =(AQ243/60)*'CTI INPUTS'!$C$6 -> 0 | AY243: =(AR243/60)*'CTI INPUTS'!$C$6 -> 0 | BA243: =(P243*('CTI INPUTS'!$D$17))+(R243*('CTI INPUTS'!$D$18))+(X243*('CTI INPUTS'!$D$12))+(Y243*('CTI INPUTS'!$D$13))+(Z243*('CTI INPUTS'!$D$14)) -> 0 | BB243: =(N243*('CTI INPUTS'!$D$19))+(R243*('CTI INPUTS'!$D$18))+(Z243*('CTI INPUTS'!$D$14)) -> 0 | BC243: =(U243*'CTI INPUTS'!$D$15)+(N243*'CTI INPUTS'!$D$16) -> 0 | BE243: =(X243*('CTI INPUTS'!$D$12)) -> 0 | BF243: =(Y243*('CTI INPUTS'!$D$13)) -> 0 | BG243: =(Z243*('CTI INPUTS'!$D$14)) -> 0 | BI243: =AB243*'CTI INPUTS'!$D$42 -> 0 | BJ243: =AC243*'CTI INPUTS'!$D$43 -> 0 | BK243: =AD243*'CTI INPUTS'!$D$44 -> 0 | BL243: =AF243*'CTI INPUTS'!$D$45 -> 0
C244: 10in | D244: 0 | F244: =(D244/10)*20 -> 0 | H244: 0 | I244: =(D244/10)*4 -> 0 | K244: 0 | L244: 0 | N244: 0 | P244: =(14*N244)/12 -> 0 | R244: =N244*'CTI INPUTS'!$C$48 -> 0 | S244: =R244*('CTI INPUTS'!C200) -> 0 | U244: =N244*'CTI INPUTS'!$C$51 -> 0 | V244: =U244*('CTI INPUTS'!C201) -> 0 | X244: 0 | Y244: 0 | Z244: 0 | AB244: 0 | AC244: 0 | AD244: 0 | AF244: 0 | AH244: =AF244*'CTI INPUTS'!$C$36 -> 0 | AJ244: =(F244/4)*'CTI INPUTS'!$C$33 -> 0 | AK244: =(H244*'CTI INPUTS'!$C$34)+(I244*'CTI INPUTS'!$C$33) -> 0 | AM244: =(D244/10)*'CTI INPUTS'!$C$55 -> 0 | AN244: =(D244/10)*'CTI INPUTS'!C53 -> 0 | AP244: =N244*'CTI INPUTS'!$C$37 -> 0 | AQ244: =N244*'CTI INPUTS'!$C$38 -> 0 | AR244: =N244*'CTI INPUTS'!$C$39 -> 0 | AT244: =(AJ244*'CTI INPUTS'!$C$6)/60 -> 0 | AU244: =(AK244*'CTI INPUTS'!$C$6)/60 -> 0 | AW244: =(N244*'CTI INPUTS'!$C$37)*(('CTI INPUTS'!$C$6)/60) -> 0 | AX244: =(AQ244/60)*'CTI INPUTS'!$C$6 -> 0 | AY244: =(AR244/60)*'CTI INPUTS'!$C$6 -> 0 | BA244: =(P244*('CTI INPUTS'!$D$17))+(R244*('CTI INPUTS'!$D$18))+(X244*('CTI INPUTS'!$D$12))+(Y244*('CTI INPUTS'!$D$13))+(Z244*('CTI INPUTS'!$D$14)) -> 0 | BB244: =(N244*('CTI INPUTS'!$D$19))+(R244*('CTI INPUTS'!$D$18))+(Z244*('CTI INPUTS'!$D$14)) -> 0 | BC244: =(U244*'CTI INPUTS'!$D$15)+(N244*'CTI INPUTS'!$D$16) -> 0 | BE244: =(X244*('CTI INPUTS'!$D$12)) -> 0 | BF244: =(Y244*('CTI INPUTS'!$D$13)) -> 0 | BG244: =(Z244*('CTI INPUTS'!$D$14)) -> 0 | BI244: =AB244*'CTI INPUTS'!$D$42 -> 0 | BJ244: =AC244*'CTI INPUTS'!$D$43 -> 0 | BK244: =AD244*'CTI INPUTS'!$D$44 -> 0 | BL244: =AF244*'CTI INPUTS'!$D$45 -> 0
C245: 12in | D245: 15360 | F245: =(D245/10)*24 -> 36864 | H245: 3072 | I245: =(D245/10)*4 -> 6144 | K245: 55296 | L245: 0 | N245: 1920 | P245: =(16*N245)/12 -> 2560 | R245: =N245*'CTI INPUTS'!$C$48 -> 7680 | S245: =R245*('CTI INPUTS'!C200) -> 0 | U245: =N245*'CTI INPUTS'!$C$51 -> 11520 | V245: =U245*('CTI INPUTS'!C201) -> 0 | X245: 7680 | Y245: 7680 | Z245: 7680 | AB245: 3840 | AC245: 3840 | AD245: 3840 | AF245: 3840 | AH245: =AF245*'CTI INPUTS'!$C$36 -> 192 | AJ245: =(F245/4)*'CTI INPUTS'!$C$33 -> 4608 | AK245: =(H245*'CTI INPUTS'!$C$34)+(I245*'CTI INPUTS'!$C$33) -> 3686.4 | AM245: =(D245/10)*'CTI INPUTS'!$C$55 -> 7680 | AN245: =(D245/10)*'CTI INPUTS'!C53 -> 0 | AP245: =N245*'CTI INPUTS'!$C$37 -> 7680 | AQ245: =N245*'CTI INPUTS'!$C$38 -> 5760 | AR245: =N245*'CTI INPUTS'!$C$39 -> 3840 | AT245: =(AJ245*'CTI INPUTS'!$C$6)/60 -> 7680 | AU245: =(AK245*'CTI INPUTS'!$C$6)/60 -> 6144 | AW245: =(N245*'CTI INPUTS'!$C$37)*(('CTI INPUTS'!$C$6)/60) -> 12800 | AX245: =(AQ245/60)*'CTI INPUTS'!$C$6 -> 9600 | AY245: =(AR245/60)*'CTI INPUTS'!$C$6 -> 6400 | BA245: =(P245*('CTI INPUTS'!$D$17))+(R245*('CTI INPUTS'!$D$18))+(X245*('CTI INPUTS'!$D$12))+(Y245*('CTI INPUTS'!$D$13))+(Z245*('CTI INPUTS'!$D$14)) -> 35328 | BB245: =(N245*('CTI INPUTS'!$D$19))+(R245*('CTI INPUTS'!$D$18))+(Z245*('CTI INPUTS'!$D$14)) -> 24556.8 | BC245: =(U245*'CTI INPUTS'!$D$15)+(N245*'CTI INPUTS'!$D$16) -> 19200 | BE245: =(X245*('CTI INPUTS'!$D$12)) -> 7680 | BF245: =(Y245*('CTI INPUTS'!$D$13)) -> 1152 | BG245: =(Z245*('CTI INPUTS'!$D$14)) -> 1920 | BI245: =AB245*'CTI INPUTS'!$D$42 -> 7718.4 | BJ245: =AC245*'CTI INPUTS'!$D$43 -> 2688 | BK245: =AD245*'CTI INPUTS'!$D$44 -> 3456 | BL245: =AF245*'CTI INPUTS'!$D$45 -> 10560
... 47 more rows

Sheet Summary
K1: =TODAY() -> 2024-07-30
K61: Supports Savings | L61: (Pieces) | M61: ($ USD) | N61: (Hours)
K62: TSS: | L62: =L117+M117+L128+M128 -> 43923 | M62: =L142+M142+M152+L152 -> 97179.24 | N62: =L96+M96+M107+L107 -> 219.5533333
K63: NEMA: | L63: =L118+M118+L129+M129 -> 150025 | M63: =M143+L143+L153+M153 -> 285292.0667 | N63: =L97+M97+M108+L108 -> 974.8266667
K64: Delta | L64: =L63-L62 -> 106102 | M64: =M63-M62 -> 188112.8267 | N64: =N63-N62 -> 755.2733333
L65: =(L63-L62)/L63 -> 0.7072287952 | M65: =(M63-M62)/M63 -> 0.6593692873 | N65: =(N63-N62)/N63 -> 0.7747770544
L94: Support Installation | M94: Fitting Fabrication
L95: (Hours) | M95: (Hours) | O95: STRUT SUPPORT INSTALLATION TIME COST:
K96: TSS: | L96: ='DATA CALCULATIONS'!Q275/60 -> 120.65 | M96: ='DATA CALCULATIONS'!Q276/60 -> 4.093333333 | O96: FABRICATED FITTINGS TIME COST:
K97: NEMA: | L97: ='DATA CALCULATIONS'!F275/60 -> 297.2666667 | M97: ='DATA CALCULATIONS'!F276/60 -> 4.743333333 | O97: WSKIT SPLICE INSTALLATION TIME COST
K98: Delta | L98: =L97-L96 -> 176.6166667 | M98: =M97-M96 -> 0.65 | O98: FLXW + HDWR INSTALLATION TIME COST:
K99: Notes: | L99: Calculated Hours Saved | M99: Calculated Hours Saved
L100: Ref. Chart 1A | M100: Ref. Chart 1B
L105: Splicing Installation | M105: Restraint Installation
L106: (Hours) | M106: (Hours)
K107: TSS: | L107: ='DATA CALCULATIONS'!Q277/60 -> 54.59333333 | M107: ='DATA CALCULATIONS'!Q278/60 -> 40.21666667
K108: NEMA: | L108: ='DATA CALCULATIONS'!F277/60 -> 449.8666667 | M108: ='DATA CALCULATIONS'!F278/60 -> 222.95
K109: Delta | L109: =L108-L107 -> 395.2733333 | M109: =M108-M107 -> 182.7333333
K110: Notes: | L110: Calculated Hours Saved | M110: Calculated Hours Saved
L111: Ref. Chart 2A | M111: Ref. Chart 2B
L115: Support Installation | M115: Fitting Fabrication
L116: (Pieces) | M116: (Pieces)
K117: TSS: | L117: ='DATA CALCULATIONS'!Q281+'DATA CALCULATIONS'!Q282+'DATA CALCULATIONS'!Q283 -> 26543 | M117: ='DATA CALCULATIONS'!R276 -> 2282
K118: NEMA: | L118: ='DATA CALCULATIONS'!F281+'DATA CALCULATIONS'!F282+'DATA CALCULATIONS'!F283 -> 66885 | M118: ='DATA CALCULATIONS'!G274 -> 2402
K119: Delta | L119: =L118-L117 -> 40342 | M119: =M118-M117 -> 120
K120: Notes: | L120: Calculated Pieces Saved | M120: Calculated Pieces Saved
L121: Ref. Chart 3A | M121: Ref. Chart 3B
L126: Splicing Installation | M126: Restraint Installation
L127: (Pieces) | M127: (Pieces)
K128: TSS: | L128: ='DATA CALCULATIONS'!Q284 -> 15098 | M128: ='DATA CALCULATIONS'!R278 -> 0
K129: NEMA: | L129: ='DATA CALCULATIONS'!F284 -> 53984 | M129: ='DATA CALCULATIONS'!F285 -> 26754
K130: Delta | L130: =L129-L128 -> 38886 | M130: =M129-M128 -> 26754
K131: Notes: | L131: Calculated Pieces Saved | M131: Calculated Pieces Saved
L132: Ref. Chart 4A | M132: Ref. Chart 4B
L140: Support Installation | M140: Fitting Fabrication
L141: ($USD) | M141: ($USD)
K142: TSS: | L142: ='DATA CALCULATIONS'!P275+'DATA CALCULATIONS'!P281+'DATA CALCULATIONS'!P282+'DATA CALCULATIONS'!P283 -> 60666.62667 | M142: ='DATA CALCULATIONS'!P276 -> 409.3333333
K143: NEMA: | L143: ='DATA CALCULATIONS'!E275+'DATA CALCULATIONS'!E281+'DATA CALCULATIONS'!E282+'DATA CALCULATIONS'!E283 -> 163909.0667 | M143: ='DATA CALCULATIONS'!E276 -> 474.3333333
K144: Delta | L144: =L143-L142 -> 103242.44 | M144: =M143-M142 -> 65
K145: Notes: | L145: Calculated Dollars Saved | M145: Calculated Dollars Saved
L146: Ref. Chart 5A | M146: Ref. Chart 5B
L150: Splicing Installation | M150: Restraint Installation
L151: ($USD) | M151: ($USD)
K152: TSS: | L152: ='DATA CALCULATIONS'!P277+'DATA CALCULATIONS'!P284 -> 35701.11333 | M152: ='DATA CALCULATIONS'!P278 -> 402.1666667
K153: NEMA: | L153: ='DATA CALCULATIONS'!E277+'DATA CALCULATIONS'!E284 -> 58482.66667 | M153: ='DATA CALCULATIONS'!E278+'DATA CALCULATIONS'!E285 -> 62426
K154: Delta | L154: =L153-L152 -> 22781.55333 | M154: =M153-M152 -> 62023.83333
K155: Notes: | L155: Calculated Dollars Saved | M155: Calculated Dollars Saved
L156: Ref. Chart 6A | M156: Ref. Chart 6B
K163: TSS: Value Chart | L163: Supports Required (QTY) | M163: Supports Installation (HRS) | N163: Supports Cost (USD) | O163: Splicing Required (QTY) | P163: Splicing Installation (Hrs) | Q163: Splicing Cost (USD) | R163: Restraints Required (QTY) | S163: Restraints Installation (HRS) | T163: Restraints Cost (USD)
K164: TSS: | L164: ='DATA CALCULATIONS'!D159 -> 2413 | M164: ='DATA CALCULATIONS'!L179/60 -> 120.65 | N164: =L142 -> 60666.62667 | O164: ='DATA CALCULATIONS'!D209 -> 16378 | P164: ='DATA CALCULATIONS'!L170/60 -> 54.59333333 | Q164: =L152 -> 35701.11333 | R164: ='DATA CALCULATIONS'!R278 -> 0 | S164: ='DATA CALCULATIONS'!Q278/60 -> 40.21666667 | T164: =M152 -> 402.1666667
K165: NEMA: | L165: ='DATA CALCULATIONS'!D157 -> 4459 | M165: ='DATA CALCULATIONS'!L173/60 -> 297.2666667 | N165: =L143 -> 163909.0667 | O165: ='DATA CALCULATIONS'!D204 -> 53984 | P165: ='DATA CALCULATIONS'!L165/60 -> 449.8666667 | Q165: =L153 -> 58482.66667 | R165: ='DATA CALCULATIONS'!F285 -> 26754 | S165: ='DATA CALCULATIONS'!F278/60 -> 222.95 | T165: =M153 -> 62426
K166: Savings | L166: =(L165-L164)/L165 -> 0.4588472752 | M166: 0.5941354564 | N166: 0.6298763217 | O166: 0.6966138115 | P166: 0.8786455246 | Q166: 0.3895436825 | R166: 1 | S166: 0.8196157584 | T166: 0.9935577057
K181: Hours (HRS) | L181: Supports | M181: Splicing | N181: Restraints | O181: Fittings | P181: Totals
K182: TSS: | L182: =L96 -> 120.65 | M182: =L107 -> 54.59333333 | N182: =M107 -> 40.21666667 | O182: =M96 -> 4.093333333 | P182: =SUM(L182:O182) -> 219.5533333
K183: NEMA: | L183: =L97 -> 297.2666667 | M183: =L108 -> 449.8666667 | N183: =M108 -> 222.95 | O183: =M97 -> 4.743333333 | P183: =SUM(L183:O183) -> 974.8266667
K185: Hours Savings % | L185: Supports | M185: Splicing | N185: Restraints | O185: Fittings
K186: % Savings | L186: =(L183-L182)/L183 -> 0.5941354564 | M186: =(M183-M182)/M183 -> 0.8786455246 | N186: =(N183-N182)/N183 -> 0.8196157584 | O186: =(O183-O182)/O183 -> 0.1370344343 | P186: =P183-P182 -> 755.2733333
K196: Cost (USD) | L196: Supports | M196: Splicing | N196: Restraints | O196: Fittings | P196: Totals
K197: TSS: | L197: =N164 -> 60666.62667 | M197: =Q164 -> 35701.11333 | N197: =T164 -> 402.1666667 | O197: ='DATA CALCULATIONS'!P276 -> 409.3333333 | P197: =SUM(L197:O197) -> 97179.24
K198: NEMA: | L198: =N165 -> 163909.0667 | M198: =Q165 -> 58482.66667 | N198: =T165 -> 62426 | O198: ='DATA CALCULATIONS'!E276 -> 474.3333333 | P198: =SUM(L198:O198) -> 285292.0667
K200: Cost QTY | L200: Supports | M200: Splicing | N200: Restraints | O200: Fittings
K201: % Savings | L201: =(L198-L197)/L198 -> 0.6298763217 | M201: =(M198-M197)/M198 -> 0.3895436825 | N201: =(N198-N197)/N198 -> 0.9935577057 | O201: =(O198-O197)/O198 -> 0.1370344343 | P201: =P198-P197 -> 188112.8267
K212: Components (QTY) | L212: Hardware | M212: Splicing | N212: Restraints | O212: ATR | P212: Totals
K213: TSS: | L213: ='DATA CALCULATIONS'!D170 -> 28956 | M213: ='DATA CALCULATIONS'!D209 -> 16378 | N213: ='DATA CALCULATIONS'!D197 -> 4826 | O213: ='DATA CALCULATIONS'!D178 -> 9652 | P213: =SUM(L213:O213) -> 59812
K214: NEMA: | L214: ='DATA CALCULATIONS'!D168 -> 53508 | M214: ='DATA CALCULATIONS'!D204 -> 53984 | N214: ='DATA CALCULATIONS'!D192 -> 26754 | O214: ='DATA CALCULATIONS'!D176 -> 17836 | P214: =SUM(L214:O214) -> 152082
K216: Components (HRS) | L216: Hardware | M216: Splicing | N216: Restraints | P216: Totals
K217: TSS: | L217: ='DATA CALCULATIONS'!L179/60 -> 120.65 | M217: ='DATA CALCULATIONS'!L170/60 -> 54.59333333 | N217: ='DATA CALCULATIONS'!L190/60 -> 4.021666667 | P217: =SUM(L217:O217) -> 179.265
K218: NEMA: | L218: ='DATA CALCULATIONS'!L173/60 -> 297.2666667 | M218: ='DATA CALCULATIONS'!L165/60 -> 449.8666667 | N218: ='DATA CALCULATIONS'!L184/60 -> 222.95 | P218: =SUM(L218:O218) -> 970.0833333
K219: Hours Saved | L219: =L218-L217 -> 176.6166667 | M219: =M218-M217 -> 395.2733333 | N219: =N218-N217 -> 218.9283333 | O219: =SUM(L219:N219) -> 790.8183333
L220: =M164 -> 120.65 | M220: =P164 -> 54.59333333 | N220: =S164 -> 40.21666667 | P220: =SUM(L220:O220) -> 215.46
K225: =ProjectData!F17 -> Not Required | L225: =IF(K225="Not Required", 0,"1") -> 0
K226: Covers (QTY) | L226: Pieces Saved | M226: Hours Saved
K227: TSS: | L227: ='DATA CALCULATIONS'!D19*L225 -> 0 | M227: ='DATA CALCULATIONS'!L154/60*L225 -> 0
K228: NEMA: | L228: =L227*24*L225 -> 0 | M228: ='DATA CALCULATIONS'!L153/60*L225 -> 0
K229: TSS Recommendation | L229: =L228-L227 -> 0 | M229: =M228-M227 -> 0
K231: HB Fabrication | L231: Cut Edges Saved | M231: Hours Saved
K232: TSS Recommendation | L232: ='DATA CALCULATIONS'!T149 -> 0 | M232: ='DATA CALCULATIONS'!L158/60 -> 0
K233: NEMA: | L233: ='DATA CALCULATIONS'!T148 -> 480 | M233: ='DATA CALCULATIONS'!L157/60 -> 0.65
K234: TSS Recommendation | L234: =L233-L232 -> 480 | M234: =M233-M232 -> 0.65
K242: Supports | L242: QTY | M242: Cost (USD) | N242: Totals
K243: TSS: | L243: ='DATA CALCULATIONS'!I113 -> 2413 | M243: ='DATA CALCULATIONS'!D164*'CTI INPUTS'!D17 -> 15576 | N243: =M244-M243 -> 13374
K244: NEMA: | L244: ='DATA CALCULATIONS'!D113 -> 4459 | M244: ='DATA CALCULATIONS'!D162*'CTI INPUTS'!D17 -> 28950
L245: =(L244-L243)/L244 -> 0.4588472752 | M245: =(M244-M243)/M244 -> 0.4619689119
K247: Linear Ft | L247: Supports (ft) | M247: ATR (ft) | N247: Totals
K248: TSS: | L248: ='DATA CALCULATIONS'!T158 -> 3461.333333 | M248: ='DATA CALCULATIONS'!D167 -> 9652 | N248: =M248+L248 -> 13113.33333
K249: NEMA: | L249: ='DATA CALCULATIONS'!T156 -> 6433.333333 | M249: ='DATA CALCULATIONS'!D165 -> 17836 | N249: =M249+L249 -> 24269.33333
L250: =(L249-L248)/L249 -> 0.4619689119 | M250: =(M249-M248)/M249 -> 0.4588472752 | N250: =N249-N248 -> 11156
K256: Critical Path | L256: Labor Schedule (hrs)
K257: TSS: | L257: ='DATA CALCULATIONS'!T186/60 -> 183.3583333
K258: NEMA: | L258: ='DATA CALCULATIONS'!T184/60 -> 974.8266667
K259: Savings (QTY) | L259: =L258-L257 -> 791.4683333
K260: Savings (%) | L260: =(L258-L257)/L258 -> 0.8119067321
K262: Critical Path | L262: Pieces (QTY)
K263: TSS: | L263: ='DATA CALCULATIONS'!T158+'DATA CALCULATIONS'!T167+'DATA CALCULATIONS'!T172 -> 60347.33333
K264: NEMA: | L264: ='DATA CALCULATIONS'!T156+'DATA CALCULATIONS'!T165+'DATA CALCULATIONS'!T170 -> 194663.3333
K265: Savings (QTY) | L265: =L264-L263 -> 134316
K266: Savings (%) | L266: =(L264-L263)/L264 -> 0.689991267
L313: =IFERROR("Maximize project returns by eliminating structure, increasing installation efficiency, and removing complexitity. By applying TSS advantages, your next project could yeild $"&TEXT(M64,"#,###")&" or more in project savings.","Please enter values for all of the inputs to view the completed analysis.") -> Maximize project returns by eliminating structure, increasing installation efficiency, and removing complexitity. By applying TSS advantages, your next project could yeild $188,113 or more in project savings.
L320: =IFERROR("Exceed project schedules by decreasing critical path & skilled labor hours. With intuitive design and simplicstic fixing methods, more than "&TEXT(N64,"#,###0.0")&" hours can be eliminated.","Please enter values for all of the inputs to view the completed analysis.") -> Exceed project schedules by decreasing critical path & skilled labor hours. With intuitive design and simplicstic fixing methods, more than 755.3 hours can be eliminated.
L324: =IFERROR("Errors and unwanted expenses often stem from jobsite complexities. CTI's TOUGHMesh system can eliminate as much as "&TEXT(L64,"#,###")&" pieces of hardware and accessores from this project.","Please enter values for all of the inputs to view the completed analysis.") -> Errors and unwanted expenses often stem from jobsite complexities. CTI's TOUGHMesh system can eliminate as much as 106,102 pieces of hardware and accessores from this project.
L331: =IFERROR("A typical NEMA installation of this size would require a "&TEXT(M65,"#,##0.0%")&" reduction in material prices to meet the $ value of TSS while still requiring an extra "&TEXT(N64,"#,##0.0")&" hours of additional labor.","Please enter values for all of the inputs to view the completed analysis.") -> A typical NEMA installation of this size would require a 65.9% reduction in material prices to meet the $ value of TSS while still requiring an extra 755.3 hours of additional labor.
L335: ="TOUGH Support Savings: (The ability to minimize project expenses and maximize project ROI):" -> TOUGH Support Savings: (The ability to minimize project expenses and maximize project ROI):
L339: ="1. Support Optimization - Eliminate Unnecessary Tray Supports 2. Speed of Installation - Simplify & Reduce Complexity 3. Advanced Protection - Guard Against Long Lead Times & Sharp Edges" -> 1. Support Optimization - Eliminate Unnecessary Tray Supports 2. Speed of Installation - Simplify & Reduce Complexity 3. Advanced Protection - Guard Against Long Lead Times & Sharp Edges
